Workbook

Sheet main
B1: Integrated Domestic Electricity Demand and PV Micro-generation Model - Single Dwelling Simulation Example for 24 Hours
B3: Ian Richardson and Murray Thomson | G3: Steps:
B4: CREST (Centre for Renewable Energy Systems Technology), | G4: 1 | H4: Specify the number of residents in the house: | K4: 2 | L4: (Specify 1 to 5)
B5: Department of Electronic and Electrical Engineering | G5: 2 | H5: Specify either a weekday (wd) or weekend (we): | K5: wd | L5: (Specify 'wd' or 'we')
B6: Loughborough University, Leicestershire LE11 3TU, UK | G6: 3 | H6: Configure and run the PV model for a given location | K6: Refer to the "PV_Model" tab.
G7: 4 | H7: Simulate the clearness of the sky
B8: Tel. +44 1509 635326. Email address: I.W.Richardson@lboro.ac.uk
G9: 5 | H9: Randomly allocate appliances to the dwelling
C10: Total PV generation for the day: | E10: =PV_Model!N1451 -> 5.894707147 | F10: kWh | H10: (or manually specify these on sheet 'appliances')
C11: Total demand for the day: | E11: =appliance_sim_data!D1453 -> 7.230666667 | F11: kWh | G11: 6 | H11: Run the active occupancy model
C12: Total exported | E12: =PV_Model!P1451 -> 2.886719711 | F12: kWh
G13: 7 | H13: Run the electricity demand simulation
H14: (including both the lighting and appliance models)
C15: Irradiance and active occupancy for a single dwelling (24 hours)
B50: All appliances are assumed to be switched off at the start of the simulation.
B52: Supporting occupancy data sets derived from the UK 2000 Time Use Survey data:
B53: Ipsos-RSL and Office for National Statistics, United Kingdom Time Use Survey,
B54: 2000 (Computer File), third ed., UK Data Archive (distributor), Colchester, Essex, September 2003, SN: 4504.
B56: Sample irradiance profiles are provided from the CREST irradiance database, CREST, Loughborough University.
B58: Supporting data references for the appliance model are referenced on the 'appliances' tab.

Sheet PV_Model
A1: One-minute resolution irradiance simulation | D1: Based on models and data from:
D2: [1] G. Masters, Renewable and Efficient Electric Power Systems, John Wiley & Sons, New Jersey, 2004.
A3: Input fields have a blue background. | D3: [2] C. Honsberg, S. Bowden, PVEducation.org, http://www.pveducation.org/pvcdrom/properties-of-sunlight/solar-time (Consulted 1st December, 2010).
D4: [3] D. Yogi Goswami, F. Kreith, J. F. Krieder, Principles of Solar Engineering, 2nd Edition Taylor & Francis, 2000.
B5: (Takes about a minute.) | D5: [4] D. Dusabe, J. Munda, A. Jimoh, Modelling of Cloudless Solar Radiation for PV Module Performance Analysis, Journal of Electrical Engineering 60 (4) 2009 192-197
D6: [5] Australian Government, The Equation of Time, http://www.ips.gov.au/Category/Educational/The%20Sun%20and%20Solar%20Activity/General%20Info/EquationOfTime.pdf (Consulted 1st December, 2010).
B7: (Fast.) | D7: [6] A. Skartveit, J. A. Olseth, The probability density and autocorrelation of short-term global and beam irradiance, Solar Energy 49 (6) 477-487.
H8: Simulation output:
A9: VARIABLE | B9: VALUE | C9: UNIT | D9: VALUE | E9: UNIT | F9: SOURCE | H9: Time of day | I9: Clear sky beam radiation at surface (horizontal) (W/m2) | J9: Total radiation on panel (clear sky) (W/m2) | K9: Clearness Index | L9: Outdoor global irradiance | M9: Net radiation on panel (W/m2) | N9: Generation W (min) | O9: Net dwelling demand taking PV generation into account (W) | P9: Export (W)
A10: Latitude | B10: 52.8 | C10: degrees | D10: =RADIANS(B10) -> 0.9215338451 | E10: radians | F10: Input | H10: 00:00:00 | I10: 0 | J10: 0 | K10: 1 | L10: =I10*K10 -> 0 | M10: =J10*K10 -> 0 | N10: =M10*$B$46*$B$47 -> 0 | O10: =appliance_sim_data!D12-N10 -> 54 | P10: =IF(O10<0, ABS(O10), 0) -> 0
A11: Longitude | B11: -1.2 | C11: degrees | D11: =RADIANS(B11) -> -0.02094395102 | E11: radians | F11: Input | H11: 00:01:00 | I11: 0 | J11: 0 | K11: 1 | L11: =I11*K11 -> 0 | M11: =J11*K11 -> 0 | N11: =M11*$B$46*$B$47 -> 0 | O11: =appliance_sim_data!D13-N11 -> 54 | P11: =IF(O11<0, ABS(O11), 0) -> 0
A12: Day of the year | B12: 172 | F12: Input | H12: 00:02:00 | I12: 0 | J12: 0 | K12: 1 | L12: 0 | M12: 0 | N12: 0 | O12: =appliance_sim_data!D14-N12 -> 54 | P12: 0
A13: Local time | B13: 23 | C13: hours | D13: 59 | E13: minutes | F13: Input | H13: 00:03:00 | I13: 0 | J13: 0 | K13: 1 | L13: 0 | M13: 0 | N13: 0 | O13: =appliance_sim_data!D15-N13 -> 54 | P13: 0
A14: Day of the year that summer time starts | B14: 87 | F14: Input | H14: 00:04:00 | I14: 0 | J14: 0 | K14: 1 | L14: 0 | M14: 0 | N14: 0 | O14: =appliance_sim_data!D16-N14 -> 54 | P14: 0
A15: Day of the year that summer time ends | B15: 304 | F15: Input | H15: 00:05:00 | I15: 0 | J15: 0 | K15: 1 | L15: 0 | M15: 0 | N15: 0 | O15: =appliance_sim_data!D17-N15 -> 54 | P15: 0
A16: Local standard time | B16: =IF(AND(B12>=B14,B12<B15),B13-1,B13) -> 22 | C16: hours | D16: =D13 -> 59 | E16: minutes | F16: Calculation (summer time offset) | H16: 00:06:00 | I16: 0 | J16: 0 | K16: 1 | L16: 0 | M16: 0 | N16: 0 | O16: =appliance_sim_data!D18-N16 -> 54 | P16: 0
A17: Local standard time meridian | B17: 0 | C17: degrees | D17: =RADIANS(B17) -> 0 | E17: radians | F17: Input | H17: 00:07:00 | I17: 0 | J17: 0 | K17: 1 | L17: 0 | M17: 0 | N17: 0 | O17: =appliance_sim_data!D19-N17 -> 54 | P17: 0
A18: B | B18: =360*(B12-81)/364 -> 90 | C18: degrees | D18: =RADIANS(B18) -> 1.570796327 | E18: radians | F18: [1] eq. 7.13, p403. | H18: 00:08:00 | I18: 0 | J18: 0 | K18: 1 | L18: 0 | M18: 0 | N18: 0 | O18: =appliance_sim_data!D20-N18 -> 54 | P18: 0
A19: Equation of time | B19: =(9.87*SIN(2*D18))-(7.53*COS(D18))-(1.5*SIN(D18)) -> -1.5 | F19: [1] eq. 7.12, p403. and [5] | H19: 00:09:00 | I19: 0 | J19: 0 | K19: 1 | L19: 0 | M19: 0 | N19: 0 | O19: =appliance_sim_data!D21-N19 -> 54 | P19: 0
A20: Time correction factor | B20: =(4*(B11-B17))+B19 -> -6.3 | F20: [2] | H20: 00:10:00 | I20: 0 | J20: 0 | K20: 1 | L20: 0 | M20: 0 | N20: 0 | O20: =appliance_sim_data!D22-N20 -> 54 | P20: 0
A21: Hours before solar noon | B21: =12-(B16+(D16/60)+(B20/60)) -> -10.87833333 | F21: See [1] eq. 7.14, p404 and [2] | H21: 00:11:00 | I21: 0 | J21: 0 | K21: 1 | L21: 0 | M21: 0 | N21: 0 | O21: =appliance_sim_data!D23-N21 -> 54 | P21: 0
H22: 00:12:00 | I22: 0 | J22: 0 | K22: 1 | L22: 0 | M22: 0 | N22: 0 | O22: =appliance_sim_data!D24-N22 -> 54 | P22: 0
A23: Slope of panel | B23: 0 | C23: degrees | D23: =2*PI()*B23/360 -> 0 | E23: radians | F23: Input | H23: 00:13:00 | I23: 0 | J23: 0 | K23: 1 | L23: 0 | M23: 0 | N23: 0 | O23: =appliance_sim_data!D25-N23 -> 54 | P23: 0
A24: Azimuth of panel | B24: 0 | C24: degrees | D24: =2*PI()*B24/360 -> 0 | E24: radians | F24: Input | H24: 00:14:00 | I24: 0 | J24: 0 | K24: 1 | L24: 0 | M24: 0 | N24: 0 | O24: =appliance_sim_data!D26-N24 -> 54 | P24: 0
H25: 00:15:00 | I25: 0 | J25: 0 | K25: 1 | L25: 0 | M25: 0 | N25: 0 | O25: =appliance_sim_data!D27-N25 -> 54 | P25: 0
A26: Extraterrestrial radiation | B26: =1367*(1+(0.034*COS(2*PI()*$B$12/365.25))) -> 1321.296186 | F26: [3] eq. 2.35, p42. | H26: 00:16:00 | I26: 0 | J26: 0 | K26: 1 | L26: 0 | M26: 0 | N26: 0 | O26: =appliance_sim_data!D28-N26 -> 54 | P26: 0
A27: Optical depth, k | B27: =0.174+(0.035*SIN(RADIANS(360*(B12-100)/365))) -> 0.2070958736 | F27: [1] eq. 7.23, p412. | H27: 00:17:00 | I27: 0 | J27: 0 | K27: 1 | L27: 0 | M27: 0 | N27: 0 | O27: =appliance_sim_data!D29-N27 -> 54 | P27: 0
H28: 00:18:00 | I28: 0 | J28: 0 | K28: 1 | L28: 0 | M28: 0 | N28: 0 | O28: =appliance_sim_data!D30-N28 -> 54 | P28: 0
A29: Hour angle, H | B29: =15*B21 -> -163.175 | C29: degrees | D29: =RADIANS(B29) -> -2.847941007 | E29: radians | F29: See [1] eq. 7.10, p396. | H29: 00:19:00 | I29: 0 | J29: 0 | K29: 1 | L29: 0 | M29: 0 | N29: 0 | O29: =appliance_sim_data!D31-N29 -> 54 | P29: 0
A30: Declination, delta | B30: =23.45*SIN(RADIANS(360*(284+B12)/365.25)) -> 23.44890217 | C30: degrees | D30: =RADIANS(B30) -> 0.4092605489 | E30: radians | F30: See [4] eq. 10. | H30: 00:20:00 | I30: 0 | J30: 0 | K30: 1 | L30: 0 | M30: 0 | N30: 0 | O30: =appliance_sim_data!D32-N30 -> 54 | P30: 0
A31: Solar altitude angle, beta | B31: =DEGREES(ASIN((COS(D10)*COS(D30)*COS(D29))+(SIN(D10)*SIN(D30)))) -> -12.35457696 | C31: degrees | D31: =RADIANS(B31) -> -0.2156280456 | E31: radians | F31: See [1] eq. 7.8 p396. | H31: 00:21:00 | I31: 0 | J31: 0 | K31: 1 | L31: 0 | M31: 0 | N31: 0 | O31: =appliance_sim_data!D33-N31 -> 54 | P31: 0
A32: Azimuth of sun, theta | B32: =DEGREES(ASIN(COS(D30)*SIN(D29)/COS(D31))) -> -15.7738236 | C32: degrees | D32: =RADIANS(B32) -> -0.2753051574 | E32: radians | F32: See [1] eq. 7.9 p396. | H32: 00:22:00 | I32: 0 | J32: 0 | K32: 1 | L32: 0 | M32: 0 | N32: 0 | O32: =appliance_sim_data!D34-N32 -> 54 | P32: 0
A33: Azimuth angle test | B33: =IF(COS(D29)>=(TAN(D30)/TAN(D10)),0,1) -> 1 | F33: See [4] eq. 12. | H33: 00:23:00 | I33: 0 | J33: 0 | K33: 1 | L33: 0 | M33: 0 | N33: 0 | O33: =appliance_sim_data!D35-N33 -> 54 | P33: 0
A34: Adjusted azimuth of sun, theta | B34: =IF(B33=0, IF(B32>90,B32-90,(IF(B32<-90, B32+90,B32))),IF(AND(B32>0,B32<90),180-B32,(IF(AND(B32>-90,B32<0),-180-B32,B32)))) -> -164.2261764 | C34: degrees | D34: =RADIANS(B34) -> -2.866287496 | E34: radians | F34: See [4] eq. 12. | H34: 00:24:00 | I34: 0 | J34: 0 | K34: 1 | L34: 0 | M34: 0 | N34: 0 | O34: =appliance_sim_data!D36-N34 -> 54 | P34: 0
H35: 00:25:00 | I35: 0 | J35: 0 | K35: 1 | L35: 0 | M35: 0 | N35: 0 | O35: =appliance_sim_data!D37-N35 -> 54 | P35: 0
A36: Solar incicident angle on panel | B36: =DEGREES(ACOS((COS(D31)*COS(D34-D24)*SIN(D23))+(SIN(D31)*COS(D23)))) -> 102.354577 | C36: degrees | D36: =RADIANS(B36) -> 1.786424372 | E36: radians | F36: See [1] eq 7.26, p414. | H36: 00:26:00 | I36: 0 | J36: 0 | K36: 1 | L36: 0 | M36: 0 | N36: 0 | O36: =appliance_sim_data!D38-N36 -> 54 | P36: 0
H37: 00:27:00 | I37: 0 | J37: 0 | K37: 1 | L37: 0 | M37: 0 | N37: 0 | O37: =appliance_sim_data!D39-N37 -> 54 | P37: 0
A38: Clear sky beam radiation at surface (horizontal) | B38: =IF(D31>0,B26*EXP((0-B27)/SIN(D31)),0) -> 0 | F38: See [4] eq. 4. | H38: 00:28:00 | I38: 0 | J38: 0 | K38: 0.93 | L38: 0 | M38: 0 | N38: 0 | O38: =appliance_sim_data!D40-N38 -> 54 | P38: 0
A39: Direct beam radiation on panel | B39: =IF(ABS(B36)>90,0,B38*COS(D36)) -> 0 | F39: See [1] eq 7.24, p414. | H39: 00:29:00 | I39: 0 | J39: 0 | K39: 0.93 | L39: 0 | M39: 0 | N39: 0 | O39: =appliance_sim_data!D41-N39 -> 54 | P39: 0
A40: Sky diffuse factor | B40: =0.095+(0.04*SIN(RADIANS(360*(B12-100)/365))) -> 0.1328238555 | F40: See [1] eq 7.28, p416. | H40: 00:30:00 | I40: 0 | J40: 0 | K40: 0.93 | L40: 0 | M40: 0 | N40: 0 | O40: =appliance_sim_data!D42-N40 -> 54 | P40: 0
A41: Diffuse radiation on panel | B41: =B40*B38*((1+COS(D23))/2) -> 0 | F41: See [1] eq 7.29, p416. | H41: 00:31:00 | I41: 0 | J41: 0 | K41: 0.92 | L41: 0 | M41: 0 | N41: 0 | O41: =appliance_sim_data!D43-N41 -> 54 | P41: 0
A42: Ground reflectance | B42: 0.2 | F42: Input, See [1] Example 7.11 | H42: 00:32:00 | I42: 0 | J42: 0 | K42: 0.92 | L42: 0 | M42: 0 | N42: 0 | O42: =appliance_sim_data!D44-N42 -> 54 | P42: 0
A43: Reflected radiation on panel | B43: =B42*B38*(SIN(D31)+B40)*((1-COS(D23))/2) -> 0 | F43: See [1] eq 7.31, p418. | H43: 00:33:00 | I43: 0 | J43: 0 | K43: 0.86 | L43: 0 | M43: 0 | N43: 0 | O43: =appliance_sim_data!D45-N43 -> 54 | P43: 0
A44: Total radiation on panel | B44: =B39+B41+B43 -> 0 | C44: Watts per meter square | F44: See [4] eq. 1. | H44: 00:34:00 | I44: 0 | J44: 0 | K44: 0.9 | L44: 0 | M44: 0 | N44: 0 | O44: =appliance_sim_data!D46-N44 -> 54 | P44: 0
H45: 00:35:00 | I45: 0 | J45: 0 | K45: 0.9 | L45: 0 | M45: 0 | N45: 0 | O45: =appliance_sim_data!D47-N45 -> 54 | P45: 0
A46: Panel area | B46: 10 | C46: meters square | F46: Input | H46: 00:36:00 | I46: 0 | J46: 0 | K46: 0.87 | L46: 0 | M46: 0 | N46: 0 | O46: =appliance_sim_data!D48-N46 -> 54 | P46: 0
A47: System efficiency | B47: 0.1 | F47: Input | H47: 00:37:00 | I47: 0 | J47: 0 | K47: 0.68 | L47: 0 | M47: 0 | N47: 0 | O47: =appliance_sim_data!D49-N47 -> 54 | P47: 0
A48: Electricity generated on the day | B48: =N1451 -> 5.894707147 | C48: kWh | F48: Calculated from simulation | H48: 00:38:00 | I48: 0 | J48: 0 | K48: 0.68 | L48: 0 | M48: 0 | N48: 0 | O48: =appliance_sim_data!D50-N48 -> 54 | P48: 0
H49: 00:39:00 | I49: 0 | J49: 0 | K49: 0.66 | L49: 0 | M49: 0 | N49: 0 | O49: =appliance_sim_data!D51-N49 -> 54 | P49: 0
H50: 00:40:00 | I50: 0 | J50: 0 | K50: 0.64 | L50: 0 | M50: 0 | N50: 0 | O50: =appliance_sim_data!D52-N50 -> 54 | P50: 0
H51: 00:41:00 | I51: 0 | J51: 0 | K51: 0.66 | L51: 0 | M51: 0 | N51: 0 | O51: =appliance_sim_data!D53-N51 -> 54 | P51: 0
H52: 00:42:00 | I52: 0 | J52: 0 | K52: 0.66 | L52: 0 | M52: 0 | N52: 0 | O52: =appliance_sim_data!D54-N52 -> 54 | P52: 0
H53: 00:43:00 | I53: 0 | J53: 0 | K53: 0.45 | L53: 0 | M53: 0 | N53: 0 | O53: =appliance_sim_data!D55-N53 -> 54 | P53: 0
H54: 00:44:00 | I54: 0 | J54: 0 | K54: 0.44 | L54: 0 | M54: 0 | N54: 0 | O54: =appliance_sim_data!D56-N54 -> 54 | P54: 0
H55: 00:45:00 | I55: 0 | J55: 0 | K55: 0.41 | L55: 0 | M55: 0 | N55: 0 | O55: =appliance_sim_data!D57-N55 -> 163 | P55: 0
H56: 00:46:00 | I56: 0 | J56: 0 | K56: 0.4 | L56: 0 | M56: 0 | N56: 0 | O56: =appliance_sim_data!D58-N56 -> 163 | P56: 0
H57: 00:47:00 | I57: 0 | J57: 0 | K57: 0.4 | L57: 0 | M57: 0 | N57: 0 | O57: =appliance_sim_data!D59-N57 -> 163 | P57: 0
H58: 00:48:00 | I58: 0 | J58: 0 | K58: 0.38 | L58: 0 | M58: 0 | N58: 0 | O58: =appliance_sim_data!D60-N58 -> 163 | P58: 0
H59: 00:49:00 | I59: 0 | J59: 0 | K59: 0.38 | L59: 0 | M59: 0 | N59: 0 | O59: =appliance_sim_data!D61-N59 -> 163 | P59: 0
H60: 00:50:00 | I60: 0 | J60: 0 | K60: 0.4 | L60: 0 | M60: 0 | N60: 0 | O60: =appliance_sim_data!D62-N60 -> 163 | P60: 0
H61: 00:51:00 | I61: 0 | J61: 0 | K61: 0.39 | L61: 0 | M61: 0 | N61: 0 | O61: =appliance_sim_data!D63-N61 -> 163 | P61: 0
H62: 00:52:00 | I62: 0 | J62: 0 | K62: 0.38 | L62: 0 | M62: 0 | N62: 0 | O62: =appliance_sim_data!D64-N62 -> 163 | P62: 0
H63: 00:53:00 | I63: 0 | J63: 0 | K63: 0.38 | L63: 0 | M63: 0 | N63: 0 | O63: =appliance_sim_data!D65-N63 -> 163 | P63: 0
H64: 00:54:00 | I64: 0 | J64: 0 | K64: 0.39 | L64: 0 | M64: 0 | N64: 0 | O64: =appliance_sim_data!D66-N64 -> 163 | P64: 0
H65: 00:55:00 | I65: 0 | J65: 0 | K65: 0.46 | L65: 0 | M65: 0 | N65: 0 | O65: =appliance_sim_data!D67-N65 -> 163 | P65: 0
H66: 00:56:00 | I66: 0 | J66: 0 | K66: 0.46 | L66: 0 | M66: 0 | N66: 0 | O66: =appliance_sim_data!D68-N66 -> 163 | P66: 0
H67: 00:57:00 | I67: 0 | J67: 0 | K67: 0.45 | L67: 0 | M67: 0 | N67: 0 | O67: =appliance_sim_data!D69-N67 -> 163 | P67: 0
H68: 00:58:00 | I68: 0 | J68: 0 | K68: 0.46 | L68: 0 | M68: 0 | N68: 0 | O68: =appliance_sim_data!D70-N68 -> 163 | P68: 0
H69: 00:59:00 | I69: 0 | J69: 0 | K69: 0.39 | L69: 0 | M69: 0 | N69: 0 | O69: =appliance_sim_data!D71-N69 -> 163 | P69: 0
H70: 01:00:00 | I70: 0 | J70: 0 | K70: 0.39 | L70: 0 | M70: 0 | N70: 0 | O70: =appliance_sim_data!D72-N70 -> 163 | P70: 0
H71: 01:01:00 | I71: 0 | J71: 0 | K71: 0.41 | L71: 0 | M71: 0 | N71: 0 | O71: =appliance_sim_data!D73-N71 -> 163 | P71: 0
H72: 01:02:00 | I72: 0 | J72: 0 | K72: 0.43 | L72: 0 | M72: 0 | N72: 0 | O72: =appliance_sim_data!D74-N72 -> 163 | P72: 0
H73: 01:03:00 | I73: 0 | J73: 0 | K73: 0.46 | L73: 0 | M73: 0 | N73: 0 | O73: =appliance_sim_data!D75-N73 -> 54 | P73: 0
H74: 01:04:00 | I74: 0 | J74: 0 | K74: 0.41 | L74: 0 | M74: 0 | N74: 0 | O74: =appliance_sim_data!D76-N74 -> 54 | P74: 0
H75: 01:05:00 | I75: 0 | J75: 0 | K75: 0.48 | L75: =I75*K75 -> 0 | M75: =J75*K75 -> 0 | N75: =M75*$B$46*$B$47 -> 0 | O75: =appliance_sim_data!D77-N75 -> 54 | P75: =IF(O75<0, ABS(O75), 0) -> 0
H76: 01:06:00 | I76: 0 | J76: 0 | K76: 0.48 | L76: 0 | M76: 0 | N76: 0 | O76: =appliance_sim_data!D78-N76 -> 54 | P76: 0
H77: 01:07:00 | I77: 0 | J77: 0 | K77: 0.47 | L77: 0 | M77: 0 | N77: 0 | O77: =appliance_sim_data!D79-N77 -> 54 | P77: 0
H78: 01:08:00 | I78: 0 | J78: 0 | K78: 0.78 | L78: 0 | M78: 0 | N78: 0 | O78: =appliance_sim_data!D80-N78 -> 54 | P78: 0
H79: 01:09:00 | I79: 0 | J79: 0 | K79: 0.77 | L79: 0 | M79: 0 | N79: 0 | O79: =appliance_sim_data!D81-N79 -> 232 | P79: 0
H80: 01:10:00 | I80: 0 | J80: 0 | K80: 0.78 | L80: 0 | M80: 0 | N80: 0 | O80: =appliance_sim_data!D82-N80 -> 232 | P80: 0
H81: 01:11:00 | I81: 0 | J81: 0 | K81: 0.65 | L81: 0 | M81: 0 | N81: 0 | O81: =appliance_sim_data!D83-N81 -> 232 | P81: 0
H82: 01:12:00 | I82: 0 | J82: 0 | K82: 1 | L82: 0 | M82: 0 | N82: 0 | O82: =appliance_sim_data!D84-N82 -> 232 | P82: 0
H83: 01:13:00 | I83: 0 | J83: 0 | K83: 1 | L83: 0 | M83: 0 | N83: 0 | O83: =appliance_sim_data!D85-N83 -> 368 | P83: 0
H84: 01:14:00 | I84: 0 | J84: 0 | K84: 1 | L84: 0 | M84: 0 | N84: 0 | O84: =appliance_sim_data!D86-N84 -> 368 | P84: 0
H85: 01:15:00 | I85: 0 | J85: 0 | K85: 1 | L85: 0 | M85: 0 | N85: 0 | O85: =appliance_sim_data!D87-N85 -> 368 | P85: 0
H86: 01:16:00 | I86: 0 | J86: 0 | K86: 0.93 | L86: 0 | M86: 0 | N86: 0 | O86: =appliance_sim_data!D88-N86 -> 368 | P86: 0
H87: 01:17:00 | I87: 0 | J87: 0 | K87: 1 | L87: 0 | M87: 0 | N87: 0 | O87: =appliance_sim_data!D89-N87 -> 368 | P87: 0
H88: 01:18:00 | I88: 0 | J88: 0 | K88: 1 | L88: 0 | M88: 0 | N88: 0 | O88: =appliance_sim_data!D90-N88 -> 368 | P88: 0
H89: 01:19:00 | I89: 0 | J89: 0 | K89: 1 | L89: 0 | M89: 0 | N89: 0 | O89: =appliance_sim_data!D91-N89 -> 368 | P89: 0
H90: 01:20:00 | I90: 0 | J90: 0 | K90: 1 | L90: 0 | M90: 0 | N90: 0 | O90: =appliance_sim_data!D92-N90 -> 368 | P90: 0
H91: 01:21:00 | I91: 0 | J91: 0 | K91: 1 | L91: 0 | M91: 0 | N91: 0 | O91: =appliance_sim_data!D93-N91 -> 368 | P91: 0
H92: 01:22:00 | I92: 0 | J92: 0 | K92: 1 | L92: 0 | M92: 0 | N92: 0 | O92: =appliance_sim_data!D94-N92 -> 368 | P92: 0
H93: 01:23:00 | I93: 0 | J93: 0 | K93: 1 | L93: 0 | M93: 0 | N93: 0 | O93: =appliance_sim_data!D95-N93 -> 368 | P93: 0
H94: 01:24:00 | I94: 0 | J94: 0 | K94: 1 | L94: 0 | M94: 0 | N94: 0 | O94: =appliance_sim_data!D96-N94 -> 368 | P94: 0
H95: 01:25:00 | I95: 0 | J95: 0 | K95: 1 | L95: 0 | M95: 0 | N95: 0 | O95: =appliance_sim_data!D97-N95 -> 368 | P95: 0
H96: 01:26:00 | I96: 0 | J96: 0 | K96: 1 | L96: 0 | M96: 0 | N96: 0 | O96: =appliance_sim_data!D98-N96 -> 368 | P96: 0
H97: 01:27:00 | I97: 0 | J97: 0 | K97: 1 | L97: 0 | M97: 0 | N97: 0 | O97: =appliance_sim_data!D99-N97 -> 368 | P97: 0
H98: 01:28:00 | I98: 0 | J98: 0 | K98: 1 | L98: 0 | M98: 0 | N98: 0 | O98: =appliance_sim_data!D100-N98 -> 368 | P98: 0
H99: 01:29:00 | I99: 0 | J99: 0 | K99: 1 | L99: 0 | M99: 0 | N99: 0 | O99: =appliance_sim_data!D101-N99 -> 368 | P99: 0
H100: 01:30:00 | I100: 0 | J100: 0 | K100: 1 | L100: 0 | M100: 0 | N100: 0 | O100: =appliance_sim_data!D102-N100 -> 368 | P100: 0
H101: 01:31:00 | I101: 0 | J101: 0 | K101: 1 | L101: 0 | M101: 0 | N101: 0 | O101: =appliance_sim_data!D103-N101 -> 190 | P101: 0
H102: 01:32:00 | I102: 0 | J102: 0 | K102: 1 | L102: 0 | M102: 0 | N102: 0 | O102: =appliance_sim_data!D104-N102 -> 190 | P102: 0
H103: 01:33:00 | I103: 0 | J103: 0 | K103: 1 | L103: 0 | M103: 0 | N103: 0 | O103: =appliance_sim_data!D105-N103 -> 54 | P103: 0
H104: 01:34:00 | I104: 0 | J104: 0 | K104: 1 | L104: 0 | M104: 0 | N104: 0 | O104: =appliance_sim_data!D106-N104 -> 54 | P104: 0
H105: 01:35:00 | I105: 0 | J105: 0 | K105: 1 | L105: 0 | M105: 0 | N105: 0 | O105: =appliance_sim_data!D107-N105 -> 54 | P105: 0
H106: 01:36:00 | I106: 0 | J106: 0 | K106: 1 | L106: 0 | M106: 0 | N106: 0 | O106: =appliance_sim_data!D108-N106 -> 54 | P106: 0
H107: 01:37:00 | I107: 0 | J107: 0 | K107: 1 | L107: 0 | M107: 0 | N107: 0 | O107: =appliance_sim_data!D109-N107 -> 54 | P107: 0
H108: 01:38:00 | I108: 0 | J108: 0 | K108: 1 | L108: 0 | M108: 0 | N108: 0 | O108: =appliance_sim_data!D110-N108 -> 54 | P108: 0
H109: 01:39:00 | I109: 0 | J109: 0 | K109: 1 | L109: 0 | M109: 0 | N109: 0 | O109: =appliance_sim_data!D111-N109 -> 54 | P109: 0
H110: 01:40:00 | I110: 0 | J110: 0 | K110: 1 | L110: 0 | M110: 0 | N110: 0 | O110: =appliance_sim_data!D112-N110 -> 54 | P110: 0
H111: 01:41:00 | I111: 0 | J111: 0 | K111: 1 | L111: 0 | M111: 0 | N111: 0 | O111: =appliance_sim_data!D113-N111 -> 54 | P111: 0
H112: 01:42:00 | I112: 0 | J112: 0 | K112: 1 | L112: 0 | M112: 0 | N112: 0 | O112: =appliance_sim_data!D114-N112 -> 54 | P112: 0
H113: 01:43:00 | I113: 0 | J113: 0 | K113: 1 | L113: 0 | M113: 0 | N113: 0 | O113: =appliance_sim_data!D115-N113 -> 54 | P113: 0
H114: 01:44:00 | I114: 0 | J114: 0 | K114: 1 | L114: 0 | M114: 0 | N114: 0 | O114: =appliance_sim_data!D116-N114 -> 54 | P114: 0
H115: 01:45:00 | I115: 0 | J115: 0 | K115: 1 | L115: 0 | M115: 0 | N115: 0 | O115: =appliance_sim_data!D117-N115 -> 54 | P115: 0
H116: 01:46:00 | I116: 0 | J116: 0 | K116: 1 | L116: 0 | M116: 0 | N116: 0 | O116: =appliance_sim_data!D118-N116 -> 54 | P116: 0
H117: 01:47:00 | I117: 0 | J117: 0 | K117: 1 | L117: 0 | M117: 0 | N117: 0 | O117: =appliance_sim_data!D119-N117 -> 54 | P117: 0
H118: 01:48:00 | I118: 0 | J118: 0 | K118: 1 | L118: 0 | M118: 0 | N118: 0 | O118: =appliance_sim_data!D120-N118 -> 163 | P118: 0
H119: 01:49:00 | I119: 0 | J119: 0 | K119: 1 | L119: 0 | M119: 0 | N119: 0 | O119: =appliance_sim_data!D121-N119 -> 163 | P119: 0
H120: 01:50:00 | I120: 0 | J120: 0 | K120: 1 | L120: 0 | M120: 0 | N120: 0 | O120: =appliance_sim_data!D122-N120 -> 163 | P120: 0
H121: 01:51:00 | I121: 0 | J121: 0 | K121: 1 | L121: 0 | M121: 0 | N121: 0 | O121: =appliance_sim_data!D123-N121 -> 163 | P121: 0
H122: 01:52:00 | I122: 0 | J122: 0 | K122: 1 | L122: 0 | M122: 0 | N122: 0 | O122: =appliance_sim_data!D124-N122 -> 163 | P122: 0
H123: 01:53:00 | I123: 0 | J123: 0 | K123: 1 | L123: 0 | M123: 0 | N123: 0 | O123: =appliance_sim_data!D125-N123 -> 163 | P123: 0
H124: 01:54:00 | I124: 0 | J124: 0 | K124: 1 | L124: 0 | M124: 0 | N124: 0 | O124: =appliance_sim_data!D126-N124 -> 163 | P124: 0
H125: 01:55:00 | I125: 0 | J125: 0 | K125: 1 | L125: 0 | M125: 0 | N125: 0 | O125: =appliance_sim_data!D127-N125 -> 163 | P125: 0
H126: 01:56:00 | I126: 0 | J126: 0 | K126: 1 | L126: 0 | M126: 0 | N126: 0 | O126: =appliance_sim_data!D128-N126 -> 163 | P126: 0
H127: 01:57:00 | I127: 0 | J127: 0 | K127: 1 | L127: 0 | M127: 0 | N127: 0 | O127: =appliance_sim_data!D129-N127 -> 163 | P127: 0
H128: 01:58:00 | I128: 0 | J128: 0 | K128: 1 | L128: 0 | M128: 0 | N128: 0 | O128: =appliance_sim_data!D130-N128 -> 163 | P128: 0
H129: 01:59:00 | I129: 0 | J129: 0 | K129: 1 | L129: 0 | M129: 0 | N129: 0 | O129: =appliance_sim_data!D131-N129 -> 163 | P129: 0
H130: 02:00:00 | I130: 0 | J130: 0 | K130: 1 | L130: 0 | M130: 0 | N130: 0 | O130: =appliance_sim_data!D132-N130 -> 163 | P130: 0
H131: 02:01:00 | I131: 0 | J131: 0 | K131: 1 | L131: 0 | M131: 0 | N131: 0 | O131: =appliance_sim_data!D133-N131 -> 163 | P131: 0
H132: 02:02:00 | I132: 0 | J132: 0 | K132: 1 | L132: 0 | M132: 0 | N132: 0 | O132: =appliance_sim_data!D134-N132 -> 163 | P132: 0
H133: 02:03:00 | I133: 0 | J133: 0 | K133: 1 | L133: 0 | M133: 0 | N133: 0 | O133: =appliance_sim_data!D135-N133 -> 163 | P133: 0
H134: 02:04:00 | I134: 0 | J134: 0 | K134: 1 | L134: 0 | M134: 0 | N134: 0 | O134: =appliance_sim_data!D136-N134 -> 163 | P134: 0
H135: 02:05:00 | I135: 0 | J135: 0 | K135: 1 | L135: 0 | M135: 0 | N135: 0 | O135: =appliance_sim_data!D137-N135 -> 163 | P135: 0
H136: 02:06:00 | I136: 0 | J136: 0 | K136: 1 | L136: 0 | M136: 0 | N136: 0 | O136: =appliance_sim_data!D138-N136 -> 54 | P136: 0
H137: 02:07:00 | I137: 0 | J137: 0 | K137: 1 | L137: 0 | M137: 0 | N137: 0 | O137: =appliance_sim_data!D139-N137 -> 54 | P137: 0
H138: 02:08:00 | I138: 0 | J138: 0 | K138: 1 | L138: 0 | M138: 0 | N138: 0 | O138: =appliance_sim_data!D140-N138 -> 54 | P138: 0
H139: 02:09:00 | I139: 0 | J139: 0 | K139: 1 | L139: =I139*K139 -> 0 | M139: =J139*K139 -> 0 | N139: =M139*$B$46*$B$47 -> 0 | O139: =appliance_sim_data!D141-N139 -> 54 | P139: =IF(O139<0, ABS(O139), 0) -> 0
H140: 02:10:00 | I140: 0 | J140: 0 | K140: 0.97 | L140: 0 | M140: 0 | N140: 0 | O140: =appliance_sim_data!D142-N140 -> 54 | P140: 0
H141: 02:11:00 | I141: 0 | J141: 0 | K141: 0.96 | L141: 0 | M141: 0 | N141: 0 | O141: =appliance_sim_data!D143-N141 -> 54 | P141: 0
H142: 02:12:00 | I142: 0 | J142: 0 | K142: 0.95 | L142: 0 | M142: 0 | N142: 0 | O142: =appliance_sim_data!D144-N142 -> 54 | P142: 0
H143: 02:13:00 | I143: 0 | J143: 0 | K143: 0.92 | L143: 0 | M143: 0 | N143: 0 | O143: =appliance_sim_data!D145-N143 -> 54 | P143: 0
H144: 02:14:00 | I144: 0 | J144: 0 | K144: 0.89 | L144: 0 | M144: 0 | N144: 0 | O144: =appliance_sim_data!D146-N144 -> 54 | P144: 0
H145: 02:15:00 | I145: 0 | J145: 0 | K145: 0.5 | L145: 0 | M145: 0 | N145: 0 | O145: =appliance_sim_data!D147-N145 -> 54 | P145: 0
H146: 02:16:00 | I146: 0 | J146: 0 | K146: 0.51 | L146: 0 | M146: 0 | N146: 0 | O146: =appliance_sim_data!D148-N146 -> 54 | P146: 0
H147: 02:17:00 | I147: 0 | J147: 0 | K147: 0.49 | L147: 0 | M147: 0 | N147: 0 | O147: =appliance_sim_data!D149-N147 -> 54 | P147: 0
H148: 02:18:00 | I148: 0 | J148: 0 | K148: 0.51 | L148: 0 | M148: 0 | N148: 0 | O148: =appliance_sim_data!D150-N148 -> 54 | P148: 0
H149: 02:19:00 | I149: 0 | J149: 0 | K149: 0.53 | L149: 0 | M149: 0 | N149: 0 | O149: =appliance_sim_data!D151-N149 -> 54 | P149: 0
H150: 02:20:00 | I150: 0 | J150: 0 | K150: 0.64 | L150: 0 | M150: 0 | N150: 0 | O150: =appliance_sim_data!D152-N150 -> 54 | P150: 0
H151: 02:21:00 | I151: 0 | J151: 0 | K151: 0.66 | L151: 0 | M151: 0 | N151: 0 | O151: =appliance_sim_data!D153-N151 -> 54 | P151: 0
H152: 02:22:00 | I152: 0 | J152: 0 | K152: 0.7 | L152: 0 | M152: 0 | N152: 0 | O152: =appliance_sim_data!D154-N152 -> 54 | P152: 0
H153: 02:23:00 | I153: 0 | J153: 0 | K153: 0.77 | L153: 0 | M153: 0 | N153: 0 | O153: =appliance_sim_data!D155-N153 -> 54 | P153: 0
H154: 02:24:00 | I154: 0 | J154: 0 | K154: 0.77 | L154: 0 | M154: 0 | N154: 0 | O154: =appliance_sim_data!D156-N154 -> 54 | P154: 0
H155: 02:25:00 | I155: 0 | J155: 0 | K155: 0.75 | L155: 0 | M155: 0 | N155: 0 | O155: =appliance_sim_data!D157-N155 -> 54 | P155: 0
H156: 02:26:00 | I156: 0 | J156: 0 | K156: 0.38 | L156: 0 | M156: 0 | N156: 0 | O156: =appliance_sim_data!D158-N156 -> 54 | P156: 0
H157: 02:27:00 | I157: 0 | J157: 0 | K157: 0.38 | L157: 0 | M157: 0 | N157: 0 | O157: =appliance_sim_data!D159-N157 -> 54 | P157: 0
H158: 02:28:00 | I158: 0 | J158: 0 | K158: 0.37 | L158: 0 | M158: 0 | N158: 0 | O158: =appliance_sim_data!D160-N158 -> 54 | P158: 0
H159: 02:29:00 | I159: 0 | J159: 0 | K159: 0.38 | L159: 0 | M159: 0 | N159: 0 | O159: =appliance_sim_data!D161-N159 -> 54 | P159: 0
H160: 02:30:00 | I160: 0 | J160: 0 | K160: 0.5 | L160: 0 | M160: 0 | N160: 0 | O160: =appliance_sim_data!D162-N160 -> 54 | P160: 0
H161: 02:31:00 | I161: 0 | J161: 0 | K161: 0.53 | L161: 0 | M161: 0 | N161: 0 | O161: =appliance_sim_data!D163-N161 -> 54 | P161: 0
H162: 02:32:00 | I162: 0 | J162: 0 | K162: 0.54 | L162: 0 | M162: 0 | N162: 0 | O162: =appliance_sim_data!D164-N162 -> 54 | P162: 0
H163: 02:33:00 | I163: 0 | J163: 0 | K163: 0.54 | L163: 0 | M163: 0 | N163: 0 | O163: =appliance_sim_data!D165-N163 -> 54 | P163: 0
H164: 02:34:00 | I164: 0 | J164: 0 | K164: 0.54 | L164: 0 | M164: 0 | N164: 0 | O164: =appliance_sim_data!D166-N164 -> 54 | P164: 0
H165: 02:35:00 | I165: 0 | J165: 0 | K165: 0.53 | L165: 0 | M165: 0 | N165: 0 | O165: =appliance_sim_data!D167-N165 -> 54 | P165: 0
H166: 02:36:00 | I166: 0 | J166: 0 | K166: 0.53 | L166: 0 | M166: 0 | N166: 0 | O166: =appliance_sim_data!D168-N166 -> 54 | P166: 0
H167: 02:37:00 | I167: 0 | J167: 0 | K167: 0.41 | L167: 0 | M167: 0 | N167: 0 | O167: =appliance_sim_data!D169-N167 -> 54 | P167: 0
H168: 02:38:00 | I168: 0 | J168: 0 | K168: 0.4 | L168: 0 | M168: 0 | N168: 0 | O168: =appliance_sim_data!D170-N168 -> 54 | P168: 0
H169: 02:39:00 | I169: 0 | J169: 0 | K169: 0.41 | L169: 0 | M169: 0 | N169: 0 | O169: =appliance_sim_data!D171-N169 -> 54 | P169: 0
H170: 02:40:00 | I170: 0 | J170: 0 | K170: 0.41 | L170: 0 | M170: 0 | N170: 0 | O170: =appliance_sim_data!D172-N170 -> 54 | P170: 0
H171: 02:41:00 | I171: 0 | J171: 0 | K171: 0.43 | L171: 0 | M171: 0 | N171: 0 | O171: =appliance_sim_data!D173-N171 -> 54 | P171: 0
H172: 02:42:00 | I172: 0 | J172: 0 | K172: 0.37 | L172: 0 | M172: 0 | N172: 0 | O172: =appliance_sim_data!D174-N172 -> 54 | P172: 0
H173: 02:43:00 | I173: 0 | J173: 0 | K173: 0.38 | L173: 0 | M173: 0 | N173: 0 | O173: =appliance_sim_data!D175-N173 -> 54 | P173: 0
H174: 02:44:00 | I174: 0 | J174: 0 | K174: 0.41 | L174: 0 | M174: 0 | N174: 0 | O174: =appliance_sim_data!D176-N174 -> 54 | P174: 0
H175: 02:45:00 | I175: 0 | J175: 0 | K175: 0.4 | L175: 0 | M175: 0 | N175: 0 | O175: =appliance_sim_data!D177-N175 -> 54 | P175: 0
H176: 02:46:00 | I176: 0 | J176: 0 | K176: 0.41 | L176: 0 | M176: 0 | N176: 0 | O176: =appliance_sim_data!D178-N176 -> 54 | P176: 0
H177: 02:47:00 | I177: 0 | J177: 0 | K177: 0.37 | L177: 0 | M177: 0 | N177: 0 | O177: =appliance_sim_data!D179-N177 -> 54 | P177: 0
H178: 02:48:00 | I178: 0 | J178: 0 | K178: 0.28 | L178: 0 | M178: 0 | N178: 0 | O178: =appliance_sim_data!D180-N178 -> 54 | P178: 0
H179: 02:49:00 | I179: 0 | J179: 0 | K179: 0.27 | L179: 0 | M179: 0 | N179: 0 | O179: =appliance_sim_data!D181-N179 -> 54 | P179: 0
H180: 02:50:00 | I180: 0 | J180: 0 | K180: 0.45 | L180: 0 | M180: 0 | N180: 0 | O180: =appliance_sim_data!D182-N180 -> 54 | P180: 0
H181: 02:51:00 | I181: 0 | J181: 0 | K181: 0.44 | L181: 0 | M181: 0 | N181: 0 | O181: =appliance_sim_data!D183-N181 -> 54 | P181: 0
H182: 02:52:00 | I182: 0 | J182: 0 | K182: 0.44 | L182: 0 | M182: 0 | N182: 0 | O182: =appliance_sim_data!D184-N182 -> 54 | P182: 0
H183: 02:53:00 | I183: 0 | J183: 0 | K183: 0.46 | L183: 0 | M183: 0 | N183: 0 | O183: =appliance_sim_data!D185-N183 -> 54 | P183: 0
H184: 02:54:00 | I184: 0 | J184: 0 | K184: 0.47 | L184: 0 | M184: 0 | N184: 0 | O184: =appliance_sim_data!D186-N184 -> 54 | P184: 0
H185: 02:55:00 | I185: 0 | J185: 0 | K185: 0.48 | L185: 0 | M185: 0 | N185: 0 | O185: =appliance_sim_data!D187-N185 -> 54 | P185: 0
H186: 02:56:00 | I186: 0 | J186: 0 | K186: 0.5 | L186: 0 | M186: 0 | N186: 0 | O186: =appliance_sim_data!D188-N186 -> 232 | P186: 0
H187: 02:57:00 | I187: 0 | J187: 0 | K187: 0.52 | L187: 0 | M187: 0 | N187: 0 | O187: =appliance_sim_data!D189-N187 -> 232 | P187: 0
H188: 02:58:00 | I188: 0 | J188: 0 | K188: 0.49 | L188: 0 | M188: 0 | N188: 0 | O188: =appliance_sim_data!D190-N188 -> 232 | P188: 0
H189: 02:59:00 | I189: 0 | J189: 0 | K189: 0.53 | L189: 0 | M189: 0 | N189: 0 | O189: =appliance_sim_data!D191-N189 -> 232 | P189: 0
H190: 03:00:00 | I190: 0 | J190: 0 | K190: 0.66 | L190: 0 | M190: 0 | N190: 0 | O190: =appliance_sim_data!D192-N190 -> 232 | P190: 0
H191: 03:01:00 | I191: 0 | J191: 0 | K191: 0.65 | L191: 0 | M191: 0 | N191: 0 | O191: =appliance_sim_data!D193-N191 -> 232 | P191: 0
H192: 03:02:00 | I192: 0 | J192: 0 | K192: 0.65 | L192: 0 | M192: 0 | N192: 0 | O192: =appliance_sim_data!D194-N192 -> 232 | P192: 0
H193: 03:03:00 | I193: 0 | J193: 0 | K193: 0.7 | L193: 0 | M193: 0 | N193: 0 | O193: =appliance_sim_data!D195-N193 -> 232 | P193: 0
H194: 03:04:00 | I194: 0 | J194: 0 | K194: 0.66 | L194: 0 | M194: 0 | N194: 0 | O194: =appliance_sim_data!D196-N194 -> 232 | P194: 0
H195: 03:05:00 | I195: 0 | J195: 0 | K195: 0.65 | L195: 0 | M195: 0 | N195: 0 | O195: =appliance_sim_data!D197-N195 -> 232 | P195: 0
H196: 03:06:00 | I196: 0 | J196: 0 | K196: 0.79 | L196: 0 | M196: 0 | N196: 0 | O196: =appliance_sim_data!D198-N196 -> 232 | P196: 0
H197: 03:07:00 | I197: 0 | J197: 0 | K197: 0.78 | L197: 0 | M197: 0 | N197: 0 | O197: =appliance_sim_data!D199-N197 -> 232 | P197: 0
H198: 03:08:00 | I198: 0 | J198: 0 | K198: 0.77 | L198: 0 | M198: 0 | N198: 0 | O198: =appliance_sim_data!D200-N198 -> 232 | P198: 0
H199: 03:09:00 | I199: 0 | J199: 0 | K199: 0.61 | L199: 0 | M199: 0 | N199: 0 | O199: =appliance_sim_data!D201-N199 -> 232 | P199: 0
H200: 03:10:00 | I200: 0 | J200: 0 | K200: 0.63 | L200: 0 | M200: 0 | N200: 0 | O200: =appliance_sim_data!D202-N200 -> 232 | P200: 0
... 1250 more rows

Sheet ClearnessIndexTPM
B1: Clearness Index Transition Probability Matrix
B3: Constructed from global irradiance data from the CREST irradiance database, measured at Loughborough University in 2007.
B5: Probability distributions for the tranistions from one global clearness to another at a bin resolution of 0.01, for one-minute resolution transitions.
C9: 0.01 | D9: 0.02 | E9: 0.03 | F9: 0.04 | G9: 0.05 | H9: 0.06 | I9: 0.07 | J9: 0.08 | K9: 0.09 | L9: 0.1 | M9: 0.11 | N9: 0.12 | O9: 0.13 | P9: 0.14 | Q9: 0.15 | R9: 0.16 | S9: 0.17 | T9: 0.18 | U9: 0.19 | V9: 0.2 | W9: 0.21 | X9: 0.22 | Y9: 0.23 | Z9: 0.24 | AA9: 0.25 | AB9: 0.26 | AC9: 0.27 | AD9: 0.28 | AE9: 0.29 | AF9: 0.3 | AG9: 0.31 | AH9: 0.32 | AI9: 0.33 | AJ9: 0.34 | AK9: 0.35 | AL9: 0.36 | AM9: 0.37 | AN9: 0.38 | AO9: 0.39 | AP9: 0.4 | AQ9: 0.41 | AR9: 0.42 | AS9: 0.43 | AT9: 0.44 | AU9: 0.45 | AV9: 0.46 | AW9: 0.47 | AX9: 0.48 | AY9: 0.49 | AZ9: 0.5 | BA9: 0.51 | BB9: 0.52 | BC9: 0.53 | BD9: 0.54 | BE9: 0.55 | BF9: 0.56 | BG9: 0.57 | BH9: 0.58 | BI9: 0.59 | BJ9: 0.6 | BK9: 0.61 | BL9: 0.62 | BM9: 0.63 | BN9: 0.64 | BO9: 0.65 | BP9: 0.66 | BQ9: 0.67 | BR9: 0.68 | BS9: 0.69 | BT9: 0.7 | BU9: 0.71 | BV9: 0.72 | BW9: 0.73 | BX9: 0.74 | BY9: 0.75 | BZ9: 0.76 | CA9: 0.77 | CB9: 0.78 | CC9: 0.79 | CD9: 0.8 | CE9: 0.81 | CF9: 0.82 | CG9: 0.83 | CH9: 0.84 | CI9: 0.85 | CJ9: 0.86 | CK9: 0.87 | CL9: 0.88 | CM9: 0.89 | CN9: 0.9 | CO9: 0.91 | CP9: 0.92 | CQ9: 0.93 | CR9: 0.94 | CS9: 0.95 | CT9: 0.96 | CU9: 0.97 | CV9: 0.98 | CW9: 0.99 | CX9: 1 | CY9: Clear
B10: 0.01 | C10: 0 | D10: 0 | E10: 0 | F10: 0 | G10: 0 | H10: 0 | I10: 0 | J10: 0 | K10: 0 | L10: 0 | M10: 0 | N10: 0 | O10: 0 | P10: 0 | Q10: 0 | R10: 0 | S10: 0 | T10: 0 | U10: 0 | V10: 0 | W10: 0 | X10: 0 | Y10: 0 | Z10: 0 | AA10: 0 | AB10: 0 | AC10: 0 | AD10: 0 | AE10: 0 | AF10: 0 | AG10: 0 | AH10: 0 | AI10: 0 | AJ10: 0 | AK10: 0 | AL10: 0 | AM10: 0 | AN10: 0 | AO10: 0 | AP10: 0 | AQ10: 0 | AR10: 0 | AS10: 0 | AT10: 0 | AU10: 0 | AV10: 0 | AW10: 0 | AX10: 0 | AY10: 0 | AZ10: 0 | BA10: 0 | BB10: 0 | BC10: 0 | BD10: 0 | BE10: 0 | BF10: 0 | BG10: 0 | BH10: 0 | BI10: 0 | BJ10: 0 | BK10: 0 | BL10: 0 | BM10: 0 | BN10: 0 | BO10: 0 | BP10: 0 | BQ10: 0 | BR10: 0 | BS10: 0 | BT10: 0 | BU10: 0 | BV10: 0 | BW10: 0 | BX10: 0 | BY10: 0 | BZ10: 0 | CA10: 0 | CB10: 0 | CC10: 0 | CD10: 0 | CE10: 0 | CF10: 0 | CG10: 0 | CH10: 0 | CI10: 0 | CJ10: 0 | CK10: 0 | CL10: 0 | CM10: 0 | CN10: 0 | CO10: 0 | CP10: 0 | CQ10: 0 | CR10: 0 | CS10: 0 | CT10: 0 | CU10: 0 | CV10: 0 | CW10: 0 | CX10: 0 | CY10: 0
B11: 0.02 | C11: 0 | D11: 0.6666666667 | E11: 0.3333333333 | F11: 0 | G11: 0 | H11: 0 | I11: 0 | J11: 0 | K11: 0 | L11: 0 | M11: 0 | N11: 0 | O11: 0 | P11: 0 | Q11: 0 | R11: 0 | S11: 0 | T11: 0 | U11: 0 | V11: 0 | W11: 0 | X11: 0 | Y11: 0 | Z11: 0 | AA11: 0 | AB11: 0 | AC11: 0 | AD11: 0 | AE11: 0 | AF11: 0 | AG11: 0 | AH11: 0 | AI11: 0 | AJ11: 0 | AK11: 0 | AL11: 0 | AM11: 0 | AN11: 0 | AO11: 0 | AP11: 0 | AQ11: 0 | AR11: 0 | AS11: 0 | AT11: 0 | AU11: 0 | AV11: 0 | AW11: 0 | AX11: 0 | AY11: 0 | AZ11: 0 | BA11: 0 | BB11: 0 | BC11: 0 | BD11: 0 | BE11: 0 | BF11: 0 | BG11: 0 | BH11: 0 | BI11: 0 | BJ11: 0 | BK11: 0 | BL11: 0 | BM11: 0 | BN11: 0 | BO11: 0 | BP11: 0 | BQ11: 0 | BR11: 0 | BS11: 0 | BT11: 0 | BU11: 0 | BV11: 0 | BW11: 0 | BX11: 0 | BY11: 0 | BZ11: 0 | CA11: 0 | CB11: 0 | CC11: 0 | CD11: 0 | CE11: 0 | CF11: 0 | CG11: 0 | CH11: 0 | CI11: 0 | CJ11: 0 | CK11: 0 | CL11: 0 | CM11: 0 | CN11: 0 | CO11: 0 | CP11: 0 | CQ11: 0 | CR11: 0 | CS11: 0 | CT11: 0 | CU11: 0 | CV11: 0 | CW11: 0 | CX11: 0 | CY11: 0
B12: 0.03 | C12: 0 | D12: 0.0245398773 | E12: 0.8282208589 | F12: 0.1472392638 | G12: 0 | H12: 0 | I12: 0 | J12: 0 | K12: 0 | L12: 0 | M12: 0 | N12: 0 | O12: 0 | P12: 0 | Q12: 0 | R12: 0 | S12: 0 | T12: 0 | U12: 0 | V12: 0 | W12: 0 | X12: 0 | Y12: 0 | Z12: 0 | AA12: 0 | AB12: 0 | AC12: 0 | AD12: 0 | AE12: 0 | AF12: 0 | AG12: 0 | AH12: 0 | AI12: 0 | AJ12: 0 | AK12: 0 | AL12: 0 | AM12: 0 | AN12: 0 | AO12: 0 | AP12: 0 | AQ12: 0 | AR12: 0 | AS12: 0 | AT12: 0 | AU12: 0 | AV12: 0 | AW12: 0 | AX12: 0 | AY12: 0 | AZ12: 0 | BA12: 0 | BB12: 0 | BC12: 0 | BD12: 0 | BE12: 0 | BF12: 0 | BG12: 0 | BH12: 0 | BI12: 0 | BJ12: 0 | BK12: 0 | BL12: 0 | BM12: 0 | BN12: 0 | BO12: 0 | BP12: 0 | BQ12: 0 | BR12: 0 | BS12: 0 | BT12: 0 | BU12: 0 | BV12: 0 | BW12: 0 | BX12: 0 | BY12: 0 | BZ12: 0 | CA12: 0 | CB12: 0 | CC12: 0 | CD12: 0 | CE12: 0 | CF12: 0 | CG12: 0 | CH12: 0 | CI12: 0 | CJ12: 0 | CK12: 0 | CL12: 0 | CM12: 0 | CN12: 0 | CO12: 0 | CP12: 0 | CQ12: 0 | CR12: 0 | CS12: 0 | CT12: 0 | CU12: 0 | CV12: 0 | CW12: 0 | CX12: 0 | CY12: 0
B13: 0.04 | C13: 0 | D13: 0 | E13: 0.07741935484 | F13: 0.7258064516 | G13: 0.1870967742 | H13: 0.006451612903 | I13: 0.003225806452 | J13: 0 | K13: 0 | L13: 0 | M13: 0 | N13: 0 | O13: 0 | P13: 0 | Q13: 0 | R13: 0 | S13: 0 | T13: 0 | U13: 0 | V13: 0 | W13: 0 | X13: 0 | Y13: 0 | Z13: 0 | AA13: 0 | AB13: 0 | AC13: 0 | AD13: 0 | AE13: 0 | AF13: 0 | AG13: 0 | AH13: 0 | AI13: 0 | AJ13: 0 | AK13: 0 | AL13: 0 | AM13: 0 | AN13: 0 | AO13: 0 | AP13: 0 | AQ13: 0 | AR13: 0 | AS13: 0 | AT13: 0 | AU13: 0 | AV13: 0 | AW13: 0 | AX13: 0 | AY13: 0 | AZ13: 0 | BA13: 0 | BB13: 0 | BC13: 0 | BD13: 0 | BE13: 0 | BF13: 0 | BG13: 0 | BH13: 0 | BI13: 0 | BJ13: 0 | BK13: 0 | BL13: 0 | BM13: 0 | BN13: 0 | BO13: 0 | BP13: 0 | BQ13: 0 | BR13: 0 | BS13: 0 | BT13: 0 | BU13: 0 | BV13: 0 | BW13: 0 | BX13: 0 | BY13: 0 | BZ13: 0 | CA13: 0 | CB13: 0 | CC13: 0 | CD13: 0 | CE13: 0 | CF13: 0 | CG13: 0 | CH13: 0 | CI13: 0 | CJ13: 0 | CK13: 0 | CL13: 0 | CM13: 0 | CN13: 0 | CO13: 0 | CP13: 0 | CQ13: 0 | CR13: 0 | CS13: 0 | CT13: 0 | CU13: 0 | CV13: 0 | CW13: 0 | CX13: 0 | CY13: 0
B14: 0.05 | C14: 0 | D14: 0 | E14: 0 | F14: 0.1085714286 | G14: 0.6819047619 | H14: 0.1885714286 | I14: 0.01904761905 | J14: 0.001904761905 | K14: 0 | L14: 0 | M14: 0 | N14: 0 | O14: 0 | P14: 0 | Q14: 0 | R14: 0 | S14: 0 | T14: 0 | U14: 0 | V14: 0 | W14: 0 | X14: 0 | Y14: 0 | Z14: 0 | AA14: 0 | AB14: 0 | AC14: 0 | AD14: 0 | AE14: 0 | AF14: 0 | AG14: 0 | AH14: 0 | AI14: 0 | AJ14: 0 | AK14: 0 | AL14: 0 | AM14: 0 | AN14: 0 | AO14: 0 | AP14: 0 | AQ14: 0 | AR14: 0 | AS14: 0 | AT14: 0 | AU14: 0 | AV14: 0 | AW14: 0 | AX14: 0 | AY14: 0 | AZ14: 0 | BA14: 0 | BB14: 0 | BC14: 0 | BD14: 0 | BE14: 0 | BF14: 0 | BG14: 0 | BH14: 0 | BI14: 0 | BJ14: 0 | BK14: 0 | BL14: 0 | BM14: 0 | BN14: 0 | BO14: 0 | BP14: 0 | BQ14: 0 | BR14: 0 | BS14: 0 | BT14: 0 | BU14: 0 | BV14: 0 | BW14: 0 | BX14: 0 | BY14: 0 | BZ14: 0 | CA14: 0 | CB14: 0 | CC14: 0 | CD14: 0 | CE14: 0 | CF14: 0 | CG14: 0 | CH14: 0 | CI14: 0 | CJ14: 0 | CK14: 0 | CL14: 0 | CM14: 0 | CN14: 0 | CO14: 0 | CP14: 0 | CQ14: 0 | CR14: 0 | CS14: 0 | CT14: 0 | CU14: 0 | CV14: 0 | CW14: 0 | CX14: 0 | CY14: 0
B15: 0.06 | C15: 0 | D15: 0 | E15: 0 | F15: 0.005376344086 | G15: 0.1370967742 | H15: 0.6344086022 | I15: 0.185483871 | J15: 0.02419354839 | K15: 0.01075268817 | L15: 0.001344086022 | M15: 0 | N15: 0 | O15: 0.001344086022 | P15: 0 | Q15: 0 | R15: 0 | S15: 0 | T15: 0 | U15: 0 | V15: 0 | W15: 0 | X15: 0 | Y15: 0 | Z15: 0 | AA15: 0 | AB15: 0 | AC15: 0 | AD15: 0 | AE15: 0 | AF15: 0 | AG15: 0 | AH15: 0 | AI15: 0 | AJ15: 0 | AK15: 0 | AL15: 0 | AM15: 0 | AN15: 0 | AO15: 0 | AP15: 0 | AQ15: 0 | AR15: 0 | AS15: 0 | AT15: 0 | AU15: 0 | AV15: 0 | AW15: 0 | AX15: 0 | AY15: 0 | AZ15: 0 | BA15: 0 | BB15: 0 | BC15: 0 | BD15: 0 | BE15: 0 | BF15: 0 | BG15: 0 | BH15: 0 | BI15: 0 | BJ15: 0 | BK15: 0 | BL15: 0 | BM15: 0 | BN15: 0 | BO15: 0 | BP15: 0 | BQ15: 0 | BR15: 0 | BS15: 0 | BT15: 0 | BU15: 0 | BV15: 0 | BW15: 0 | BX15: 0 | BY15: 0 | BZ15: 0 | CA15: 0 | CB15: 0 | CC15: 0 | CD15: 0 | CE15: 0 | CF15: 0 | CG15: 0 | CH15: 0 | CI15: 0 | CJ15: 0 | CK15: 0 | CL15: 0 | CM15: 0 | CN15: 0 | CO15: 0 | CP15: 0 | CQ15: 0 | CR15: 0 | CS15: 0 | CT15: 0 | CU15: 0 | CV15: 0 | CW15: 0 | CX15: 0 | CY15: 0
B16: 0.07 | C16: 0 | D16: 0 | E16: 0 | F16: 0 | G16: 0.005107252298 | H16: 0.1542390194 | I16: 0.6016343207 | J16: 0.1961184883 | K16: 0.03268641471 | L16: 0.009193054137 | M16: 0 | N16: 0.00102145046 | O16: 0 | P16: 0 | Q16: 0 | R16: 0 | S16: 0 | T16: 0 | U16: 0 | V16: 0 | W16: 0 | X16: 0 | Y16: 0 | Z16: 0 | AA16: 0 | AB16: 0 | AC16: 0 | AD16: 0 | AE16: 0 | AF16: 0 | AG16: 0 | AH16: 0 | AI16: 0 | AJ16: 0 | AK16: 0 | AL16: 0 | AM16: 0 | AN16: 0 | AO16: 0 | AP16: 0 | AQ16: 0 | AR16: 0 | AS16: 0 | AT16: 0 | AU16: 0 | AV16: 0 | AW16: 0 | AX16: 0 | AY16: 0 | AZ16: 0 | BA16: 0 | BB16: 0 | BC16: 0 | BD16: 0 | BE16: 0 | BF16: 0 | BG16: 0 | BH16: 0 | BI16: 0 | BJ16: 0 | BK16: 0 | BL16: 0 | BM16: 0 | BN16: 0 | BO16: 0 | BP16: 0 | BQ16: 0 | BR16: 0 | BS16: 0 | BT16: 0 | BU16: 0 | BV16: 0 | BW16: 0 | BX16: 0 | BY16: 0 | BZ16: 0 | CA16: 0 | CB16: 0 | CC16: 0 | CD16: 0 | CE16: 0 | CF16: 0 | CG16: 0 | CH16: 0 | CI16: 0 | CJ16: 0 | CK16: 0 | CL16: 0 | CM16: 0 | CN16: 0 | CO16: 0 | CP16: 0 | CQ16: 0 | CR16: 0 | CS16: 0 | CT16: 0 | CU16: 0 | CV16: 0 | CW16: 0 | CX16: 0 | CY16: 0
B17: 0.08 | C17: 0 | D17: 0 | E17: 0 | F17: 0 | G17: 0.002673796791 | H17: 0.01515151515 | I17: 0.1773618538 | J17: 0.5356506239 | K17: 0.2121212121 | L17: 0.04634581105 | M17: 0.008021390374 | N17: 0.001782531194 | O17: 0.0008912655971 | P17: 0 | Q17: 0 | R17: 0 | S17: 0 | T17: 0 | U17: 0 | V17: 0 | W17: 0 | X17: 0 | Y17: 0 | Z17: 0 | AA17: 0 | AB17: 0 | AC17: 0 | AD17: 0 | AE17: 0 | AF17: 0 | AG17: 0 | AH17: 0 | AI17: 0 | AJ17: 0 | AK17: 0 | AL17: 0 | AM17: 0 | AN17: 0 | AO17: 0 | AP17: 0 | AQ17: 0 | AR17: 0 | AS17: 0 | AT17: 0 | AU17: 0 | AV17: 0 | AW17: 0 | AX17: 0 | AY17: 0 | AZ17: 0 | BA17: 0 | BB17: 0 | BC17: 0 | BD17: 0 | BE17: 0 | BF17: 0 | BG17: 0 | BH17: 0 | BI17: 0 | BJ17: 0 | BK17: 0 | BL17: 0 | BM17: 0 | BN17: 0 | BO17: 0 | BP17: 0 | BQ17: 0 | BR17: 0 | BS17: 0 | BT17: 0 | BU17: 0 | BV17: 0 | BW17: 0 | BX17: 0 | BY17: 0 | BZ17: 0 | CA17: 0 | CB17: 0 | CC17: 0 | CD17: 0 | CE17: 0 | CF17: 0 | CG17: 0 | CH17: 0 | CI17: 0 | CJ17: 0 | CK17: 0 | CL17: 0 | CM17: 0 | CN17: 0 | CO17: 0 | CP17: 0 | CQ17: 0 | CR17: 0 | CS17: 0 | CT17: 0 | CU17: 0 | CV17: 0 | CW17: 0 | CX17: 0 | CY17: 0
B18: 0.09 | C18: 0 | D18: 0 | E18: 0 | F18: 0 | G18: 0 | H18: 0.002120141343 | I18: 0.02332155477 | J18: 0.177385159 | K18: 0.54204947 | L18: 0.1985865724 | M18: 0.04310954064 | N18: 0.007067137809 | O18: 0.004240282686 | P18: 0.001413427562 | Q18: 0.0007067137809 | R18: 0 | S18: 0 | T18: 0 | U18: 0 | V18: 0 | W18: 0 | X18: 0 | Y18: 0 | Z18: 0 | AA18: 0 | AB18: 0 | AC18: 0 | AD18: 0 | AE18: 0 | AF18: 0 | AG18: 0 | AH18: 0 | AI18: 0 | AJ18: 0 | AK18: 0 | AL18: 0 | AM18: 0 | AN18: 0 | AO18: 0 | AP18: 0 | AQ18: 0 | AR18: 0 | AS18: 0 | AT18: 0 | AU18: 0 | AV18: 0 | AW18: 0 | AX18: 0 | AY18: 0 | AZ18: 0 | BA18: 0 | BB18: 0 | BC18: 0 | BD18: 0 | BE18: 0 | BF18: 0 | BG18: 0 | BH18: 0 | BI18: 0 | BJ18: 0 | BK18: 0 | BL18: 0 | BM18: 0 | BN18: 0 | BO18: 0 | BP18: 0 | BQ18: 0 | BR18: 0 | BS18: 0 | BT18: 0 | BU18: 0 | BV18: 0 | BW18: 0 | BX18: 0 | BY18: 0 | BZ18: 0 | CA18: 0 | CB18: 0 | CC18: 0 | CD18: 0 | CE18: 0 | CF18: 0 | CG18: 0 | CH18: 0 | CI18: 0 | CJ18: 0 | CK18: 0 | CL18: 0 | CM18: 0 | CN18: 0 | CO18: 0 | CP18: 0 | CQ18: 0 | CR18: 0 | CS18: 0 | CT18: 0 | CU18: 0 | CV18: 0 | CW18: 0 | CX18: 0 | CY18: 0
B19: 0.1 | C19: 0 | D19: 0 | E19: 0 | F19: 0 | G19: 0 | H19: 0.000637755102 | I19: 0.00637755102 | J19: 0.02551020408 | K19: 0.1951530612 | L19: 0.4968112245 | M19: 0.2155612245 | N19: 0.03954081633 | O19: 0.01403061224 | P19: 0.00318877551 | Q19: 0.001275510204 | R19: 0.001275510204 | S19: 0 | T19: 0.000637755102 | U19: 0 | V19: 0 | W19: 0 | X19: 0 | Y19: 0 | Z19: 0 | AA19: 0 | AB19: 0 | AC19: 0 | AD19: 0 | AE19: 0 | AF19: 0 | AG19: 0 | AH19: 0 | AI19: 0 | AJ19: 0 | AK19: 0 | AL19: 0 | AM19: 0 | AN19: 0 | AO19: 0 | AP19: 0 | AQ19: 0 | AR19: 0 | AS19: 0 | AT19: 0 | AU19: 0 | AV19: 0 | AW19: 0 | AX19: 0 | AY19: 0 | AZ19: 0 | BA19: 0 | BB19: 0 | BC19: 0 | BD19: 0 | BE19: 0 | BF19: 0 | BG19: 0 | BH19: 0 | BI19: 0 | BJ19: 0 | BK19: 0 | BL19: 0 | BM19: 0 | BN19: 0 | BO19: 0 | BP19: 0 | BQ19: 0 | BR19: 0 | BS19: 0 | BT19: 0 | BU19: 0 | BV19: 0 | BW19: 0 | BX19: 0 | BY19: 0 | BZ19: 0 | CA19: 0 | CB19: 0 | CC19: 0 | CD19: 0 | CE19: 0 | CF19: 0 | CG19: 0 | CH19: 0 | CI19: 0 | CJ19: 0 | CK19: 0 | CL19: 0 | CM19: 0 | CN19: 0 | CO19: 0 | CP19: 0 | CQ19: 0 | CR19: 0 | CS19: 0 | CT19: 0 | CU19: 0 | CV19: 0 | CW19: 0 | CX19: 0 | CY19: 0
B20: 0.11 | C20: 0 | D20: 0 | E20: 0 | F20: 0 | G20: 0 | H20: 0 | I20: 0.0005783689994 | J20: 0.006940427993 | K20: 0.02834008097 | L20: 0.1949103528 | M20: 0.4679005205 | N20: 0.2157316368 | O20: 0.05783689994 | P20: 0.01792943898 | Q20: 0.005783689994 | R20: 0.002313475998 | S20: 0 | T20: 0.0005783689994 | U20: 0 | V20: 0 | W20: 0 | X20: 0.0005783689994 | Y20: 0 | Z20: 0 | AA20: 0.0005783689994 | AB20: 0 | AC20: 0 | AD20: 0 | AE20: 0 | AF20: 0 | AG20: 0 | AH20: 0 | AI20: 0 | AJ20: 0 | AK20: 0 | AL20: 0 | AM20: 0 | AN20: 0 | AO20: 0 | AP20: 0 | AQ20: 0 | AR20: 0 | AS20: 0 | AT20: 0 | AU20: 0 | AV20: 0 | AW20: 0 | AX20: 0 | AY20: 0 | AZ20: 0 | BA20: 0 | BB20: 0 | BC20: 0 | BD20: 0 | BE20: 0 | BF20: 0 | BG20: 0 | BH20: 0 | BI20: 0 | BJ20: 0 | BK20: 0 | BL20: 0 | BM20: 0 | BN20: 0 | BO20: 0 | BP20: 0 | BQ20: 0 | BR20: 0 | BS20: 0 | BT20: 0 | BU20: 0 | BV20: 0 | BW20: 0 | BX20: 0 | BY20: 0 | BZ20: 0 | CA20: 0 | CB20: 0 | CC20: 0 | CD20: 0 | CE20: 0 | CF20: 0 | CG20: 0 | CH20: 0 | CI20: 0 | CJ20: 0 | CK20: 0 | CL20: 0 | CM20: 0 | CN20: 0 | CO20: 0 | CP20: 0 | CQ20: 0 | CR20: 0 | CS20: 0 | CT20: 0 | CU20: 0 | CV20: 0 | CW20: 0 | CX20: 0 | CY20: 0
B21: 0.12 | C21: 0 | D21: 0 | E21: 0 | F21: 0 | G21: 0 | H21: 0 | I21: 0.000525210084 | J21: 0.002100840336 | K21: 0.006302521008 | L21: 0.04149159664 | M21: 0.1959033613 | N21: 0.4516806723 | O21: 0.218487395 | P21: 0.05724789916 | Q21: 0.01733193277 | R21: 0.00525210084 | S21: 0.001575630252 | T21: 0.001575630252 | U21: 0.000525210084 | V21: 0 | W21: 0 | X21: 0 | Y21: 0 | Z21: 0 | AA21: 0 | AB21: 0 | AC21: 0 | AD21: 0 | AE21: 0 | AF21: 0 | AG21: 0 | AH21: 0 | AI21: 0 | AJ21: 0 | AK21: 0 | AL21: 0 | AM21: 0 | AN21: 0 | AO21: 0 | AP21: 0 | AQ21: 0 | AR21: 0 | AS21: 0 | AT21: 0 | AU21: 0 | AV21: 0 | AW21: 0 | AX21: 0 | AY21: 0 | AZ21: 0 | BA21: 0 | BB21: 0 | BC21: 0 | BD21: 0 | BE21: 0 | BF21: 0 | BG21: 0 | BH21: 0 | BI21: 0 | BJ21: 0 | BK21: 0 | BL21: 0 | BM21: 0 | BN21: 0 | BO21: 0 | BP21: 0 | BQ21: 0 | BR21: 0 | BS21: 0 | BT21: 0 | BU21: 0 | BV21: 0 | BW21: 0 | BX21: 0 | BY21: 0 | BZ21: 0 | CA21: 0 | CB21: 0 | CC21: 0 | CD21: 0 | CE21: 0 | CF21: 0 | CG21: 0 | CH21: 0 | CI21: 0 | CJ21: 0 | CK21: 0 | CL21: 0 | CM21: 0 | CN21: 0 | CO21: 0 | CP21: 0 | CQ21: 0 | CR21: 0 | CS21: 0 | CT21: 0 | CU21: 0 | CV21: 0 | CW21: 0 | CX21: 0 | CY21: 0
B22: 0.13 | C22: 0 | D22: 0 | E22: 0 | F22: 0 | G22: 0 | H22: 0 | I22: 0 | J22: 0.0004659832246 | K22: 0.0009319664492 | L22: 0.01118359739 | M22: 0.04473438956 | N22: 0.2003727866 | O22: 0.4338303821 | P22: 0.2194780988 | Q22: 0.05358807083 | R22: 0.02236719478 | S22: 0.004193849021 | T22: 0.006523765144 | U22: 0.001397949674 | V22: 0.0004659832246 | W22: 0 | X22: 0 | Y22: 0 | Z22: 0 | AA22: 0 | AB22: 0 | AC22: 0 | AD22: 0 | AE22: 0 | AF22: 0 | AG22: 0 | AH22: 0 | AI22: 0 | AJ22: 0 | AK22: 0 | AL22: 0 | AM22: 0 | AN22: 0 | AO22: 0 | AP22: 0 | AQ22: 0 | AR22: 0 | AS22: 0 | AT22: 0 | AU22: 0 | AV22: 0 | AW22: 0 | AX22: 0 | AY22: 0.0004659832246 | AZ22: 0 | BA22: 0 | BB22: 0 | BC22: 0 | BD22: 0 | BE22: 0 | BF22: 0 | BG22: 0 | BH22: 0 | BI22: 0 | BJ22: 0 | BK22: 0 | BL22: 0 | BM22: 0 | BN22: 0 | BO22: 0 | BP22: 0 | BQ22: 0 | BR22: 0 | BS22: 0 | BT22: 0 | BU22: 0 | BV22: 0 | BW22: 0 | BX22: 0 | BY22: 0 | BZ22: 0 | CA22: 0 | CB22: 0 | CC22: 0 | CD22: 0 | CE22: 0 | CF22: 0 | CG22: 0 | CH22: 0 | CI22: 0 | CJ22: 0 | CK22: 0 | CL22: 0 | CM22: 0 | CN22: 0 | CO22: 0 | CP22: 0 | CQ22: 0 | CR22: 0 | CS22: 0 | CT22: 0 | CU22: 0 | CV22: 0 | CW22: 0 | CX22: 0 | CY22: 0
B23: 0.14 | C23: 0 | D23: 0 | E23: 0 | F23: 0 | G23: 0 | H23: 0 | I23: 0 | J23: 0 | K23: 0.0004091653028 | L23: 0.0008183306056 | M23: 0.01063829787 | N23: 0.04337152209 | O23: 0.1988543372 | P23: 0.4472176759 | Q23: 0.1947626841 | R23: 0.06955810147 | S23: 0.01800327332 | T23: 0.009410801964 | U23: 0.002864157119 | V23: 0.001227495908 | W23: 0.001227495908 | X23: 0.0004091653028 | Y23: 0.0004091653028 | Z23: 0 | AA23: 0 | AB23: 0 | AC23: 0 | AD23: 0 | AE23: 0 | AF23: 0 | AG23: 0 | AH23: 0.0004091653028 | AI23: 0 | AJ23: 0 | AK23: 0 | AL23: 0 | AM23: 0 | AN23: 0 | AO23: 0 | AP23: 0 | AQ23: 0 | AR23: 0 | AS23: 0 | AT23: 0 | AU23: 0 | AV23: 0 | AW23: 0 | AX23: 0 | AY23: 0 | AZ23: 0 | BA23: 0 | BB23: 0 | BC23: 0 | BD23: 0 | BE23: 0 | BF23: 0 | BG23: 0 | BH23: 0 | BI23: 0 | BJ23: 0 | BK23: 0 | BL23: 0 | BM23: 0 | BN23: 0 | BO23: 0 | BP23: 0 | BQ23: 0 | BR23: 0 | BS23: 0 | BT23: 0 | BU23: 0 | BV23: 0 | BW23: 0 | BX23: 0.0004091653028 | BY23: 0 | BZ23: 0 | CA23: 0 | CB23: 0 | CC23: 0 | CD23: 0 | CE23: 0 | CF23: 0 | CG23: 0 | CH23: 0 | CI23: 0 | CJ23: 0 | CK23: 0 | CL23: 0 | CM23: 0 | CN23: 0 | CO23: 0 | CP23: 0 | CQ23: 0 | CR23: 0 | CS23: 0 | CT23: 0 | CU23: 0 | CV23: 0 | CW23: 0 | CX23: 0 | CY23: 0
B24: 0.15 | C24: 0 | D24: 0 | E24: 0 | F24: 0 | G24: 0 | H24: 0 | I24: 0 | J24: 0 | K24: 0.0003913894325 | L24: 0.00156555773 | M24: 0.004305283757 | N24: 0.0133072407 | O24: 0.04931506849 | P24: 0.1960861057 | Q24: 0.4281800391 | R24: 0.2031311155 | S24: 0.07005870841 | T24: 0.01878669276 | U24: 0.005088062622 | V24: 0.005088062622 | W24: 0.001956947162 | X24: 0 | Y24: 0.000782778865 | Z24: 0.0003913894325 | AA24: 0.000782778865 | AB24: 0 | AC24: 0 | AD24: 0 | AE24: 0 | AF24: 0 | AG24: 0 | AH24: 0 | AI24: 0 | AJ24: 0 | AK24: 0 | AL24: 0 | AM24: 0 | AN24: 0 | AO24: 0 | AP24: 0 | AQ24: 0 | AR24: 0 | AS24: 0 | AT24: 0 | AU24: 0 | AV24: 0.0003913894325 | AW24: 0 | AX24: 0 | AY24: 0 | AZ24: 0 | BA24: 0 | BB24: 0 | BC24: 0.0003913894325 | BD24: 0 | BE24: 0 | BF24: 0 | BG24: 0 | BH24: 0 | BI24: 0 | BJ24: 0 | BK24: 0 | BL24: 0 | BM24: 0 | BN24: 0 | BO24: 0 | BP24: 0 | BQ24: 0 | BR24: 0 | BS24: 0 | BT24: 0 | BU24: 0 | BV24: 0 | BW24: 0 | BX24: 0 | BY24: 0 | BZ24: 0 | CA24: 0 | CB24: 0 | CC24: 0 | CD24: 0 | CE24: 0 | CF24: 0 | CG24: 0 | CH24: 0 | CI24: 0 | CJ24: 0 | CK24: 0 | CL24: 0 | CM24: 0 | CN24: 0 | CO24: 0 | CP24: 0 | CQ24: 0 | CR24: 0 | CS24: 0 | CT24: 0 | CU24: 0 | CV24: 0 | CW24: 0 | CX24: 0 | CY24: 0
B25: 0.16 | C25: 0 | D25: 0 | E25: 0 | F25: 0 | G25: 0 | H25: 0 | I25: 0 | J25: 0 | K25: 0 | L25: 0 | M25: 0.0007114905727 | N25: 0.006759160441 | O25: 0.0131625756 | P25: 0.05763073639 | Q25: 0.2024190679 | R25: 0.4204909285 | S25: 0.1899679829 | T25: 0.06083244397 | U25: 0.02561366062 | V25: 0.008537886873 | W25: 0.005336179296 | X25: 0.002845962291 | Y25: 0.0007114905727 | Z25: 0.0003557452864 | AA25: 0.0007114905727 | AB25: 0.0003557452864 | AC25: 0 | AD25: 0 | AE25: 0 | AF25: 0 | AG25: 0.0003557452864 | AH25: 0 | AI25: 0.0003557452864 | AJ25: 0.0003557452864 | AK25: 0 | AL25: 0 | AM25: 0 | AN25: 0 | AO25: 0 | AP25: 0 | AQ25: 0 | AR25: 0.0003557452864 | AS25: 0 | AT25: 0 | AU25: 0.0003557452864 | AV25: 0 | AW25: 0 | AX25: 0.0003557452864 | AY25: 0 | AZ25: 0 | BA25: 0 | BB25: 0.0003557452864 | BC25: 0.0003557452864 | BD25: 0.0003557452864 | BE25: 0 | BF25: 0 | BG25: 0 | BH25: 0 | BI25: 0 | BJ25: 0 | BK25: 0 | BL25: 0 | BM25: 0 | BN25: 0 | BO25: 0 | BP25: 0 | BQ25: 0 | BR25: 0 | BS25: 0 | BT25: 0 | BU25: 0 | BV25: 0.0003557452864 | BW25: 0 | BX25: 0 | BY25: 0 | BZ25: 0 | CA25: 0 | CB25: 0 | CC25: 0 | CD25: 0 | CE25: 0 | CF25: 0 | CG25: 0 | CH25: 0 | CI25: 0 | CJ25: 0 | CK25: 0 | CL25: 0 | CM25: 0 | CN25: 0 | CO25: 0 | CP25: 0 | CQ25: 0 | CR25: 0 | CS25: 0 | CT25: 0 | CU25: 0 | CV25: 0 | CW25: 0 | CX25: 0 | CY25: 0
B26: 0.17 | C26: 0 | D26: 0 | E26: 0 | F26: 0 | G26: 0 | H26: 0 | I26: 0 | J26: 0 | K26: 0 | L26: 0.0003663003663 | M26: 0 | N26: 0.001098901099 | O26: 0.004029304029 | P26: 0.01831501832 | Q26: 0.05457875458 | R26: 0.2120879121 | S26: 0.3967032967 | T26: 0.2076923077 | U26: 0.05860805861 | V26: 0.02307692308 | W26: 0.01135531136 | X26: 0.006593406593 | Y26: 0.001465201465 | Z26: 0.001465201465 | AA26: 0.0003663003663 | AB26: 0.0003663003663 | AC26: 0.0003663003663 | AD26: 0.0003663003663 | AE26: 0 | AF26: 0 | AG26: 0 | AH26: 0 | AI26: 0 | AJ26: 0 | AK26: 0 | AL26: 0 | AM26: 0 | AN26: 0.0003663003663 | AO26: 0.0003663003663 | AP26: 0 | AQ26: 0 | AR26: 0 | AS26: 0 | AT26: 0 | AU26: 0 | AV26: 0 | AW26: 0 | AX26: 0 | AY26: 0 | AZ26: 0 | BA26: 0 | BB26: 0 | BC26: 0 | BD26: 0 | BE26: 0 | BF26: 0 | BG26: 0 | BH26: 0 | BI26: 0 | BJ26: 0 | BK26: 0 | BL26: 0 | BM26: 0 | BN26: 0 | BO26: 0 | BP26: 0 | BQ26: 0 | BR26: 0 | BS26: 0.0003663003663 | BT26: 0 | BU26: 0 | BV26: 0 | BW26: 0 | BX26: 0 | BY26: 0 | BZ26: 0 | CA26: 0 | CB26: 0 | CC26: 0 | CD26: 0 | CE26: 0 | CF26: 0 | CG26: 0 | CH26: 0 | CI26: 0 | CJ26: 0 | CK26: 0 | CL26: 0 | CM26: 0 | CN26: 0 | CO26: 0 | CP26: 0 | CQ26: 0 | CR26: 0 | CS26: 0 | CT26: 0 | CU26: 0 | CV26: 0 | CW26: 0 | CX26: 0 | CY26: 0
B27: 0.18 | C27: 0 | D27: 0 | E27: 0 | F27: 0 | G27: 0 | H27: 0 | I27: 0 | J27: 0 | K27: 0 | L27: 0 | M27: 0 | N27: 0.001094491062 | O27: 0.002188982123 | P27: 0.003648303539 | Q27: 0.02407880336 | R27: 0.05800802627 | S27: 0.1988325429 | T27: 0.3743159431 | U27: 0.1977380518 | V27: 0.08609996352 | W27: 0.02298431229 | X27: 0.01532287486 | Y27: 0.005107624954 | Z27: 0.003283473185 | AA27: 0.001824151769 | AB27: 0.0007296607078 | AC27: 0.001094491062 | AD27: 0 | AE27: 0.0003648303539 | AF27: 0.0007296607078 | AG27: 0 | AH27: 0.0003648303539 | AI27: 0 | AJ27: 0 | AK27: 0 | AL27: 0.0003648303539 | AM27: 0 | AN27: 0 | AO27: 0 | AP27: 0 | AQ27: 0 | AR27: 0 | AS27: 0 | AT27: 0 | AU27: 0 | AV27: 0 | AW27: 0.0003648303539 | AX27: 0 | AY27: 0.0003648303539 | AZ27: 0 | BA27: 0 | BB27: 0 | BC27: 0 | BD27: 0.0003648303539 | BE27: 0 | BF27: 0 | BG27: 0 | BH27: 0 | BI27: 0 | BJ27: 0 | BK27: 0 | BL27: 0 | BM27: 0 | BN27: 0 | BO27: 0 | BP27: 0 | BQ27: 0 | BR27: 0 | BS27: 0.0003648303539 | BT27: 0 | BU27: 0 | BV27: 0 | BW27: 0 | BX27: 0 | BY27: 0 | BZ27: 0 | CA27: 0.0003648303539 | CB27: 0 | CC27: 0 | CD27: 0 | CE27: 0 | CF27: 0 | CG27: 0 | CH27: 0 | CI27: 0 | CJ27: 0 | CK27: 0 | CL27: 0 | CM27: 0 | CN27: 0 | CO27: 0 | CP27: 0 | CQ27: 0 | CR27: 0 | CS27: 0 | CT27: 0 | CU27: 0 | CV27: 0 | CW27: 0 | CX27: 0 | CY27: 0
B28: 0.19 | C28: 0 | D28: 0 | E28: 0 | F28: 0 | G28: 0 | H28: 0 | I28: 0 | J28: 0 | K28: 0 | L28: 0 | M28: 0 | N28: 0.0003526093089 | O28: 0.001410437236 | P28: 0.002820874471 | Q28: 0.006699576869 | R28: 0.02820874471 | S28: 0.06523272214 | T28: 0.1956981664 | U28: 0.3670662906 | V28: 0.2013399154 | W28: 0.0754583921 | X28: 0.02327221439 | Y28: 0.01410437236 | Z28: 0.004936530324 | AA28: 0.001410437236 | AB28: 0.00317348378 | AC28: 0.001763046544 | AD28: 0.001057827927 | AE28: 0.001057827927 | AF28: 0 | AG28: 0.0003526093089 | AH28: 0.0003526093089 | AI28: 0 | AJ28: 0 | AK28: 0.0003526093089 | AL28: 0 | AM28: 0 | AN28: 0 | AO28: 0 | AP28: 0 | AQ28: 0 | AR28: 0 | AS28: 0 | AT28: 0 | AU28: 0.0003526093089 | AV28: 0.0003526093089 | AW28: 0 | AX28: 0.0003526093089 | AY28: 0 | AZ28: 0 | BA28: 0 | BB28: 0 | BC28: 0 | BD28: 0.0003526093089 | BE28: 0 | BF28: 0 | BG28: 0.0003526093089 | BH28: 0 | BI28: 0 | BJ28: 0 | BK28: 0.0003526093089 | BL28: 0 | BM28: 0 | BN28: 0 | BO28: 0 | BP28: 0 | BQ28: 0 | BR28: 0.0003526093089 | BS28: 0 | BT28: 0 | BU28: 0 | BV28: 0 | BW28: 0 | BX28: 0 | BY28: 0 | BZ28: 0 | CA28: 0 | CB28: 0 | CC28: 0 | CD28: 0 | CE28: 0.0003526093089 | CF28: 0 | CG28: 0 | CH28: 0.0003526093089 | CI28: 0 | CJ28: 0 | CK28: 0.0003526093089 | CL28: 0 | CM28: 0.0003526093089 | CN28: 0 | CO28: 0 | CP28: 0 | CQ28: 0 | CR28: 0 | CS28: 0 | CT28: 0 | CU28: 0 | CV28: 0 | CW28: 0 | CX28: 0 | CY28: 0
B29: 0.2 | C29: 0 | D29: 0 | E29: 0 | F29: 0 | G29: 0 | H29: 0 | I29: 0 | J29: 0 | K29: 0 | L29: 0 | M29: 0 | N29: 0 | O29: 0 | P29: 0.0006615944426 | Q29: 0.00264637777 | R29: 0.00760833609 | S29: 0.02712537215 | T29: 0.06582864704 | U29: 0.1978167383 | V29: 0.3589149851 | W29: 0.1998015217 | X29: 0.07244459147 | Y29: 0.03010254714 | Z29: 0.01653986107 | AA29: 0.007939133311 | AB29: 0.001653986107 | AC29: 0.001984783328 | AD29: 0.002315580549 | AE29: 0.0003307972213 | AF29: 0 | AG29: 0 | AH29: 0.0003307972213 | AI29: 0 | AJ29: 0 | AK29: 0.0006615944426 | AL29: 0 | AM29: 0 | AN29: 0.0003307972213 | AO29: 0 | AP29: 0 | AQ29: 0 | AR29: 0 | AS29: 0.0003307972213 | AT29: 0.0003307972213 | AU29: 0 | AV29: 0 | AW29: 0.0003307972213 | AX29: 0 | AY29: 0 | AZ29: 0 | BA29: 0 | BB29: 0.0003307972213 | BC29: 0 | BD29: 0 | BE29: 0 | BF29: 0.0003307972213 | BG29: 0 | BH29: 0 | BI29: 0 | BJ29: 0 | BK29: 0 | BL29: 0 | BM29: 0 | BN29: 0 | BO29: 0 | BP29: 0 | BQ29: 0 | BR29: 0.0003307972213 | BS29: 0.0003307972213 | BT29: 0 | BU29: 0 | BV29: 0 | BW29: 0.0003307972213 | BX29: 0 | BY29: 0 | BZ29: 0.0003307972213 | CA29: 0.0003307972213 | CB29: 0 | CC29: 0 | CD29: 0 | CE29: 0 | CF29: 0.0009923916639 | CG29: 0 | CH29: 0 | CI29: 0.0003307972213 | CJ29: 0 | CK29: 0.0003307972213 | CL29: 0 | CM29: 0 | CN29: 0 | CO29: 0 | CP29: 0 | CQ29: 0 | CR29: 0 | CS29: 0 | CT29: 0 | CU29: 0 | CV29: 0 | CW29: 0 | CX29: 0 | CY29: 0
B30: 0.21 | C30: 0 | D30: 0 | E30: 0 | F30: 0 | G30: 0 | H30: 0 | I30: 0 | J30: 0 | K30: 0 | L30: 0 | M30: 0 | N30: 0 | O30: 0.000326690624 | P30: 0.000653381248 | Q30: 0.0009800718719 | R30: 0.003920287488 | S30: 0.01078079059 | T30: 0.02417510617 | U30: 0.07187193728 | V30: 0.2048350212 | W30: 0.3528258739 | X30: 0.1875204182 | Y30: 0.07415877164 | Z30: 0.02711532179 | AA30: 0.0150277687 | AB30: 0.00653381248 | AC30: 0.002286834368 | AD30: 0.002940215616 | AE30: 0.002613524992 | AF30: 0.001306762496 | AG30: 0.000326690624 | AH30: 0.000326690624 | AI30: 0.000653381248 | AJ30: 0.000653381248 | AK30: 0.000326690624 | AL30: 0.000326690624 | AM30: 0 | AN30: 0.000326690624 | AO30: 0 | AP30: 0 | AQ30: 0 | AR30: 0.000653381248 | AS30: 0 | AT30: 0.000326690624 | AU30: 0.000326690624 | AV30: 0.000326690624 | AW30: 0.000326690624 | AX30: 0.000326690624 | AY30: 0 | AZ30: 0 | BA30: 0 | BB30: 0.000326690624 | BC30: 0 | BD30: 0 | BE30: 0 | BF30: 0 | BG30: 0 | BH30: 0 | BI30: 0.000326690624 | BJ30: 0.000653381248 | BK30: 0.000326690624 | BL30: 0.000326690624 | BM30: 0 | BN30: 0 | BO30: 0 | BP30: 0.000653381248 | BQ30: 0 | BR30: 0 | BS30: 0.000326690624 | BT30: 0.000326690624 | BU30: 0 | BV30: 0 | BW30: 0 | BX30: 0 | BY30: 0 | BZ30: 0 | CA30: 0.000326690624 | CB30: 0 | CC30: 0.000326690624 | CD30: 0.000326690624 | CE30: 0 | CF30: 0 | CG30: 0 | CH30: 0 | CI30: 0 | CJ30: 0 | CK30: 0.000326690624 | CL30: 0 | CM30: 0 | CN30: 0 | CO30: 0 | CP30: 0 | CQ30: 0 | CR30: 0 | CS30: 0 | CT30: 0.000326690624 | CU30: 0 | CV30: 0 | CW30: 0 | CX30: 0 | CY30: 0
B31: 0.22 | C31: 0 | D31: 0 | E31: 0 | F31: 0 | G31: 0 | H31: 0 | I31: 0 | J31: 0 | K31: 0 | L31: 0 | M31: 0.0003471017008 | N31: 0 | O31: 0.0003471017008 | P31: 0 | Q31: 0.001041305102 | R31: 0.002082610205 | S31: 0.00416522041 | T31: 0.01041305102 | U31: 0.02880944117 | V31: 0.06421381465 | W31: 0.2082610205 | X31: 0.3134328358 | Y31: 0.1933356473 | Z31: 0.0850399167 | AA31: 0.03644567858 | AB31: 0.01839639014 | AC31: 0.01284276293 | AD31: 0.003818118709 | AE31: 0.003123915307 | AF31: 0.001388406803 | AG31: 0.001041305102 | AH31: 0.0003471017008 | AI31: 0.0006942034016 | AJ31: 0.001388406803 | AK31: 0.0003471017008 | AL31: 0.0003471017008 | AM31: 0.0003471017008 | AN31: 0 | AO31: 0.0006942034016 | AP31: 0 | AQ31: 0.0003471017008 | AR31: 0 | AS31: 0.0003471017008 | AT31: 0.0003471017008 | AU31: 0.0006942034016 | AV31: 0.001041305102 | AW31: 0.0003471017008 | AX31: 0.0006942034016 | AY31: 0 | AZ31: 0 | BA31: 0.0003471017008 | BB31: 0 | BC31: 0 | BD31: 0.0003471017008 | BE31: 0 | BF31: 0.0003471017008 | BG31: 0 | BH31: 0 | BI31: 0 | BJ31: 0 | BK31: 0 | BL31: 0 | BM31: 0 | BN31: 0.0003471017008 | BO31: 0 | BP31: 0 | BQ31: 0 | BR31: 0 | BS31: 0 | BT31: 0 | BU31: 0 | BV31: 0.0003471017008 | BW31: 0 | BX31: 0 | BY31: 0 | BZ31: 0 | CA31: 0.0003471017008 | CB31: 0 | CC31: 0.0003471017008 | CD31: 0 | CE31: 0 | CF31: 0.0003471017008 | CG31: 0 | CH31: 0 | CI31: 0 | CJ31: 0.0006942034016 | CK31: 0 | CL31: 0 | CM31: 0 | CN31: 0 | CO31: 0 | CP31: 0 | CQ31: 0 | CR31: 0 | CS31: 0 | CT31: 0 | CU31: 0 | CV31: 0 | CW31: 0 | CX31: 0 | CY31: 0
B32: 0.23 | C32: 0 | D32: 0 | E32: 0 | F32: 0 | G32: 0 | H32: 0 | I32: 0 | J32: 0 | K32: 0 | L32: 0 | M32: 0 | N32: 0.0003316749585 | O32: 0 | P32: 0.0003316749585 | Q32: 0.0003316749585 | R32: 0.0003316749585 | S32: 0.002653399668 | T32: 0.002653399668 | U32: 0.009286898839 | V32: 0.03781094527 | W32: 0.07661691542 | X32: 0.1940298507 | Y32: 0.3187396352 | Z32: 0.1900497512 | AA32: 0.08358208955 | AB32: 0.0311774461 | AC32: 0.01724709784 | AD32: 0.006301824212 | AE32: 0.005306799337 | AF32: 0.00464344942 | AG32: 0.0006633499171 | AH32: 0.001326699834 | AI32: 0.001658374793 | AJ32: 0.001326699834 | AK32: 0.0006633499171 | AL32: 0.0003316749585 | AM32: 0.0003316749585 | AN32: 0 | AO32: 0.001326699834 | AP32: 0.0009950248756 | AQ32: 0.0006633499171 | AR32: 0.0003316749585 | AS32: 0 | AT32: 0.0006633499171 | AU32: 0 | AV32: 0.0003316749585 | AW32: 0.0003316749585 | AX32: 0.0003316749585 | AY32: 0 | AZ32: 0.0006633499171 | BA32: 0.0003316749585 | BB32: 0 | BC32: 0.0003316749585 | BD32: 0.0006633499171 | BE32: 0 | BF32: 0.0003316749585 | BG32: 0.0006633499171 | BH32: 0 | BI32: 0.0003316749585 | BJ32: 0 | BK32: 0 | BL32: 0 | BM32: 0 | BN32: 0 | BO32: 0 | BP32: 0 | BQ32: 0.0003316749585 | BR32: 0 | BS32: 0 | BT32: 0.0006633499171 | BU32: 0 | BV32: 0.0003316749585 | BW32: 0 | BX32: 0.0009950248756 | BY32: 0 | BZ32: 0 | CA32: 0 | CB32: 0.0003316749585 | CC32: 0 | CD32: 0 | CE32: 0 | CF32: 0.0003316749585 | CG32: 0 | CH32: 0 | CI32: 0.0003316749585 | CJ32: 0 | CK32: 0 | CL32: 0.0003316749585 | CM32: 0 | CN32: 0 | CO32: 0.0003316749585 | CP32: 0 | CQ32: 0 | CR32: 0 | CS32: 0 | CT32: 0 | CU32: 0 | CV32: 0 | CW32: 0 | CX32: 0 | CY32: 0
B33: 0.24 | C33: 0 | D33: 0 | E33: 0 | F33: 0 | G33: 0 | H33: 0 | I33: 0 | J33: 0 | K33: 0 | L33: 0 | M33: 0 | N33: 0 | O33: 0 | P33: 0 | Q33: 0.0003241491086 | R33: 0.0009724473258 | S33: 0.0006482982172 | T33: 0.00226904376 | U33: 0.008103727715 | V33: 0.01361426256 | W33: 0.03273905997 | X33: 0.07585089141 | Y33: 0.1899513776 | Z33: 0.3150729335 | AA33: 0.1824959481 | AB33: 0.07520259319 | AC33: 0.04376012966 | AD33: 0.02171799028 | AE33: 0.007455429498 | AF33: 0.004862236629 | AG33: 0.002917341977 | AH33: 0.003241491086 | AI33: 0.0003241491086 | AJ33: 0.001944894652 | AK33: 0.001296596434 | AL33: 0.001296596434 | AM33: 0.0006482982172 | AN33: 0 | AO33: 0.0009724473258 | AP33: 0.0003241491086 | AQ33: 0 | AR33: 0.0003241491086 | AS33: 0.0003241491086 | AT33: 0.0006482982172 | AU33: 0.0003241491086 | AV33: 0.0003241491086 | AW33: 0.0006482982172 | AX33: 0.0009724473258 | AY33: 0 | AZ33: 0.0003241491086 | BA33: 0 | BB33: 0.0003241491086 | BC33: 0 | BD33: 0.0003241491086 | BE33: 0.0003241491086 | BF33: 0.0009724473258 | BG33: 0.0003241491086 | BH33: 0 | BI33: 0.0006482982172 | BJ33: 0.0003241491086 | BK33: 0 | BL33: 0.0003241491086 | BM33: 0.0003241491086 | BN33: 0.0003241491086 | BO33: 0.0003241491086 | BP33: 0 | BQ33: 0.0003241491086 | BR33: 0 | BS33: 0.0003241491086 | BT33: 0.0003241491086 | BU33: 0 | BV33: 0 | BW33: 0 | BX33: 0 | BY33: 0 | BZ33: 0 | CA33: 0.0006482982172 | CB33: 0.0003241491086 | CC33: 0.0003241491086 | CD33: 0 | CE33: 0 | CF33: 0 | CG33: 0 | CH33: 0 | CI33: 0.0003241491086 | CJ33: 0 | CK33: 0.0003241491086 | CL33: 0 | CM33: 0 | CN33: 0 | CO33: 0 | CP33: 0 | CQ33: 0 | CR33: 0.0003241491086 | CS33: 0 | CT33: 0.0003241491086 | CU33: 0 | CV33: 0 | CW33: 0 | CX33: 0 | CY33: 0
B34: 0.25 | C34: 0 | D34: 0 | E34: 0 | F34: 0 | G34: 0 | H34: 0 | I34: 0 | J34: 0 | K34: 0 | L34: 0 | M34: 0 | N34: 0 | O34: 0 | P34: 0 | Q34: 0.0003184713376 | R34: 0.0003184713376 | S34: 0.0009554140127 | T34: 0.001592356688 | U34: 0.002866242038 | V34: 0.007961783439 | W34: 0.01496815287 | X34: 0.03089171975 | Y34: 0.08152866242 | Z34: 0.1812101911 | AA34: 0.3044585987 | AB34: 0.1904458599 | AC34: 0.08439490446 | AD34: 0.03535031847 | AE34: 0.01942675159 | AF34: 0.01050955414 | AG34: 0.007324840764 | AH34: 0.002547770701 | AI34: 0.002547770701 | AJ34: 0.002547770701 | AK34: 0.001910828025 | AL34: 0.0009554140127 | AM34: 0.0006369426752 | AN34: 0.0003184713376 | AO34: 0.00127388535 | AP34: 0.0006369426752 | AQ34: 0 | AR34: 0.0006369426752 | AS34: 0.0009554140127 | AT34: 0 | AU34: 0.0009554140127 | AV34: 0.0006369426752 | AW34: 0.0006369426752 | AX34: 0 | AY34: 0.00127388535 | AZ34: 0.0006369426752 | BA34: 0.0003184713376 | BB34: 0.0006369426752 | BC34: 0 | BD34: 0 | BE34: 0 | BF34: 0 | BG34: 0 | BH34: 0 | BI34: 0.0003184713376 | BJ34: 0 | BK34: 0.0006369426752 | BL34: 0 | BM34: 0.0006369426752 | BN34: 0.0003184713376 | BO34: 0.0003184713376 | BP34: 0 | BQ34: 0 | BR34: 0 | BS34: 0.0003184713376 | BT34: 0 | BU34: 0 | BV34: 0 | BW34: 0 | BX34: 0 | BY34: 0 | BZ34: 0.0003184713376 | CA34: 0.0006369426752 | CB34: 0.0003184713376 | CC34: 0 | CD34: 0 | CE34: 0 | CF34: 0 | CG34: 0 | CH34: 0.0003184713376 | CI34: 0.0003184713376 | CJ34: 0 | CK34: 0 | CL34: 0 | CM34: 0.0003184713376 | CN34: 0 | CO34: 0.0003184713376 | CP34: 0.0003184713376 | CQ34: 0 | CR34: 0 | CS34: 0 | CT34: 0 | CU34: 0 | CV34: 0 | CW34: 0 | CX34: 0 | CY34: 0
B35: 0.26 | C35: 0 | D35: 0 | E35: 0 | F35: 0 | G35: 0 | H35: 0 | I35: 0 | J35: 0 | K35: 0 | L35: 0 | M35: 0 | N35: 0 | O35: 0 | P35: 0 | Q35: 0 | R35: 0.0003022974607 | S35: 0 | T35: 0.0006045949214 | U35: 0.002116082225 | V35: 0.001209189843 | W35: 0.003325272068 | X35: 0.0169286578 | Y35: 0.03083434099 | Z35: 0.07799274486 | AA35: 0.1825876663 | AB35: 0.3152962515 | AC35: 0.1892382104 | AD35: 0.07496977025 | AE35: 0.03476420798 | AF35: 0.01723095526 | AG35: 0.01058041112 | AH35: 0.006045949214 | AI35: 0.003929866989 | AJ35: 0.002418379686 | AK35: 0.0009068923821 | AL35: 0.001813784764 | AM35: 0.001511487304 | AN35: 0.001209189843 | AO35: 0.001209189843 | AP35: 0.001209189843 | AQ35: 0.001511487304 | AR35: 0.0006045949214 | AS35: 0.0006045949214 | AT35: 0.001209189843 | AU35: 0.0003022974607 | AV35: 0.0003022974607 | AW35: 0.0009068923821 | AX35: 0.0003022974607 | AY35: 0.0006045949214 | AZ35: 0.0006045949214 | BA35: 0.0006045949214 | BB35: 0.0003022974607 | BC35: 0.0006045949214 | BD35: 0.0006045949214 | BE35: 0.0006045949214 | BF35: 0.0003022974607 | BG35: 0.0009068923821 | BH35: 0 | BI35: 0.0006045949214 | BJ35: 0.0006045949214 | BK35: 0.0003022974607 | BL35: 0 | BM35: 0.0003022974607 | BN35: 0.0003022974607 | BO35: 0.0009068923821 | BP35: 0.0006045949214 | BQ35: 0.0006045949214 | BR35: 0.0003022974607 | BS35: 0.0006045949214 | BT35: 0.0003022974607 | BU35: 0 | BV35: 0 | BW35: 0.0006045949214 | BX35: 0.0003022974607 | BY35: 0 | BZ35: 0 | CA35: 0.0009068923821 | CB35: 0 | CC35: 0 | CD35: 0.0003022974607 | CE35: 0 | CF35: 0.0003022974607 | CG35: 0 | CH35: 0 | CI35: 0.0003022974607 | CJ35: 0 | CK35: 0 | CL35: 0.0009068923821 | CM35: 0 | CN35: 0 | CO35: 0.0006045949214 | CP35: 0 | CQ35: 0 | CR35: 0.0003022974607 | CS35: 0.0003022974607 | CT35: 0 | CU35: 0 | CV35: 0 | CW35: 0 | CX35: 0 | CY35: 0.0006045949214
B36: 0.27 | C36: 0 | D36: 0 | E36: 0 | F36: 0 | G36: 0 | H36: 0 | I36: 0 | J36: 0 | K36: 0 | L36: 0 | M36: 0 | N36: 0 | O36: 0 | P36: 0 | Q36: 0.0002813731007 | R36: 0 | S36: 0.0002813731007 | T36: 0.0002813731007 | U36: 0.001688238604 | V36: 0.002250984806 | W36: 0.003095104108 | X36: 0.006752954418 | Y36: 0.01772650535 | Z36: 0.03292065279 | AA36: 0.06274620146 | AB36: 0.1769836804 | AC36: 0.3255486775 | AD36: 0.1764209342 | AE36: 0.07484524479 | AF36: 0.03404614519 | AG36: 0.02082160945 | AH36: 0.01294316263 | AI36: 0.009003939223 | AJ36: 0.005346088914 | AK36: 0.00393922341 | AL36: 0.001969611705 | AM36: 0.002813731007 | AN36: 0.002250984806 | AO36: 0.001969611705 | AP36: 0.0005627462015 | AQ36: 0.001688238604 | AR36: 0.001125492403 | AS36: 0.001688238604 | AT36: 0.001969611705 | AU36: 0.0008441193022 | AV36: 0.0002813731007 | AW36: 0.0008441193022 | AX36: 0 | AY36: 0.0002813731007 | AZ36: 0.0005627462015 | BA36: 0.0005627462015 | BB36: 0.001688238604 | BC36: 0.0005627462015 | BD36: 0.0002813731007 | BE36: 0.0005627462015 | BF36: 0 | BG36: 0.0002813731007 | BH36: 0.0002813731007 | BI36: 0.0002813731007 | BJ36: 0.0005627462015 | BK36: 0.0005627462015 | BL36: 0.0008441193022 | BM36: 0 | BN36: 0 | BO36: 0.0005627462015 | BP36: 0.0002813731007 | BQ36: 0.0005627462015 | BR36: 0 | BS36: 0 | BT36: 0.0002813731007 | BU36: 0 | BV36: 0.0002813731007 | BW36: 0.0002813731007 | BX36: 0 | BY36: 0.0002813731007 | BZ36: 0 | CA36: 0 | CB36: 0.0002813731007 | CC36: 0.0008441193022 | CD36: 0 | CE36: 0.0002813731007 | CF36: 0 | CG36: 0.0008441193022 | CH36: 0.0002813731007 | CI36: 0.0002813731007 | CJ36: 0 | CK36: 0.0002813731007 | CL36: 0 | CM36: 0 | CN36: 0 | CO36: 0 | CP36: 0 | CQ36: 0.0002813731007 | CR36: 0 | CS36: 0 | CT36: 0 | CU36: 0.0002813731007 | CV36: 0.0002813731007 | CW36: 0.0002813731007 | CX36: 0 | CY36: 0
B37: 0.28 | C37: 0 | D37: 0 | E37: 0 | F37: 0 | G37: 0 | H37: 0 | I37: 0 | J37: 0 | K37: 0 | L37: 0 | M37: 0 | N37: 0 | O37: 0 | P37: 0 | Q37: 0.0002982403817 | R37: 0.0002982403817 | S37: 0 | T37: 0.0005964807635 | U37: 0.0008947211452 | V37: 0.001491201909 | W37: 0.00178944229 | X37: 0.003280644199 | Y37: 0.008052490307 | Z37: 0.02057858634 | AA37: 0.03459588428 | AB37: 0.08112138384 | AC37: 0.1774530271 | AD37: 0.2925738145 | AE37: 0.1807336713 | AF37: 0.0817178646 | AG37: 0.03668356695 | AH37: 0.01759618252 | AI37: 0.01282433642 | AJ37: 0.006263048017 | AK37: 0.004473605726 | AL37: 0.003877124963 | AM37: 0.003578884581 | AN37: 0.002087682672 | AO37: 0.0008947211452 | AP37: 0.001491201909 | AQ37: 0.00178944229 | AR37: 0.0002982403817 | AS37: 0.0008947211452 | AT37: 0.001491201909 | AU37: 0.0008947211452 | AV37: 0.0005964807635 | AW37: 0 | AX37: 0.0005964807635 | AY37: 0.001192961527 | AZ37: 0.0008947211452 | BA37: 0.0008947211452 | BB37: 0.0002982403817 | BC37: 0.001192961527 | BD37: 0.0005964807635 | BE37: 0.0002982403817 | BF37: 0.0002982403817 | BG37: 0.0002982403817 | BH37: 0.0002982403817 | BI37: 0.0005964807635 | BJ37: 0.0002982403817 | BK37: 0.0005964807635 | BL37: 0 | BM37: 0.0005964807635 | BN37: 0 | BO37: 0 | BP37: 0.0002982403817 | BQ37: 0.0008947211452 | BR37: 0 | BS37: 0.0005964807635 | BT37: 0.0008947211452 | BU37: 0.0005964807635 | BV37: 0 | BW37: 0.0002982403817 | BX37: 0.0002982403817 | BY37: 0.0005964807635 | BZ37: 0.0008947211452 | CA37: 0 | CB37: 0 | CC37: 0 | CD37: 0.0002982403817 | CE37: 0.0002982403817 | CF37: 0 | CG37: 0.0002982403817 | CH37: 0.0002982403817 | CI37: 0 | CJ37: 0 | CK37: 0 | CL37: 0.0002982403817 | CM37: 0.0002982403817 | CN37: 0.0002982403817 | CO37: 0.0005964807635 | CP37: 0.0002982403817 | CQ37: 0 | CR37: 0.0002982403817 | CS37: 0 | CT37: 0.0002982403817 | CU37: 0.0005964807635 | CV37: 0.0002982403817 | CW37: 0 | CX37: 0 | CY37: 0
B38: 0.29 | C38: 0 | D38: 0 | E38: 0 | F38: 0 | G38: 0 | H38: 0 | I38: 0 | J38: 0 | K38: 0 | L38: 0 | M38: 0 | N38: 0 | O38: 0 | P38: 0 | Q38: 0 | R38: 0.0003004807692 | S38: 0 | T38: 0 | U38: 0.0006009615385 | V38: 0.0006009615385 | W38: 0.002103365385 | X38: 0.002103365385 | Y38: 0.005108173077 | Z38: 0.009915865385 | AA38: 0.02163461538 | AB38: 0.03605769231 | AC38: 0.08413461538 | AD38: 0.1748798077 | AE38: 0.2863581731 | AF38: 0.17578125 | AG38: 0.07241586538 | AH38: 0.03966346154 | AI38: 0.02013221154 | AJ38: 0.01352163462 | AK38: 0.009915865385 | AL38: 0.004807692308 | AM38: 0.005408653846 | AN38: 0.002704326923 | AO38: 0.001201923077 | AP38: 0.001201923077 | AQ38: 0.0009014423077 | AR38: 0.002103365385 | AS38: 0.001201923077 | AT38: 0.001201923077 | AU38: 0.0003004807692 | AV38: 0.001201923077 | AW38: 0.0009014423077 | AX38: 0.0006009615385 | AY38: 0.001201923077 | AZ38: 0.001201923077 | BA38: 0.001502403846 | BB38: 0.0006009615385 | BC38: 0 | BD38: 0.0006009615385 | BE38: 0.0003004807692 | BF38: 0.0006009615385 | BG38: 0.0009014423077 | BH38: 0.0003004807692 | BI38: 0.0006009615385 | BJ38: 0.001802884615 | BK38: 0.0009014423077 | BL38: 0.0006009615385 | BM38: 0 | BN38: 0 | BO38: 0.0003004807692 | BP38: 0.0006009615385 | BQ38: 0.0006009615385 | BR38: 0.0003004807692 | BS38: 0.0003004807692 | BT38: 0.0003004807692 | BU38: 0.001201923077 | BV38: 0.0003004807692 | BW38: 0.0006009615385 | BX38: 0.0003004807692 | BY38: 0 | BZ38: 0 | CA38: 0 | CB38: 0.0003004807692 | CC38: 0.0003004807692 | CD38: 0 | CE38: 0.0003004807692 | CF38: 0.001201923077 | CG38: 0 | CH38: 0.0006009615385 | CI38: 0 | CJ38: 0.0009014423077 | CK38: 0.0003004807692 | CL38: 0 | CM38: 0 | CN38: 0 | CO38: 0 | CP38: 0.0006009615385 | CQ38: 0.0003004807692 | CR38: 0 | CS38: 0 | CT38: 0 | CU38: 0.0003004807692 | CV38: 0 | CW38: 0 | CX38: 0 | CY38: 0
B39: 0.3 | C39: 0 | D39: 0 | E39: 0 | F39: 0 | G39: 0 | H39: 0 | I39: 0 | J39: 0 | K39: 0 | L39: 0 | M39: 0 | N39: 0 | O39: 0 | P39: 0 | Q39: 0 | R39: 0 | S39: 0 | T39: 0 | U39: 0 | V39: 0.0008792497069 | W39: 0.0005861664713 | X39: 0.002344665885 | Y39: 0.003223915592 | Z39: 0.00468933177 | AA39: 0.01113716295 | AB39: 0.0172919109 | AC39: 0.03839390387 | AD39: 0.07678780774 | AE39: 0.1673505275 | AF39: 0.2881008206 | AG39: 0.1787807737 | AH39: 0.07327080891 | AI39: 0.03898007034 | AJ39: 0.02344665885 | AK39: 0.01465416178 | AL39: 0.005568581477 | AM39: 0.006447831184 | AN39: 0.007033997655 | AO39: 0.002930832356 | AP39: 0.003516998828 | AQ39: 0.002930832356 | AR39: 0.001758499414 | AS39: 0.0005861664713 | AT39: 0.002051582649 | AU39: 0.0008792497069 | AV39: 0.001172332943 | AW39: 0.0008792497069 | AX39: 0.002051582649 | AY39: 0.001465416178 | AZ39: 0.001465416178 | BA39: 0.001172332943 | BB39: 0 | BC39: 0.0005861664713 | BD39: 0.0008792497069 | BE39: 0.0005861664713 | BF39: 0.001465416178 | BG39: 0.0005861664713 | BH39: 0.0008792497069 | BI39: 0.0008792497069 | BJ39: 0 | BK39: 0.0002930832356 | BL39: 0.0008792497069 | BM39: 0.0002930832356 | BN39: 0.001172332943 | BO39: 0.001172332943 | BP39: 0 | BQ39: 0 | BR39: 0.0008792497069 | BS39: 0.0002930832356 | BT39: 0.0005861664713 | BU39: 0.0005861664713 | BV39: 0.0002930832356 | BW39: 0.0008792497069 | BX39: 0.0002930832356 | BY39: 0.0002930832356 | BZ39: 0 | CA39: 0 | CB39: 0.0005861664713 | CC39: 0 | CD39: 0.0002930832356 | CE39: 0.0002930832356 | CF39: 0.0002930832356 | CG39: 0 | CH39: 0 | CI39: 0.0002930832356 | CJ39: 0.0008792497069 | CK39: 0.0002930832356 | CL39: 0 | CM39: 0.0005861664713 | CN39: 0 | CO39: 0 | CP39: 0 | CQ39: 0.0002930832356 | CR39: 0 | CS39: 0 | CT39: 0 | CU39: 0.0002930832356 | CV39: 0 | CW39: 0 | CX39: 0 | CY39: 0.0002930832356
B40: 0.31 | C40: 0 | D40: 0 | E40: 0 | F40: 0 | G40: 0 | H40: 0 | I40: 0 | J40: 0 | K40: 0 | L40: 0 | M40: 0 | N40: 0 | O40: 0 | P40: 0 | Q40: 0 | R40: 0 | S40: 0.000298596596 | T40: 0.000298596596 | U40: 0 | V40: 0 | W40: 0.001194386384 | X40: 0.000597193192 | Y40: 0.001791579576 | Z40: 0.00298596596 | AA40: 0.007166318304 | AB40: 0.01224246044 | AC40: 0.0220961481 | AD40: 0.04240071663 | AE40: 0.07942669454 | AF40: 0.1731860257 | AG40: 0.2756046581 | AH40: 0.1761719916 | AI40: 0.07554493879 | AJ40: 0.03613018812 | AK40: 0.02149895491 | AL40: 0.01433263661 | AM40: 0.006867721708 | AN40: 0.005076142132 | AO40: 0.004180352344 | AP40: 0.003284562556 | AQ40: 0.00149298298 | AR40: 0.001194386384 | AS40: 0.00149298298 | AT40: 0.002687369364 | AU40: 0.00149298298 | AV40: 0.000895789788 | AW40: 0.000895789788 | AX40: 0.000895789788 | AY40: 0.001194386384 | AZ40: 0.00149298298 | BA40: 0.000895789788 | BB40: 0.00149298298 | BC40: 0.000895789788 | BD40: 0.001194386384 | BE40: 0.000895789788 | BF40: 0.000597193192 | BG40: 0.000298596596 | BH40: 0.000298596596 | BI40: 0.000895789788 | BJ40: 0.000298596596 | BK40: 0.000597193192 | BL40: 0.000895789788 | BM40: 0.000298596596 | BN40: 0.000597193192 | BO40: 0.000597193192 | BP40: 0.000298596596 | BQ40: 0.000597193192 | BR40: 0.000298596596 | BS40: 0.000597193192 | BT40: 0.000597193192 | BU40: 0.000597193192 | BV40: 0.000597193192 | BW40: 0.000597193192 | BX40: 0.000597193192 | BY40: 0.000298596596 | BZ40: 0.000895789788 | CA40: 0 | CB40: 0.000298596596 | CC40: 0 | CD40: 0.000298596596 | CE40: 0.000895789788 | CF40: 0.000597193192 | CG40: 0 | CH40: 0.000597193192 | CI40: 0 | CJ40: 0.000597193192 | CK40: 0.000597193192 | CL40: 0.00149298298 | CM40: 0.000298596596 | CN40: 0.000298596596 | CO40: 0 | CP40: 0.000298596596 | CQ40: 0.000298596596 | CR40: 0 | CS40: 0 | CT40: 0 | CU40: 0 | CV40: 0 | CW40: 0.000298596596 | CX40: 0 | CY40: 0.000298596596
B41: 0.32 | C41: 0 | D41: 0 | E41: 0 | F41: 0 | G41: 0 | H41: 0 | I41: 0 | J41: 0 | K41: 0 | L41: 0 | M41: 0 | N41: 0 | O41: 0 | P41: 0 | Q41: 0 | R41: 0 | S41: 0 | T41: 0 | U41: 0.0002962085308 | V41: 0.0002962085308 | W41: 0.0002962085308 | X41: 0.001184834123 | Y41: 0.002073459716 | Z41: 0.001777251185 | AA41: 0.004739336493 | AB41: 0.005627962085 | AC41: 0.01125592417 | AD41: 0.02103080569 | AE41: 0.04087677725 | AF41: 0.08086492891 | AG41: 0.1709123223 | AH41: 0.2775473934 | AI41: 0.1643957346 | AJ41: 0.07553317536 | AK41: 0.03909952607 | AL41: 0.01866113744 | AM41: 0.01184834123 | AN41: 0.008886255924 | AO41: 0.007701421801 | AP41: 0.006812796209 | AQ41: 0.004146919431 | AR41: 0.002073459716 | AS41: 0.002369668246 | AT41: 0.002073459716 | AU41: 0.002665876777 | AV41: 0.0008886255924 | AW41: 0.002073459716 | AX41: 0.001777251185 | AY41: 0.001777251185 | AZ41: 0.0005924170616 | BA41: 0.001184834123 | BB41: 0.001184834123 | BC41: 0.001184834123 | BD41: 0.001777251185 | BE41: 0.0008886255924 | BF41: 0.0002962085308 | BG41: 0.0005924170616 | BH41: 0.001184834123 | BI41: 0.0005924170616 | BJ41: 0.0005924170616 | BK41: 0.0008886255924 | BL41: 0.0002962085308 | BM41: 0.0002962085308 | BN41: 0.0002962085308 | BO41: 0.001184834123 | BP41: 0.001777251185 | BQ41: 0.0002962085308 | BR41: 0.0005924170616 | BS41: 0.0008886255924 | BT41: 0.0002962085308 | BU41: 0.0008886255924 | BV41: 0.0005924170616 | BW41: 0.0008886255924 | BX41: 0.0002962085308 | BY41: 0.001184834123 | BZ41: 0 | CA41: 0.0008886255924 | CB41: 0.0002962085308 | CC41: 0.0005924170616 | CD41: 0.001184834123 | CE41: 0 | CF41: 0.0002962085308 | CG41: 0.0005924170616 | CH41: 0.0002962085308 | CI41: 0.0002962085308 | CJ41: 0.0002962085308 | CK41: 0 | CL41: 0.0005924170616 | CM41: 0 | CN41: 0.0008886255924 | CO41: 0.0002962085308 | CP41: 0 | CQ41: 0.0002962085308 | CR41: 0 | CS41: 0.0002962085308 | CT41: 0 | CU41: 0 | CV41: 0.0002962085308 | CW41: 0.0002962085308 | CX41: 0 | CY41: 0
B42: 0.33 | C42: 0 | D42: 0 | E42: 0 | F42: 0 | G42: 0 | H42: 0 | I42: 0 | J42: 0 | K42: 0 | L42: 0 | M42: 0 | N42: 0 | O42: 0 | P42: 0 | Q42: 0 | R42: 0 | S42: 0 | T42: 0 | U42: 0.0003031221582 | V42: 0.0009093664747 | W42: 0.0003031221582 | X42: 0.001212488633 | Y42: 0.0003031221582 | Z42: 0.002424977266 | AA42: 0.002728099424 | AB42: 0.004243710215 | AC42: 0.007578053956 | AD42: 0.01242800849 | AE42: 0.01758108518 | AF42: 0.04486207942 | AG42: 0.07517429524 | AH42: 0.1682327978 | AI42: 0.2588663231 | AJ42: 0.1673234313 | AK42: 0.07699302819 | AL42: 0.04274022431 | AM42: 0.0203091846 | AN42: 0.01515610791 | AO42: 0.01060927554 | AP42: 0.006971809639 | AQ42: 0.006062443165 | AR42: 0.003031221582 | AS42: 0.002121855108 | AT42: 0.002728099424 | AU42: 0.002728099424 | AV42: 0.003031221582 | AW42: 0.002424977266 | AX42: 0.0003031221582 | AY42: 0.001818732949 | AZ42: 0.002121855108 | BA42: 0.003031221582 | BB42: 0.001515610791 | BC42: 0.001212488633 | BD42: 0.0006062443165 | BE42: 0.0009093664747 | BF42: 0.001515610791 | BG42: 0.002424977266 | BH42: 0.0009093664747 | BI42: 0.001818732949 | BJ42: 0.001515610791 | BK42: 0 | BL42: 0.0009093664747 | BM42: 0 | BN42: 0.001515610791 | BO42: 0.001212488633 | BP42: 0.0009093664747 | BQ42: 0.0006062443165 | BR42: 0.0003031221582 | BS42: 0.001818732949 | BT42: 0.0003031221582 | BU42: 0.001212488633 | BV42: 0.0006062443165 | BW42: 0.001515610791 | BX42: 0.0003031221582 | BY42: 0.001818732949 | BZ42: 0 | CA42: 0 | CB42: 0.0003031221582 | CC42: 0.0006062443165 | CD42: 0.0003031221582 | CE42: 0.0003031221582 | CF42: 0.0003031221582 | CG42: 0.0003031221582 | CH42: 0 | CI42: 0.0003031221582 | CJ42: 0.001212488633 | CK42: 0.0009093664747 | CL42: 0 | CM42: 0.0006062443165 | CN42: 0.0003031221582 | CO42: 0.0006062443165 | CP42: 0.0003031221582 | CQ42: 0 | CR42: 0 | CS42: 0.0003031221582 | CT42: 0 | CU42: 0.0003031221582 | CV42: 0.0003031221582 | CW42: 0 | CX42: 0 | CY42: 0.0006062443165
B43: 0.34 | C43: 0 | D43: 0 | E43: 0 | F43: 0 | G43: 0 | H43: 0 | I43: 0 | J43: 0 | K43: 0 | L43: 0 | M43: 0 | N43: 0 | O43: 0 | P43: 0 | Q43: 0 | R43: 0 | S43: 0 | T43: 0 | U43: 0 | V43: 0 | W43: 0 | X43: 0 | Y43: 0.0003153579313 | Z43: 0.0003153579313 | AA43: 0.003153579313 | AB43: 0.003468937244 | AC43: 0.00252286345 | AD43: 0.009460737938 | AE43: 0.01639861243 | AF43: 0.02207505519 | AG43: 0.04351939451 | AH43: 0.08199306213 | AI43: 0.1712393567 | AJ43: 0.2406181015 | AK43: 0.164932198 | AL43: 0.08041627247 | AM43: 0.04604225796 | AN43: 0.02144433933 | AO43: 0.01639861243 | AP43: 0.01072216966 | AQ43: 0.00756859035 | AR43: 0.005676442763 | AS43: 0.004099653106 | AT43: 0.00252286345 | AU43: 0.002207505519 | AV43: 0.001576789656 | AW43: 0.001261431725 | AX43: 0.002207505519 | AY43: 0.00252286345 | AZ43: 0.001892147588 | BA43: 0.0009460737938 | BB43: 0.0006307158625 | BC43: 0.0003153579313 | BD43: 0.001892147588 | BE43: 0.0009460737938 | BF43: 0.0006307158625 | BG43: 0 | BH43: 0.0006307158625 | BI43: 0.0003153579313 | BJ43: 0.001576789656 | BK43: 0.002207505519 | BL43: 0.001261431725 | BM43: 0.001261431725 | BN43: 0.0009460737938 | BO43: 0.0006307158625 | BP43: 0.001261431725 | BQ43: 0.0006307158625 | BR43: 0.0003153579313 | BS43: 0.0003153579313 | BT43: 0 | BU43: 0.001892147588 | BV43: 0.001576789656 | BW43: 0.0006307158625 | BX43: 0 | BY43: 0.0006307158625 | BZ43: 0.0006307158625 | CA43: 0.001261431725 | CB43: 0.0009460737938 | CC43: 0.0006307158625 | CD43: 0 | CE43: 0.0003153579313 | CF43: 0.0003153579313 | CG43: 0.0003153579313 | CH43: 0.0006307158625 | CI43: 0.0006307158625 | CJ43: 0.0006307158625 | CK43: 0.0006307158625 | CL43: 0.0003153579313 | CM43: 0 | CN43: 0.001261431725 | CO43: 0 | CP43: 0.0006307158625 | CQ43: 0.0003153579313 | CR43: 0.0009460737938 | CS43: 0 | CT43: 0 | CU43: 0.0006307158625 | CV43: 0.0006307158625 | CW43: 0.0003153579313 | CX43: 0 | CY43: 0
B44: 0.35 | C44: 0 | D44: 0 | E44: 0 | F44: 0 | G44: 0 | H44: 0 | I44: 0 | J44: 0 | K44: 0 | L44: 0 | M44: 0 | N44: 0 | O44: 0 | P44: 0 | Q44: 0 | R44: 0 | S44: 0 | T44: 0.0003056234719 | U44: 0.0003056234719 | V44: 0 | W44: 0 | X44: 0 | Y44: 0.0009168704156 | Z44: 0.001528117359 | AA44: 0.0003056234719 | AB44: 0.002139364303 | AC44: 0.003973105134 | AD44: 0.006723716381 | AE44: 0.007946210269 | AF44: 0.01589242054 | AG44: 0.02383863081 | AH44: 0.04156479218 | AI44: 0.07548899756 | AJ44: 0.1555623472 | AK44: 0.2625305623 | AL44: 0.1592298289 | AM44: 0.07304400978 | AN44: 0.03820293399 | AO44: 0.027200489 | AP44: 0.01344743276 | AQ44: 0.01039119804 | AR44: 0.008863080685 | AS44: 0.007946210269 | AT44: 0.003361858191 | AU44: 0.00488997555 | AV44: 0.003361858191 | AW44: 0.003056234719 | AX44: 0.001528117359 | AY44: 0.003973105134 | AZ44: 0.002444987775 | BA44: 0.003056234719 | BB44: 0.003056234719 | BC44: 0.002750611247 | BD44: 0.0009168704156 | BE44: 0.001222493888 | BF44: 0.001528117359 | BG44: 0.001528117359 | BH44: 0.001528117359 | BI44: 0.0009168704156 | BJ44: 0.0009168704156 | BK44: 0.0006112469438 | BL44: 0.0003056234719 | BM44: 0.0009168704156 | BN44: 0.0006112469438 | BO44: 0.0003056234719 | BP44: 0.001222493888 | BQ44: 0.0003056234719 | BR44: 0.0006112469438 | BS44: 0 | BT44: 0.001222493888 | BU44: 0.0006112469438 | BV44: 0.001528117359 | BW44: 0.002444987775 | BX44: 0.0006112469438 | BY44: 0.0009168704156 | BZ44: 0.0009168704156 | CA44: 0.0009168704156 | CB44: 0 | CC44: 0.0003056234719 | CD44: 0 | CE44: 0.0003056234719 | CF44: 0.0003056234719 | CG44: 0.0006112469438 | CH44: 0.0003056234719 | CI44: 0 | CJ44: 0.001222493888 | CK44: 0.0003056234719 | CL44: 0.0006112469438 | CM44: 0.0009168704156 | CN44: 0 | CO44: 0 | CP44: 0 | CQ44: 0.0003056234719 | CR44: 0.0006112469438 | CS44: 0.0003056234719 | CT44: 0.0009168704156 | CU44: 0 | CV44: 0.0003056234719 | CW44: 0 | CX44: 0 | CY44: 0.001222493888
B45: 0.36 | C45: 0 | D45: 0 | E45: 0 | F45: 0 | G45: 0 | H45: 0 | I45: 0 | J45: 0 | K45: 0 | L45: 0 | M45: 0 | N45: 0 | O45: 0 | P45: 0 | Q45: 0 | R45: 0.0006142506143 | S45: 0.0003071253071 | T45: 0.0003071253071 | U45: 0.0003071253071 | V45: 0.0009213759214 | W45: 0 | X45: 0.0006142506143 | Y45: 0.0003071253071 | Z45: 0.0006142506143 | AA45: 0.0009213759214 | AB45: 0.001535626536 | AC45: 0.001842751843 | AD45: 0.004606879607 | AE45: 0.007063882064 | AF45: 0.009520884521 | AG45: 0.01566339066 | AH45: 0.02180589681 | AI45: 0.05313267813 | AJ45: 0.07647420147 | AK45: 0.1569410319 | AL45: 0.2555282555 | AM45: 0.1603194103 | AN45: 0.06541769042 | AO45: 0.04668304668 | AP45: 0.02641277641 | AQ45: 0.0171990172 | AR45: 0.01074938575 | AS45: 0.004606879607 | AT45: 0.004606879607 | AU45: 0.003378378378 | AV45: 0.002457002457 | AW45: 0.00214987715 | AX45: 0.001535626536 | AY45: 0.002457002457 | AZ45: 0.00214987715 | BA45: 0.0009213759214 | BB45: 0.001842751843 | BC45: 0.001535626536 | BD45: 0.00214987715 | BE45: 0.00214987715 | BF45: 0.001228501229 | BG45: 0.001228501229 | BH45: 0.0009213759214 | BI45: 0.00214987715 | BJ45: 0.0009213759214 | BK45: 0.00214987715 | BL45: 0.001842751843 | BM45: 0.0006142506143 | BN45: 0.0009213759214 | BO45: 0.0003071253071 | BP45: 0.0009213759214 | BQ45: 0.0009213759214 | BR45: 0.0009213759214 | BS45: 0.001228501229 | BT45: 0.0006142506143 | BU45: 0 | BV45: 0.0003071253071 | BW45: 0.001842751843 | BX45: 0.0003071253071 | BY45: 0.0009213759214 | BZ45: 0.0003071253071 | CA45: 0.0009213759214 | CB45: 0 | CC45: 0.0006142506143 | CD45: 0.0003071253071 | CE45: 0.0006142506143 | CF45: 0 | CG45: 0.0006142506143 | CH45: 0.0006142506143 | CI45: 0.0006142506143 | CJ45: 0.0009213759214 | CK45: 0.0003071253071 | CL45: 0.0006142506143 | CM45: 0 | CN45: 0.0006142506143 | CO45: 0.0009213759214 | CP45: 0 | CQ45: 0 | CR45: 0.0003071253071 | CS45: 0.0006142506143 | CT45: 0.0006142506143 | CU45: 0 | CV45: 0 | CW45: 0 | CX45: 0.0006142506143 | CY45: 0.001842751843
B46: 0.37 | C46: 0 | D46: 0 | E46: 0 | F46: 0 | G46: 0 | H46: 0 | I46: 0 | J46: 0 | K46: 0 | L46: 0 | M46: 0 | N46: 0 | O46: 0 | P46: 0 | Q46: 0 | R46: 0 | S46: 0 | T46: 0 | U46: 0.0003250975293 | V46: 0 | W46: 0.0003250975293 | X46: 0 | Y46: 0.0003250975293 | Z46: 0 | AA46: 0.0009752925878 | AB46: 0.001950585176 | AC46: 0.002275682705 | AD46: 0.001950585176 | AE46: 0.002925877763 | AF46: 0.004876462939 | AG46: 0.01105331599 | AH46: 0.01690507152 | AI46: 0.02698309493 | AJ46: 0.04421326398 | AK46: 0.07249674902 | AL46: 0.1651495449 | AM46: 0.2311443433 | AN46: 0.1631989597 | AO46: 0.07574772432 | AP46: 0.04063719116 | AQ46: 0.02633289987 | AR46: 0.01592977893 | AS46: 0.0133289987 | AT46: 0.008127438231 | AU46: 0.00877763329 | AV46: 0.00455136541 | AW46: 0.00422626788 | AX46: 0.003576072822 | AY46: 0.00455136541 | AZ46: 0.003576072822 | BA46: 0.002925877763 | BB46: 0.001300390117 | BC46: 0.001300390117 | BD46: 0.002275682705 | BE46: 0.002600780234 | BF46: 0.001950585176 | BG46: 0.001625487646 | BH46: 0.002925877763 | BI46: 0.001625487646 | BJ46: 0 | BK46: 0.0009752925878 | BL46: 0.0006501950585 | BM46: 0.0009752925878 | BN46: 0.001625487646 | BO46: 0.001625487646 | BP46: 0.0003250975293 | BQ46: 0.001625487646 | BR46: 0.0009752925878 | BS46: 0.0009752925878 | BT46: 0.0003250975293 | BU46: 0.001625487646 | BV46: 0.0006501950585 | BW46: 0.0003250975293 | BX46: 0.0003250975293 | BY46: 0.0003250975293 | BZ46: 0.0009752925878 | CA46: 0 | CB46: 0.0009752925878 | CC46: 0.0006501950585 | CD46: 0.0009752925878 | CE46: 0.001625487646 | CF46: 0.0006501950585 | CG46: 0.0003250975293 | CH46: 0 | CI46: 0.0006501950585 | CJ46: 0 | CK46: 0 | CL46: 0.0009752925878 | CM46: 0.0003250975293 | CN46: 0.0003250975293 | CO46: 0 | CP46: 0.0003250975293 | CQ46: 0.0003250975293 | CR46: 0 | CS46: 0.0003250975293 | CT46: 0.0003250975293 | CU46: 0 | CV46: 0.0006501950585 | CW46: 0 | CX46: 0 | CY46: 0.001300390117
B47: 0.38 | C47: 0 | D47: 0 | E47: 0 | F47: 0 | G47: 0 | H47: 0 | I47: 0 | J47: 0 | K47: 0 | L47: 0 | M47: 0 | N47: 0 | O47: 0 | P47: 0 | Q47: 0 | R47: 0.0003280839895 | S47: 0 | T47: 0 | U47: 0 | V47: 0.000656167979 | W47: 0 | X47: 0 | Y47: 0.0003280839895 | Z47: 0.000656167979 | AA47: 0.001312335958 | AB47: 0.000656167979 | AC47: 0.001968503937 | AD47: 0.001312335958 | AE47: 0.004921259843 | AF47: 0.005905511811 | AG47: 0.004593175853 | AH47: 0.0124671916 | AI47: 0.01771653543 | AJ47: 0.02788713911 | AK47: 0.04658792651 | AL47: 0.08497375328 | AM47: 0.1545275591 | AN47: 0.2290026247 | AO47: 0.1594488189 | AP47: 0.06397637795 | AQ47: 0.0406824147 | AR47: 0.02755905512 | AS47: 0.01541994751 | AT47: 0.0124671916 | AU47: 0.008202099738 | AV47: 0.005577427822 | AW47: 0.006233595801 | AX47: 0.004593175853 | AY47: 0.004921259843 | AZ47: 0.002296587927 | BA47: 0.003280839895 | BB47: 0.001640419948 | BC47: 0.001640419948 | BD47: 0.001968503937 | BE47: 0.001640419948 | BF47: 0.002296587927 | BG47: 0.0009842519685 | BH47: 0.0003280839895 | BI47: 0.001640419948 | BJ47: 0.0009842519685 | BK47: 0.0009842519685 | BL47: 0.001640419948 | BM47: 0.0009842519685 | BN47: 0.001312335958 | BO47: 0.0009842519685 | BP47: 0.0009842519685 | BQ47: 0.001968503937 | BR47: 0.001640419948 | BS47: 0.000656167979 | BT47: 0.001312335958 | BU47: 0.000656167979 | BV47: 0.0003280839895 | BW47: 0.0009842519685 | BX47: 0.002624671916 | BY47: 0.001312335958 | BZ47: 0.0003280839895 | CA47: 0.000656167979 | CB47: 0.0003280839895 | CC47: 0.001312335958 | CD47: 0.000656167979 | CE47: 0.0003280839895 | CF47: 0.000656167979 | CG47: 0.000656167979 | CH47: 0.000656167979 | CI47: 0.0009842519685 | CJ47: 0.000656167979 | CK47: 0.0009842519685 | CL47: 0.0009842519685 | CM47: 0.000656167979 | CN47: 0.0009842519685 | CO47: 0.000656167979 | CP47: 0.0009842519685 | CQ47: 0.001312335958 | CR47: 0.000656167979 | CS47: 0.0003280839895 | CT47: 0.0003280839895 | CU47: 0.0003280839895 | CV47: 0.0003280839895 | CW47: 0.0003280839895 | CX47: 0.0003280839895 | CY47: 0.001640419948
B48: =M1451 -> 0 | C48: 0 | D48: 0 | E48: 0 | F48: 0 | G48: 0 | H48: 0 | I48: 0 | J48: 0 | K48: 0 | L48: 0 | M48: 0 | N48: 0 | O48: 0 | P48: 0 | Q48: 0 | R48: 0 | S48: 0.0003326679973 | T48: 0 | U48: 0 | V48: 0.0003326679973 | W48: 0.0003326679973 | X48: 0.0003326679973 | Y48: 0.0003326679973 | Z48: 0.0003326679973 | AA48: 0.000998003992 | AB48: 0.0006653359947 | AC48: 0.000998003992 | AD48: 0.0006653359947 | AE48: 0.001663339987 | AF48: 0.003326679973 | AG48: 0.003659347971 | AH48: 0.008982035928 | AI48: 0.009314703925 | AJ48: 0.01862940785 | AK48: 0.02960745176 | AL48: 0.04391217565 | AM48: 0.07717897538 | AN48: 0.1590153027 | AO48: 0.2238855622 | AP48: 0.1526946108 | AQ48: 0.06719893546 | AR48: 0.04624085163 | AS48: 0.03093812375 | AT48: 0.01896207585 | AU48: 0.0126413839 | AV48: 0.008982035928 | AW48: 0.007318695941 | AX48: 0.00499001996 | AY48: 0.004657351963 | AZ48: 0.002661343979 | BA48: 0.004324683965 | BB48: 0.002328675981 | BC48: 0.002328675981 | BD48: 0.003659347971 | BE48: 0.001996007984 | BF48: 0.002328675981 | BG48: 0.002328675981 | BH48: 0.001996007984 | BI48: 0 | BJ48: 0.0003326679973 | BK48: 0.001996007984 | BL48: 0.001663339987 | BM48: 0.002661343979 | BN48: 0.001663339987 | BO48: 0.002994011976 | BP48: 0.002328675981 | BQ48: 0.000998003992 | BR48: 0.000998003992 | BS48: 0.001330671989 | BT48: 0.000998003992 | BU48: 0.0006653359947 | BV48: 0.0006653359947 | BW48: 0.0006653359947 | BX48: 0.001663339987 | BY48: 0.0006653359947 | BZ48: 0.0006653359947 | CA48: 0.001330671989 | CB48: 0.0003326679973 | CC48: 0 | CD48: 0.000998003992 | CE48: 0.0006653359947 | CF48: 0.0003326679973 | CG48: 0.000998003992 | CH48: 0.0003326679973 | CI48: 0.0006653359947 | CJ48: 0.0006653359947 | CK48: 0.0006653359947 | CL48: 0 | CM48: 0.0006653359947 | CN48: 0.001663339987 | CO48: 0.0006653359947 | CP48: 0.0006653359947 | CQ48: 0.000998003992 | CR48: 0 | CS48: 0.000998003992 | CT48: 0.0006653359947 | CU48: 0 | CV48: 0 | CW48: 0 | CX48: 0 | CY48: 0.0006653359947
B49: 0.4 | C49: 0 | D49: 0 | E49: 0 | F49: 0 | G49: 0 | H49: 0 | I49: 0 | J49: 0 | K49: 0 | L49: 0 | M49: 0 | N49: 0 | O49: 0 | P49: 0 | Q49: 0 | R49: 0 | S49: 0 | T49: 0 | U49: 0 | V49: 0 | W49: 0.0006988120196 | X49: 0.0006988120196 | Y49: 0.0003494060098 | Z49: 0 | AA49: 0.0006988120196 | AB49: 0.001747030049 | AC49: 0.001397624039 | AD49: 0.001397624039 | AE49: 0.002445842068 | AF49: 0.003494060098 | AG49: 0.003494060098 | AH49: 0.004192872117 | AI49: 0.007337526205 | AJ49: 0.01397624039 | AK49: 0.01851851852 | AL49: 0.03179594689 | AM49: 0.05380852551 | AN49: 0.08176100629 | AO49: 0.1561844864 | AP49: 0.2078965758 | AQ49: 0.1397624039 | AR49: 0.07547169811 | AS49: 0.04262753319 | AT49: 0.02410901468 | AU49: 0.01956673655 | AV49: 0.01222921034 | AW49: 0.009084556254 | AX49: 0.006638714186 | AY49: 0.007337526205 | AZ49: 0.007337526205 | BA49: 0.004192872117 | BB49: 0.003843466108 | BC49: 0.003144654088 | BD49: 0.003843466108 | BE49: 0.003144654088 | BF49: 0.003494060098 | BG49: 0.002445842068 | BH49: 0.0006988120196 | BI49: 0.002445842068 | BJ49: 0.002445842068 | BK49: 0.002096436059 | BL49: 0.002795248078 | BM49: 0.0006988120196 | BN49: 0.001048218029 | BO49: 0.001747030049 | BP49: 0.001048218029 | BQ49: 0.001048218029 | BR49: 0.001747030049 | BS49: 0.002096436059 | BT49: 0.001397624039 | BU49: 0.001397624039 | BV49: 0.0006988120196 | BW49: 0.001048218029 | BX49: 0 | BY49: 0.001048218029 | BZ49: 0.0003494060098 | CA49: 0.0003494060098 | CB49: 0.001048218029 | CC49: 0.0006988120196 | CD49: 0.0003494060098 | CE49: 0.001747030049 | CF49: 0.0006988120196 | CG49: 0.001397624039 | CH49: 0.0006988120196 | CI49: 0 | CJ49: 0.0006988120196 | CK49: 0 | CL49: 0.0003494060098 | CM49: 0.0003494060098 | CN49: 0.0003494060098 | CO49: 0.0003494060098 | CP49: 0.001048218029 | CQ49: 0.0006988120196 | CR49: 0.0006988120196 | CS49: 0.0003494060098 | CT49: 0 | CU49: 0.0006988120196 | CV49: 0.0003494060098 | CW49: 0 | CX49: 0 | CY49: 0.001048218029
B50: 0.41 | C50: 0 | D50: 0 | E50: 0 | F50: 0 | G50: 0 | H50: 0 | I50: 0 | J50: 0 | K50: 0 | L50: 0 | M50: 0 | N50: 0 | O50: 0 | P50: 0 | Q50: 0 | R50: 0 | S50: 0 | T50: 0 | U50: 0 | V50: 0 | W50: 0.0003635041803 | X50: 0.0003635041803 | Y50: 0 | Z50: 0 | AA50: 0.001090512541 | AB50: 0 | AC50: 0.001454016721 | AD50: 0.002544529262 | AE50: 0.001454016721 | AF50: 0.002181025082 | AG50: 0.004362050164 | AH50: 0.003271537623 | AI50: 0.005816066885 | AJ50: 0.01017811705 | AK50: 0.01417666303 | AL50: 0.0185387132 | AM50: 0.0276263177 | AN50: 0.05379861868 | AO50: 0.0683387859 | AP50: 0.1519447474 | AQ50: 0.2130134497 | AR50: 0.1312250091 | AS50: 0.07524536532 | AT50: 0.04907306434 | AU50: 0.02290076336 | AV50: 0.02181025082 | AW50: 0.01054162123 | AX50: 0.01454016721 | AY50: 0.008724100327 | AZ50: 0.003998545983 | BA50: 0.005452562704 | BB50: 0.003998545983 | BC50: 0.006906579426 | BD50: 0.003635041803 | BE50: 0.002908033442 | BF50: 0.003271537623 | BG50: 0.001817520901 | BH50: 0.003271537623 | BI50: 0.002908033442 | BJ50: 0.001817520901 | BK50: 0.003271537623 | BL50: 0.001454016721 | BM50: 0.002544529262 | BN50: 0.0007270083606 | BO50: 0.0003635041803 | BP50: 0.0003635041803 | BQ50: 0.001454016721 | BR50: 0.001090512541 | BS50: 0.001817520901 | BT50: 0.001454016721 | BU50: 0.002181025082 | BV50: 0.0007270083606 | BW50: 0.001817520901 | BX50: 0.001454016721 | BY50: 0.001454016721 | BZ50: 0.003271537623 | CA50: 0.0007270083606 | CB50: 0.0007270083606 | CC50: 0.0007270083606 | CD50: 0.001090512541 | CE50: 0.001090512541 | CF50: 0.0003635041803 | CG50: 0.0007270083606 | CH50: 0.001454016721 | CI50: 0 | CJ50: 0.0007270083606 | CK50: 0.0007270083606 | CL50: 0.0007270083606 | CM50: 0.001090512541 | CN50: 0.0003635041803 | CO50: 0.0007270083606 | CP50: 0.0007270083606 | CQ50: 0.001454016721 | CR50: 0.001817520901 | CS50: 0.0003635041803 | CT50: 0.0003635041803 | CU50: 0 | CV50: 0 | CW50: 0.0003635041803 | CX50: 0 | CY50: 0.003635041803
B51: 0.42 | C51: 0 | D51: 0 | E51: 0 | F51: 0 | G51: 0 | H51: 0 | I51: 0 | J51: 0 | K51: 0 | L51: 0 | M51: 0 | N51: 0 | O51: 0 | P51: 0 | Q51: 0 | R51: 0 | S51: 0 | T51: 0 | U51: 0 | V51: 0 | W51: 0 | X51: 0.0003673769287 | Y51: 0 | Z51: 0.0003673769287 | AA51: 0.0007347538575 | AB51: 0.001102130786 | AC51: 0.0007347538575 | AD51: 0.001836884644 | AE51: 0.001102130786 | AF51: 0.001102130786 | AG51: 0.00293901543 | AH51: 0.004041146216 | AI51: 0.00587803086 | AJ51: 0.005510653931 | AK51: 0.009919177076 | AL51: 0.01359294636 | AM51: 0.01726671565 | AN51: 0.03122703894 | AO51: 0.05143277002 | AP51: 0.08192505511 | AQ51: 0.1385011021 | AR51: 0.2064658339 | AS51: 0.1359294636 | AT51: 0.07310800882 | AU51: 0.04445260838 | AV51: 0.02718589273 | AW51: 0.02351212344 | AX51: 0.01175606172 | AY51: 0.009551800147 | AZ51: 0.007347538575 | BA51: 0.008449669361 | BB51: 0.00587803086 | BC51: 0.005510653931 | BD51: 0.004775900073 | BE51: 0.005143277002 | BF51: 0.002571638501 | BG51: 0.003306392359 | BH51: 0.003306392359 | BI51: 0.001102130786 | BJ51: 0.002204261572 | BK51: 0.00293901543 | BL51: 0.002571638501 | BM51: 0.001836884644 | BN51: 0.003306392359 | BO51: 0.001102130786 | BP51: 0.001836884644 | BQ51: 0.00293901543 | BR51: 0.0007347538575 | BS51: 0.001836884644 | BT51: 0.001102130786 | BU51: 0.001102130786 | BV51: 0.002204261572 | BW51: 0.0007347538575 | BX51: 0.002571638501 | BY51: 0.0007347538575 | BZ51: 0.0007347538575 | CA51: 0.001469507715 | CB51: 0.001102130786 | CC51: 0.001469507715 | CD51: 0.0007347538575 | CE51: 0.0003673769287 | CF51: 0.001102130786 | CG51: 0.001102130786 | CH51: 0.001102130786 | CI51: 0.0003673769287 | CJ51: 0.001102130786 | CK51: 0.0007347538575 | CL51: 0.001102130786 | CM51: 0.001469507715 | CN51: 0.0007347538575 | CO51: 0.0007347538575 | CP51: 0.0007347538575 | CQ51: 0.0007347538575 | CR51: 0 | CS51: 0.0003673769287 | CT51: 0.001102130786 | CU51: 0 | CV51: 0.0007347538575 | CW51: 0 | CX51: 0 | CY51: 0.002204261572
B52: 0.43 | C52: 0 | D52: 0 | E52: 0 | F52: 0 | G52: 0 | H52: 0 | I52: 0 | J52: 0 | K52: 0 | L52: 0 | M52: 0 | N52: 0 | O52: 0 | P52: 0 | Q52: 0 | R52: 0 | S52: 0 | T52: 0 | U52: 0 | V52: 0 | W52: 0.0003946329913 | X52: 0 | Y52: 0.0003946329913 | Z52: 0.0007892659826 | AA52: 0.001183898974 | AB52: 0.0007892659826 | AC52: 0.0003946329913 | AD52: 0 | AE52: 0.001183898974 | AF52: 0.003157063931 | AG52: 0.002762430939 | AH52: 0.003551696922 | AI52: 0.003946329913 | AJ52: 0.004340962904 | AK52: 0.008681925809 | AL52: 0.007892659826 | AM52: 0.01499605367 | AN52: 0.01420678769 | AO52: 0.03433307024 | AP52: 0.04735595896 | AQ52: 0.08050513023 | AR52: 0.1487766377 | AS52: 0.1902131018 | AT52: 0.1298342541 | AU52: 0.07300710339 | AV52: 0.04498816101 | AW52: 0.03117600631 | AX52: 0.02328334649 | AY52: 0.01262825572 | AZ52: 0.01065509077 | BA52: 0.01104972376 | BB52: 0.005130228887 | BC52: 0.006314127861 | BD52: 0.006314127861 | BE52: 0.005130228887 | BF52: 0.004340962904 | BG52: 0.005130228887 | BH52: 0.004340962904 | BI52: 0.003551696922 | BJ52: 0.002762430939 | BK52: 0.004735595896 | BL52: 0.002367797948 | BM52: 0.001578531965 | BN52: 0.001973164957 | BO52: 0.0007892659826 | BP52: 0.001578531965 | BQ52: 0.0007892659826 | BR52: 0.001973164957 | BS52: 0.002762430939 | BT52: 0.001183898974 | BU52: 0.001183898974 | BV52: 0.001578531965 | BW52: 0.001578531965 | BX52: 0.0007892659826 | BY52: 0.0007892659826 | BZ52: 0.001183898974 | CA52: 0.001183898974 | CB52: 0.001973164957 | CC52: 0.001183898974 | CD52: 0.0007892659826 | CE52: 0.0007892659826 | CF52: 0.001973164957 | CG52: 0.002367797948 | CH52: 0.0003946329913 | CI52: 0.0007892659826 | CJ52: 0.0003946329913 | CK52: 0.0007892659826 | CL52: 0 | CM52: 0.001973164957 | CN52: 0 | CO52: 0.001578531965 | CP52: 0.001973164957 | CQ52: 0 | CR52: 0.0007892659826 | CS52: 0.001578531965 | CT52: 0.0003946329913 | CU52: 0.0007892659826 | CV52: 0 | CW52: 0 | CX52: 0.001183898974 | CY52: 0.0007892659826
B53: 0.44 | C53: 0 | D53: 0 | E53: 0 | F53: 0 | G53: 0 | H53: 0 | I53: 0 | J53: 0 | K53: 0 | L53: 0 | M53: 0 | N53: 0 | O53: 0 | P53: 0 | Q53: 0 | R53: 0.0004122011542 | S53: 0.0004122011542 | T53: 0 | U53: 0 | V53: 0 | W53: 0.0004122011542 | X53: 0.0004122011542 | Y53: 0.0004122011542 | Z53: 0.0004122011542 | AA53: 0.0004122011542 | AB53: 0.0004122011542 | AC53: 0.001236603462 | AD53: 0.001236603462 | AE53: 0.0004122011542 | AF53: 0.0004122011542 | AG53: 0.002061005771 | AH53: 0.004122011542 | AI53: 0.00494641385 | AJ53: 0.004534212696 | AK53: 0.005358615004 | AL53: 0.007007419621 | AM53: 0.007007419621 | AN53: 0.01607584501 | AO53: 0.02019785655 | AP53: 0.03833470734 | AQ53: 0.05317394889 | AR53: 0.08491343776 | AS53: 0.1405605936 | AT53: 0.1677658697 | AU53: 0.1261335532 | AV53: 0.06966199505 | AW53: 0.04863973619 | AX53: 0.03297609233 | AY53: 0.01896125309 | AZ53: 0.01483924155 | BA53: 0.01277823578 | BB53: 0.008656224237 | BC53: 0.01236603462 | BD53: 0.004122011542 | BE53: 0.005770816158 | BF53: 0.005770816158 | BG53: 0.004534212696 | BH53: 0.005770816158 | BI53: 0.001236603462 | BJ53: 0.002473206925 | BK53: 0.002885408079 | BL53: 0.002885408079 | BM53: 0.005358615004 | BN53: 0.002885408079 | BO53: 0.004122011542 | BP53: 0.002061005771 | BQ53: 0.005770816158 | BR53: 0.001648804617 | BS53: 0.001236603462 | BT53: 0.002473206925 | BU53: 0.001236603462 | BV53: 0.002061005771 | BW53: 0.0008244023083 | BX53: 0.002061005771 | BY53: 0.0004122011542 | BZ53: 0.0004122011542 | CA53: 0.001236603462 | CB53: 0.001236603462 | CC53: 0 | CD53: 0.0008244023083 | CE53: 0.002473206925 | CF53: 0.0008244023083 | CG53: 0.0008244023083 | CH53: 0.002885408079 | CI53: 0.0008244023083 | CJ53: 0.0004122011542 | CK53: 0.001236603462 | CL53: 0.0004122011542 | CM53: 0.0008244023083 | CN53: 0.0008244023083 | CO53: 0.002061005771 | CP53: 0.001648804617 | CQ53: 0.0008244023083 | CR53: 0.0004122011542 | CS53: 0.0004122011542 | CT53: 0.001236603462 | CU53: 0 | CV53: 0.0004122011542 | CW53: 0.0004122011542 | CX53: 0.0004122011542 | CY53: 0.001648804617
B54: 0.45 | C54: 0 | D54: 0 | E54: 0 | F54: 0 | G54: 0 | H54: 0 | I54: 0 | J54: 0 | K54: 0 | L54: 0 | M54: 0 | N54: 0 | O54: 0 | P54: 0 | Q54: 0 | R54: 0 | S54: 0 | T54: 0 | U54: 0.000425170068 | V54: 0 | W54: 0.000425170068 | X54: 0.0008503401361 | Y54: 0.001275510204 | Z54: 0 | AA54: 0.002551020408 | AB54: 0 | AC54: 0.001275510204 | AD54: 0.00212585034 | AE54: 0.002976190476 | AF54: 0.00212585034 | AG54: 0.00425170068 | AH54: 0.005952380952 | AI54: 0.002551020408 | AJ54: 0.00425170068 | AK54: 0.005527210884 | AL54: 0.00637755102 | AM54: 0.008503401361 | AN54: 0.0106292517 | AO54: 0.01403061224 | AP54: 0.02210884354 | AQ54: 0.02933673469 | AR54: 0.04846938776 | AS54: 0.0837585034 | AT54: 0.1288265306 | AU54: 0.174744898 | AV54: 0.1305272109 | AW54: 0.06717687075 | AX54: 0.04421768707 | AY54: 0.03018707483 | AZ54: 0.02253401361 | BA54: 0.01530612245 | BB54: 0.01020408163 | BC54: 0.01020408163 | BD54: 0.007653061224 | BE54: 0.006802721088 | BF54: 0.004676870748 | BG54: 0.003401360544 | BH54: 0.00425170068 | BI54: 0.004676870748 | BJ54: 0.002551020408 | BK54: 0.003826530612 | BL54: 0.002976190476 | BM54: 0.002551020408 | BN54: 0.00212585034 | BO54: 0.00425170068 | BP54: 0.00425170068 | BQ54: 0.003401360544 | BR54: 0.000425170068 | BS54: 0.003826530612 | BT54: 0.00212585034 | BU54: 0.00212585034 | BV54: 0.001700680272 | BW54: 0.001700680272 | BX54: 0.001700680272 | BY54: 0.002976190476 | BZ54: 0.00212585034 | CA54: 0.001275510204 | CB54: 0.001275510204 | CC54: 0.002976190476 | CD54: 0.001700680272 | CE54: 0.002551020408 | CF54: 0.00212585034 | CG54: 0.0008503401361 | CH54: 0.000425170068 | CI54: 0 | CJ54: 0.0008503401361 | CK54: 0.001275510204 | CL54: 0.002976190476 | CM54: 0 | CN54: 0.00212585034 | CO54: 0.001275510204 | CP54: 0.0008503401361 | CQ54: 0.001700680272 | CR54: 0.001700680272 | CS54: 0.000425170068 | CT54: 0.000425170068 | CU54: 0.001275510204 | CV54: 0.000425170068 | CW54: 0.000425170068 | CX54: 0 | CY54: 0.001275510204
B55: 0.46 | C55: 0 | D55: 0 | E55: 0 | F55: 0 | G55: 0 | H55: 0 | I55: 0 | J55: 0 | K55: 0 | L55: 0 | M55: 0 | N55: 0 | O55: 0 | P55: 0 | Q55: 0 | R55: 0 | S55: 0 | T55: 0 | U55: 0 | V55: 0 | W55: 0 | X55: 0 | Y55: 0 | Z55: 0.0004387889425 | AA55: 0 | AB55: 0.0004387889425 | AC55: 0.000877577885 | AD55: 0.0004387889425 | AE55: 0.002193944713 | AF55: 0.001316366828 | AG55: 0.00351031154 | AH55: 0.000877577885 | AI55: 0.002632733655 | AJ55: 0.003949100483 | AK55: 0.003949100483 | AL55: 0.004826678368 | AM55: 0.004387889425 | AN55: 0.01009214568 | AO55: 0.01228609039 | AP55: 0.01579640193 | AQ55: 0.02588854761 | AR55: 0.03949100483 | AS55: 0.04080737165 | AT55: 0.0908293111 | AU55: 0.1281263712 | AV55: 0.1645458534 | AW55: 0.1215445371 | AX55: 0.07283896446 | AY55: 0.04344010531 | AZ55: 0.03378674857 | BA55: 0.01886792453 | BB55: 0.01842913559 | BC55: 0.01360245722 | BD55: 0.01228609039 | BE55: 0.007459412023 | BF55: 0.006143045195 | BG55: 0.006143045195 | BH55: 0.00526546731 | BI55: 0.00702062308 | BJ55: 0.004826678368 | BK55: 0.004826678368 | BL55: 0.002632733655 | BM55: 0.00351031154 | BN55: 0.002632733655 | BO55: 0.003949100483 | BP55: 0.003071522598 | BQ55: 0.003949100483 | BR55: 0.002193944713 | BS55: 0.002193944713 | BT55: 0.002193944713 | BU55: 0.00351031154 | BV55: 0.002632733655 | BW55: 0.002193944713 | BX55: 0.001316366828 | BY55: 0.00175515577 | BZ55: 0.001316366828 | CA55: 0.0004387889425 | CB55: 0.001316366828 | CC55: 0.002193944713 | CD55: 0 | CE55: 0.000877577885 | CF55: 0.000877577885 | CG55: 0.00175515577 | CH55: 0.001316366828 | CI55: 0.001316366828 | CJ55: 0.00175515577 | CK55: 0.00175515577 | CL55: 0.000877577885 | CM55: 0.001316366828 | CN55: 0.000877577885 | CO55: 0.002193944713 | CP55: 0.000877577885 | CQ55: 0.001316366828 | CR55: 0.0004387889425 | CS55: 0.000877577885 | CT55: 0.000877577885 | CU55: 0.0004387889425 | CV55: 0 | CW55: 0 | CX55: 0 | CY55: 0.003071522598
B56: 0.47 | C56: 0 | D56: 0 | E56: 0 | F56: 0 | G56: 0 | H56: 0 | I56: 0 | J56: 0 | K56: 0 | L56: 0 | M56: 0 | N56: 0 | O56: 0 | P56: 0 | Q56: 0 | R56: 0.000447828034 | S56: 0 | T56: 0 | U56: 0 | V56: 0 | W56: 0 | X56: 0 | Y56: 0 | Z56: 0 | AA56: 0.000447828034 | AB56: 0.0008956560681 | AC56: 0.001343484102 | AD56: 0.0008956560681 | AE56: 0.003582624272 | AF56: 0.001791312136 | AG56: 0.00223914017 | AH56: 0.002686968204 | AI56: 0.001791312136 | AJ56: 0.003134796238 | AK56: 0.005821764442 | AL56: 0.006269592476 | AM56: 0.004926108374 | AN56: 0.008060904613 | AO56: 0.01253918495 | AP56: 0.01209135692 | AQ56: 0.0183609494 | AR56: 0.03134796238 | AS56: 0.02955665025 | AT56: 0.05060456785 | AU56: 0.07747424989 | AV56: 0.1236005374 | AW56: 0.1639050605 | AX56: 0.1168831169 | AY56: 0.06986117331 | AZ56: 0.04657411554 | BA56: 0.02910882221 | BB56: 0.0237348858 | BC56: 0.01388266906 | BD56: 0.01253918495 | BE56: 0.008508732647 | BF56: 0.007165248545 | BG56: 0.01209135692 | BH56: 0.005373936408 | BI56: 0.003582624272 | BJ56: 0.004030452306 | BK56: 0.00223914017 | BL56: 0.004926108374 | BM56: 0.00447828034 | BN56: 0.00447828034 | BO56: 0.00447828034 | BP56: 0.0008956560681 | BQ56: 0.001791312136 | BR56: 0.004030452306 | BS56: 0.00223914017 | BT56: 0.001343484102 | BU56: 0.00447828034 | BV56: 0.00223914017 | BW56: 0.001343484102 | BX56: 0.001791312136 | BY56: 0.002686968204 | BZ56: 0.001343484102 | CA56: 0.003582624272 | CB56: 0.002686968204 | CC56: 0.001791312136 | CD56: 0.002686968204 | CE56: 0.001343484102 | CF56: 0.0008956560681 | CG56: 0.001343484102 | CH56: 0.001791312136 | CI56: 0.001791312136 | CJ56: 0.00223914017 | CK56: 0.001343484102 | CL56: 0.001343484102 | CM56: 0.001791312136 | CN56: 0.00223914017 | CO56: 0.001343484102 | CP56: 0.000447828034 | CQ56: 0 | CR56: 0.0008956560681 | CS56: 0.0008956560681 | CT56: 0.000447828034 | CU56: 0.000447828034 | CV56: 0.001343484102 | CW56: 0 | CX56: 0.000447828034 | CY56: 0.004926108374
B57: 0.48 | C57: 0 | D57: 0 | E57: 0 | F57: 0 | G57: 0 | H57: 0 | I57: 0 | J57: 0 | K57: 0 | L57: 0 | M57: 0 | N57: 0 | O57: 0 | P57: 0 | Q57: 0 | R57: 0 | S57: 0 | T57: 0 | U57: 0 | V57: 0 | W57: 0 | X57: 0 | Y57: 0.0009285051068 | Z57: 0.0004642525534 | AA57: 0.0009285051068 | AB57: 0.0009285051068 | AC57: 0.0009285051068 | AD57: 0.001857010214 | AE57: 0.002321262767 | AF57: 0.001857010214 | AG57: 0.001857010214 | AH57: 0.0009285051068 | AI57: 0.002321262767 | AJ57: 0.003714020427 | AK57: 0.006035283194 | AL57: 0.006035283194 | AM57: 0.005571030641 | AN57: 0.008820798514 | AO57: 0.009749303621 | AP57: 0.009749303621 | AQ57: 0.01299907149 | AR57: 0.01439182916 | AS57: 0.02460538533 | AT57: 0.04131847725 | AU57: 0.04410399257 | AV57: 0.08727948004 | AW57: 0.1183844011 | AX57: 0.1425255339 | AY57: 0.1220984215 | AZ57: 0.07195914578 | BA57: 0.04317548747 | BB57: 0.03853296193 | BC57: 0.02181987001 | BD57: 0.01299907149 | BE57: 0.01346332405 | BF57: 0.008820798514 | BG57: 0.008356545961 | BH57: 0.01114206128 | BI57: 0.004178272981 | BJ57: 0.004178272981 | BK57: 0.004178272981 | BL57: 0.003714020427 | BM57: 0.004642525534 | BN57: 0.005571030641 | BO57: 0.00278551532 | BP57: 0.001857010214 | BQ57: 0.002321262767 | BR57: 0.004178272981 | BS57: 0.00278551532 | BT57: 0.003249767874 | BU57: 0.002321262767 | BV57: 0.00139275766 | BW57: 0.0009285051068 | BX57: 0.001857010214 | BY57: 0.003714020427 | BZ57: 0.002321262767 | CA57: 0.00278551532 | CB57: 0.001857010214 | CC57: 0.003714020427 | CD57: 0.002321262767 | CE57: 0 | CF57: 0.002321262767 | CG57: 0.001857010214 | CH57: 0.00139275766 | CI57: 0 | CJ57: 0.003249767874 | CK57: 0.0004642525534 | CL57: 0.002321262767 | CM57: 0.0009285051068 | CN57: 0.001857010214 | CO57: 0.003714020427 | CP57: 0.001857010214 | CQ57: 0.0004642525534 | CR57: 0 | CS57: 0.001857010214 | CT57: 0.0004642525534 | CU57: 0.0004642525534 | CV57: 0.0004642525534 | CW57: 0 | CX57: 0.0004642525534 | CY57: 0.006035283194
B58: 0.49 | C58: 0 | D58: 0 | E58: 0 | F58: 0 | G58: 0 | H58: 0 | I58: 0 | J58: 0 | K58: 0 | L58: 0 | M58: 0 | N58: 0 | O58: 0 | P58: 0 | Q58: 0 | R58: 0 | S58: 0 | T58: 0 | U58: 0.0009389671362 | V58: 0.0004694835681 | W58: 0.0009389671362 | X58: 0 | Y58: 0 | Z58: 0.001408450704 | AA58: 0.0004694835681 | AB58: 0.001408450704 | AC58: 0.0004694835681 | AD58: 0.001408450704 | AE58: 0.001877934272 | AF58: 0.0009389671362 | AG58: 0.0004694835681 | AH58: 0.00234741784 | AI58: 0.001877934272 | AJ58: 0.00234741784 | AK58: 0.004694835681 | AL58: 0.003755868545 | AM58: 0.005164319249 | AN58: 0.004225352113 | AO58: 0.006572769953 | AP58: 0.008920187793 | AQ58: 0.00985915493 | AR58: 0.01079812207 | AS58: 0.01643192488 | AT58: 0.02300469484 | AU58: 0.03802816901 | AV58: 0.04507042254 | AW58: 0.07981220657 | AX58: 0.1291079812 | AY58: 0.1643192488 | AZ58: 0.1169014085 | BA58: 0.07558685446 | BB58: 0.03708920188 | BC58: 0.03145539906 | BD58: 0.02112676056 | BE58: 0.01596244131 | BF58: 0.01220657277 | BG58: 0.00985915493 | BH58: 0.006572769953 | BI58: 0.007981220657 | BJ58: 0.006103286385 | BK58: 0.003286384977 | BL58: 0.005164319249 | BM58: 0.007981220657 | BN58: 0.003755868545 | BO58: 0.005164319249 | BP58: 0.003286384977 | BQ58: 0.002816901408 | BR58: 0.002816901408 | BS58: 0.00234741784 | BT58: 0.00234741784 | BU58: 0.00234741784 | BV58: 0.003286384977 | BW58: 0.00234741784 | BX58: 0.001877934272 | BY58: 0.00234741784 | BZ58: 0.001877934272 | CA58: 0.001408450704 | CB58: 0.002816901408 | CC58: 0.001877934272 | CD58: 0.003755868545 | CE58: 0.002816901408 | CF58: 0.0009389671362 | CG58: 0.003755868545 | CH58: 0.0004694835681 | CI58: 0.002816901408 | CJ58: 0.001408450704 | CK58: 0.0009389671362 | CL58: 0.00234741784 | CM58: 0.0009389671362 | CN58: 0.0004694835681 | CO58: 0 | CP58: 0.001408450704 | CQ58: 0.0009389671362 | CR58: 0.0009389671362 | CS58: 0.0004694835681 | CT58: 0.0004694835681 | CU58: 0.0004694835681 | CV58: 0.001408450704 | CW58: 0 | CX58: 0.0004694835681 | CY58: 0.005633802817
B59: 0.5 | C59: 0 | D59: 0 | E59: 0 | F59: 0 | G59: 0 | H59: 0 | I59: 0 | J59: 0 | K59: 0 | L59: 0 | M59: 0 | N59: 0 | O59: 0 | P59: 0 | Q59: 0 | R59: 0 | S59: 0 | T59: 0 | U59: 0 | V59: 0 | W59: 0.0004901960784 | X59: 0.0004901960784 | Y59: 0.0004901960784 | Z59: 0.0004901960784 | AA59: 0.001470588235 | AB59: 0 | AC59: 0.0009803921569 | AD59: 0.0004901960784 | AE59: 0.0009803921569 | AF59: 0.001470588235 | AG59: 0 | AH59: 0.001470588235 | AI59: 0.001960784314 | AJ59: 0.002941176471 | AK59: 0.003431372549 | AL59: 0.002450980392 | AM59: 0.005392156863 | AN59: 0.00637254902 | AO59: 0.005882352941 | AP59: 0.007352941176 | AQ59: 0.009803921569 | AR59: 0.01225490196 | AS59: 0.01519607843 | AT59: 0.01519607843 | AU59: 0.02549019608 | AV59: 0.02696078431 | AW59: 0.04803921569 | AX59: 0.07352941176 | AY59: 0.1220588235 | AZ59: 0.1416666667 | BA59: 0.118627451 | BB59: 0.06421568627 | BC59: 0.04215686275 | BD59: 0.03382352941 | BE59: 0.02598039216 | BF59: 0.01960784314 | BG59: 0.01764705882 | BH59: 0.01274509804 | BI59: 0.007843137255 | BJ59: 0.01225490196 | BK59: 0.01323529412 | BL59: 0.005882352941 | BM59: 0.001960784314 | BN59: 0.005882352941 | BO59: 0.002450980392 | BP59: 0.001960784314 | BQ59: 0.004411764706 | BR59: 0.002941176471 | BS59: 0.004411764706 | BT59: 0.004411764706 | BU59: 0.002450980392 | BV59: 0.003431372549 | BW59: 0.003431372549 | BX59: 0.003431372549 | BY59: 0.002941176471 | BZ59: 0.002941176471 | CA59: 0.001470588235 | CB59: 0.001470588235 | CC59: 0.002450980392 | CD59: 0.002941176471 | CE59: 0.001960784314 | CF59: 0.003431372549 | CG59: 0.002450980392 | CH59: 0.0009803921569 | CI59: 0.005392156863 | CJ59: 0.001470588235 | CK59: 0.001960784314 | CL59: 0.001960784314 | CM59: 0.001470588235 | CN59: 0.001960784314 | CO59: 0.001470588235 | CP59: 0.001470588235 | CQ59: 0 | CR59: 0.0009803921569 | CS59: 0.0004901960784 | CT59: 0.0009803921569 | CU59: 0.0004901960784 | CV59: 0.0009803921569 | CW59: 0 | CX59: 0.0004901960784 | CY59: 0.005392156863
B60: 0.51 | C60: 0 | D60: 0 | E60: 0 | F60: 0 | G60: 0 | H60: 0 | I60: 0 | J60: 0 | K60: 0 | L60: 0 | M60: 0 | N60: 0 | O60: 0 | P60: 0 | Q60: 0 | R60: 0 | S60: 0 | T60: 0 | U60: 0 | V60: 0 | W60: 0 | X60: 0 | Y60: 0.001011122346 | Z60: 0.001011122346 | AA60: 0.001011122346 | AB60: 0 | AC60: 0.0005055611729 | AD60: 0.00353892821 | AE60: 0.002022244692 | AF60: 0.0005055611729 | AG60: 0.001011122346 | AH60: 0.003033367037 | AI60: 0.002022244692 | AJ60: 0.005055611729 | AK60: 0.001011122346 | AL60: 0.001011122346 | AM60: 0.004044489383 | AN60: 0.003033367037 | AO60: 0.005055611729 | AP60: 0.005561172902 | AQ60: 0.004044489383 | AR60: 0.009605662285 | AS60: 0.009605662285 | AT60: 0.0111223458 | AU60: 0.02173913043 | AV60: 0.02072800809 | AW60: 0.03943377149 | AX60: 0.0540950455 | AY60: 0.08341759353 | AZ60: 0.1233569262 | BA60: 0.1450960566 | BB60: 0.111223458 | BC60: 0.05561172902 | BD60: 0.03993933266 | BE60: 0.02831142568 | BF60: 0.01921132457 | BG60: 0.01921132457 | BH60: 0.01263902932 | BI60: 0.01718907988 | BJ60: 0.008594539939 | BK60: 0.009100101112 | BL60: 0.007077856421 | BM60: 0.004550050556 | BN60: 0.006066734075 | BO60: 0.004550050556 | BP60: 0.005561172902 | BQ60: 0.004550050556 | BR60: 0.007077856421 | BS60: 0.004550050556 | BT60: 0.002527805865 | BU60: 0.002527805865 | BV60: 0.001516683519 | BW60: 0.00353892821 | BX60: 0.001516683519 | BY60: 0.004550050556 | BZ60: 0.003033367037 | CA60: 0.002527805865 | CB60: 0.004044489383 | CC60: 0.001011122346 | CD60: 0.005055611729 | CE60: 0.003033367037 | CF60: 0.001516683519 | CG60: 0.0005055611729 | CH60: 0.002527805865 | CI60: 0.002527805865 | CJ60: 0.00353892821 | CK60: 0.002527805865 | CL60: 0.003033367037 | CM60: 0 | CN60: 0.00353892821 | CO60: 0.002022244692 | CP60: 0.0005055611729 | CQ60: 0.001011122346 | CR60: 0.0005055611729 | CS60: 0.001516683519 | CT60: 0.001516683519 | CU60: 0.001011122346 | CV60: 0.001516683519 | CW60: 0.001011122346 | CX60: 0.0005055611729 | CY60: 0.006572295248
B61: 0.52 | C61: 0 | D61: 0 | E61: 0 | F61: 0 | G61: 0 | H61: 0 | I61: 0 | J61: 0 | K61: 0 | L61: 0 | M61: 0 | N61: 0 | O61: 0 | P61: 0 | Q61: 0 | R61: 0 | S61: 0 | T61: 0 | U61: 0.0005138746146 | V61: 0 | W61: 0.0005138746146 | X61: 0 | Y61: 0.0005138746146 | Z61: 0.001541623844 | AA61: 0.001541623844 | AB61: 0.001541623844 | AC61: 0.0005138746146 | AD61: 0.002055498458 | AE61: 0.002055498458 | AF61: 0.002055498458 | AG61: 0.001027749229 | AH61: 0.001027749229 | AI61: 0.001541623844 | AJ61: 0.002055498458 | AK61: 0.001541623844 | AL61: 0.003597122302 | AM61: 0.004624871531 | AN61: 0.003597122302 | AO61: 0.006166495375 | AP61: 0.007708119219 | AQ61: 0.007708119219 | AR61: 0.00668036999 | AS61: 0.01079136691 | AT61: 0.01027749229 | AU61: 0.01336073998 | AV61: 0.02004110997 | AW61: 0.0282631038 | AX61: 0.03648509764 | AY61: 0.04779033916 | AZ61: 0.06628982528 | BA61: 0.1007194245 | BB61: 0.1587872559 | BC61: 0.1166495375 | BD61: 0.06166495375 | BE61: 0.0457348407 | BF61: 0.03031860226 | BG61: 0.03031860226 | BH61: 0.01490236382 | BI61: 0.01233299075 | BJ61: 0.007708119219 | BK61: 0.01079136691 | BL61: 0.007708119219 | BM61: 0.01027749229 | BN61: 0.005652620761 | BO61: 0.004110996917 | BP61: 0.005138746146 | BQ61: 0.005138746146 | BR61: 0.003083247688 | BS61: 0.004110996917 | BT61: 0.004110996917 | BU61: 0.002055498458 | BV61: 0.004110996917 | BW61: 0.003083247688 | BX61: 0.002055498458 | BY61: 0.002569373073 | BZ61: 0.003597122302 | CA61: 0.004110996917 | CB61: 0.005138746146 | CC61: 0.004110996917 | CD61: 0.0005138746146 | CE61: 0.002569373073 | CF61: 0.001027749229 | CG61: 0.002569373073 | CH61: 0.001027749229 | CI61: 0.002055498458 | CJ61: 0.002569373073 | CK61: 0.003083247688 | CL61: 0.002055498458 | CM61: 0.002055498458 | CN61: 0.001541623844 | CO61: 0.001541623844 | CP61: 0.002055498458 | CQ61: 0 | CR61: 0.001027749229 | CS61: 0 | CT61: 0.001027749229 | CU61: 0.001541623844 | CV61: 0.001027749229 | CW61: 0.001027749229 | CX61: 0.001541623844 | CY61: 0.004624871531
B62: 0.53 | C62: 0 | D62: 0 | E62: 0 | F62: 0 | G62: 0 | H62: 0 | I62: 0 | J62: 0 | K62: 0 | L62: 0 | M62: 0 | N62: 0 | O62: 0 | P62: 0 | Q62: 0 | R62: 0 | S62: 0 | T62: 0 | U62: 0 | V62: 0 | W62: 0 | X62: 0 | Y62: 0.0005408328826 | Z62: 0 | AA62: 0.0005408328826 | AB62: 0.001622498648 | AC62: 0 | AD62: 0.0005408328826 | AE62: 0.002163331531 | AF62: 0.002163331531 | AG62: 0.002704164413 | AH62: 0.001622498648 | AI62: 0.002704164413 | AJ62: 0.005408328826 | AK62: 0.002704164413 | AL62: 0.003785830178 | AM62: 0.004326663061 | AN62: 0.005408328826 | AO62: 0.004326663061 | AP62: 0.004326663061 | AQ62: 0.007571660357 | AR62: 0.00811249324 | AS62: 0.007571660357 | AT62: 0.009194159005 | AU62: 0.01460248783 | AV62: 0.01892915089 | AW62: 0.02055164954 | AX62: 0.02433747972 | AY62: 0.03407247161 | AZ62: 0.04488912926 | BA62: 0.06976744186 | BB62: 0.1065440779 | BC62: 0.1595457004 | BD62: 0.1016765819 | BE62: 0.05137912385 | BF62: 0.05137912385 | BG62: 0.02595997837 | BH62: 0.02325581395 | BI62: 0.02650081125 | BJ62: 0.01622498648 | BK62: 0.01189832342 | BL62: 0.005408328826 | BM62: 0.00811249324 | BN62: 0.01027582477 | BO62: 0.008653326122 | BP62: 0.007030827474 | BQ62: 0.003785830178 | BR62: 0.003244997296 | BS62: 0.003244997296 | BT62: 0.002704164413 | BU62: 0.002163331531 | BV62: 0.002704164413 | BW62: 0.004326663061 | BX62: 0.003244997296 | BY62: 0.002704164413 | BZ62: 0.005408328826 | CA62: 0.004867495944 | CB62: 0.002704164413 | CC62: 0.003785830178 | CD62: 0.002163331531 | CE62: 0.001622498648 | CF62: 0.002704164413 | CG62: 0.002704164413 | CH62: 0.004326663061 | CI62: 0.002704164413 | CJ62: 0.002163331531 | CK62: 0.002163331531 | CL62: 0.001622498648 | CM62: 0.001081665765 | CN62: 0.001622498648 | CO62: 0.002163331531 | CP62: 0.001622498648 | CQ62: 0 | CR62: 0.0005408328826 | CS62: 0 | CT62: 0.0005408328826 | CU62: 0.001081665765 | CV62: 0.0005408328826 | CW62: 0.001081665765 | CX62: 0.0005408328826 | CY62: 0.003785830178
B63: 0.54 | C63: 0 | D63: 0 | E63: 0 | F63: 0 | G63: 0 | H63: 0 | I63: 0 | J63: 0 | K63: 0 | L63: 0 | M63: 0 | N63: 0 | O63: 0 | P63: 0 | Q63: 0 | R63: 0 | S63: 0 | T63: 0 | U63: 0.000566893424 | V63: 0.000566893424 | W63: 0 | X63: 0.001133786848 | Y63: 0 | Z63: 0.000566893424 | AA63: 0.000566893424 | AB63: 0.001700680272 | AC63: 0.001133786848 | AD63: 0.001133786848 | AE63: 0 | AF63: 0 | AG63: 0.003401360544 | AH63: 0.002267573696 | AI63: 0.003401360544 | AJ63: 0.00283446712 | AK63: 0.002267573696 | AL63: 0.006802721088 | AM63: 0.00283446712 | AN63: 0.003968253968 | AO63: 0.003401360544 | AP63: 0.007369614512 | AQ63: 0.003968253968 | AR63: 0.007936507937 | AS63: 0.006802721088 | AT63: 0.007936507937 | AU63: 0.01020408163 | AV63: 0.01700680272 | AW63: 0.01303854875 | AX63: 0.02154195011 | AY63: 0.01814058957 | AZ63: 0.03571428571 | BA63: 0.0589569161 | BB63: 0.07369614512 | BC63: 0.09580498866 | BD63: 0.1224489796 | BE63: 0.09750566893 | BF63: 0.06916099773 | BG63: 0.03854875283 | BH63: 0.03004535147 | BI63: 0.02607709751 | BJ63: 0.02154195011 | BK63: 0.02040816327 | BL63: 0.0141723356 | BM63: 0.006235827664 | BN63: 0.01247165533 | BO63: 0.006235827664 | BP63: 0.003968253968 | BQ63: 0.005102040816 | BR63: 0.007369614512 | BS63: 0.007369614512 | BT63: 0.004535147392 | BU63: 0.006802721088 | BV63: 0.005102040816 | BW63: 0.003401360544 | BX63: 0.003968253968 | BY63: 0.002267573696 | BZ63: 0.00283446712 | CA63: 0.003401360544 | CB63: 0.002267573696 | CC63: 0.003968253968 | CD63: 0.001700680272 | CE63: 0.003968253968 | CF63: 0.002267573696 | CG63: 0.003401360544 | CH63: 0.002267573696 | CI63: 0.002267573696 | CJ63: 0.004535147392 | CK63: 0.002267573696 | CL63: 0.003401360544 | CM63: 0.004535147392 | CN63: 0.002267573696 | CO63: 0.001700680272 | CP63: 0.001700680272 | CQ63: 0.003968253968 | CR63: 0.00283446712 | CS63: 0.001700680272 | CT63: 0.001133786848 | CU63: 0.002267573696 | CV63: 0.001700680272 | CW63: 0 | CX63: 0.001133786848 | CY63: 0.005102040816
B64: 0.55 | C64: 0 | D64: 0 | E64: 0 | F64: 0 | G64: 0 | H64: 0 | I64: 0 | J64: 0 | K64: 0 | L64: 0 | M64: 0 | N64: 0 | O64: 0 | P64: 0 | Q64: 0 | R64: 0 | S64: 0 | T64: 0 | U64: 0 | V64: 0 | W64: 0 | X64: 0 | Y64: 0.001784651993 | Z64: 0.001784651993 | AA64: 0 | AB64: 0 | AC64: 0.001189767995 | AD64: 0.001189767995 | AE64: 0.001189767995 | AF64: 0.00237953599 | AG64: 0.0005948839976 | AH64: 0.002974419988 | AI64: 0.001784651993 | AJ64: 0.001189767995 | AK64: 0.00237953599 | AL64: 0.00237953599 | AM64: 0.002974419988 | AN64: 0.004164187983 | AO64: 0.00237953599 | AP64: 0.005353955979 | AQ64: 0.005353955979 | AR64: 0.005353955979 | AS64: 0.007138607971 | AT64: 0.005353955979 | AU64: 0.008328375967 | AV64: 0.009518143962 | AW64: 0.01546698394 | AX64: 0.01427721594 | AY64: 0.0237953599 | AZ64: 0.0249851279 | BA64: 0.03926234384 | BB64: 0.05532421178 | BC64: 0.07317073171 | BD64: 0.1011302796 | BE64: 0.1392028554 | BF64: 0.1005353956 | BG64: 0.05770374777 | BH64: 0.04283164783 | BI64: 0.03271861987 | BJ64: 0.02141582391 | BK64: 0.01308744795 | BL64: 0.01249256395 | BM64: 0.01427721594 | BN64: 0.01189767995 | BO64: 0.01070791196 | BP64: 0.007138607971 | BQ64: 0.01011302796 | BR64: 0.004164187983 | BS64: 0.005353955979 | BT64: 0.004759071981 | BU64: 0.001189767995 | BV64: 0.005353955979 | BW64: 0.005948839976 | BX64: 0.006543723974 | BY64: 0.001784651993 | BZ64: 0.005353955979 | CA64: 0.00237953599 | CB64: 0.003569303986 | CC64: 0.003569303986 | CD64: 0.001784651993 | CE64: 0.001784651993 | CF64: 0.002974419988 | CG64: 0.004759071981 | CH64: 0 | CI64: 0.003569303986 | CJ64: 0.002974419988 | CK64: 0.0005948839976 | CL64: 0.00237953599 | CM64: 0.003569303986 | CN64: 0.003569303986 | CO64: 0.002974419988 | CP64: 0.001784651993 | CQ64: 0.002974419988 | CR64: 0.001189767995 | CS64: 0.001784651993 | CT64: 0.0005948839976 | CU64: 0.001784651993 | CV64: 0.001189767995 | CW64: 0.0005948839976 | CX64: 0.001189767995 | CY64: 0.007733491969
B65: 0.56 | C65: 0 | D65: 0 | E65: 0 | F65: 0 | G65: 0 | H65: 0 | I65: 0 | J65: 0 | K65: 0 | L65: 0 | M65: 0 | N65: 0 | O65: 0 | P65: 0 | Q65: 0 | R65: 0 | S65: 0 | T65: 0 | U65: 0 | V65: 0 | W65: 0 | X65: 0 | Y65: 0 | Z65: 0.0006049606776 | AA65: 0 | AB65: 0.0006049606776 | AC65: 0.001209921355 | AD65: 0.0006049606776 | AE65: 0.001814882033 | AF65: 0.001209921355 | AG65: 0.001814882033 | AH65: 0.001209921355 | AI65: 0.0006049606776 | AJ65: 0.004234724743 | AK65: 0.00241984271 | AL65: 0.00241984271 | AM65: 0.00483968542 | AN65: 0.003024803388 | AO65: 0.00483968542 | AP65: 0.006049606776 | AQ65: 0.004234724743 | AR65: 0.007864488808 | AS65: 0.005444646098 | AT65: 0.009679370841 | AU65: 0.009679370841 | AV65: 0.007259528131 | AW65: 0.01149425287 | AX65: 0.01270417423 | AY65: 0.02177858439 | AZ65: 0.02298850575 | BA65: 0.02601330913 | BB65: 0.03206291591 | BC65: 0.05081669691 | BD65: 0.07078039927 | BE65: 0.1010284332 | BF65: 0.1155474894 | BG65: 0.09195402299 | BH65: 0.06352087114 | BI65: 0.04355716878 | BJ65: 0.03206291591 | BK65: 0.01996370236 | BL65: 0.01693889897 | BM65: 0.01996370236 | BN65: 0.01451905626 | BO65: 0.007864488808 | BP65: 0.009074410163 | BQ65: 0.01149425287 | BR65: 0.008469449486 | BS65: 0.005444646098 | BT65: 0.004234724743 | BU65: 0.003024803388 | BV65: 0.006654567453 | BW65: 0.005444646098 | BX65: 0.006049606776 | BY65: 0.003024803388 | BZ65: 0.003024803388 | CA65: 0.003024803388 | CB65: 0.00483968542 | CC65: 0.004234724743 | CD65: 0.00483968542 | CE65: 0.005444646098 | CF65: 0.003629764065 | CG65: 0.004234724743 | CH65: 0.001209921355 | CI65: 0.001209921355 | CJ65: 0.006654567453 | CK65: 0.003024803388 | CL65: 0.004234724743 | CM65: 0.00241984271 | CN65: 0.004234724743 | CO65: 0.00241984271 | CP65: 0.001814882033 | CQ65: 0.00241984271 | CR65: 0.001209921355 | CS65: 0.001209921355 | CT65: 0.003024803388 | CU65: 0.001209921355 | CV65: 0.0006049606776 | CW65: 0.00241984271 | CX65: 0.001814882033 | CY65: 0.005444646098
B66: 0.57 | C66: 0 | D66: 0 | E66: 0 | F66: 0 | G66: 0 | H66: 0 | I66: 0 | J66: 0 | K66: 0 | L66: 0 | M66: 0 | N66: 0 | O66: 0 | P66: 0 | Q66: 0 | R66: 0 | S66: 0 | T66: 0 | U66: 0 | V66: 0 | W66: 0 | X66: 0 | Y66: 0.001261034048 | Z66: 0 | AA66: 0 | AB66: 0.001261034048 | AC66: 0.001261034048 | AD66: 0.001261034048 | AE66: 0.00315258512 | AF66: 0.001891551072 | AG66: 0.000630517024 | AH66: 0.000630517024 | AI66: 0.001891551072 | AJ66: 0.001261034048 | AK66: 0.002522068096 | AL66: 0.001891551072 | AM66: 0.002522068096 | AN66: 0.00315258512 | AO66: 0.004413619168 | AP66: 0.00630517024 | AQ66: 0.01197982346 | AR66: 0.01008827238 | AS66: 0.007566204288 | AT66: 0.00630517024 | AU66: 0.006935687264 | AV66: 0.008196721311 | AW66: 0.01071878941 | AX66: 0.009457755359 | AY66: 0.01387137453 | AZ66: 0.01702395965 | BA66: 0.02269861286 | BB66: 0.02774274905 | BC66: 0.03783102144 | BD66: 0.05107187894 | BE66: 0.06998738966 | BF66: 0.09583858764 | BG66: 0.1027742749 | BH66: 0.08764186633 | BI66: 0.06242118537 | BJ66: 0.04098360656 | BK66: 0.0315258512 | BL66: 0.02332912989 | BM66: 0.02332912989 | BN66: 0.01450189155 | BO66: 0.01197982346 | BP66: 0.01387137453 | BQ66: 0.009457755359 | BR66: 0.007566204288 | BS66: 0.005674653216 | BT66: 0.01071878941 | BU66: 0.007566204288 | BV66: 0.008196721311 | BW66: 0.00630517024 | BX66: 0.008827238335 | BY66: 0.002522068096 | BZ66: 0.005044136192 | CA66: 0.006935687264 | CB66: 0.001261034048 | CC66: 0.005044136192 | CD66: 0.000630517024 | CE66: 0.005044136192 | CF66: 0.001891551072 | CG66: 0.001891551072 | CH66: 0.00315258512 | CI66: 0.002522068096 | CJ66: 0.005674653216 | CK66: 0.000630517024 | CL66: 0.001891551072 | CM66: 0.003783102144 | CN66: 0.002522068096 | CO66: 0.00315258512 | CP66: 0.001891551072 | CQ66: 0.00315258512 | CR66: 0.001891551072 | CS66: 0.002522068096 | CT66: 0.001261034048 | CU66: 0.00315258512 | CV66: 0.001261034048 | CW66: 0.000630517024 | CX66: 0.001261034048 | CY66: 0.01008827238
B67: 0.58 | C67: 0 | D67: 0 | E67: 0 | F67: 0 | G67: 0 | H67: 0 | I67: 0 | J67: 0 | K67: 0 | L67: 0 | M67: 0 | N67: 0 | O67: 0 | P67: 0 | Q67: 0 | R67: 0 | S67: 0 | T67: 0 | U67: 0 | V67: 0 | W67: 0 | X67: 0.000626566416 | Y67: 0.000626566416 | Z67: 0 | AA67: 0 | AB67: 0.001253132832 | AC67: 0.001253132832 | AD67: 0 | AE67: 0.000626566416 | AF67: 0.001879699248 | AG67: 0.002506265664 | AH67: 0.001879699248 | AI67: 0.00313283208 | AJ67: 0.001879699248 | AK67: 0.001879699248 | AL67: 0.00313283208 | AM67: 0.002506265664 | AN67: 0.002506265664 | AO67: 0.001879699248 | AP67: 0.005639097744 | AQ67: 0.00313283208 | AR67: 0.00626566416 | AS67: 0.008145363409 | AT67: 0.007518796992 | AU67: 0.005012531328 | AV67: 0.01378446115 | AW67: 0.009398496241 | AX67: 0.008145363409 | AY67: 0.0119047619 | AZ67: 0.01253132832 | BA67: 0.01253132832 | BB67: 0.02130325815 | BC67: 0.02882205514 | BD67: 0.03320802005 | BE67: 0.0507518797 | BF67: 0.06203007519 | BG67: 0.08959899749 | BH67: 0.1253132832 | BI67: 0.09022556391 | BJ67: 0.05827067669 | BK67: 0.0507518797 | BL67: 0.03070175439 | BM67: 0.02255639098 | BN67: 0.02005012531 | BO67: 0.01817042607 | BP67: 0.01065162907 | BQ67: 0.008771929825 | BR67: 0.01441102757 | BS67: 0.008145363409 | BT67: 0.009398496241 | BU67: 0.008771929825 | BV67: 0.005012531328 | BW67: 0.00626566416 | BX67: 0.003759398496 | BY67: 0.005012531328 | BZ67: 0.005639097744 | CA67: 0.001879699248 | CB67: 0.005639097744 | CC67: 0.004385964912 | CD67: 0.003759398496 | CE67: 0.00313283208 | CF67: 0.00626566416 | CG67: 0.002506265664 | CH67: 0.004385964912 | CI67: 0.004385964912 | CJ67: 0.004385964912 | CK67: 0.001253132832 | CL67: 0.00313283208 | CM67: 0.002506265664 | CN67: 0.000626566416 | CO67: 0.004385964912 | CP67: 0.001253132832 | CQ67: 0.001253132832 | CR67: 0.003759398496 | CS67: 0.001879699248 | CT67: 0 | CU67: 0.001879699248 | CV67: 0 | CW67: 0.002506265664 | CX67: 0.001253132832 | CY67: 0.01441102757
B68: 0.59 | C68: 0 | D68: 0 | E68: 0 | F68: 0 | G68: 0 | H68: 0 | I68: 0 | J68: 0 | K68: 0 | L68: 0 | M68: 0 | N68: 0 | O68: 0 | P68: 0 | Q68: 0 | R68: 0 | S68: 0 | T68: 0 | U68: 0 | V68: 0 | W68: 0 | X68: 0 | Y68: 0 | Z68: 0.001259445844 | AA68: 0 | AB68: 0.0006297229219 | AC68: 0 | AD68: 0.001259445844 | AE68: 0.0006297229219 | AF68: 0.001889168766 | AG68: 0.002518891688 | AH68: 0.001889168766 | AI68: 0.001259445844 | AJ68: 0.0006297229219 | AK68: 0.001889168766 | AL68: 0.00314861461 | AM68: 0.00314861461 | AN68: 0.002518891688 | AO68: 0.005037783375 | AP68: 0.003778337531 | AQ68: 0.004408060453 | AR68: 0.003778337531 | AS68: 0.005667506297 | AT68: 0.003778337531 | AU68: 0.006297229219 | AV68: 0.006926952141 | AW68: 0.008186397985 | AX68: 0.009445843829 | AY68: 0.009445843829 | AZ68: 0.01007556675 | BA68: 0.01133501259 | BB68: 0.02078085642 | BC68: 0.01826196474 | BD68: 0.02644836272 | BE68: 0.04219143577 | BF68: 0.04156171285 | BG68: 0.06801007557 | BH68: 0.1057934509 | BI68: 0.1177581864 | BJ68: 0.08312342569 | BK68: 0.0717884131 | BL68: 0.0459697733 | BM68: 0.02896725441 | BN68: 0.02078085642 | BO68: 0.01826196474 | BP68: 0.01070528967 | BQ68: 0.01007556675 | BR68: 0.01007556675 | BS68: 0.01196473552 | BT68: 0.007556675063 | BU68: 0.006926952141 | BV68: 0.008816120907 | BW68: 0.006926952141 | BX68: 0.006926952141 | BY68: 0.005667506297 | BZ68: 0.005037783375 | CA68: 0.005667506297 | CB68: 0.005667506297 | CC68: 0.0006297229219 | CD68: 0.003778337531 | CE68: 0.005037783375 | CF68: 0.005667506297 | CG68: 0.001889168766 | CH68: 0.004408060453 | CI68: 0.005037783375 | CJ68: 0.00314861461 | CK68: 0.004408060453 | CL68: 0.003778337531 | CM68: 0.00314861461 | CN68: 0.00314861461 | CO68: 0.00314861461 | CP68: 0.001259445844 | CQ68: 0.001259445844 | CR68: 0.00314861461 | CS68: 0.002518891688 | CT68: 0.001259445844 | CU68: 0.0006297229219 | CV68: 0.002518891688 | CW68: 0.003778337531 | CX68: 0.0006297229219 | CY68: 0.01322418136
B69: 0.6 | C69: 0 | D69: 0 | E69: 0 | F69: 0 | G69: 0 | H69: 0 | I69: 0 | J69: 0 | K69: 0 | L69: 0 | M69: 0 | N69: 0 | O69: 0 | P69: 0 | Q69: 0 | R69: 0 | S69: 0 | T69: 0 | U69: 0.0006596306069 | V69: 0 | W69: 0.0006596306069 | X69: 0.0006596306069 | Y69: 0.0006596306069 | Z69: 0 | AA69: 0 | AB69: 0.001319261214 | AC69: 0.001319261214 | AD69: 0.001319261214 | AE69: 0.001319261214 | AF69: 0.001978891821 | AG69: 0.001319261214 | AH69: 0.0006596306069 | AI69: 0.0006596306069 | AJ69: 0.001978891821 | AK69: 0.002638522427 | AL69: 0.001978891821 | AM69: 0.002638522427 | AN69: 0.001978891821 | AO69: 0.004617414248 | AP69: 0.003298153034 | AQ69: 0.004617414248 | AR69: 0.003298153034 | AS69: 0.005936675462 | AT69: 0.005277044855 | AU69: 0.004617414248 | AV69: 0.007915567282 | AW69: 0.004617414248 | AX69: 0.005936675462 | AY69: 0.007255936675 | AZ69: 0.01253298153 | BA69: 0.01187335092 | BB69: 0.01187335092 | BC69: 0.02308707124 | BD69: 0.02308707124 | BE69: 0.02506596306 | BF69: 0.03693931398 | BG69: 0.05145118734 | BH69: 0.06530343008 | BI69: 0.1081794195 | BJ69: 0.09894459103 | BK69: 0.06992084433 | BL69: 0.0580474934 | BM69: 0.0481530343 | BN69: 0.02704485488 | BO69: 0.02308707124 | BP69: 0.01649076517 | BQ69: 0.01517150396 | BR69: 0.01978891821 | BS69: 0.009234828496 | BT69: 0.01649076517 | BU69: 0.01385224274 | BV69: 0.005277044855 | BW69: 0.006596306069 | BX69: 0.007915567282 | BY69: 0.005277044855 | BZ69: 0.003957783641 | CA69: 0.009894459103 | CB69: 0.001319261214 | CC69: 0.003298153034 | CD69: 0.003957783641 | CE69: 0.005277044855 | CF69: 0.005936675462 | CG69: 0.003298153034 | CH69: 0.003298153034 | CI69: 0.005936675462 | CJ69: 0.004617414248 | CK69: 0.002638522427 | CL69: 0.005277044855 | CM69: 0.004617414248 | CN69: 0.003957783641 | CO69: 0.003957783641 | CP69: 0.003957783641 | CQ69: 0.001978891821 | CR69: 0.001978891821 | CS69: 0.001978891821 | CT69: 0.0006596306069 | CU69: 0.003298153034 | CV69: 0 | CW69: 0.001978891821 | CX69: 0.002638522427 | CY69: 0.01846965699
B70: 0.61 | C70: 0 | D70: 0 | E70: 0 | F70: 0 | G70: 0 | H70: 0 | I70: 0 | J70: 0 | K70: 0 | L70: 0 | M70: 0 | N70: 0 | O70: 0 | P70: 0 | Q70: 0 | R70: 0 | S70: 0 | T70: 0 | U70: 0.001385041551 | V70: 0 | W70: 0.0006925207756 | X70: 0 | Y70: 0.0006925207756 | Z70: 0 | AA70: 0 | AB70: 0.0006925207756 | AC70: 0.0006925207756 | AD70: 0.001385041551 | AE70: 0.0006925207756 | AF70: 0.001385041551 | AG70: 0.001385041551 | AH70: 0.002077562327 | AI70: 0.003462603878 | AJ70: 0.002077562327 | AK70: 0.002077562327 | AL70: 0.002770083102 | AM70: 0.002077562327 | AN70: 0.002770083102 | AO70: 0.002770083102 | AP70: 0.001385041551 | AQ70: 0.005540166205 | AR70: 0.003462603878 | AS70: 0.004847645429 | AT70: 0.003462603878 | AU70: 0.005540166205 | AV70: 0.008310249307 | AW70: 0.007617728532 | AX70: 0.009002770083 | AY70: 0.01731301939 | AZ70: 0.01177285319 | BA70: 0.01177285319 | BB70: 0.01038781163 | BC70: 0.009695290859 | BD70: 0.01662049861 | BE70: 0.02008310249 | BF70: 0.02216066482 | BG70: 0.03462603878 | BH70: 0.04847645429 | BI70: 0.07063711911 | BJ70: 0.09764542936 | BK70: 0.09903047091 | BL70: 0.08379501385 | BM70: 0.06301939058 | BN70: 0.04570637119 | BO70: 0.0283933518 | BP70: 0.0228531856 | BQ70: 0.02423822715 | BR70: 0.01800554017 | BS70: 0.01731301939 | BT70: 0.008310249307 | BU70: 0.01315789474 | BV70: 0.009695290859 | BW70: 0.01108033241 | BX70: 0.004155124654 | BY70: 0.002770083102 | BZ70: 0.009002770083 | CA70: 0.005540166205 | CB70: 0.006232686981 | CC70: 0.006925207756 | CD70: 0.006232686981 | CE70: 0.001385041551 | CF70: 0.003462603878 | CG70: 0.002077562327 | CH70: 0.003462603878 | CI70: 0.002770083102 | CJ70: 0.007617728532 | CK70: 0.002077562327 | CL70: 0.003462603878 | CM70: 0.005540166205 | CN70: 0.002770083102 | CO70: 0.002770083102 | CP70: 0.002077562327 | CQ70: 0.0006925207756 | CR70: 0.0006925207756 | CS70: 0.002077562327 | CT70: 0.002770083102 | CU70: 0 | CV70: 0.003462603878 | CW70: 0.001385041551 | CX70: 0.003462603878 | CY70: 0.01108033241
B71: 0.62 | C71: 0 | D71: 0 | E71: 0 | F71: 0 | G71: 0 | H71: 0 | I71: 0 | J71: 0 | K71: 0 | L71: 0 | M71: 0 | N71: 0 | O71: 0 | P71: 0 | Q71: 0 | R71: 0 | S71: 0 | T71: 0 | U71: 0 | V71: 0.0007158196135 | W71: 0.0007158196135 | X71: 0.0007158196135 | Y71: 0.0007158196135 | Z71: 0.0007158196135 | AA71: 0.0007158196135 | AB71: 0 | AC71: 0.0007158196135 | AD71: 0.002863278454 | AE71: 0.00214745884 | AF71: 0 | AG71: 0.0007158196135 | AH71: 0.001431639227 | AI71: 0.002863278454 | AJ71: 0 | AK71: 0.001431639227 | AL71: 0.002863278454 | AM71: 0.004294917681 | AN71: 0.005726556908 | AO71: 0.00214745884 | AP71: 0.005010737294 | AQ71: 0.002863278454 | AR71: 0.003579098067 | AS71: 0.003579098067 | AT71: 0.006442376521 | AU71: 0.005726556908 | AV71: 0.005010737294 | AW71: 0.006442376521 | AX71: 0.007158196135 | AY71: 0.007874015748 | AZ71: 0.007874015748 | BA71: 0.01216893343 | BB71: 0.01431639227 | BC71: 0.007158196135 | BD71: 0.02219040802 | BE71: 0.01503221188 | BF71: 0.02219040802 | BG71: 0.03507516106 | BH71: 0.03221188261 | BI71: 0.03937007874 | BJ71: 0.06442376521 | BK71: 0.08231925555 | BL71: 0.09663564782 | BM71: 0.09162491052 | BN71: 0.05654974946 | BO71: 0.04438081603 | BP71: 0.03507516106 | BQ71: 0.01789549034 | BR71: 0.01503221188 | BS71: 0.0157480315 | BT71: 0.01717967072 | BU71: 0.01360057266 | BV71: 0.01002147459 | BW71: 0.01002147459 | BX71: 0.007874015748 | BY71: 0.009305654975 | BZ71: 0.003579098067 | CA71: 0.005726556908 | CB71: 0.002863278454 | CC71: 0.007158196135 | CD71: 0.006442376521 | CE71: 0.005010737294 | CF71: 0.005010737294 | CG71: 0.006442376521 | CH71: 0.005010737294 | CI71: 0.005726556908 | CJ71: 0.006442376521 | CK71: 0.002863278454 | CL71: 0.006442376521 | CM71: 0.005010737294 | CN71: 0.001431639227 | CO71: 0.002863278454 | CP71: 0.00214745884 | CQ71: 0.005010737294 | CR71: 0.003579098067 | CS71: 0.005010737294 | CT71: 0.004294917681 | CU71: 0.00214745884 | CV71: 0.00214745884 | CW71: 0.002863278454 | CX71: 0.001431639227 | CY71: 0.01288475304
B72: 0.63 | C72: 0 | D72: 0 | E72: 0 | F72: 0 | G72: 0 | H72: 0 | I72: 0 | J72: 0 | K72: 0 | L72: 0 | M72: 0 | N72: 0 | O72: 0 | P72: 0 | Q72: 0 | R72: 0 | S72: 0 | T72: 0.0006811989101 | U72: 0 | V72: 0 | W72: 0 | X72: 0.0006811989101 | Y72: 0.00136239782 | Z72: 0 | AA72: 0.0006811989101 | AB72: 0 | AC72: 0.00136239782 | AD72: 0 | AE72: 0.0006811989101 | AF72: 0.0006811989101 | AG72: 0.00272479564 | AH72: 0.00272479564 | AI72: 0.00136239782 | AJ72: 0.00136239782 | AK72: 0.00204359673 | AL72: 0.005449591281 | AM72: 0.00204359673 | AN72: 0.00272479564 | AO72: 0.00272479564 | AP72: 0 | AQ72: 0.00408719346 | AR72: 0.00272479564 | AS72: 0.005449591281 | AT72: 0.00340599455 | AU72: 0.005449591281 | AV72: 0.006130790191 | AW72: 0.004768392371 | AX72: 0.01021798365 | AY72: 0.006811989101 | AZ72: 0.00340599455 | BA72: 0.006811989101 | BB72: 0.008855585831 | BC72: 0.008174386921 | BD72: 0.01021798365 | BE72: 0.01702997275 | BF72: 0.02316076294 | BG72: 0.01566757493 | BH72: 0.02588555858 | BI72: 0.02179836512 | BJ72: 0.04904632153 | BK72: 0.06539509537 | BL72: 0.08378746594 | BM72: 0.1123978202 | BN72: 0.08378746594 | BO72: 0.05313351499 | BP72: 0.05108991826 | BQ72: 0.03678474114 | BR72: 0.01975476839 | BS72: 0.01634877384 | BT72: 0.02384196185 | BU72: 0.01839237057 | BV72: 0.006130790191 | BW72: 0.01089918256 | BX72: 0.009536784741 | BY72: 0.005449591281 | BZ72: 0.01089918256 | CA72: 0.006130790191 | CB72: 0.006811989101 | CC72: 0.008174386921 | CD72: 0.008855585831 | CE72: 0.005449591281 | CF72: 0.00340599455 | CG72: 0.006130790191 | CH72: 0.006130790191 | CI72: 0.004768392371 | CJ72: 0.006811989101 | CK72: 0.006811989101 | CL72: 0.00408719346 | CM72: 0.00204359673 | CN72: 0.00340599455 | CO72: 0.00340599455 | CP72: 0.00204359673 | CQ72: 0.004768392371 | CR72: 0.00408719346 | CS72: 0.0006811989101 | CT72: 0.00340599455 | CU72: 0.00340599455 | CV72: 0.00136239782 | CW72: 0.00272479564 | CX72: 0.00204359673 | CY72: 0.01702997275
B73: 0.64 | C73: 0 | D73: 0 | E73: 0 | F73: 0 | G73: 0 | H73: 0 | I73: 0 | J73: 0 | K73: 0 | L73: 0 | M73: 0 | N73: 0 | O73: 0 | P73: 0 | Q73: 0 | R73: 0 | S73: 0 | T73: 0 | U73: 0.001366120219 | V73: 0 | W73: 0 | X73: 0 | Y73: 0.001366120219 | Z73: 0 | AA73: 0.0006830601093 | AB73: 0.001366120219 | AC73: 0.001366120219 | AD73: 0 | AE73: 0.001366120219 | AF73: 0.0006830601093 | AG73: 0.001366120219 | AH73: 0.0006830601093 | AI73: 0.002732240437 | AJ73: 0.001366120219 | AK73: 0.004098360656 | AL73: 0.001366120219 | AM73: 0.003415300546 | AN73: 0.001366120219 | AO73: 0.002732240437 | AP73: 0.003415300546 | AQ73: 0.003415300546 | AR73: 0.007513661202 | AS73: 0.002732240437 | AT73: 0.006830601093 | AU73: 0.00956284153 | AV73: 0.006830601093 | AW73: 0.008879781421 | AX73: 0.006830601093 | AY73: 0.003415300546 | AZ73: 0.006147540984 | BA73: 0.006147540984 | BB73: 0.007513661202 | BC73: 0.008879781421 | BD73: 0.01092896175 | BE73: 0.01707650273 | BF73: 0.01161202186 | BG73: 0.01297814208 | BH73: 0.02254098361 | BI73: 0.03005464481 | BJ73: 0.03346994536 | BK73: 0.03893442623 | BL73: 0.06215846995 | BM73: 0.09084699454 | BN73: 0.1099726776 | BO73: 0.07991803279 | BP73: 0.0587431694 | BQ73: 0.04303278689 | BR73: 0.02527322404 | BS73: 0.02732240437 | BT73: 0.01980874317 | BU73: 0.01366120219 | BV73: 0.007513661202 | BW73: 0.00956284153 | BX73: 0.008196721311 | BY73: 0.01161202186 | BZ73: 0.01092896175 | CA73: 0.00956284153 | CB73: 0.008879781421 | CC73: 0.004781420765 | CD73: 0.008196721311 | CE73: 0.01092896175 | CF73: 0.006147540984 | CG73: 0.006147540984 | CH73: 0.004781420765 | CI73: 0.005464480874 | CJ73: 0.004098360656 | CK73: 0.003415300546 | CL73: 0.001366120219 | CM73: 0.004781420765 | CN73: 0.004781420765 | CO73: 0.004098360656 | CP73: 0.004781420765 | CQ73: 0.002732240437 | CR73: 0.004781420765 | CS73: 0.003415300546 | CT73: 0.002732240437 | CU73: 0.004781420765 | CV73: 0.001366120219 | CW73: 0.0006830601093 | CX73: 0.002049180328 | CY73: 0.01366120219
B74: 0.65 | C74: 0 | D74: 0 | E74: 0 | F74: 0 | G74: 0 | H74: 0 | I74: 0 | J74: 0 | K74: 0 | L74: 0 | M74: 0 | N74: 0 | O74: 0 | P74: 0 | Q74: 0 | R74: 0 | S74: 0 | T74: 0.0007390983001 | U74: 0 | V74: 0 | W74: 0 | X74: 0.0007390983001 | Y74: 0 | Z74: 0 | AA74: 0 | AB74: 0 | AC74: 0.0029563932 | AD74: 0.0014781966 | AE74: 0.0014781966 | AF74: 0.0007390983001 | AG74: 0.0014781966 | AH74: 0.0029563932 | AI74: 0.0007390983001 | AJ74: 0.0014781966 | AK74: 0.0036954915 | AL74: 0.0014781966 | AM74: 0.0029563932 | AN74: 0.0022172949 | AO74: 0.0022172949 | AP74: 0.0036954915 | AQ74: 0.0014781966 | AR74: 0.0022172949 | AS74: 0.005173688101 | AT74: 0.005173688101 | AU74: 0.0014781966 | AV74: 0.007390983001 | AW74: 0.006651884701 | AX74: 0.0118255728 | AY74: 0.005912786401 | AZ74: 0.0133037694 | BA74: 0.005912786401 | BB74: 0.008130081301 | BC74: 0.006651884701 | BD74: 0.014781966 | BE74: 0.0118255728 | BF74: 0.0140428677 | BG74: 0.009608277901 | BH74: 0.0199556541 | BI74: 0.0288248337 | BJ74: 0.0266075388 | BK74: 0.0280857354 | BL74: 0.0317812269 | BM74: 0.06208425721 | BN74: 0.08647450111 | BO74: 0.1079083518 | BP74: 0.07243163341 | BQ74: 0.07317073171 | BR74: 0.0436067997 | BS74: 0.0310421286 | BT74: 0.0214338507 | BU74: 0.0125646711 | BV74: 0.0125646711 | BW74: 0.0103473762 | BX74: 0.0184774575 | BY74: 0.0110864745 | BZ74: 0.0118255728 | CA74: 0.007390983001 | CB74: 0.006651884701 | CC74: 0.0036954915 | CD74: 0.005173688101 | CE74: 0.0029563932 | CF74: 0.008130081301 | CG74: 0.008869179601 | CH74: 0.005912786401 | CI74: 0.006651884701 | CJ74: 0.0044345898 | CK74: 0.0029563932 | CL74: 0.0044345898 | CM74: 0.0036954915 | CN74: 0.0044345898 | CO74: 0.0044345898 | CP74: 0.0029563932 | CQ74: 0.0022172949 | CR74: 0.0044345898 | CS74: 0.005173688101 | CT74: 0.0029563932 | CU74: 0.0022172949 | CV74: 0.0036954915 | CW74: 0.0022172949 | CX74: 0.0022172949 | CY74: 0.0192165558
B75: 0.66 | C75: 0 | D75: 0 | E75: 0 | F75: 0 | G75: 0 | H75: 0 | I75: 0 | J75: 0 | K75: 0 | L75: 0 | M75: 0 | N75: 0 | O75: 0 | P75: 0 | Q75: 0 | R75: 0 | S75: 0 | T75: 0 | U75: 0 | V75: 0 | W75: 0 | X75: 0 | Y75: 0 | Z75: 0.0007283321194 | AA75: 0.0007283321194 | AB75: 0 | AC75: 0.0007283321194 | AD75: 0.002184996358 | AE75: 0.003641660597 | AF75: 0.001456664239 | AG75: 0.001456664239 | AH75: 0.002913328478 | AI75: 0.002184996358 | AJ75: 0.001456664239 | AK75: 0.0007283321194 | AL75: 0.001456664239 | AM75: 0.002913328478 | AN75: 0 | AO75: 0.002913328478 | AP75: 0.002913328478 | AQ75: 0.005098324836 | AR75: 0.008739985433 | AS75: 0.003641660597 | AT75: 0.002184996358 | AU75: 0.003641660597 | AV75: 0.005826656956 | AW75: 0.002913328478 | AX75: 0.005098324836 | AY75: 0.002913328478 | AZ75: 0.008011653314 | BA75: 0.006554989075 | BB75: 0.008739985433 | BC75: 0.008011653314 | BD75: 0.007283321194 | BE75: 0.005826656956 | BF75: 0.008739985433 | BG75: 0.008011653314 | BH75: 0.01310997815 | BI75: 0.01820830299 | BJ75: 0.02476329206 | BK75: 0.03058994902 | BL75: 0.03641660597 | BM75: 0.04588492353 | BN75: 0.06409322651 | BO75: 0.08157319738 | BP75: 0.1121631464 | BQ75: 0.08302986162 | BR75: 0.05899490168 | BS75: 0.03860160233 | BT75: 0.03568827385 | BU75: 0.02039329934 | BV75: 0.01675163875 | BW75: 0.01602330663 | BX75: 0.01310997815 | BY75: 0.009468317553 | BZ75: 0.01602330663 | CA75: 0.007283321194 | CB75: 0.008739985433 | CC75: 0.01165331391 | CD75: 0.005826656956 | CE75: 0.01165331391 | CF75: 0.007283321194 | CG75: 0.005826656956 | CH75: 0.002913328478 | CI75: 0.003641660597 | CJ75: 0.005826656956 | CK75: 0.005098324836 | CL75: 0.004369992717 | CM75: 0.004369992717 | CN75: 0.004369992717 | CO75: 0.004369992717 | CP75: 0.005098324836 | CQ75: 0.002913328478 | CR75: 0.003641660597 | CS75: 0.004369992717 | CT75: 0.002913328478 | CU75: 0.002184996358 | CV75: 0.002913328478 | CW75: 0.002913328478 | CX75: 0.0007283321194 | CY75: 0.01456664239
B76: 0.67 | C76: 0 | D76: 0 | E76: 0 | F76: 0 | G76: 0 | H76: 0 | I76: 0 | J76: 0 | K76: 0 | L76: 0 | M76: 0 | N76: 0 | O76: 0 | P76: 0 | Q76: 0 | R76: 0 | S76: 0 | T76: 0 | U76: 0 | V76: 0 | W76: 0 | X76: 0.0007052186178 | Y76: 0 | Z76: 0.0007052186178 | AA76: 0 | AB76: 0.0007052186178 | AC76: 0 | AD76: 0 | AE76: 0 | AF76: 0.001410437236 | AG76: 0.001410437236 | AH76: 0.002820874471 | AI76: 0.0007052186178 | AJ76: 0.002115655853 | AK76: 0.0007052186178 | AL76: 0.003526093089 | AM76: 0.0007052186178 | AN76: 0.002115655853 | AO76: 0.001410437236 | AP76: 0.004231311707 | AQ76: 0.001410437236 | AR76: 0.003526093089 | AS76: 0.002820874471 | AT76: 0.002115655853 | AU76: 0.003526093089 | AV76: 0.002115655853 | AW76: 0.007052186178 | AX76: 0.002820874471 | AY76: 0.00634696756 | AZ76: 0.009167842031 | BA76: 0.008462623413 | BB76: 0.007757404795 | BC76: 0.005641748942 | BD76: 0.01057827927 | BE76: 0.01128349788 | BF76: 0.009167842031 | BG76: 0.01551480959 | BH76: 0.01410437236 | BI76: 0.01269393512 | BJ76: 0.023977433 | BK76: 0.01904090268 | BL76: 0.03244005642 | BM76: 0.03878702398 | BN76: 0.0394922426 | BO76: 0.05289139633 | BP76: 0.08674188999 | BQ76: 0.1121297602 | BR76: 0.07475317348 | BS76: 0.05782792666 | BT76: 0.04866008463 | BU76: 0.03596614951 | BV76: 0.02186177715 | BW76: 0.01692524683 | BX76: 0.01692524683 | BY76: 0.01057827927 | BZ76: 0.01057827927 | CA76: 0.007052186178 | CB76: 0.00634696756 | CC76: 0.004936530324 | CD76: 0.007052186178 | CE76: 0.007757404795 | CF76: 0.007757404795 | CG76: 0.00634696756 | CH76: 0.009167842031 | CI76: 0.005641748942 | CJ76: 0.005641748942 | CK76: 0.002820874471 | CL76: 0.004936530324 | CM76: 0.007757404795 | CN76: 0.004936530324 | CO76: 0.004231311707 | CP76: 0.007052186178 | CQ76: 0.003526093089 | CR76: 0.005641748942 | CS76: 0.004936530324 | CT76: 0.002820874471 | CU76: 0.003526093089 | CV76: 0.002820874471 | CW76: 0.002820874471 | CX76: 0.001410437236 | CY76: 0.01410437236
B77: 0.68 | C77: 0 | D77: 0 | E77: 0 | F77: 0 | G77: 0 | H77: 0 | I77: 0 | J77: 0 | K77: 0 | L77: 0 | M77: 0 | N77: 0 | O77: 0 | P77: 0 | Q77: 0 | R77: 0 | S77: 0.0007468259895 | T77: 0 | U77: 0 | V77: 0 | W77: 0.0007468259895 | X77: 0 | Y77: 0.0007468259895 | Z77: 0 | AA77: 0.0007468259895 | AB77: 0.002240477969 | AC77: 0 | AD77: 0 | AE77: 0 | AF77: 0.002987303958 | AG77: 0.0007468259895 | AH77: 0.002240477969 | AI77: 0.002987303958 | AJ77: 0 | AK77: 0.002987303958 | AL77: 0.001493651979 | AM77: 0.001493651979 | AN77: 0.002987303958 | AO77: 0.001493651979 | AP77: 0.003734129948 | AQ77: 0.002240477969 | AR77: 0.004480955937 | AS77: 0.002987303958 | AT77: 0.002240477969 | AU77: 0.003734129948 | AV77: 0.005227781927 | AW77: 0.003734129948 | AX77: 0.005974607916 | AY77: 0.003734129948 | AZ77: 0.007468259895 | BA77: 0.008215085885 | BB77: 0.006721433906 | BC77: 0.003734129948 | BD77: 0.006721433906 | BE77: 0.008961911875 | BF77: 0.01344286781 | BG77: 0.007468259895 | BH77: 0.009708737864 | BI77: 0.01941747573 | BJ77: 0.02016430172 | BK77: 0.01643017177 | BL77: 0.02091112771 | BM77: 0.02912621359 | BN77: 0.0283793876 | BO77: 0.04032860344 | BP77: 0.06646751307 | BQ77: 0.07318894698 | BR77: 0.1045556385 | BS77: 0.07094846901 | BT77: 0.06646751307 | BU77: 0.03435399552 | BV77: 0.04480955937 | BW77: 0.01941747573 | BX77: 0.01493651979 | BY77: 0.01344286781 | BZ77: 0.009708737864 | CA77: 0.007468259895 | CB77: 0.01344286781 | CC77: 0.01269604182 | CD77: 0.01045556385 | CE77: 0.005974607916 | CF77: 0.007468259895 | CG77: 0.01045556385 | CH77: 0.002240477969 | CI77: 0.008961911875 | CJ77: 0.006721433906 | CK77: 0.005227781927 | CL77: 0.008215085885 | CM77: 0.008215085885 | CN77: 0.002240477969 | CO77: 0.004480955937 | CP77: 0.003734129948 | CQ77: 0.008961911875 | CR77: 0.006721433906 | CS77: 0.002987303958 | CT77: 0.002987303958 | CU77: 0.002240477969 | CV77: 0.002987303958 | CW77: 0.003734129948 | CX77: 0.003734129948 | CY77: 0.01941747573
B78: 0.69 | C78: 0 | D78: 0 | E78: 0 | F78: 0 | G78: 0 | H78: 0 | I78: 0 | J78: 0 | K78: 0 | L78: 0 | M78: 0 | N78: 0 | O78: 0 | P78: 0 | Q78: 0 | R78: 0 | S78: 0 | T78: 0 | U78: 0 | V78: 0 | W78: 0 | X78: 0 | Y78: 0 | Z78: 0 | AA78: 0.001524390244 | AB78: 0.000762195122 | AC78: 0 | AD78: 0.002286585366 | AE78: 0 | AF78: 0.001524390244 | AG78: 0.001524390244 | AH78: 0.001524390244 | AI78: 0.001524390244 | AJ78: 0.000762195122 | AK78: 0.002286585366 | AL78: 0.001524390244 | AM78: 0.002286585366 | AN78: 0.002286585366 | AO78: 0.001524390244 | AP78: 0.002286585366 | AQ78: 0.002286585366 | AR78: 0.00381097561 | AS78: 0.003048780488 | AT78: 0.005335365854 | AU78: 0.00381097561 | AV78: 0.009908536585 | AW78: 0.002286585366 | AX78: 0.004573170732 | AY78: 0.00762195122 | AZ78: 0.006859756098 | BA78: 0.001524390244 | BB78: 0.01067073171 | BC78: 0.01219512195 | BD78: 0.002286585366 | BE78: 0.001524390244 | BF78: 0.01219512195 | BG78: 0.0137195122 | BH78: 0.008384146341 | BI78: 0.01295731707 | BJ78: 0.01448170732 | BK78: 0.0137195122 | BL78: 0.02210365854 | BM78: 0.01981707317 | BN78: 0.03125 | BO78: 0.02515243902 | BP78: 0.0381097561 | BQ78: 0.06097560976 | BR78: 0.08231707317 | BS78: 0.1044207317 | BT78: 0.07240853659 | BU78: 0.05640243902 | BV78: 0.04039634146 | BW78: 0.02362804878 | BX78: 0.02591463415 | BY78: 0.01905487805 | BZ78: 0.02134146341 | CA78: 0.01295731707 | CB78: 0.01143292683 | CC78: 0.0137195122 | CD78: 0.008384146341 | CE78: 0.01295731707 | CF78: 0.008384146341 | CG78: 0.009908536585 | CH78: 0.009146341463 | CI78: 0.009908536585 | CJ78: 0.006097560976 | CK78: 0.006097560976 | CL78: 0.006859756098 | CM78: 0.006097560976 | CN78: 0.005335365854 | CO78: 0.009908536585 | CP78: 0.004573170732 | CQ78: 0.006097560976 | CR78: 0.00381097561 | CS78: 0.004573170732 | CT78: 0.001524390244 | CU78: 0.000762195122 | CV78: 0.000762195122 | CW78: 0.003048780488 | CX78: 0.001524390244 | CY78: 0.01600609756
B79: 0.7 | C79: 0 | D79: 0 | E79: 0 | F79: 0 | G79: 0 | H79: 0 | I79: 0 | J79: 0 | K79: 0 | L79: 0 | M79: 0 | N79: 0 | O79: 0 | P79: 0 | Q79: 0 | R79: 0 | S79: 0 | T79: 0 | U79: 0 | V79: 0 | W79: 0 | X79: 0.0007385524372 | Y79: 0 | Z79: 0 | AA79: 0.0007385524372 | AB79: 0.002215657312 | AC79: 0.001477104874 | AD79: 0 | AE79: 0.0007385524372 | AF79: 0.002215657312 | AG79: 0.0007385524372 | AH79: 0.0007385524372 | AI79: 0.001477104874 | AJ79: 0.002954209749 | AK79: 0.003692762186 | AL79: 0.001477104874 | AM79: 0.002215657312 | AN79: 0.003692762186 | AO79: 0.004431314623 | AP79: 0.001477104874 | AQ79: 0.004431314623 | AR79: 0.002954209749 | AS79: 0.002954209749 | AT79: 0.002954209749 | AU79: 0.004431314623 | AV79: 0.001477104874 | AW79: 0.005908419498 | AX79: 0.005908419498 | AY79: 0.007385524372 | AZ79: 0.005169867061 | BA79: 0.005169867061 | BB79: 0.004431314623 | BC79: 0.005908419498 | BD79: 0.005169867061 | BE79: 0.003692762186 | BF79: 0.003692762186 | BG79: 0.01477104874 | BH79: 0.007385524372 | BI79: 0.008862629247 | BJ79: 0.01255539143 | BK79: 0.01624815362 | BL79: 0.01477104874 | BM79: 0.008124076809 | BN79: 0.01920236337 | BO79: 0.03397341211 | BP79: 0.0376661743 | BQ79: 0.04579025111 | BR79: 0.05465288035 | BS79: 0.0694239291 | BT79: 0.09084194978 | BU79: 0.09231905465 | BV79: 0.05465288035 | BW79: 0.05465288035 | BX79: 0.02806499261 | BY79: 0.02289512555 | BZ79: 0.01920236337 | CA79: 0.01477104874 | CB79: 0.01698670606 | CC79: 0.01107828656 | CD79: 0.007385524372 | CE79: 0.007385524372 | CF79: 0.01403249631 | CG79: 0.008862629247 | CH79: 0.007385524372 | CI79: 0.008862629247 | CJ79: 0.007385524372 | CK79: 0.008862629247 | CL79: 0.006646971935 | CM79: 0.005908419498 | CN79: 0.007385524372 | CO79: 0.002954209749 | CP79: 0.005169867061 | CQ79: 0.003692762186 | CR79: 0.004431314623 | CS79: 0.004431314623 | CT79: 0.006646971935 | CU79: 0.002954209749 | CV79: 0.002954209749 | CW79: 0.002954209749 | CX79: 0.002215657312 | CY79: 0.01994091581
B80: 0.71 | C80: 0 | D80: 0 | E80: 0 | F80: 0 | G80: 0 | H80: 0 | I80: 0 | J80: 0 | K80: 0 | L80: 0 | M80: 0 | N80: 0 | O80: 0 | P80: 0 | Q80: 0 | R80: 0 | S80: 0.0007412898443 | T80: 0 | U80: 0 | V80: 0.0007412898443 | W80: 0 | X80: 0 | Y80: 0 | Z80: 0.0007412898443 | AA80: 0 | AB80: 0.0007412898443 | AC80: 0.0007412898443 | AD80: 0.0007412898443 | AE80: 0.0007412898443 | AF80: 0.0007412898443 | AG80: 0.0007412898443 | AH80: 0.001482579689 | AI80: 0.002965159377 | AJ80: 0.001482579689 | AK80: 0.001482579689 | AL80: 0.002965159377 | AM80: 0.002223869533 | AN80: 0.003706449222 | AO80: 0.002223869533 | AP80: 0.002965159377 | AQ80: 0.006671608599 | AR80: 0.002965159377 | AS80: 0.003706449222 | AT80: 0.0007412898443 | AU80: 0.005930318755 | AV80: 0.00518902891 | AW80: 0.003706449222 | AX80: 0.002965159377 | AY80: 0.002223869533 | AZ80: 0.005930318755 | BA80: 0.005930318755 | BB80: 0.005930318755 | BC80: 0.004447739066 | BD80: 0.005930318755 | BE80: 0.005930318755 | BF80: 0.009636767976 | BG80: 0.009636767976 | BH80: 0.01037805782 | BI80: 0.01037805782 | BJ80: 0.009636767976 | BK80: 0.008154188288 | BL80: 0.01037805782 | BM80: 0.01186063751 | BN80: 0.01556708673 | BO80: 0.02372127502 | BP80: 0.02223869533 | BQ80: 0.03039288362 | BR80: 0.04744255004 | BS80: 0.05263157895 | BT80: 0.07338769459 | BU80: 0.09414381023 | BV80: 0.07931801334 | BW80: 0.05707931801 | BX80: 0.03780578206 | BY80: 0.03039288362 | BZ80: 0.0266864344 | CA80: 0.02520385471 | CB80: 0.02223869533 | CC80: 0.01853224611 | CD80: 0.01630837658 | CE80: 0.01630837658 | CF80: 0.01111934766 | CG80: 0.009636767976 | CH80: 0.009636767976 | CI80: 0.00518902891 | CJ80: 0.006671608599 | CK80: 0.00518902891 | CL80: 0.008154188288 | CM80: 0.008154188288 | CN80: 0.008895478132 | CO80: 0.004447739066 | CP80: 0.003706449222 | CQ80: 0.005930318755 | CR80: 0.00518902891 | CS80: 0.002965159377 | CT80: 0.008154188288 | CU80: 0.006671608599 | CV80: 0.002965159377 | CW80: 0.002223869533 | CX80: 0.001482579689 | CY80: 0.01779095626
B81: 0.72 | C81: 0 | D81: 0 | E81: 0 | F81: 0 | G81: 0 | H81: 0 | I81: 0 | J81: 0 | K81: 0 | L81: 0 | M81: 0 | N81: 0 | O81: 0 | P81: 0 | Q81: 0 | R81: 0 | S81: 0 | T81: 0 | U81: 0 | V81: 0 | W81: 0.00074019245 | X81: 0 | Y81: 0.00074019245 | Z81: 0 | AA81: 0.0014803849 | AB81: 0.00074019245 | AC81: 0 | AD81: 0.00074019245 | AE81: 0.00074019245 | AF81: 0.0014803849 | AG81: 0.00222057735 | AH81: 0.00222057735 | AI81: 0.00074019245 | AJ81: 0.00222057735 | AK81: 0.0029607698 | AL81: 0.0014803849 | AM81: 0.00222057735 | AN81: 0.0044411547 | AO81: 0.0029607698 | AP81: 0.00370096225 | AQ81: 0.0014803849 | AR81: 0.00074019245 | AS81: 0.0029607698 | AT81: 0.00222057735 | AU81: 0.00222057735 | AV81: 0.0014803849 | AW81: 0.0074019245 | AX81: 0.0044411547 | AY81: 0.00370096225 | AZ81: 0.00814211695 | BA81: 0.0059215396 | BB81: 0.0059215396 | BC81: 0.0059215396 | BD81: 0.0029607698 | BE81: 0.00518134715 | BF81: 0.0103626943 | BG81: 0.00962250185 | BH81: 0.00814211695 | BI81: 0.0074019245 | BJ81: 0.0103626943 | BK81: 0.0059215396 | BL81: 0.01110288675 | BM81: 0.0103626943 | BN81: 0.0118430792 | BO81: 0.01258327165 | BP81: 0.01554404145 | BQ81: 0.0325684678 | BR81: 0.0281273131 | BS81: 0.03182827535 | BT81: 0.04367135455 | BU81: 0.08216136195 | BV81: 0.1339748335 | BW81: 0.0710584752 | BX81: 0.05551443375 | BY81: 0.05107327905 | BZ81: 0.0281273131 | CA81: 0.03182827535 | CB81: 0.02294596595 | CC81: 0.0118430792 | CD81: 0.0177646188 | CE81: 0.0118430792 | CF81: 0.0059215396 | CG81: 0.01702442635 | CH81: 0.01110288675 | CI81: 0.01406365655 | CJ81: 0.01258327165 | CK81: 0.0044411547 | CL81: 0.00518134715 | CM81: 0.00518134715 | CN81: 0.0088823094 | CO81: 0.00222057735 | CP81: 0.0014803849 | CQ81: 0.00814211695 | CR81: 0.0044411547 | CS81: 0.0029607698 | CT81: 0.00074019245 | CU81: 0.00222057735 | CV81: 0.0088823094 | CW81: 0.00222057735 | CX81: 0.00222057735 | CY81: 0.01998519615
B82: 0.73 | C82: 0 | D82: 0 | E82: 0 | F82: 0 | G82: 0 | H82: 0 | I82: 0 | J82: 0 | K82: 0 | L82: 0 | M82: 0 | N82: 0 | O82: 0 | P82: 0 | Q82: 0 | R82: 0 | S82: 0 | T82: 0 | U82: 0 | V82: 0 | W82: 0.001486988848 | X82: 0 | Y82: 0.001486988848 | Z82: 0 | AA82: 0.0007434944238 | AB82: 0 | AC82: 0.001486988848 | AD82: 0.0007434944238 | AE82: 0.001486988848 | AF82: 0.0007434944238 | AG82: 0.002230483271 | AH82: 0 | AI82: 0.001486988848 | AJ82: 0 | AK82: 0.0007434944238 | AL82: 0.002973977695 | AM82: 0 | AN82: 0.002230483271 | AO82: 0.0007434944238 | AP82: 0.002973977695 | AQ82: 0.003717472119 | AR82: 0.002230483271 | AS82: 0.002230483271 | AT82: 0.002973977695 | AU82: 0.004460966543 | AV82: 0.002230483271 | AW82: 0.004460966543 | AX82: 0.005204460967 | AY82: 0.00594795539 | AZ82: 0.00594795539 | BA82: 0.001486988848 | BB82: 0.005204460967 | BC82: 0.002973977695 | BD82: 0.007434944238 | BE82: 0.008178438662 | BF82: 0.001486988848 | BG82: 0.009665427509 | BH82: 0.008178438662 | BI82: 0.01040892193 | BJ82: 0.007434944238 | BK82: 0.007434944238 | BL82: 0.009665427509 | BM82: 0.008178438662 | BN82: 0.01412639405 | BO82: 0.01933085502 | BP82: 0.02081784387 | BQ82: 0.01635687732 | BR82: 0.02379182156 | BS82: 0.03197026022 | BT82: 0.04609665428 | BU82: 0.05353159851 | BV82: 0.06840148699 | BW82: 0.1026022305 | BX82: 0.08847583643 | BY82: 0.06394052045 | BZ82: 0.03866171004 | CA82: 0.02304832714 | CB82: 0.03420074349 | CC82: 0.02453531599 | CD82: 0.01412639405 | CE82: 0.01115241636 | CF82: 0.01040892193 | CG82: 0.01784386617 | CH82: 0.007434944238 | CI82: 0.008178438662 | CJ82: 0.0126394052 | CK82: 0.00594795539 | CL82: 0.006691449814 | CM82: 0.01115241636 | CN82: 0.005204460967 | CO82: 0.006691449814 | CP82: 0.007434944238 | CQ82: 0.004460966543 | CR82: 0.008178438662 | CS82: 0.004460966543 | CT82: 0.00594795539 | CU82: 0.002230483271 | CV82: 0.006691449814 | CW82: 0.002230483271 | CX82: 0.002973977695 | CY82: 0.01933085502
B83: 0.74 | C83: 0 | D83: 0 | E83: 0 | F83: 0 | G83: 0 | H83: 0 | I83: 0 | J83: 0 | K83: 0 | L83: 0 | M83: 0 | N83: 0 | O83: 0 | P83: 0 | Q83: 0 | R83: 0 | S83: 0 | T83: 0 | U83: 0 | V83: 0 | W83: 0 | X83: 0.0007032348805 | Y83: 0 | Z83: 0 | AA83: 0.0007032348805 | AB83: 0 | AC83: 0.0007032348805 | AD83: 0.0007032348805 | AE83: 0 | AF83: 0.0007032348805 | AG83: 0.001406469761 | AH83: 0.001406469761 | AI83: 0.0007032348805 | AJ83: 0.0007032348805 | AK83: 0.0007032348805 | AL83: 0.001406469761 | AM83: 0.002109704641 | AN83: 0.0007032348805 | AO83: 0 | AP83: 0.002812939522 | AQ83: 0.002812939522 | AR83: 0.002109704641 | AS83: 0.002109704641 | AT83: 0.002109704641 | AU83: 0.002812939522 | AV83: 0.003516174402 | AW83: 0.007735583685 | AX83: 0.003516174402 | AY83: 0.0007032348805 | AZ83: 0.003516174402 | BA83: 0.005625879044 | BB83: 0.004219409283 | BC83: 0.004922644163 | BD83: 0.002812939522 | BE83: 0.004922644163 | BF83: 0.009142053446 | BG83: 0.007735583685 | BH83: 0.008438818565 | BI83: 0.007032348805 | BJ83: 0.005625879044 | BK83: 0.004922644163 | BL83: 0.008438818565 | BM83: 0.007032348805 | BN83: 0.008438818565 | BO83: 0.01054852321 | BP83: 0.01265822785 | BQ83: 0.01547116737 | BR83: 0.02180028129 | BS83: 0.02320675105 | BT83: 0.02953586498 | BU83: 0.04430379747 | BV83: 0.04078762307 | BW83: 0.08368495077 | BX83: 0.1399437412 | BY83: 0.09142053446 | BZ83: 0.06610407876 | CA83: 0.04289732771 | CB83: 0.03023909986 | CC83: 0.02461322082 | CD83: 0.01898734177 | CE83: 0.02109704641 | CF83: 0.01687763713 | CG83: 0.01054852321 | CH83: 0.01336146273 | CI83: 0.006329113924 | CJ83: 0.008438818565 | CK83: 0.007735583685 | CL83: 0.005625879044 | CM83: 0.009142053446 | CN83: 0.009845288326 | CO83: 0.004922644163 | CP83: 0.004219409283 | CQ83: 0.004219409283 | CR83: 0.004219409283 | CS83: 0.003516174402 | CT83: 0.005625879044 | CU83: 0.003516174402 | CV83: 0.002109704641 | CW83: 0.002109704641 | CX83: 0.004219409283 | CY83: 0.02039381153
B84: 0.75 | C84: 0 | D84: 0 | E84: 0 | F84: 0 | G84: 0 | H84: 0 | I84: 0 | J84: 0 | K84: 0 | L84: 0 | M84: 0 | N84: 0 | O84: 0 | P84: 0 | Q84: 0 | R84: 0 | S84: 0 | T84: 0 | U84: 0 | V84: 0.0006337135615 | W84: 0.0006337135615 | X84: 0.001267427123 | Y84: 0 | Z84: 0 | AA84: 0 | AB84: 0 | AC84: 0.001267427123 | AD84: 0 | AE84: 0.001267427123 | AF84: 0.003168567807 | AG84: 0.0006337135615 | AH84: 0.0006337135615 | AI84: 0.001901140684 | AJ84: 0.001267427123 | AK84: 0 | AL84: 0.001267427123 | AM84: 0.0006337135615 | AN84: 0.00443599493 | AO84: 0.001901140684 | AP84: 0.005703422053 | AQ84: 0.001267427123 | AR84: 0.001267427123 | AS84: 0.002534854246 | AT84: 0.001901140684 | AU84: 0.002534854246 | AV84: 0.0006337135615 | AW84: 0.001267427123 | AX84: 0.005069708492 | AY84: 0.003168567807 | AZ84: 0.003802281369 | BA84: 0.003802281369 | BB84: 0.005069708492 | BC84: 0.006337135615 | BD84: 0.005069708492 | BE84: 0.00443599493 | BF84: 0.003802281369 | BG84: 0.005069708492 | BH84: 0.006970849176 | BI84: 0.006970849176 | BJ84: 0.008871989861 | BK84: 0.002534854246 | BL84: 0.01140684411 | BM84: 0.008871989861 | BN84: 0.009505703422 | BO84: 0.007604562738 | BP84: 0.008871989861 | BQ84: 0.01457541191 | BR84: 0.02027883397 | BS84: 0.009505703422 | BT84: 0.02027883397 | BU84: 0.0329531052 | BV84: 0.04182509506 | BW84: 0.04309252218 | BX84: 0.07921419518 | BY84: 0.1755386565 | BZ84: 0.09188846641 | CA84: 0.06020278834 | CB84: 0.04055766793 | CC84: 0.02408111534 | CD84: 0.02408111534 | CE84: 0.0247148289 | CF84: 0.01013941698 | CG84: 0.01204055767 | CH84: 0.01077313054 | CI84: 0.008871989861 | CJ84: 0.008238276299 | CK84: 0.006337135615 | CL84: 0.007604562738 | CM84: 0.007604562738 | CN84: 0.005069708492 | CO84: 0.003802281369 | CP84: 0.007604562738 | CQ84: 0.002534854246 | CR84: 0.007604562738 | CS84: 0.00443599493 | CT84: 0.00443599493 | CU84: 0.001901140684 | CV84: 0.00443599493 | CW84: 0.00443599493 | CX84: 0 | CY84: 0.02408111534
B85: 0.76 | C85: 0 | D85: 0 | E85: 0 | F85: 0 | G85: 0 | H85: 0 | I85: 0 | J85: 0 | K85: 0 | L85: 0 | M85: 0 | N85: 0 | O85: 0 | P85: 0 | Q85: 0 | R85: 0 | S85: 0 | T85: 0 | U85: 0 | V85: 0 | W85: 0 | X85: 0 | Y85: 0 | Z85: 0 | AA85: 0.001202645821 | AB85: 0 | AC85: 0.0006013229104 | AD85: 0.0006013229104 | AE85: 0.0006013229104 | AF85: 0 | AG85: 0.0006013229104 | AH85: 0.0006013229104 | AI85: 0.0006013229104 | AJ85: 0.001202645821 | AK85: 0.0006013229104 | AL85: 0.001803968731 | AM85: 0.001202645821 | AN85: 0.004209260373 | AO85: 0.001202645821 | AP85: 0.003607937462 | AQ85: 0.001202645821 | AR85: 0.001202645821 | AS85: 0.003006614552 | AT85: 0.005411906194 | AU85: 0.003607937462 | AV85: 0.0006013229104 | AW85: 0.001803968731 | AX85: 0.004810583283 | AY85: 0.003607937462 | AZ85: 0.004810583283 | BA85: 0.005411906194 | BB85: 0.003006614552 | BC85: 0.003607937462 | BD85: 0.002405291642 | BE85: 0.006614552014 | BF85: 0.003607937462 | BG85: 0.003607937462 | BH85: 0.001202645821 | BI85: 0.006013229104 | BJ85: 0.005411906194 | BK85: 0.008418520746 | BL85: 0.004209260373 | BM85: 0.007817197835 | BN85: 0.009621166566 | BO85: 0.003607937462 | BP85: 0.01202645821 | BQ85: 0.006614552014 | BR85: 0.01623571858 | BS85: 0.01803968731 | BT85: 0.02164762477 | BU85: 0.01623571858 | BV85: 0.02224894768 | BW85: 0.03006614552 | BX85: 0.05472038485 | BY85: 0.08899579074 | BZ85: 0.1996392063 | CA85: 0.08839446783 | CB85: 0.05652435358 | CC85: 0.040288635 | CD85: 0.0174383644 | CE85: 0.02224894768 | CF85: 0.01803968731 | CG85: 0.01503307276 | CH85: 0.01443174985 | CI85: 0.01082381239 | CJ85: 0.008418520746 | CK85: 0.005411906194 | CL85: 0.01022248948 | CM85: 0.01082381239 | CN85: 0.009019843656 | CO85: 0.007215874925 | CP85: 0.005411906194 | CQ85: 0.005411906194 | CR85: 0.004209260373 | CS85: 0.003006614552 | CT85: 0.006013229104 | CU85: 0.003006614552 | CV85: 0.003006614552 | CW85: 0.001202645821 | CX85: 0.003006614552 | CY85: 0.02164762477
B86: 0.77 | C86: 0 | D86: 0 | E86: 0 | F86: 0 | G86: 0 | H86: 0 | I86: 0 | J86: 0 | K86: 0 | L86: 0 | M86: 0 | N86: 0 | O86: 0 | P86: 0 | Q86: 0 | R86: 0 | S86: 0 | T86: 0 | U86: 0 | V86: 0 | W86: 0 | X86: 0 | Y86: 0 | Z86: 0 | AA86: 0 | AB86: 0.0005521811154 | AC86: 0.001104362231 | AD86: 0.0005521811154 | AE86: 0.001104362231 | AF86: 0.0005521811154 | AG86: 0 | AH86: 0.001104362231 | AI86: 0.0005521811154 | AJ86: 0.001104362231 | AK86: 0.001656543346 | AL86: 0.001104362231 | AM86: 0.001656543346 | AN86: 0.0005521811154 | AO86: 0.003313086692 | AP86: 0.0005521811154 | AQ86: 0.001656543346 | AR86: 0.0005521811154 | AS86: 0.0005521811154 | AT86: 0.001656543346 | AU86: 0.002208724462 | AV86: 0.002760905577 | AW86: 0.001104362231 | AX86: 0.001656543346 | AY86: 0.001656543346 | AZ86: 0.001656543346 | BA86: 0.001104362231 | BB86: 0.001656543346 | BC86: 0.001104362231 | BD86: 0.002208724462 | BE86: 0.002208724462 | BF86: 0.002760905577 | BG86: 0.003865267808 | BH86: 0.003865267808 | BI86: 0.004969630039 | BJ86: 0.0071783545 | BK86: 0.005521811154 | BL86: 0.002208724462 | BM86: 0.006626173385 | BN86: 0.009387078962 | BO86: 0.007730535616 | BP86: 0.008834897846 | BQ86: 0.01159580342 | BR86: 0.009939260077 | BS86: 0.01159580342 | BT86: 0.01546107123 | BU86: 0.01270016565 | BV86: 0.01877415792 | BW86: 0.02650469354 | BX86: 0.02705687465 | BY86: 0.05687465489 | BZ86: 0.08558807289 | CA86: 0.2230811706 | CB86: 0.1032578686 | CC86: 0.05797901712 | CD86: 0.0358917725 | CE86: 0.03036996135 | CF86: 0.02319160685 | CG86: 0.01766979569 | CH86: 0.01711761458 | CI86: 0.01325234677 | CJ86: 0.007730535616 | CK86: 0.01159580342 | CL86: 0.006073992269 | CM86: 0.007730535616 | CN86: 0.006073992269 | CO86: 0.006073992269 | CP86: 0.006626173385 | CQ86: 0.003865267808 | CR86: 0.006626173385 | CS86: 0.004969630039 | CT86: 0.002760905577 | CU86: 0.003313086692 | CV86: 0.002208724462 | CW86: 0.002760905577 | CX86: 0.002208724462 | CY86: 0.01932633904
B87: 0.78 | C87: 0 | D87: 0 | E87: 0 | F87: 0 | G87: 0 | H87: 0 | I87: 0 | J87: 0 | K87: 0 | L87: 0 | M87: 0 | N87: 0 | O87: 0 | P87: 0 | Q87: 0 | R87: 0 | S87: 0 | T87: 0 | U87: 0 | V87: 0 | W87: 0.000489955904 | X87: 0 | Y87: 0 | Z87: 0 | AA87: 0 | AB87: 0.000489955904 | AC87: 0 | AD87: 0.000489955904 | AE87: 0 | AF87: 0 | AG87: 0.001469867712 | AH87: 0 | AI87: 0.001959823616 | AJ87: 0 | AK87: 0.000489955904 | AL87: 0.000489955904 | AM87: 0.0009799118079 | AN87: 0.001469867712 | AO87: 0 | AP87: 0.000489955904 | AQ87: 0.001469867712 | AR87: 0.001959823616 | AS87: 0.002939735424 | AT87: 0.0009799118079 | AU87: 0.002939735424 | AV87: 0.001469867712 | AW87: 0.001959823616 | AX87: 0.002939735424 | AY87: 0.0009799118079 | AZ87: 0.001469867712 | BA87: 0.001959823616 | BB87: 0.004409603136 | BC87: 0.003429691328 | BD87: 0.003919647232 | BE87: 0 | BF87: 0.00244977952 | BG87: 0.003429691328 | BH87: 0.003429691328 | BI87: 0.003919647232 | BJ87: 0.004409603136 | BK87: 0.00244977952 | BL87: 0.00489955904 | BM87: 0.003429691328 | BN87: 0.006369426752 | BO87: 0.005879470848 | BP87: 0.003429691328 | BQ87: 0.006369426752 | BR87: 0.005879470848 | BS87: 0.01028907398 | BT87: 0.009309162175 | BU87: 0.0127388535 | BV87: 0.01077902989 | BW87: 0.01812836845 | BX87: 0.02057814797 | BY87: 0.02596766291 | BZ87: 0.04556589907 | CA87: 0.1038706516 | CB87: 0.2748652621 | CC87: 0.1097501225 | CD87: 0.05487506124 | CE87: 0.0372366487 | CF87: 0.02694757472 | CG87: 0.01910828025 | CH87: 0.01616854483 | CI87: 0.007839294463 | CJ87: 0.01518863302 | CK87: 0.006859382656 | CL87: 0.006369426752 | CM87: 0.006369426752 | CN87: 0.005879470848 | CO87: 0.007839294463 | CP87: 0.002939735424 | CQ87: 0.007839294463 | CR87: 0.003919647232 | CS87: 0.002939735424 | CT87: 0.001959823616 | CU87: 0.002939735424 | CV87: 0.001959823616 | CW87: 0.00489955904 | CX87: 0.004409603136 | CY87: 0.01567858893
B88: 0.79 | C88: 0 | D88: 0 | E88: 0 | F88: 0 | G88: 0 | H88: 0 | I88: 0 | J88: 0 | K88: 0 | L88: 0 | M88: 0 | N88: 0 | O88: 0 | P88: 0 | Q88: 0 | R88: 0 | S88: 0 | T88: 0 | U88: 0 | V88: 0 | W88: 0 | X88: 0 | Y88: 0.0004456327986 | Z88: 0.0004456327986 | AA88: 0.0004456327986 | AB88: 0.001336898396 | AC88: 0 | AD88: 0.0004456327986 | AE88: 0 | AF88: 0.001336898396 | AG88: 0.0008912655971 | AH88: 0.0004456327986 | AI88: 0.0004456327986 | AJ88: 0.001336898396 | AK88: 0.001336898396 | AL88: 0 | AM88: 0.0004456327986 | AN88: 0.0004456327986 | AO88: 0.0008912655971 | AP88: 0.001782531194 | AQ88: 0.0008912655971 | AR88: 0.0008912655971 | AS88: 0.001782531194 | AT88: 0.001336898396 | AU88: 0.002228163993 | AV88: 0.003565062389 | AW88: 0.001782531194 | AX88: 0.002228163993 | AY88: 0.002228163993 | AZ88: 0.001782531194 | BA88: 0.0008912655971 | BB88: 0.0008912655971 | BC88: 0.002228163993 | BD88: 0.004901960784 | BE88: 0.002673796791 | BF88: 0.003565062389 | BG88: 0.003565062389 | BH88: 0.002228163993 | BI88: 0.004010695187 | BJ88: 0.003565062389 | BK88: 0.003565062389 | BL88: 0.002673796791 | BM88: 0.005793226381 | BN88: 0.002673796791 | BO88: 0.004901960784 | BP88: 0.004456327986 | BQ88: 0.005793226381 | BR88: 0.00623885918 | BS88: 0.007575757576 | BT88: 0.006684491979 | BU88: 0.01247771836 | BV88: 0.00935828877 | BW88: 0.01292335116 | BX88: 0.02094474153 | BY88: 0.01916221034 | BZ88: 0.02807486631 | CA88: 0.04679144385 | CB88: 0.1007130125 | CC88: 0.2959001783 | CD88: 0.1252228164 | CE88: 0.04545454545 | CF88: 0.02852049911 | CG88: 0.02094474153 | CH88: 0.01782531194 | CI88: 0.01069518717 | CJ88: 0.01069518717 | CK88: 0.01470588235 | CL88: 0.007130124777 | CM88: 0.008021390374 | CN88: 0.004901960784 | CO88: 0.007130124777 | CP88: 0.004901960784 | CQ88: 0.004456327986 | CR88: 0.002228163993 | CS88: 0.004010695187 | CT88: 0.0008912655971 | CU88: 0.002673796791 | CV88: 0.002228163993 | CW88: 0.002673796791 | CX88: 0.001782531194 | CY88: 0.01648841355
B89: 0.8 | C89: 0 | D89: 0 | E89: 0 | F89: 0 | G89: 0 | H89: 0 | I89: 0 | J89: 0 | K89: 0 | L89: 0 | M89: 0 | N89: 0 | O89: 0 | P89: 0.0004014452027 | Q89: 0 | R89: 0 | S89: 0 | T89: 0 | U89: 0.0004014452027 | V89: 0 | W89: 0 | X89: 0 | Y89: 0 | Z89: 0 | AA89: 0 | AB89: 0 | AC89: 0 | AD89: 0.0008028904055 | AE89: 0.0004014452027 | AF89: 0 | AG89: 0.0004014452027 | AH89: 0.0004014452027 | AI89: 0 | AJ89: 0 | AK89: 0.0004014452027 | AL89: 0.0008028904055 | AM89: 0.0004014452027 | AN89: 0 | AO89: 0.0004014452027 | AP89: 0.001204335608 | AQ89: 0.0008028904055 | AR89: 0.0008028904055 | AS89: 0.001204335608 | AT89: 0.001204335608 | AU89: 0.003211561622 | AV89: 0.002408671216 | AW89: 0.0004014452027 | AX89: 0.002007226014 | AY89: 0.001204335608 | AZ89: 0.001605780811 | BA89: 0.002408671216 | BB89: 0.002810116419 | BC89: 0.001204335608 | BD89: 0.002408671216 | BE89: 0.0008028904055 | BF89: 0.001605780811 | BG89: 0.002408671216 | BH89: 0.002810116419 | BI89: 0.001605780811 | BJ89: 0.003613006825 | BK89: 0.002007226014 | BL89: 0.00441589723 | BM89: 0.003211561622 | BN89: 0.00441589723 | BO89: 0.00441589723 | BP89: 0.005218787635 | BQ89: 0.002408671216 | BR89: 0.004014452027 | BS89: 0.003211561622 | BT89: 0.006423123244 | BU89: 0.007627458852 | BV89: 0.008430349257 | BW89: 0.009634684866 | BX89: 0.008028904055 | BY89: 0.01686069851 | BZ89: 0.01967081493 | CA89: 0.02689682858 | CB89: 0.04054596548 | CC89: 0.1079887595 | CD89: 0.3492573264 | CE89: 0.1344841429 | CF89: 0.04014452027 | CG89: 0.02609393818 | CH89: 0.02087515054 | CI89: 0.01565636291 | CJ89: 0.01244480128 | CK89: 0.008430349257 | CL89: 0.004817342433 | CM89: 0.009634684866 | CN89: 0.00441589723 | CO89: 0.003613006825 | CP89: 0.00441589723 | CQ89: 0.00441589723 | CR89: 0.001605780811 | CS89: 0.002408671216 | CT89: 0.0008028904055 | CU89: 0.001605780811 | CV89: 0.004014452027 | CW89: 0.003211561622 | CX89: 0.002408671216 | CY89: 0.01726214372
B90: 0.81 | C90: 0 | D90: 0 | E90: 0 | F90: 0 | G90: 0 | H90: 0 | I90: 0 | J90: 0 | K90: 0 | L90: 0 | M90: 0 | N90: 0 | O90: 0 | P90: 0 | Q90: 0 | R90: 0 | S90: 0 | T90: 0 | U90: 0 | V90: 0 | W90: 0 | X90: 0.0003444712367 | Y90: 0 | Z90: 0 | AA90: 0 | AB90: 0 | AC90: 0.0003444712367 | AD90: 0.0003444712367 | AE90: 0.0003444712367 | AF90: 0.0006889424733 | AG90: 0.0006889424733 | AH90: 0.0006889424733 | AI90: 0.0006889424733 | AJ90: 0 | AK90: 0.0006889424733 | AL90: 0 | AM90: 0.0006889424733 | AN90: 0.0003444712367 | AO90: 0.0006889424733 | AP90: 0.0006889424733 | AQ90: 0.0003444712367 | AR90: 0.0003444712367 | AS90: 0.00103341371 | AT90: 0.001722356183 | AU90: 0.0006889424733 | AV90: 0.0003444712367 | AW90: 0.001722356183 | AX90: 0.00103341371 | AY90: 0.00103341371 | AZ90: 0.001722356183 | BA90: 0.00103341371 | BB90: 0.002755769893 | BC90: 0.002755769893 | BD90: 0.00206682742 | BE90: 0.0006889424733 | BF90: 0.001722356183 | BG90: 0.0006889424733 | BH90: 0.001722356183 | BI90: 0.001377884947 | BJ90: 0.004478126076 | BK90: 0.001722356183 | BL90: 0.002411298657 | BM90: 0.00310024113 | BN90: 0.005511539786 | BO90: 0.002411298657 | BP90: 0.00413365484 | BQ90: 0.00310024113 | BR90: 0.004478126076 | BS90: 0.005511539786 | BT90: 0.00516706855 | BU90: 0.006889424733 | BV90: 0.00620048226 | BW90: 0.00723389597 | BX90: 0.009989665863 | BY90: 0.009645194626 | BZ90: 0.01377884947 | CA90: 0.01377884947 | CB90: 0.02135721667 | CC90: 0.03444712367 | CD90: 0.1098863245 | CE90: 0.3971753359 | CF90: 0.1212538753 | CG90: 0.0385807785 | CH90: 0.02686875646 | CI90: 0.01722356183 | CJ90: 0.01343437823 | CK90: 0.01205649328 | CL90: 0.009645194626 | CM90: 0.004822597313 | CN90: 0.007578367206 | CO90: 0.003789183603 | CP90: 0.006889424733 | CQ90: 0.00413365484 | CR90: 0.004478126076 | CS90: 0.002411298657 | CT90: 0.00310024113 | CU90: 0.001377884947 | CV90: 0.0006889424733 | CW90: 0.00103341371 | CX90: 0.001377884947 | CY90: 0.01481226318
B91: 0.82 | C91: 0 | D91: 0 | E91: 0 | F91: 0 | G91: 0 | H91: 0 | I91: 0 | J91: 0 | K91: 0 | L91: 0 | M91: 0 | N91: 0 | O91: 0 | P91: 0 | Q91: 0 | R91: 0.0003547357219 | S91: 0 | T91: 0 | U91: 0 | V91: 0 | W91: 0 | X91: 0 | Y91: 0 | Z91: 0.0003547357219 | AA91: 0 | AB91: 0.0003547357219 | AC91: 0.001064207166 | AD91: 0.0003547357219 | AE91: 0 | AF91: 0.0003547357219 | AG91: 0 | AH91: 0.0007094714438 | AI91: 0.0003547357219 | AJ91: 0.0007094714438 | AK91: 0.0003547357219 | AL91: 0.001064207166 | AM91: 0.001418942888 | AN91: 0.001418942888 | AO91: 0.002128414331 | AP91: 0.0007094714438 | AQ91: 0.0003547357219 | AR91: 0.001418942888 | AS91: 0.0003547357219 | AT91: 0.001064207166 | AU91: 0.0007094714438 | AV91: 0.002128414331 | AW91: 0.001418942888 | AX91: 0.001064207166 | AY91: 0.0003547357219 | AZ91: 0.0007094714438 | BA91: 0.002128414331 | BB91: 0.002837885775 | BC91: 0.002483150053 | BD91: 0.001064207166 | BE91: 0.0007094714438 | BF91: 0.001418942888 | BG91: 0.001418942888 | BH91: 0.001418942888 | BI91: 0.002483150053 | BJ91: 0.002837885775 | BK91: 0.002128414331 | BL91: 0.003192621497 | BM91: 0.001418942888 | BN91: 0.005321035828 | BO91: 0.004256828663 | BP91: 0.004611564385 | BQ91: 0.003547357219 | BR91: 0.003902092941 | BS91: 0.004966300106 | BT91: 0.004256828663 | BU91: 0.004611564385 | BV91: 0.004966300106 | BW91: 0.006739978716 | BX91: 0.00744945016 | BY91: 0.01241575027 | BZ91: 0.008513657325 | CA91: 0.01312522171 | CB91: 0.02057467187 | CC91: 0.02447676481 | CD91: 0.03653777935 | CE91: 0.1167080525 | CF91: 0.3731819794 | CG91: 0.1245122384 | CH91: 0.03866619369 | CI91: 0.02092940759 | CJ91: 0.01702731465 | CK91: 0.01099680738 | CL91: 0.01347995743 | CM91: 0.007804185882 | CN91: 0.008868393047 | CO91: 0.00744945016 | CP91: 0.00567577155 | CQ91: 0.002837885775 | CR91: 0.006030507272 | CS91: 0.002483150053 | CT91: 0.003192621497 | CU91: 0.002837885775 | CV91: 0.003547357219 | CW91: 0.001418942888 | CX91: 0.001064207166 | CY91: 0.01418942888
B92: 0.83 | C92: 0 | D92: 0 | E92: 0 | F92: 0 | G92: 0 | H92: 0 | I92: 0 | J92: 0 | K92: 0 | L92: 0 | M92: 0 | N92: 0 | O92: 0 | P92: 0 | Q92: 0 | R92: 0 | S92: 0 | T92: 0 | U92: 0 | V92: 0 | W92: 0 | X92: 0 | Y92: 0 | Z92: 0.0003278688525 | AA92: 0.0003278688525 | AB92: 0.0006557377049 | AC92: 0.0003278688525 | AD92: 0 | AE92: 0 | AF92: 0.0003278688525 | AG92: 0.0009836065574 | AH92: 0.0009836065574 | AI92: 0.0006557377049 | AJ92: 0.0003278688525 | AK92: 0.0006557377049 | AL92: 0.0003278688525 | AM92: 0.0006557377049 | AN92: 0 | AO92: 0.0009836065574 | AP92: 0 | AQ92: 0.00131147541 | AR92: 0.0009836065574 | AS92: 0.0009836065574 | AT92: 0.0003278688525 | AU92: 0.0006557377049 | AV92: 0.0003278688525 | AW92: 0.001639344262 | AX92: 0.0006557377049 | AY92: 0.00131147541 | AZ92: 0.0003278688525 | BA92: 0.0003278688525 | BB92: 0.001639344262 | BC92: 0.00262295082 | BD92: 0.0003278688525 | BE92: 0.001639344262 | BF92: 0.001639344262 | BG92: 0.001639344262 | BH92: 0.00131147541 | BI92: 0.0009836065574 | BJ92: 0.001967213115 | BK92: 0.003278688525 | BL92: 0.003278688525 | BM92: 0.003278688525 | BN92: 0.003278688525 | BO92: 0.001639344262 | BP92: 0.00393442623 | BQ92: 0.001967213115 | BR92: 0.001967213115 | BS92: 0.002950819672 | BT92: 0.00393442623 | BU92: 0.003606557377 | BV92: 0.006229508197 | BW92: 0.004590163934 | BX92: 0.005573770492 | BY92: 0.006229508197 | BZ92: 0.007868852459 | CA92: 0.0131147541 | CB92: 0.01245901639 | CC92: 0.01803278689 | CD92: 0.0206557377 | CE92: 0.03245901639 | CF92: 0.1127868852 | CG92: 0.4304918033 | CH92: 0.1121311475 | CI92: 0.03901639344 | CJ92: 0.01836065574 | CK92: 0.01540983607 | CL92: 0.01016393443 | CM92: 0.009508196721 | CN92: 0.006557377049 | CO92: 0.006557377049 | CP92: 0.006229508197 | CQ92: 0.00393442623 | CR92: 0.004590163934 | CS92: 0.002950819672 | CT92: 0.002950819672 | CU92: 0.001639344262 | CV92: 0.003606557377 | CW92: 0.00393442623 | CX92: 0.0006557377049 | CY92: 0.01803278689
B93: 0.84 | C93: 0 | D93: 0 | E93: 0 | F93: 0 | G93: 0 | H93: 0 | I93: 0 | J93: 0 | K93: 0 | L93: 0 | M93: 0 | N93: 0 | O93: 0 | P93: 0 | Q93: 0 | R93: 0 | S93: 0 | T93: 0 | U93: 0 | V93: 0 | W93: 0 | X93: 0 | Y93: 0 | Z93: 0.000366568915 | AA93: 0 | AB93: 0.000366568915 | AC93: 0 | AD93: 0.000366568915 | AE93: 0 | AF93: 0.000366568915 | AG93: 0 | AH93: 0 | AI93: 0 | AJ93: 0.000366568915 | AK93: 0 | AL93: 0 | AM93: 0.000366568915 | AN93: 0.0007331378299 | AO93: 0.000366568915 | AP93: 0.000366568915 | AQ93: 0.001832844575 | AR93: 0.00146627566 | AS93: 0.0007331378299 | AT93: 0.00219941349 | AU93: 0 | AV93: 0.0007331378299 | AW93: 0.00293255132 | AX93: 0.000366568915 | AY93: 0 | AZ93: 0.0007331378299 | BA93: 0.001832844575 | BB93: 0.001099706745 | BC93: 0.00146627566 | BD93: 0.00293255132 | BE93: 0.001099706745 | BF93: 0.002565982405 | BG93: 0.00146627566 | BH93: 0.001832844575 | BI93: 0.00146627566 | BJ93: 0.002565982405 | BK93: 0.003299120235 | BL93: 0.00146627566 | BM93: 0.002565982405 | BN93: 0.004765395894 | BO93: 0.00146627566 | BP93: 0.001832844575 | BQ93: 0.00293255132 | BR93: 0.00366568915 | BS93: 0.002565982405 | BT93: 0.004032258065 | BU93: 0.004765395894 | BV93: 0.006964809384 | BW93: 0.003299120235 | BX93: 0.007697947214 | BY93: 0.008431085044 | BZ93: 0.009897360704 | CA93: 0.007697947214 | CB93: 0.008064516129 | CC93: 0.01356304985 | CD93: 0.01612903226 | CE93: 0.02675953079 | CF93: 0.04362170088 | CG93: 0.1228005865 | CH93: 0.3541055718 | CI93: 0.1290322581 | CJ93: 0.04325513196 | CK93: 0.02272727273 | CL93: 0.01869501466 | CM93: 0.01246334311 | CN93: 0.01099706745 | CO93: 0.009530791789 | CP93: 0.007331378299 | CQ93: 0.005498533724 | CR93: 0.00366568915 | CS93: 0.005498533724 | CT93: 0.005498533724 | CU93: 0.00366568915 | CV93: 0.00366568915 | CW93: 0.00219941349 | CX93: 0.001099706745 | CY93: 0.01979472141
B94: 0.85 | C94: 0 | D94: 0 | E94: 0 | F94: 0 | G94: 0 | H94: 0 | I94: 0 | J94: 0 | K94: 0 | L94: 0 | M94: 0 | N94: 0 | O94: 0 | P94: 0 | Q94: 0 | R94: 0 | S94: 0 | T94: 0 | U94: 0 | V94: 0 | W94: 0 | X94: 0 | Y94: 0 | Z94: 0.0003832886163 | AA94: 0.0003832886163 | AB94: 0.0003832886163 | AC94: 0 | AD94: 0 | AE94: 0.0003832886163 | AF94: 0.0007665772327 | AG94: 0 | AH94: 0.0003832886163 | AI94: 0.0003832886163 | AJ94: 0 | AK94: 0.001149865849 | AL94: 0.0007665772327 | AM94: 0.0007665772327 | AN94: 0.0007665772327 | AO94: 0.0003832886163 | AP94: 0.001149865849 | AQ94: 0.001149865849 | AR94: 0.0007665772327 | AS94: 0.0003832886163 | AT94: 0.0003832886163 | AU94: 0.001149865849 | AV94: 0.001916443082 | AW94: 0.002299731698 | AX94: 0.001916443082 | AY94: 0.001149865849 | AZ94: 0.001916443082 | BA94: 0.001149865849 | BB94: 0.001149865849 | BC94: 0 | BD94: 0.003066308931 | BE94: 0.001533154465 | BF94: 0.003449597547 | BG94: 0.001533154465 | BH94: 0.00421617478 | BI94: 0.001149865849 | BJ94: 0.002683020314 | BK94: 0.003066308931 | BL94: 0.001149865849 | BM94: 0.003066308931 | BN94: 0.003066308931 | BO94: 0.001916443082 | BP94: 0.002683020314 | BQ94: 0.004982752012 | BR94: 0.003449597547 | BS94: 0.002299731698 | BT94: 0.003832886163 | BU94: 0.003449597547 | BV94: 0.005366040629 | BW94: 0.00421617478 | BX94: 0.00728248371 | BY94: 0.005366040629 | BZ94: 0.006899195094 | CA94: 0.007665772327 | CB94: 0.009582215408 | CC94: 0.01188194711 | CD94: 0.0164814105 | CE94: 0.02146416251 | CF94: 0.01839785358 | CG94: 0.03641241855 | CH94: 0.1333844385 | CI94: 0.3510923726 | CJ94: 0.1257186662 | CK94: 0.04101188195 | CL94: 0.0233806056 | CM94: 0.01686469912 | CN94: 0.01111536987 | CO94: 0.01034879264 | CP94: 0.006899195094 | CQ94: 0.006132617861 | CR94: 0.008049060943 | CS94: 0.005366040629 | CT94: 0.004982752012 | CU94: 0.004982752012 | CV94: 0.003832886163 | CW94: 0.004982752012 | CX94: 0.001533154465 | CY94: 0.01533154465
B95: 0.86 | C95: 0 | D95: 0 | E95: 0 | F95: 0 | G95: 0 | H95: 0 | I95: 0 | J95: 0 | K95: 0 | L95: 0 | M95: 0 | N95: 0 | O95: 0 | P95: 0 | Q95: 0 | R95: 0 | S95: 0 | T95: 0 | U95: 0 | V95: 0 | W95: 0 | X95: 0 | Y95: 0 | Z95: 0 | AA95: 0.0003767897513 | AB95: 0 | AC95: 0 | AD95: 0.0007535795026 | AE95: 0 | AF95: 0.0003767897513 | AG95: 0.0007535795026 | AH95: 0.0003767897513 | AI95: 0 | AJ95: 0.0007535795026 | AK95: 0.001130369254 | AL95: 0.0003767897513 | AM95: 0.001130369254 | AN95: 0.001130369254 | AO95: 0 | AP95: 0.001507159005 | AQ95: 0.001130369254 | AR95: 0.0007535795026 | AS95: 0.0003767897513 | AT95: 0.001130369254 | AU95: 0.001883948757 | AV95: 0.001507159005 | AW95: 0.0007535795026 | AX95: 0.001507159005 | AY95: 0.001130369254 | AZ95: 0.001130369254 | BA95: 0.003014318011 | BB95: 0.002637528259 | BC95: 0.0007535795026 | BD95: 0.002260738508 | BE95: 0.001507159005 | BF95: 0.003391107762 | BG95: 0.001130369254 | BH95: 0.0007535795026 | BI95: 0.001130369254 | BJ95: 0.002637528259 | BK95: 0.002260738508 | BL95: 0.002637528259 | BM95: 0.004521477016 | BN95: 0.002260738508 | BO95: 0.001507159005 | BP95: 0.001507159005 | BQ95: 0.00565184627 | BR95: 0.004144687265 | BS95: 0.004521477016 | BT95: 0.001883948757 | BU95: 0.002637528259 | BV95: 0.003767897513 | BW95: 0.001883948757 | BX95: 0.006782215524 | BY95: 0.005275056518 | BZ95: 0.003767897513 | CA95: 0.006405425772 | CB95: 0.008289374529 | CC95: 0.01168048229 | CD95: 0.01092690279 | CE95: 0.01431801055 | CF95: 0.02298417483 | CG95: 0.02373775433 | CH95: 0.04634513941 | CI95: 0.1183119819 | CJ95: 0.3447626225 | CK95: 0.1269781462 | CL95: 0.0433308214 | CM95: 0.02637528259 | CN95: 0.01356443105 | CO95: 0.01620195931 | CP95: 0.01130369254 | CQ95: 0.003767897513 | CR95: 0.006782215524 | CS95: 0.007912584778 | CT95: 0.004144687265 | CU95: 0.005275056518 | CV95: 0.006028636021 | CW95: 0.002637528259 | CX95: 0.003767897513 | CY95: 0.01996985682
B96: 0.87 | C96: 0 | D96: 0 | E96: 0 | F96: 0 | G96: 0 | H96: 0 | I96: 0 | J96: 0 | K96: 0 | L96: 0 | M96: 0 | N96: 0 | O96: 0 | P96: 0 | Q96: 0 | R96: 0 | S96: 0 | T96: 0 | U96: 0 | V96: 0 | W96: 0 | X96: 0 | Y96: 0 | Z96: 0.0004173622705 | AA96: 0 | AB96: 0 | AC96: 0 | AD96: 0 | AE96: 0 | AF96: 0.0008347245409 | AG96: 0.0008347245409 | AH96: 0 | AI96: 0.0004173622705 | AJ96: 0 | AK96: 0 | AL96: 0.001669449082 | AM96: 0.002086811352 | AN96: 0.001669449082 | AO96: 0.0004173622705 | AP96: 0.0004173622705 | AQ96: 0.002504173623 | AR96: 0 | AS96: 0.001252086811 | AT96: 0.002086811352 | AU96: 0.0008347245409 | AV96: 0.001252086811 | AW96: 0.001669449082 | AX96: 0.001252086811 | AY96: 0.0008347245409 | AZ96: 0.003338898164 | BA96: 0.0008347245409 | BB96: 0.002086811352 | BC96: 0.001669449082 | BD96: 0.001669449082 | BE96: 0.001669449082 | BF96: 0.002921535893 | BG96: 0.001252086811 | BH96: 0.002086811352 | BI96: 0.002086811352 | BJ96: 0.003338898164 | BK96: 0.002504173623 | BL96: 0.002086811352 | BM96: 0.002086811352 | BN96: 0.004173622705 | BO96: 0.001252086811 | BP96: 0.002504173623 | BQ96: 0.002921535893 | BR96: 0.002086811352 | BS96: 0.002921535893 | BT96: 0.005425709516 | BU96: 0.002504173623 | BV96: 0.004590984975 | BW96: 0.006677796327 | BX96: 0.004590984975 | BY96: 0.006677796327 | BZ96: 0.005425709516 | CA96: 0.006260434057 | CB96: 0.007512520868 | CC96: 0.006260434057 | CD96: 0.01210350584 | CE96: 0.0112687813 | CF96: 0.01252086811 | CG96: 0.0141903172 | CH96: 0.02295492487 | CI96: 0.03589315526 | CJ96: 0.1389816361 | CK96: 0.3226210351 | CL96: 0.1264607679 | CM96: 0.04757929883 | CN96: 0.02838063439 | CO96: 0.02003338898 | CP96: 0.01001669449 | CQ96: 0.00918196995 | CR96: 0.0141903172 | CS96: 0.008347245409 | CT96: 0.005425709516 | CU96: 0.004173622705 | CV96: 0.003756260434 | CW96: 0.003756260434 | CX96: 0.003338898164 | CY96: 0.02295492487
B97: 0.88 | C97: 0 | D97: 0 | E97: 0 | F97: 0 | G97: 0 | H97: 0 | I97: 0 | J97: 0 | K97: 0 | L97: 0 | M97: 0 | N97: 0 | O97: 0 | P97: 0 | Q97: 0 | R97: 0 | S97: 0 | T97: 0 | U97: 0 | V97: 0 | W97: 0 | X97: 0 | Y97: 0 | Z97: 0 | AA97: 0 | AB97: 0 | AC97: 0.0008594757198 | AD97: 0 | AE97: 0.0004297378599 | AF97: 0.0004297378599 | AG97: 0 | AH97: 0.0004297378599 | AI97: 0.0004297378599 | AJ97: 0.0008594757198 | AK97: 0.0004297378599 | AL97: 0.0004297378599 | AM97: 0.00128921358 | AN97: 0.00128921358 | AO97: 0.00128921358 | AP97: 0.0008594757198 | AQ97: 0.0004297378599 | AR97: 0.00171895144 | AS97: 0.00128921358 | AT97: 0.0004297378599 | AU97: 0.00128921358 | AV97: 0.00171895144 | AW97: 0.0004297378599 | AX97: 0.00128921358 | AY97: 0.00171895144 | AZ97: 0.00171895144 | BA97: 0.002578427159 | BB97: 0.00171895144 | BC97: 0.0004297378599 | BD97: 0.0021486893 | BE97: 0.00171895144 | BF97: 0.00128921358 | BG97: 0.00171895144 | BH97: 0.00128921358 | BI97: 0.004727116459 | BJ97: 0.003008165019 | BK97: 0.0021486893 | BL97: 0.0021486893 | BM97: 0.00171895144 | BN97: 0.003867640739 | BO97: 0.003867640739 | BP97: 0.0021486893 | BQ97: 0.003008165019 | BR97: 0.004727116459 | BS97: 0.003008165019 | BT97: 0.004727116459 | BU97: 0.002578427159 | BV97: 0.004727116459 | BW97: 0.005586592179 | BX97: 0.006016330039 | BY97: 0.007735281478 | BZ97: 0.0021486893 | CA97: 0.004727116459 | CB97: 0.007305543618 | CC97: 0.008165019338 | CD97: 0.01160292222 | CE97: 0.009883970778 | CF97: 0.009454232918 | CG97: 0.01590030082 | CH97: 0.02062741728 | CI97: 0.02277610657 | CJ97: 0.04598195101 | CK97: 0.1254834551 | CL97: 0.2973785991 | CM97: 0.1254834551 | CN97: 0.05113880533 | CO97: 0.02750322303 | CP97: 0.02449505801 | CQ97: 0.01804899012 | CR97: 0.0107434465 | CS97: 0.007305543618 | CT97: 0.007735281478 | CU97: 0.006446067899 | CV97: 0.003437902879 | CW97: 0.008165019338 | CX97: 0.006016330039 | CY97: 0.02234636872
B98: 0.89 | C98: 0 | D98: 0 | E98: 0 | F98: 0 | G98: 0 | H98: 0 | I98: 0 | J98: 0 | K98: 0 | L98: 0 | M98: 0 | N98: 0 | O98: 0 | P98: 0 | Q98: 0 | R98: 0 | S98: 0 | T98: 0 | U98: 0 | V98: 0 | W98: 0 | X98: 0 | Y98: 0 | Z98: 0.0009263547939 | AA98: 0.0004631773969 | AB98: 0 | AC98: 0 | AD98: 0 | AE98: 0 | AF98: 0.0004631773969 | AG98: 0.0009263547939 | AH98: 0.001389532191 | AI98: 0.001389532191 | AJ98: 0.001389532191 | AK98: 0.0009263547939 | AL98: 0.0004631773969 | AM98: 0.0009263547939 | AN98: 0 | AO98: 0 | AP98: 0.0009263547939 | AQ98: 0.001389532191 | AR98: 0.0009263547939 | AS98: 0.001389532191 | AT98: 0.001852709588 | AU98: 0.002779064382 | AV98: 0.001389532191 | AW98: 0.0009263547939 | AX98: 0.001852709588 | AY98: 0.001389532191 | AZ98: 0.0009263547939 | BA98: 0.003705419176 | BB98: 0.001389532191 | BC98: 0.001852709588 | BD98: 0.001389532191 | BE98: 0.0004631773969 | BF98: 0.0009263547939 | BG98: 0.001389532191 | BH98: 0.004631773969 | BI98: 0.001852709588 | BJ98: 0.001389532191 | BK98: 0.001389532191 | BL98: 0.0009263547939 | BM98: 0.002779064382 | BN98: 0.003242241779 | BO98: 0.001852709588 | BP98: 0.001852709588 | BQ98: 0.002779064382 | BR98: 0.004168596572 | BS98: 0.004168596572 | BT98: 0.00602130616 | BU98: 0.004631773969 | BV98: 0.005094951366 | BW98: 0.004631773969 | BX98: 0.003705419176 | BY98: 0.007874015748 | BZ98: 0.007410838351 | CA98: 0.009263547939 | CB98: 0.008800370542 | CC98: 0.01204261232 | CD98: 0.007410838351 | CE98: 0.009263547939 | CF98: 0.01065308013 | CG98: 0.009726725336 | CH98: 0.01621120889 | CI98: 0.01945345067 | CJ98: 0.02593793423 | CK98: 0.05789717462 | CL98: 0.1292264937 | CM98: 0.2630847615 | CN98: 0.1250578972 | CO98: 0.05511811024 | CP98: 0.02779064382 | CQ98: 0.02037980547 | CR98: 0.01065308013 | CS98: 0.008800370542 | CT98: 0.008800370542 | CU98: 0.00602130616 | CV98: 0.007410838351 | CW98: 0.004631773969 | CX98: 0.004168596572 | CY98: 0.03566465956
B99: 0.9 | C99: 0 | D99: 0 | E99: 0 | F99: 0 | G99: 0 | H99: 0 | I99: 0 | J99: 0 | K99: 0 | L99: 0 | M99: 0 | N99: 0 | O99: 0 | P99: 0 | Q99: 0 | R99: 0 | S99: 0 | T99: 0 | U99: 0 | V99: 0 | W99: 0 | X99: 0 | Y99: 0.0004814636495 | Z99: 0.0004814636495 | AA99: 0.0004814636495 | AB99: 0 | AC99: 0.000962927299 | AD99: 0.0004814636495 | AE99: 0 | AF99: 0.0004814636495 | AG99: 0 | AH99: 0.000962927299 | AI99: 0.000962927299 | AJ99: 0 | AK99: 0.001925854598 | AL99: 0.002407318247 | AM99: 0.0004814636495 | AN99: 0.000962927299 | AO99: 0 | AP99: 0.001925854598 | AQ99: 0.001925854598 | AR99: 0.0004814636495 | AS99: 0.000962927299 | AT99: 0 | AU99: 0.000962927299 | AV99: 0.001925854598 | AW99: 0.001444390948 | AX99: 0.001444390948 | AY99: 0.000962927299 | AZ99: 0.001925854598 | BA99: 0.000962927299 | BB99: 0.001925854598 | BC99: 0.001925854598 | BD99: 0.002888781897 | BE99: 0.000962927299 | BF99: 0.002888781897 | BG99: 0.003851709196 | BH99: 0.001925854598 | BI99: 0.002888781897 | BJ99: 0.001444390948 | BK99: 0.000962927299 | BL99: 0.001925854598 | BM99: 0.003370245546 | BN99: 0.003851709196 | BO99: 0.003851709196 | BP99: 0.004333172845 | BQ99: 0.001925854598 | BR99: 0.001925854598 | BS99: 0.005777563794 | BT99: 0.006740491093 | BU99: 0.003370245546 | BV99: 0.007221954742 | BW99: 0.005777563794 | BX99: 0.002888781897 | BY99: 0.005296100144 | BZ99: 0.006740491093 | CA99: 0.005777563794 | CB99: 0.007221954742 | CC99: 0.004333172845 | CD99: 0.006740491093 | CE99: 0.00914780934 | CF99: 0.00914780934 | CG99: 0.007703418392 | CH99: 0.01011073664 | CI99: 0.02118440058 | CJ99: 0.02118440058 | CK99: 0.02599903707 | CL99: 0.05296100144 | CM99: 0.1266249398 | CN99: 0.2599903707 | CO99: 0.1295137217 | CP99: 0.05199807415 | CQ99: 0.02744342802 | CR99: 0.01492537313 | CS99: 0.01396244584 | CT99: 0.01155512759 | CU99: 0.00962927299 | CV99: 0.01155512759 | CW99: 0.008184882041 | CX99: 0.004333172845 | CY99: 0.03610977371
B100: 0.91 | C100: 0 | D100: 0 | E100: 0 | F100: 0 | G100: 0 | H100: 0 | I100: 0 | J100: 0 | K100: 0 | L100: 0 | M100: 0 | N100: 0 | O100: 0 | P100: 0 | Q100: 0 | R100: 0 | S100: 0 | T100: 0 | U100: 0 | V100: 0 | W100: 0.0005007511267 | X100: 0 | Y100: 0 | Z100: 0 | AA100: 0.0005007511267 | AB100: 0.0005007511267 | AC100: 0.00150225338 | AD100: 0.0005007511267 | AE100: 0 | AF100: 0 | AG100: 0.0005007511267 | AH100: 0.001001502253 | AI100: 0.001001502253 | AJ100: 0.001001502253 | AK100: 0.00150225338 | AL100: 0.00150225338 | AM100: 0 | AN100: 0.0005007511267 | AO100: 0.001001502253 | AP100: 0.001001502253 | AQ100: 0.0005007511267 | AR100: 0.0005007511267 | AS100: 0.0005007511267 | AT100: 0.002503755633 | AU100: 0.0005007511267 | AV100: 0.002503755633 | AW100: 0.0005007511267 | AX100: 0.001001502253 | AY100: 0.002003004507 | AZ100: 0.00150225338 | BA100: 0.002003004507 | BB100: 0 | BC100: 0 | BD100: 0.00150225338 | BE100: 0.002503755633 | BF100: 0.002503755633 | BG100: 0.00300450676 | BH100: 0.002503755633 | BI100: 0.001001502253 | BJ100: 0.002503755633 | BK100: 0.002003004507 | BL100: 0.00300450676 | BM100: 0.002003004507 | BN100: 0.002503755633 | BO100: 0.003505257887 | BP100: 0.00300450676 | BQ100: 0.002503755633 | BR100: 0.002503755633 | BS100: 0.004006009014 | BT100: 0.004006009014 | BU100: 0.005508262394 | BV100: 0.004006009014 | BW100: 0.0075112669 | BX100: 0.005007511267 | BY100: 0.00450676014 | BZ100: 0.004006009014 | CA100: 0.0075112669 | CB100: 0.006509764647 | CC100: 0.007010515774 | CD100: 0.00600901352 | CE100: 0.00901352028 | CF100: 0.007010515774 | CG100: 0.008012018027 | CH100: 0.01101652479 | CI100: 0.01852779169 | CJ100: 0.01952929394 | CK100: 0.01852779169 | CL100: 0.0430645969 | CM100: 0.05157736605 | CN100: 0.1321982974 | CO100: 0.2478718077 | CP100: 0.1081622434 | CQ100: 0.0505758638 | CR100: 0.0225338007 | CS100: 0.02653980971 | CT100: 0.01352028042 | CU100: 0.01602403605 | CV100: 0.01301952929 | CW100: 0.00300450676 | CX100: 0.00450676014 | CY100: 0.04707060591
B101: 0.92 | C101: 0 | D101: 0 | E101: 0 | F101: 0 | G101: 0 | H101: 0 | I101: 0 | J101: 0 | K101: 0 | L101: 0 | M101: 0 | N101: 0 | O101: 0 | P101: 0 | Q101: 0 | R101: 0 | S101: 0 | T101: 0 | U101: 0 | V101: 0 | W101: 0 | X101: 0 | Y101: 0 | Z101: 0 | AA101: 0 | AB101: 0 | AC101: 0 | AD101: 0.0005747126437 | AE101: 0 | AF101: 0.0005747126437 | AG101: 0 | AH101: 0.0005747126437 | AI101: 0.0005747126437 | AJ101: 0 | AK101: 0.001149425287 | AL101: 0.003448275862 | AM101: 0 | AN101: 0.0005747126437 | AO101: 0.001724137931 | AP101: 0.001149425287 | AQ101: 0.001149425287 | AR101: 0.0005747126437 | AS101: 0.002298850575 | AT101: 0 | AU101: 0.0005747126437 | AV101: 0.001149425287 | AW101: 0.001724137931 | AX101: 0.001724137931 | AY101: 0.001149425287 | AZ101: 0.0005747126437 | BA101: 0.001724137931 | BB101: 0.001149425287 | BC101: 0.001724137931 | BD101: 0.003448275862 | BE101: 0.002298850575 | BF101: 0.001149425287 | BG101: 0.002873563218 | BH101: 0.002298850575 | BI101: 0.001724137931 | BJ101: 0.002873563218 | BK101: 0.003448275862 | BL101: 0.002873563218 | BM101: 0.003448275862 | BN101: 0.002873563218 | BO101: 0.002873563218 | BP101: 0.004022988506 | BQ101: 0.003448275862 | BR101: 0.001724137931 | BS101: 0.004597701149 | BT101: 0.005172413793 | BU101: 0.005172413793 | BV101: 0.004597701149 | BW101: 0.00632183908 | BX101: 0.002873563218 | BY101: 0.002298850575 | BZ101: 0.004022988506 | CA101: 0.008620689655 | CB101: 0.00632183908 | CC101: 0.008620689655 | CD101: 0.007471264368 | CE101: 0.007471264368 | CF101: 0.009195402299 | CG101: 0.01091954023 | CH101: 0.0132183908 | CI101: 0.01149425287 | CJ101: 0.01551724138 | CK101: 0.0183908046 | CL101: 0.01954022989 | CM101: 0.03275862069 | CN101: 0.05172413793 | CO101: 0.1333333333 | CP101: 0.2103448276 | CQ101: 0.1287356322 | CR101: 0.05747126437 | CS101: 0.02816091954 | CT101: 0.02126436782 | CU101: 0.01896551724 | CV101: 0.01379310345 | CW101: 0.0132183908 | CX101: 0.005747126437 | CY101: 0.04540229885
B102: 0.93 | C102: 0 | D102: 0 | E102: 0 | F102: 0 | G102: 0 | H102: 0 | I102: 0 | J102: 0 | K102: 0 | L102: 0 | M102: 0 | N102: 0 | O102: 0 | P102: 0 | Q102: 0 | R102: 0 | S102: 0 | T102: 0 | U102: 0 | V102: 0 | W102: 0 | X102: 0 | Y102: 0 | Z102: 0 | AA102: 0 | AB102: 0.000550660793 | AC102: 0.000550660793 | AD102: 0 | AE102: 0 | AF102: 0 | AG102: 0 | AH102: 0.000550660793 | AI102: 0.001101321586 | AJ102: 0 | AK102: 0.001651982379 | AL102: 0.000550660793 | AM102: 0 | AN102: 0.000550660793 | AO102: 0.000550660793 | AP102: 0.001101321586 | AQ102: 0.000550660793 | AR102: 0 | AS102: 0.000550660793 | AT102: 0.001101321586 | AU102: 0.001101321586 | AV102: 0.001101321586 | AW102: 0.001651982379 | AX102: 0.001101321586 | AY102: 0 | AZ102: 0.001101321586 | BA102: 0.001651982379 | BB102: 0.001101321586 | BC102: 0.002202643172 | BD102: 0.002753303965 | BE102: 0.001651982379 | BF102: 0.002753303965 | BG102: 0.002753303965 | BH102: 0.003303964758 | BI102: 0.001651982379 | BJ102: 0.002202643172 | BK102: 0.003303964758 | BL102: 0.002202643172 | BM102: 0.001651982379 | BN102: 0.003854625551 | BO102: 0.001101321586 | BP102: 0.000550660793 | BQ102: 0.004405286344 | BR102: 0.000550660793 | BS102: 0.002753303965 | BT102: 0.004405286344 | BU102: 0.003854625551 | BV102: 0.003303964758 | BW102: 0.003854625551 | BX102: 0.001651982379 | BY102: 0.004955947137 | BZ102: 0.004955947137 | CA102: 0.003854625551 | CB102: 0.008259911894 | CC102: 0.00550660793 | CD102: 0.004405286344 | CE102: 0.004955947137 | CF102: 0.007158590308 | CG102: 0.006607929515 | CH102: 0.007709251101 | CI102: 0.008810572687 | CJ102: 0.00936123348 | CK102: 0.01431718062 | CL102: 0.01486784141 | CM102: 0.02257709251 | CN102: 0.03248898678 | CO102: 0.04625550661 | CP102: 0.1189427313 | CQ102: 0.2511013216 | CR102: 0.1514317181 | CS102: 0.05396475771 | CT102: 0.04185022026 | CU102: 0.01927312775 | CV102: 0.01376651982 | CW102: 0.008259911894 | CX102: 0.007709251101 | CY102: 0.05176211454
B103: 0.94 | C103: 0 | D103: 0 | E103: 0 | F103: 0 | G103: 0 | H103: 0 | I103: 0 | J103: 0 | K103: 0 | L103: 0 | M103: 0 | N103: 0 | O103: 0 | P103: 0 | Q103: 0 | R103: 0 | S103: 0 | T103: 0 | U103: 0 | V103: 0 | W103: 0 | X103: 0 | Y103: 0 | Z103: 0 | AA103: 0 | AB103: 0 | AC103: 0 | AD103: 0 | AE103: 0 | AF103: 0 | AG103: 0 | AH103: 0 | AI103: 0 | AJ103: 0 | AK103: 0 | AL103: 0.001031991744 | AM103: 0.000515995872 | AN103: 0.002063983488 | AO103: 0.001031991744 | AP103: 0.000515995872 | AQ103: 0.001031991744 | AR103: 0.002063983488 | AS103: 0.002063983488 | AT103: 0.002063983488 | AU103: 0.001031991744 | AV103: 0.001031991744 | AW103: 0.000515995872 | AX103: 0.001031991744 | AY103: 0.001547987616 | AZ103: 0.000515995872 | BA103: 0.001031991744 | BB103: 0.001547987616 | BC103: 0.001031991744 | BD103: 0.001547987616 | BE103: 0.001547987616 | BF103: 0.002063983488 | BG103: 0.00257997936 | BH103: 0.001031991744 | BI103: 0.002063983488 | BJ103: 0.001547987616 | BK103: 0.00257997936 | BL103: 0.00257997936 | BM103: 0.00257997936 | BN103: 0.00257997936 | BO103: 0.00257997936 | BP103: 0.002063983488 | BQ103: 0.003095975232 | BR103: 0.004127966976 | BS103: 0.004127966976 | BT103: 0.003095975232 | BU103: 0.004127966976 | BV103: 0.006191950464 | BW103: 0.00257997936 | BX103: 0.004127966976 | BY103: 0.003095975232 | BZ103: 0.007223942208 | CA103: 0.004127966976 | CB103: 0.003095975232 | CC103: 0.004127966976 | CD103: 0.00257997936 | CE103: 0.004127966976 | CF103: 0.006707946336 | CG103: 0.003611971104 | CH103: 0.008255933953 | CI103: 0.01135190918 | CJ103: 0.00773993808 | CK103: 0.01031991744 | CL103: 0.01599587203 | CM103: 0.01393188854 | CN103: 0.02270381837 | CO103: 0.02837977296 | CP103: 0.04695562436 | CQ103: 0.1243550052 | CR103: 0.2770897833 | CS103: 0.1413828689 | CT103: 0.04901960784 | CU103: 0.02476780186 | CV103: 0.01651186791 | CW103: 0.01238390093 | CX103: 0.01238390093 | CY103: 0.0572755418
B104: 0.95 | C104: 0 | D104: 0 | E104: 0 | F104: 0 | G104: 0 | H104: 0 | I104: 0 | J104: 0 | K104: 0 | L104: 0 | M104: 0 | N104: 0 | O104: 0 | P104: 0 | Q104: 0 | R104: 0 | S104: 0 | T104: 0 | U104: 0 | V104: 0.0005422993492 | W104: 0 | X104: 0 | Y104: 0 | Z104: 0 | AA104: 0 | AB104: 0 | AC104: 0 | AD104: 0 | AE104: 0 | AF104: 0.0005422993492 | AG104: 0 | AH104: 0.0005422993492 | AI104: 0.001084598698 | AJ104: 0 | AK104: 0 | AL104: 0 | AM104: 0 | AN104: 0.0005422993492 | AO104: 0 | AP104: 0.0005422993492 | AQ104: 0.0005422993492 | AR104: 0.001084598698 | AS104: 0.0005422993492 | AT104: 0.002169197397 | AU104: 0 | AV104: 0.001084598698 | AW104: 0.0005422993492 | AX104: 0.001626898048 | AY104: 0.001626898048 | AZ104: 0.0005422993492 | BA104: 0 | BB104: 0.002169197397 | BC104: 0 | BD104: 0 | BE104: 0.001626898048 | BF104: 0.001626898048 | BG104: 0.0005422993492 | BH104: 0.001626898048 | BI104: 0.0005422993492 | BJ104: 0.002711496746 | BK104: 0.004338394794 | BL104: 0.002169197397 | BM104: 0.001084598698 | BN104: 0.003253796095 | BO104: 0.003796095445 | BP104: 0.001626898048 | BQ104: 0.001626898048 | BR104: 0.001626898048 | BS104: 0.002169197397 | BT104: 0.004880694143 | BU104: 0.001626898048 | BV104: 0.001626898048 | BW104: 0.004880694143 | BX104: 0.003253796095 | BY104: 0.005422993492 | BZ104: 0.003796095445 | CA104: 0.005965292842 | CB104: 0.004880694143 | CC104: 0.004880694143 | CD104: 0.004338394794 | CE104: 0.004880694143 | CF104: 0.00704989154 | CG104: 0.005422993492 | CH104: 0.004338394794 | CI104: 0.002711496746 | CJ104: 0.00704989154 | CK104: 0.006507592191 | CL104: 0.01626898048 | CM104: 0.01030368764 | CN104: 0.01572668113 | CO104: 0.01518438178 | CP104: 0.0330802603 | CQ104: 0.04609544469 | CR104: 0.1361171367 | CS104: 0.2901301518 | CT104: 0.1198481562 | CU104: 0.05477223427 | CV104: 0.03145336226 | CW104: 0.01898047722 | CX104: 0.01518438178 | CY104: 0.06724511931
B105: 0.96 | C105: 0 | D105: 0 | E105: 0 | F105: 0 | G105: 0 | H105: 0 | I105: 0 | J105: 0 | K105: 0 | L105: 0 | M105: 0 | N105: 0 | O105: 0 | P105: 0 | Q105: 0 | R105: 0 | S105: 0 | T105: 0 | U105: 0 | V105: 0 | W105: 0 | X105: 0 | Y105: 0 | Z105: 0 | AA105: 0 | AB105: 0.0006476683938 | AC105: 0 | AD105: 0 | AE105: 0 | AF105: 0 | AG105: 0 | AH105: 0 | AI105: 0 | AJ105: 0 | AK105: 0.0006476683938 | AL105: 0.001943005181 | AM105: 0 | AN105: 0 | AO105: 0 | AP105: 0 | AQ105: 0.0006476683938 | AR105: 0 | AS105: 0 | AT105: 0.0006476683938 | AU105: 0.002590673575 | AV105: 0.0006476683938 | AW105: 0.0006476683938 | AX105: 0.001295336788 | AY105: 0.001943005181 | AZ105: 0.0006476683938 | BA105: 0.001943005181 | BB105: 0.0006476683938 | BC105: 0.001943005181 | BD105: 0.001943005181 | BE105: 0.002590673575 | BF105: 0.001295336788 | BG105: 0.001943005181 | BH105: 0.003238341969 | BI105: 0.0006476683938 | BJ105: 0.002590673575 | BK105: 0.003238341969 | BL105: 0.001295336788 | BM105: 0.003238341969 | BN105: 0.003238341969 | BO105: 0.001943005181 | BP105: 0.0006476683938 | BQ105: 0.003886010363 | BR105: 0.005829015544 | BS105: 0.003238341969 | BT105: 0.003886010363 | BU105: 0.004533678756 | BV105: 0.003238341969 | BW105: 0.004533678756 | BX105: 0.003886010363 | BY105: 0.003238341969 | BZ105: 0.003886010363 | CA105: 0.003886010363 | CB105: 0.001943005181 | CC105: 0.00518134715 | CD105: 0.003238341969 | CE105: 0.003238341969 | CF105: 0.009067357513 | CG105: 0.008419689119 | CH105: 0.005829015544 | CI105: 0.009067357513 | CJ105: 0.01165803109 | CK105: 0.01230569948 | CL105: 0.007124352332 | CM105: 0.01295336788 | CN105: 0.01943005181 | CO105: 0.02007772021 | CP105: 0.02590673575 | CQ105: 0.03950777202 | CR105: 0.0524611399 | CS105: 0.1288860104 | CT105: 0.210492228 | CU105: 0.128238342 | CV105: 0.05699481865 | CW105: 0.03886010363 | CX105: 0.02202072539 | CY105: 0.07836787565
B106: 0.97 | C106: 0 | D106: 0 | E106: 0 | F106: 0 | G106: 0 | H106: 0 | I106: 0 | J106: 0 | K106: 0 | L106: 0 | M106: 0 | N106: 0 | O106: 0 | P106: 0 | Q106: 0 | R106: 0 | S106: 0 | T106: 0 | U106: 0 | V106: 0 | W106: 0 | X106: 0 | Y106: 0 | Z106: 0 | AA106: 0 | AB106: 0 | AC106: 0 | AD106: 0 | AE106: 0 | AF106: 0 | AG106: 0.0006825938567 | AH106: 0.0006825938567 | AI106: 0 | AJ106: 0 | AK106: 0 | AL106: 0.001365187713 | AM106: 0.0006825938567 | AN106: 0.0006825938567 | AO106: 0 | AP106: 0.001365187713 | AQ106: 0.0006825938567 | AR106: 0.0006825938567 | AS106: 0.0006825938567 | AT106: 0.001365187713 | AU106: 0.0006825938567 | AV106: 0.0006825938567 | AW106: 0.001365187713 | AX106: 0.00204778157 | AY106: 0.00204778157 | AZ106: 0.001365187713 | BA106: 0.00204778157 | BB106: 0.00204778157 | BC106: 0.003412969283 | BD106: 0.003412969283 | BE106: 0.0006825938567 | BF106: 0.00204778157 | BG106: 0.001365187713 | BH106: 0.003412969283 | BI106: 0 | BJ106: 0.00204778157 | BK106: 0.003412969283 | BL106: 0.004778156997 | BM106: 0.00204778157 | BN106: 0.002730375427 | BO106: 0.00409556314 | BP106: 0.005460750853 | BQ106: 0.003412969283 | BR106: 0.002730375427 | BS106: 0.005460750853 | BT106: 0.002730375427 | BU106: 0.004778156997 | BV106: 0.003412969283 | BW106: 0.00204778157 | BX106: 0.00409556314 | BY106: 0.002730375427 | BZ106: 0.005460750853 | CA106: 0.004778156997 | CB106: 0.005460750853 | CC106: 0.007508532423 | CD106: 0.004778156997 | CE106: 0.00409556314 | CF106: 0.007508532423 | CG106: 0.00614334471 | CH106: 0.007508532423 | CI106: 0.004778156997 | CJ106: 0.005460750853 | CK106: 0.005460750853 | CL106: 0.01433447099 | CM106: 0.01228668942 | CN106: 0.01911262799 | CO106: 0.0204778157 | CP106: 0.02116040956 | CQ106: 0.0204778157 | CR106: 0.04368600683 | CS106: 0.05802047782 | CT106: 0.1119453925 | CU106: 0.185665529 | CV106: 0.1358361775 | CW106: 0.06348122867 | CX106: 0.02662116041 | CY106: 0.1064846416
B107: 0.98 | C107: 0 | D107: 0 | E107: 0 | F107: 0 | G107: 0 | H107: 0 | I107: 0 | J107: 0 | K107: 0 | L107: 0 | M107: 0 | N107: 0 | O107: 0 | P107: 0 | Q107: 0 | R107: 0 | S107: 0 | T107: 0 | U107: 0 | V107: 0 | W107: 0 | X107: 0 | Y107: 0 | Z107: 0 | AA107: 0 | AB107: 0 | AC107: 0 | AD107: 0 | AE107: 0 | AF107: 0 | AG107: 0.000718907261 | AH107: 0.000718907261 | AI107: 0 | AJ107: 0 | AK107: 0 | AL107: 0.000718907261 | AM107: 0 | AN107: 0.000718907261 | AO107: 0.001437814522 | AP107: 0 | AQ107: 0.002156721783 | AR107: 0 | AS107: 0 | AT107: 0.000718907261 | AU107: 0.003594536305 | AV107: 0.000718907261 | AW107: 0.000718907261 | AX107: 0.002156721783 | AY107: 0.000718907261 | AZ107: 0.002156721783 | BA107: 0.002156721783 | BB107: 0.002156721783 | BC107: 0.002875629044 | BD107: 0 | BE107: 0.002875629044 | BF107: 0.001437814522 | BG107: 0.000718907261 | BH107: 0.002156721783 | BI107: 0.002156721783 | BJ107: 0.002156721783 | BK107: 0.000718907261 | BL107: 0.002156721783 | BM107: 0.003594536305 | BN107: 0.003594536305 | BO107: 0.002156721783 | BP107: 0.002156721783 | BQ107: 0.002156721783 | BR107: 0.003594536305 | BS107: 0.003594536305 | BT107: 0.002156721783 | BU107: 0.001437814522 | BV107: 0.004313443566 | BW107: 0.005751258088 | BX107: 0.000718907261 | BY107: 0.005751258088 | BZ107: 0.002156721783 | CA107: 0.004313443566 | CB107: 0.003594536305 | CC107: 0.000718907261 | CD107: 0.005751258088 | CE107: 0.00718907261 | CF107: 0.006470165349 | CG107: 0.004313443566 | CH107: 0.004313443566 | CI107: 0.00718907261 | CJ107: 0.006470165349 | CK107: 0.006470165349 | CL107: 0.009345794393 | CM107: 0.007907979871 | CN107: 0.01150251618 | CO107: 0.007907979871 | CP107: 0.01509705248 | CQ107: 0.02659956866 | CR107: 0.02156721783 | CS107: 0.03666427031 | CT107: 0.05751258088 | CU107: 0.129403307 | CV107: 0.1768511862 | CW107: 0.1365923796 | CX107: 0.07404744788 | CY107: 0.1502516175
B108: 0.99 | C108: 0 | D108: 0 | E108: 0 | F108: 0 | G108: 0 | H108: 0 | I108: 0 | J108: 0 | K108: 0 | L108: 0 | M108: 0 | N108: 0 | O108: 0 | P108: 0 | Q108: 0 | R108: 0 | S108: 0 | T108: 0 | U108: 0 | V108: 0 | W108: 0 | X108: 0 | Y108: 0 | Z108: 0 | AA108: 0 | AB108: 0 | AC108: 0 | AD108: 0 | AE108: 0 | AF108: 0 | AG108: 0 | AH108: 0 | AI108: 0 | AJ108: 0 | AK108: 0 | AL108: 0 | AM108: 0 | AN108: 0.0006896551724 | AO108: 0 | AP108: 0.0006896551724 | AQ108: 0.0006896551724 | AR108: 0 | AS108: 0.001379310345 | AT108: 0 | AU108: 0.002068965517 | AV108: 0 | AW108: 0.0006896551724 | AX108: 0 | AY108: 0.001379310345 | AZ108: 0.00275862069 | BA108: 0 | BB108: 0.002068965517 | BC108: 0.0006896551724 | BD108: 0.001379310345 | BE108: 0.001379310345 | BF108: 0.001379310345 | BG108: 0.0006896551724 | BH108: 0.0006896551724 | BI108: 0.005517241379 | BJ108: 0.0006896551724 | BK108: 0.001379310345 | BL108: 0.001379310345 | BM108: 0.003448275862 | BN108: 0.004137931034 | BO108: 0.00275862069 | BP108: 0.00275862069 | BQ108: 0.00275862069 | BR108: 0.001379310345 | BS108: 0.004137931034 | BT108: 0.001379310345 | BU108: 0.00275862069 | BV108: 0.00275862069 | BW108: 0.003448275862 | BX108: 0.00275862069 | BY108: 0.004137931034 | BZ108: 0.006896551724 | CA108: 0.0006896551724 | CB108: 0.004137931034 | CC108: 0.006206896552 | CD108: 0.001379310345 | CE108: 0.00275862069 | CF108: 0.003448275862 | CG108: 0.006896551724 | CH108: 0.003448275862 | CI108: 0.006896551724 | CJ108: 0.006206896552 | CK108: 0.01103448276 | CL108: 0.008965517241 | CM108: 0.006896551724 | CN108: 0.008275862069 | CO108: 0.01517241379 | CP108: 0.01103448276 | CQ108: 0.0124137931 | CR108: 0.01586206897 | CS108: 0.0275862069 | CT108: 0.04137931034 | CU108: 0.06 | CV108: 0.1165517241 | CW108: 0.2489655172 | CX108: 0.1282758621 | CY108: 0.1724137931
B109: 1 | C109: 0 | D109: 0 | E109: 0 | F109: 0 | G109: 0 | H109: 0 | I109: 0 | J109: 0 | K109: 0 | L109: 0 | M109: 0 | N109: 0 | O109: 0 | P109: 0 | Q109: 0 | R109: 0 | S109: 0 | T109: 0 | U109: 0 | V109: 0 | W109: 0 | X109: 0 | Y109: 0 | Z109: 0 | AA109: 0 | AB109: 0 | AC109: 0 | AD109: 0 | AE109: 0 | AF109: 0 | AG109: 0 | AH109: 0 | AI109: 0 | AJ109: 0 | AK109: 0.0007396449704 | AL109: 0 | AM109: 0 | AN109: 0.0007396449704 | AO109: 0.0007396449704 | AP109: 0 | AQ109: 0 | AR109: 0.0007396449704 | AS109: 0.0007396449704 | AT109: 0 | AU109: 0.0007396449704 | AV109: 0.002218934911 | AW109: 0.0007396449704 | AX109: 0.001479289941 | AY109: 0 | AZ109: 0.001479289941 | BA109: 0.001479289941 | BB109: 0.002218934911 | BC109: 0.0007396449704 | BD109: 0.003698224852 | BE109: 0 | BF109: 0.002218934911 | BG109: 0.0007396449704 | BH109: 0.0007396449704 | BI109: 0 | BJ109: 0.0007396449704 | BK109: 0.001479289941 | BL109: 0.002218934911 | BM109: 0 | BN109: 0.002958579882 | BO109: 0.002218934911 | BP109: 0.003698224852 | BQ109: 0.002218934911 | BR109: 0.005917159763 | BS109: 0.004437869822 | BT109: 0.001479289941 | BU109: 0.004437869822 | BV109: 0.002218934911 | BW109: 0.004437869822 | BX109: 0 | BY109: 0.002958579882 | BZ109: 0.004437869822 | CA109: 0.002218934911 | CB109: 0.004437869822 | CC109: 0.002218934911 | CD109: 0.002218934911 | CE109: 0.002218934911 | CF109: 0.003698224852 | CG109: 0.005177514793 | CH109: 0.002218934911 | CI109: 0.005177514793 | CJ109: 0.005177514793 | CK109: 0.001479289941 | CL109: 0.001479289941 | CM109: 0.008136094675 | CN109: 0.005917159763 | CO109: 0.009615384615 | CP109: 0.01183431953 | CQ109: 0.01405325444 | CR109: 0.01479289941 | CS109: 0.02071005917 | CT109: 0.02514792899 | CU109: 0.03402366864 | CV109: 0.0525147929 | CW109: 0.1323964497 | CX109: 0.2477810651 | CY109: 0.3173076923
B110: Clear | C110: 0 | D110: 0 | E110: 0 | F110: 0 | G110: 0 | H110: 0 | I110: 0 | J110: 0 | K110: 0 | L110: 0 | M110: 0 | N110: 0 | O110: 0 | P110: 0 | Q110: 0 | R110: 0 | S110: 0 | T110: 0 | U110: 0 | V110: 0 | W110: 0 | X110: 0 | Y110: 0 | Z110: 0 | AA110: 0 | AB110: 2.964368293e-05 | AC110: 0 | AD110: 0 | AE110: 2.964368293e-05 | AF110: 0 | AG110: 0 | AH110: 5.928736586e-05 | AI110: 0 | AJ110: 5.928736586e-05 | AK110: 2.964368293e-05 | AL110: 0 | AM110: 8.893104879e-05 | AN110: 2.964368293e-05 | AO110: 8.893104879e-05 | AP110: 2.964368293e-05 | AQ110: 5.928736586e-05 | AR110: 0.0002371494634 | AS110: 8.893104879e-05 | AT110: 0.0002075057805 | AU110: 0.0001482184147 | AV110: 0.0002075057805 | AW110: 0.0001482184147 | AX110: 0.0002667931464 | AY110: 8.893104879e-05 | AZ110: 0.0002667931464 | BA110: 0.0002075057805 | BB110: 0.0002371494634 | BC110: 0.0003853678781 | BD110: 0.0004742989269 | BE110: 0.0002667931464 | BF110: 0.0003557241952 | BG110: 0.0003853678781 | BH110: 0.0005632299757 | BI110: 0.0005039426098 | BJ110: 0.000444655244 | BK110: 0.0005335862928 | BL110: 0.0005928736586 | BM110: 0.0006521610245 | BN110: 0.0003853678781 | BO110: 0.0008003794391 | BP110: 0.0007114483903 | BQ110: 0.0008893104879 | BR110: 0.0005928736586 | BS110: 0.0007410920733 | BT110: 0.0007707357562 | BU110: 0.0008300231221 | BV110: 0.001067172586 | BW110: 0.0008893104879 | BX110: 0.00100788522 | BY110: 0.0009189541709 | BZ110: 0.00100788522 | CA110: 0.001185747317 | CB110: 0.001037528903 | CC110: 0.001393253098 | CD110: 0.001126459951 | CE110: 0.00100788522 | CF110: 0.001660046244 | CG110: 0.001660046244 | CH110: 0.00171933361 | CI110: 0.001630402561 | CJ110: 0.001541471512 | CK110: 0.001867552025 | CL110: 0.00171933361 | CM110: 0.002460425683 | CN110: 0.00222327622 | CO110: 0.002845793561 | CP110: 0.002401138317 | CQ110: 0.002905080927 | CR110: 0.003260805122 | CS110: 0.003171874074 | CT110: 0.003883322464 | CU110: 0.005543368708 | CV110: 0.00586944922 | CW110: 0.007292346001 | CX110: 0.01182782949 | CY110: 0.9103871465

Sheet appliances
B1: Appliance Model Configuration
F2: Calibration | H2: 1 | I2: (Note: Use Solver to vary this value such that the average total in cell AA47 is set to the required value.)
F3: Mean active occupancy | H3: 0.45865001 | I3: (The overall average active occupancy for a dwelling.)
B7: Appliance category | C7: Appliance type | D7: Dwelling | E7: Proportion | F7: Appliance Demand Configuration | P7: Proportion of | R7: Mean time
D8: configuration | E8: of dwellings | P8: time when | R8: between | AA8: Overall average | AB8: Appliance
E9: with | L9: Mean cycle | N9: Time not | O9: Active | P9: starts can | Q9: Minutes in year | R9: start events | V9: Average | AA9: per dwelling taking | AB9: mean
D10: Has appliance? | E10: appliance | F10: Base | G10: Calibrated | H10: Mean | I10: Mean cycle | J10: Standby | K10: Delay restart | L10: energy | M10: Time running | N10: running | O10: occupancy | P10: occur due to | Q10: when event | R10: given | U10: Activity use | V10: activity | W10: Calibration | X10: Energy used | Y10: Energy used | Z10: Total | AA10: ownership into | AB10: power
F11: cycles/y | G11: cycles/y | H11: cycle length | I11: power | J11: Power | K11: after cycle | L11: demand | M11: in a year | N11: in a year | O11: dependent | P11: occupancy | Q11: can start | R11: occupancy | S11: Lambda | T11: Short name | U11: profile | V11: probability | W11: scalar | X11: when on | Y11: on standby | Z11: energy | AA11: account | AB11: factor
F12: (n) | G12: (n) | H12: (m) | I12: (W) | J12: (W) | K12: (m) | L12: (kWh) | M12: (m) | N12: (m) | Q12: (m) | R12: (m) | X12: (kWh/y) | Y12: (kWh/y) | Z12: (kWh/y) | AA12: (kWh/y)
B13: Cold | C13: Chest freezer | D13: NO | E13: 0.163 | F13: 6115.759329 | G13: =$H$2*F13 -> 6115.759329 | H13: 14 | I13: 190 | J13: 0 | K13: =4*H13 -> 56 | L13: =(H13*I13)/(60*1000) -> 0.04433333333 | M13: =G13*H13 -> 85620.6306 | N13: =(365*24*60)-M13 -> 439979.3694 | O13: No | P13: =IF(O13="YES",$H$3,1) -> 1 | Q13: =((365*24*60)*P13)-(M13+(G13*K13)) -> 97496.847 | R13: =Q13/G13 -> 15.94190382 | S13: =1/R13 -> 0.06272776522 | T13: CHEST_FREEZER | U13: LEVEL | V13: 1 | W13: =S13/V13 -> 0.06272776522 | X13: =G13*L13 -> 271.1319969 | Y13: =((365*24*60)-M13)*J13/(60*1000) -> 0 | Z13: =X13+Y13 -> 271.1319969 | AA13: =Z13*E13 -> 44.19451549 | AB13: 0.8
C14: Fridge freezer | D14: YES | E14: 0.651 | F14: 6115.759329 | G14: =$H$2*F14 -> 6115.759329 | H14: 22 | I14: 190 | J14: 0 | K14: =2*H14 -> 44 | L14: 0.06966666667 | M14: 134546.7052 | N14: =(365*24*60)-M14 -> 391053.2948 | O14: No | P14: 1 | Q14: =((365*24*60)*P14)-(M14+(G14*K14)) -> 121959.8843 | R14: =Q14/G14 -> 19.94190382 | S14: =1/R14 -> 0.05014566357 | T14: FRIDGE_FREEZER | U14: LEVEL | V14: 1 | W14: =S14/V14 -> 0.05014566357 | X14: =G14*L14 -> 426.0645666 | Y14: =((365*24*60)-M14)*J14/(60*1000) -> 0 | Z14: =X14+Y14 -> 426.0645666 | AA14: 277.3680328 | AB14: 0.8
C15: Refrigerator | D15: YES | E15: 0.43 | F15: 6115.759329 | G15: 6115.759329 | H15: 18 | I15: 110 | J15: 0 | K15: =2*H15 -> 36 | L15: 0.033 | M15: 110083.6679 | N15: =(365*24*60)-M15 -> 415516.3321 | O15: No | P15: 1 | Q15: 195348.9963 | R15: 31.94190382 | S15: 0.03130683774 | T15: FRIDGE | U15: LEVEL | V15: 1 | W15: 0.03130683774 | X15: 201.8200578 | Y15: 0 | Z15: 201.8200578 | AA15: 86.78262487 | AB15: 0.8
C16: Upright freezer | D16: YES | E16: 0.291 | F16: 6115.759329 | G16: 6115.759329 | H16: 20 | I16: 155 | J16: 0 | K16: =2*H16 -> 40 | L16: 0.05166666667 | M16: 122315.1866 | N16: =(365*24*60)-M16 -> 403284.8134 | O16: No | P16: 1 | Q16: =((365*24*60)*P16)-(M16+(G16*K16)) -> 158654.4403 | R16: 25.94190382 | S16: 0.03854767202 | T16: UPRIGHT_FREEZER | U16: LEVEL | V16: 1 | W16: 0.03854767202 | X16: =G16*L16 -> 315.9808986 | Y16: 0 | Z16: 315.9808986 | AA16: 91.9504415 | AB16: 0.8
B17: Consumer Electronics + ICT | C17: Answer machine | D17: YES | E17: 0.9 | F17: 1e-05 | G17: 1e-05 | H17: 0 | I17: 0 | J17: 1 | K17: 0 | L17: 0 | M17: 0 | N17: =(365*24*60)-M17 -> 525600 | O17: Yes | P17: 0.45865001 | Q17: 241066.4453 | R17: 2.410664453e+10 | S17: 4.148233898e-11 | T17: ANSWER_MACHINE | U17: ACTIVE_OCC | V17: 1 | W17: 4.148233898e-11 | X17: 0 | Y17: 8.76 | Z17: 8.76 | AA17: 7.884 | AB17: 1
C18: Cassette / CD Player | D18: YES | E18: 0.9 | F18: 1212.762858 | G18: 1212.762858 | H18: 60 | I18: 15 | J18: 2 | K18: 0 | L18: 0.015 | M18: 72765.77149 | N18: =(365*24*60)-M18 -> 452834.2285 | O18: Yes | P18: 0.45865001 | Q18: 168300.6738 | R18: 138.7745944 | S18: 0.007205929904 | T18: CD_PLAYER | U18: ACTIVE_OCC | V18: 1 | W18: 0.007205929904 | X18: 18.19144287 | Y18: 15.09447428 | Z18: 33.28591716 | AA18: 29.95732544 | AB18: 1
C19: Clock | D19: YES | E19: 0.9 | F19: 1e-05 | G19: 1e-05 | H19: 0 | I19: 0 | J19: 2 | K19: 0 | L19: 0 | M19: =G19*H19 -> 0 | N19: 525600 | O19: No | P19: 1 | Q19: 525600 | R19: 5.256e+10 | S19: 1.902587519e-11 | T19: CLOCK | U19: LEVEL | V19: 1 | W19: 1.902587519e-11 | X19: 0 | Y19: 17.52 | Z19: 17.52 | AA19: 15.768 | AB19: 1
C20: Cordless telephone | D20: YES | E20: 0.9 | F20: 1e-05 | G20: 1e-05 | H20: 0 | I20: 0 | J20: 1 | K20: 0 | L20: 0 | M20: 0 | N20: 525600 | O20: Yes | P20: 0.45865001 | Q20: 241066.4453 | R20: 2.410664453e+10 | S20: 4.148233898e-11 | T20: PHONE | U20: ACTIVE_OCC | V20: 1 | W20: 4.148233898e-11 | X20: 0 | Y20: 8.76 | Z20: 8.76 | AA20: 7.884 | AB20: 1
C21: Hi-Fi | D21: YES | E21: 0.9 | F21: 109.425545 | G21: 109.425545 | H21: 60 | I21: 100 | J21: 9 | K21: 0 | L21: 0.1 | M21: 6565.5327 | N21: 519034.4673 | O21: Yes | P21: 0.45865001 | Q21: 234500.9126 | R21: 2143.018 | S21: 0.0004666316382 | T21: HIFI | U21: ACTIVE_OCC | V21: 1 | W21: 0.0004666316382 | X21: 10.9425545 | Y21: 77.8551701 | Z21: 88.79772459 | AA21: 79.91795214 | AB21: 1
C22: Iron | D22: YES | E22: 0.9 | F22: 35.45946921 | G22: 35.45946921 | H22: 30 | I22: 1000 | J22: 0 | K22: 0 | L22: 0.5 | M22: 1063.784076 | N22: 524536.2159 | O22: Yes | P22: 0.45865001 | Q22: 240002.6612 | R22: 6768.365871 | S22: 0.0001477461501 | T22: IRON | U22: ACT_IRON | V22: 0.01846405757 | W22: 0.008001824604 | X22: 17.72973461 | Y22: 0 | Z22: 17.72973461 | AA22: 15.95676114 | AB22: 1
C23: Vacuum | D23: YES | E23: 0.937 | F23: 110.3675979 | G23: 110.3675979 | H23: 20 | I23: 2000 | J23: 0 | K23: 0 | L23: 0.6666666667 | M23: 2207.351958 | N23: 523392.648 | O23: Yes | P23: 0.45865001 | Q23: 238859.0933 | R23: 2164.213934 | S23: 0.0004620615292 | T23: VACUUM | U23: ACT_HOUSECLEAN | V23: 0.0664624027 | W23: 0.006952224272 | X23: 73.57839861 | Y23: 0 | Z23: 73.57839861 | AA23: 68.9429595 | AB23: 1
C24: Fax | D24: NO | E24: 0.2 | F24: 197.1235883 | G24: 197.1235883 | H24: 31 | I24: 37 | J24: 3 | K24: 0 | L24: =(H24*I24)/(60*1000) -> 0.01911666667 | M24: 6110.831239 | N24: 519489.1688 | O24: Yes | P24: 0.45865001 | Q24: 234955.614 | R24: 1191.920338 | S24: 0.0008389822442 | T24: FAX | U24: ACTIVE_OCC | V24: 1 | W24: 0.0008389822442 | X24: 3.768345931 | Y24: 25.97445844 | Z24: 29.74280437 | AA24: 5.948560874 | AB24: 0.9
C25: Personal computer | D25: YES | E25: 0.708 | F25: 449.2379848 | G25: 449.2379848 | H25: 300 | I25: 140.7 | J25: 5 | K25: 0 | L25: 0.7035 | M25: 134771.3954 | N25: 390828.6046 | O25: Yes | P25: 0.45865001 | Q25: 106295.0498 | R25: 236.6118927 | S25: 0.004226330252 | T25: PC | U25: ACTIVE_OCC | V25: 1 | W25: 0.004226330252 | X25: 316.0389223 | Y25: 32.56905038 | Z25: 348.6079727 | AA25: 246.8144447 | AB25: 0.9
C26: Printer | D26: NO | E26: 0.665 | F26: 654.875958 | G26: 654.875958 | H26: 4 | I26: 335.2 | J26: 4 | K26: 0 | L26: 0.02234666667 | M26: 2619.503832 | N26: 522980.4962 | O26: Yes | P26: 0.45865001 | Q26: 238446.9414 | R26: 364.1100861 | S26: 0.002746422135 | T26: PRINTER | U26: ACTIVE_OCC | V26: 1 | W26: 0.002746422135 | X26: 14.63429474 | Y26: 34.86536641 | Z26: 49.49966115 | AA26: 32.91727467 | AB26: 0.9
C27: TV 1 | D27: YES | E27: 0.977 | F27: 1464.266537 | G27: 1464.266537 | H27: 73 | I27: 124 | J27: 3 | K27: 0 | L27: 0.1508666667 | M27: 106891.4572 | N27: 418708.5428 | O27: Yes | P27: 0.45865001 | Q27: 134174.988 | R27: 91.63289922 | S27: 0.010913111 | T27: TV1 | U27: ACT_TV | V27: 0.3397535621 | W27: 0.0321206669 | X27: 220.9090116 | Y27: 20.93542714 | Z27: 241.8444387 | AA27: 236.2820167 | AB27: 0.9
C28: TV 2 | D28: YES | E28: 0.58 | F28: 1464.266537 | G28: 1464.266537 | H28: 73 | I28: 124 | J28: 3 | K28: 0 | L28: 0.1508666667 | M28: 106891.4572 | N28: 418708.5428 | O28: Yes | P28: 0.45865001 | Q28: 134174.988 | R28: 91.63289922 | S28: 0.010913111 | T28: TV2 | U28: ACT_TV | V28: 0.3397535621 | W28: 0.0321206669 | X28: 220.9090116 | Y28: 20.93542714 | Z28: 241.8444387 | AA28: 140.2697745 | AB28: 0.9
C29: TV 3 | D29: NO | E29: 0.18 | F29: 1521.495966 | G29: 1521.495966 | H29: 73 | I29: 124 | J29: 2 | K29: 0 | L29: 0.1508666667 | M29: 111069.2055 | N29: 414530.7945 | O29: Yes | P29: 0.45865001 | Q29: 129997.2397 | R29: 85.44041037 | S29: 0.01170406363 | T29: TV3 | U29: ACT_TV | V29: 0.3397535621 | W29: 0.03444868558 | X29: 229.5430248 | Y29: 13.81769315 | Z29: 243.3607179 | AA29: 43.80492923 | AB29: 0.9
C30: VCR / DVD | D30: YES | E30: 0.896 | F30: 1464.266537 | G30: 1464.266537 | H30: 73 | I30: 33.55219735 | J30: 2 | K30: 0 | L30: 0.04082184011 | M30: 106891.4572 | N30: 418708.5428 | O30: Yes | P30: 0.45865001 | Q30: 134174.988 | R30: 91.63289922 | S30: 0.010913111 | T30: VCR_DVD | U30: ACT_TV | V30: 0.3397535621 | W30: 0.0321206669 | X30: 59.77405447 | Y30: 13.95695143 | Z30: 73.7310059 | AA30: 66.06298128 | AB30: 1
C31: TV Receiver box | D31: YES | E31: =0.46+0.34+0.134 -> 0.934 | F31: 1464.266537 | G31: 1464.266537 | H31: 73 | I31: 26.82374237 | J31: 15 | K31: 0 | L31: 0.03263555322 | M31: 106891.4572 | N31: 418708.5428 | O31: Yes | P31: 0.45865001 | Q31: 134174.988 | R31: 91.63289922 | S31: 0.010913111 | T31: RECEIVER | U31: ACT_TV | V31: 0.3397535621 | W31: 0.0321206669 | X31: 47.78714851 | Y31: 104.6771357 | Z31: 152.4642842 | AA31: 142.4016414 | AB31: 1
B32: Cooking | C32: Hob | D32: YES | E32: 0.463 | F32: 417.9020073 | G32: 417.9020073 | H32: 16 | I32: 2400 | J32: 1 | K32: 0 | L32: 0.64 | M32: 6686.432117 | N32: 518913.5679 | O32: Yes | P32: 0.45865001 | Q32: 234380.0132 | R32: 560.849216 | S32: 0.001783010427 | T32: HOB | U32: ACT_COOKING | V32: 0.1442582524 | W32: 0.01235985046 | X32: 267.4572847 | Y32: 8.648559465 | Z32: 276.1058441 | AA32: 127.8370058 | AB32: 1
C33: Oven | D33: YES | E33: 0.616 | F33: 219.792801 | G33: 219.792801 | H33: 27 | I33: 2125 | J33: 3 | K33: 0 | L33: 0.95625 | M33: 5934.405627 | N33: 519665.5944 | O33: Yes | P33: 0.45865001 | Q33: 235132.0396 | R33: 1069.789541 | S33: 0.0009347632987 | T33: OVEN | U33: ACT_COOKING | V33: 0.1442582524 | W33: 0.006479790815 | X33: 210.176866 | Y33: 25.98327972 | Z33: 236.1601457 | AA33: 145.4746497 | AB33: 1
C34: Microwave | D34: YES | E34: 0.859 | F34: 94.61932241 | G34: 94.61932241 | H34: 30 | I34: 1250 | J34: 2 | K34: 0 | L34: 0.625 | M34: 2838.579672 | N34: 522761.4203 | O34: Yes | P34: 0.45865001 | Q34: 238227.8656 | R34: 2517.750704 | S34: 0.0003971799108 | T34: MICROWAVE | U34: ACT_COOKING | V34: 0.1442582524 | W34: 0.002753256082 | X34: 59.1370765 | Y34: 17.42538068 | Z34: 76.56245718 | AA34: 65.76715072 | AB34: 1
C35: Kettle | D35: YES | E35: 0.975 | F35: 1519.822866 | G35: 1519.822866 | H35: 3 | I35: 2000 | J35: 1 | K35: 0 | L35: 0.1 | M35: 4559.468598 | N35: 521040.5314 | O35: Yes | P35: 0.45865001 | Q35: 236506.9767 | R35: 155.6148298 | S35: 0.006426122762 | T35: KETTLE | U35: ACTIVE_OCC | V35: 1 | W35: 0.006426122762 | X35: 151.9822866 | Y35: 8.684008857 | Z35: 160.6662955 | AA35: 156.6496381 | AB35: 1
C36: Small cooking (group) | D36: YES | E36: 1 | F36: 292.326224 | G36: 292.326224 | H36: 3 | I36: 1000 | J36: 2 | K36: 0 | L36: 0.05 | M36: 876.9786721 | N36: 524723.0213 | O36: Yes | P36: 0.45865001 | Q36: 240189.4666 | R36: 821.6487159 | S36: 0.001217065129 | T36: SMALL_COOKING | U36: ACT_COOKING | V36: 0.1442582524 | W36: 0.008436710611 | X36: 14.6163112 | Y36: 17.49076738 | Z36: 32.10707858 | AA36: 32.10707858 | AB36: 1
B37: Wet | C37: Dish washer | D37: NO | E37: 0.335 | F37: 241.4763957 | G37: 241.4763957 | H37: 60 | I37: 1130.612245 | J37: 0 | K37: 0 | L37: 1.130612245 | M37: 14488.58374 | N37: 511111.4163 | O37: Yes | P37: 0.45865001 | Q37: 226577.8615 | R37: 938.3023167 | S37: 0.001065754589 | T37: DISH_WASHER | U37: ACT_COOKING | V37: 0.1442582524 | W37: 0.00738782407 | X37: 273.0161699 | Y37: 0 | Z37: 273.0161699 | AA37: 91.4604169 | AB37: 0.8
C38: Tumble dryer | D38: YES | E38: 0.416 | F38: 122.0729157 | G38: 122.0729157 | H38: 60 | I38: 2500 | J38: 1 | K38: 0 | L38: 2.5 | M38: 7324.374944 | N38: 518275.6251 | O38: Yes | P38: 0.45865001 | Q38: 233742.0703 | R38: 1914.774206 | S38: 0.0005222547895 | T38: TUMBLE_DRYER | U38: ACT_LAUNDRY | V38: 0.01769772284 | W38: 0.02950971683 | X38: 305.1822893 | Y38: 8.637927084 | Z38: 313.8202164 | AA38: 130.54921 | AB38: 0.8
C39: Washing machine | D39: YES | E39: 0.781 | F39: 195.9065959 | G39: 195.9065959 | H39: 138 | I39: 405.5434783 | J39: 1 | K39: 0 | L39: 0.93275 | M39: 27035.11023 | N39: 498564.8898 | O39: Yes | P39: 0.45865001 | Q39: 214031.335 | R39: 1092.517248 | S39: 0.0009153173568 | T39: WASHING_MACHINE | U39: ACT_LAUNDRY | V39: 0.01769772284 | W39: 0.05171949889 | X39: 182.7318773 | Y39: 8.30941483 | Z39: 191.0412921 | AA39: 149.2032491 | AB39: 0.8
C40: Washer dryer | D40: NO | E40: 0.153 | F40: 195.9065959 | G40: 195.9065959 | H40: 198 | I40: 792.0347861 | J40: 1 | K40: 0 | L40: 2.613714794 | M40: 38789.50598 | N40: 486810.494 | O40: Yes | P40: 0.45865001 | Q40: 202276.9393 | R40: 1032.517248 | S40: 0.0009685068231 | T40: WASHER_DRYER | U40: ACT_LAUNDRY | V40: 0.01769772284 | W40: 0.05472494015 | X40: 512.0439679 | Y40: 8.113508234 | Z40: 520.1574761 | AA40: 79.58409384 | AB40: 0.8
B41: Water heating | C41: DESWH | D41: NO | E41: 0.17 | F41: 2684.996846 | G41: 2684.996846 | H41: 20 | I41: 3000 | J41: 0 | K41: 0 | L41: 1 | M41: 53699.93691 | N41: 471900.0631 | O41: Yes | P41: 0.45865001 | Q41: 187366.5084 | R41: 69.78276666 | S41: 0.01433018563 | T41: DESWH | U41: ACTIVE_OCC | V41: 1 | W41: 0.01433018563 | X41: 2684.996846 | Y41: 0 | Z41: 2684.996846 | AA41: 456.4494638 | AB41: 1
C42: E-INST | D42: NO | E42: 0.01 | F42: 7208.632835 | G42: 7208.632835 | H42: 5 | I42: 3000 | J42: 0 | K42: 0 | L42: 0.25 | M42: 36043.16418 | N42: 489556.8358 | O42: Yes | P42: 0.45865001 | Q42: 205023.2811 | R42: 28.44135438 | S42: 0.03516006961 | T42: E_INST | U42: ACTIVE_OCC | V42: 1 | W42: 0.03516006961 | X42: 1802.158209 | Y42: 0 | Z42: 1802.158209 | AA42: 18.02158209 | AB42: 1
C43: Electric shower | D43: YES | E43: 0.67 | F43: 290.3955057 | G43: 290.3955057 | H43: 3 | I43: 9000 | J43: 0 | K43: 0 | L43: 0.45 | M43: 871.1865171 | N43: 524728.8135 | O43: Yes | P43: 0.45865001 | Q43: 240195.2588 | R43: 827.1314606 | S43: 0.00120899766 | T43: ELEC_SHOWER | U43: ACT_WASHDRESS | V43: 0.1251440711 | W43: 0.009660846484 | X43: 130.6779776 | Y43: 0 | Z43: 130.6779776 | AA43: 87.55424496 | AB43: 1
B44: Electric Space Heating | C44: Storage heaters | D44: NO | E44: 0.0277 | F44: 227.2087838 | G44: 227.2087838 | H44: 360 | I44: 10200 | J44: 0 | K44: 0 | L44: 61.2 | M44: 81795.16217 | N44: 443804.8378 | O44: No | P44: 1 | Q44: 443804.8378 | R44: 1953.290847 | S44: 0.0005119565278 | T44: STORAGE_HEATER | U44: CUSTOM | V44: 0.6224898187 | W44: 0.0008224335764 | X44: 13905.17757 | Y44: 0 | Z44: 13905.17757 | AA44: 385.1734187 | AB44: 1
C45: Other electric space heating | D45: NO | E45: 0.026 | F45: 365.6757762 | G45: 365.6757762 | H45: 240 | I45: 2000 | J45: 0 | K45: 0 | L45: 8 | M45: 87762.1863 | N45: 437837.8137 | O45: Yes | P45: 0.45865001 | Q45: 153304.259 | R45: 419.2354784 | S45: 0.002385294307 | T45: ELEC_SPACE_HEATING | U45: ACTIVE_OCC | V45: 1 | W45: 0.002385294307 | X45: 2925.40621 | Y45: 0 | Z45: 2925.40621 | AA45: 76.06056146 | AB45: 1
B46: Lighting | C46: Lighting | D46: YES | E46: 1 | Z46: 715 | AA46: 715 | AB46: 1
F47: TOTAL | AA47: =SUM(AA13:AA46) -> 4358
B50: Data and information references: note that the energy related numbers assumed for this model are based upon input or derived from the following sources:
A52: 1 | B52: UK Market Transformation Programme, Department for Environment, Food and Rural Affairs, Smith Square, London, UK, http://www.mtprog.com/. Crown Copyright.
B53: BN DW Shower: Actions to improve shower desidn and efficiency - Briefing Note relating to policy scenario objectives in Policy Brief (Version 2.0), 2006
B54: BNXS30: Vacuum cleaners - UK market, technologies, energy use, test methods and waste (Version 1.7), 2006
B55: BNW06: Assumptions underlying the energy projections for domestic tumble dryers (Version 3.1), 2006
B56: BNCK07: Comparing energy use in microwave ovens with traditional electric fuelled methods (Version 1.1), 2006
B57: BNCK06: Trends in kettle type and usage and possible impact on energy consumption (Version 2.1), 2006
B58: BNXS36: Estimated UK standby electricity consumption in 2006 (Version 2.2), 2006
B59: Policy brief: Improving the energy performance of domestic cold appliance, 2008
B60: BNW07: Assumptions underlying the energy projections for domestic dishwashers (Version 3.1), 2006
B61: BNWAT24: Performance and efficiency: reviewing and defining showers (Version 1.0), 2008
B62: BNW05: Assumptions underlying the energy projections for domestic washing machines (Version 3.1), 2006
B63: BNTV01: Televisions: Future Stock and Energy Trends (Version 3.1), 2005
B64: BNDA3: Digital TV adapters in the UK - rationale/assumptions for projecting future energy consumption (Version 1.1), 2005
B65: Policy brief: Improving the energy performance of consumer electronics products, 2008
B66: Policy brief: Improving the energy performance of information and communication technology products, 2008
A68: 2 | B68: UK Department of Energy and Climate Change, Energy Consumption in the UK, Domestic data tables, A National Statistics Publication.
B69: Energy consumption in the UK, Domestic Energy Consumption in the UK
B70: http://www.decc.gov.uk/en/content/cms/statistics/publications/ecuk/ecuk.aspx
B71: Table 3.6: Domestic energy consumption by end use
B72: Table 3.7: Domestic energy consumption by end use and fuel
B73: Table 3.10: Total electricity consumption by household domestic appliances
B74: Table 3.12: Percentage of households owning domestic appliances
B75: Table 3.14: Households with central heating by type in Great Britain
A77: 3 | B77: T. Fawcett, K. Lane, B. Boardman, et al., Lower Carbon Futures for European Households, Environmental Change Institute (ECI), University of Oxford, UK. 2000
A78: 4 | B78: 40% House, B. Boardman et al., Environmental Change Institute, University of Oxford, 2005.
A79: 5 | B79: Office for National Statistics, Social Trends No. 37 (2007 Edition), Table 2.1 Households by Size, Crown Copyright 2007
A80: 6 | B80: UK Ofcom, Southwark Bridge Road, London, http://www.ofcom.org.uk/research/.
A81: 7 | B81: The Energy Saving Trust, Domestic heating by electricity (2006 edition), CE185, 2006.
A82: 8 | B82: J. Paatero, P. Lund, A model for generating household electricity load profiles, International Journal of Energy Research 30 (5) (2006) 273–290.
A83: 9 | B83: M. Newborough, p. Augood, Demand-side management opportunities for the UK domestic sector, IEE Proceedings - Generation, Transmission and Distribution, Vol. 146, No. 3, May 1999
A84: 10 | B84: G. Wood, M. Newborough, Dynamic energy-consumption indicators for domestic appliances: environment, behaviour and design, Energy and Buildings, Volume 35, Issue 8, September 2003, Pages 821-841, ISSN 0378-7788, DOI: 10.1016/S0378-7788(02)00241-4.

Sheet appliance_sim_data
A1: Appliance simulation output sheet
C8: Active | D8: Total dwelling | E8: Total lighting | F8: Total appliance
A9: Minute | C9: occupant | D9: power | E9: power | F9: power | H9: Appliance power demand
A10: of day | B10: Time | C10: count | D10: demand | E10: demand | F10: demand | H10: CHEST_FREEZER | I10: FRIDGE_FREEZER | J10: FRIDGE | K10: UPRIGHT_FREEZER | L10: ANSWER_MACHINE | M10: CD_PLAYER | N10: CLOCK | O10: PHONE | P10: HIFI | Q10: IRON | R10: VACUUM | S10: FAX | T10: PC | U10: PRINTER | V10: TV1 | W10: TV2 | X10: TV3 | Y10: VCR_DVD | Z10: RECEIVER | AA10: HOB | AB10: OVEN | AC10: MICROWAVE | AD10: KETTLE | AE10: SMALL_COOKING | AF10: DISH_WASHER | AG10: TUMBLE_DRYER | AH10: WASHING_MACHINE | AI10: WASHER_DRYER | AJ10: DESWH | AK10: E_INST | AL10: ELEC_SHOWER | AM10: STORAGE_HEATER | AN10: ELEC_SPACE_HEATING
D11: (W) | E11: (W) | F11: (W) | H11: (W) | I11: (W) | J11: (W) | K11: (W) | L11: (W) | M11: (W) | N11: (W) | O11: (W) | P11: (W) | Q11: (W) | R11: (W) | S11: (W) | T11: (W) | U11: (W) | V11: (W) | W11: (W) | X11: (W) | Y11: (W) | Z11: (W) | AA11: (W) | AB11: (W) | AC11: (W) | AD11: (W) | AE11: (W) | AF11: (W) | AG11: (W) | AH11: (W) | AI11: (W) | AJ11: (W) | AK11: (W) | AL11: (W) | AM11: (W) | AN11: (W)
A12: 1 | B12: 00:00:00 | C12: =INDIRECT("occ_sim_data!C"&(ROUNDDOWN((A12-1)/10,0)+11)) -> 0 | D12: =E12+F12 -> 54 | E12: =IF(appliances!$D$46="YES",light_sim_data!B12,0) -> 0 | F12: =SUM(H12:AN12) -> 54 | H12: 0 | I12: 0 | J12: 0 | K12: 0 | L12: 1 | M12: 2 | N12: 2 | O12: 1 | P12: 9 | Q12: 0 | R12: 0 | S12: 0 | T12: 5 | U12: 0 | V12: 3 | W12: 3 | X12: 0 | Y12: 2 | Z12: 15 | AA12: 1 | AB12: 3 | AC12: 2 | AD12: 1 | AE12: 2 | AF12: 0 | AG12: 1 | AH12: 1 | AI12: 0 | AJ12: 0 | AK12: 0 | AL12: 0 | AM12: 0 | AN12: 0
A13: 2 | B13: 00:01:00 | C13: =INDIRECT("occ_sim_data!C"&(ROUNDDOWN((A13-1)/10,0)+11)) -> 0 | D13: =E13+F13 -> 54 | E13: =IF(appliances!$D$46="YES",light_sim_data!B13,0) -> 0 | F13: =SUM(H13:AN13) -> 54 | H13: 0 | I13: 0 | J13: 0 | K13: 0 | L13: 1 | M13: 2 | N13: 2 | O13: 1 | P13: 9 | Q13: 0 | R13: 0 | S13: 0 | T13: 5 | U13: 0 | V13: 3 | W13: 3 | X13: 0 | Y13: 2 | Z13: 15 | AA13: 1 | AB13: 3 | AC13: 2 | AD13: 1 | AE13: 2 | AF13: 0 | AG13: 1 | AH13: 1 | AI13: 0 | AJ13: 0 | AK13: 0 | AL13: 0 | AM13: 0 | AN13: 0
A14: 3 | B14: 00:02:00 | C14: 0 | D14: 54 | E14: =IF(appliances!$D$46="YES",light_sim_data!B14,0) -> 0 | F14: 54 | H14: 0 | I14: 0 | J14: 0 | K14: 0 | L14: 1 | M14: 2 | N14: 2 | O14: 1 | P14: 9 | Q14: 0 | R14: 0 | S14: 0 | T14: 5 | U14: 0 | V14: 3 | W14: 3 | X14: 0 | Y14: 2 | Z14: 15 | AA14: 1 | AB14: 3 | AC14: 2 | AD14: 1 | AE14: 2 | AF14: 0 | AG14: 1 | AH14: 1 | AI14: 0 | AJ14: 0 | AK14: 0 | AL14: 0 | AM14: 0 | AN14: 0
A15: 4 | B15: 00:03:00 | C15: 0 | D15: 54 | E15: =IF(appliances!$D$46="YES",light_sim_data!B15,0) -> 0 | F15: 54 | H15: 0 | I15: 0 | J15: 0 | K15: 0 | L15: 1 | M15: 2 | N15: 2 | O15: 1 | P15: 9 | Q15: 0 | R15: 0 | S15: 0 | T15: 5 | U15: 0 | V15: 3 | W15: 3 | X15: 0 | Y15: 2 | Z15: 15 | AA15: 1 | AB15: 3 | AC15: 2 | AD15: 1 | AE15: 2 | AF15: 0 | AG15: 1 | AH15: 1 | AI15: 0 | AJ15: 0 | AK15: 0 | AL15: 0 | AM15: 0 | AN15: 0
A16: 5 | B16: 00:04:00 | C16: 0 | D16: 54 | E16: =IF(appliances!$D$46="YES",light_sim_data!B16,0) -> 0 | F16: 54 | H16: 0 | I16: 0 | J16: 0 | K16: 0 | L16: 1 | M16: 2 | N16: 2 | O16: 1 | P16: 9 | Q16: 0 | R16: 0 | S16: 0 | T16: 5 | U16: 0 | V16: 3 | W16: 3 | X16: 0 | Y16: 2 | Z16: 15 | AA16: 1 | AB16: 3 | AC16: 2 | AD16: 1 | AE16: 2 | AF16: 0 | AG16: 1 | AH16: 1 | AI16: 0 | AJ16: 0 | AK16: 0 | AL16: 0 | AM16: 0 | AN16: 0
A17: 6 | B17: 00:05:00 | C17: 0 | D17: 54 | E17: =IF(appliances!$D$46="YES",light_sim_data!B17,0) -> 0 | F17: 54 | H17: 0 | I17: 0 | J17: 0 | K17: 0 | L17: 1 | M17: 2 | N17: 2 | O17: 1 | P17: 9 | Q17: 0 | R17: 0 | S17: 0 | T17: 5 | U17: 0 | V17: 3 | W17: 3 | X17: 0 | Y17: 2 | Z17: 15 | AA17: 1 | AB17: 3 | AC17: 2 | AD17: 1 | AE17: 2 | AF17: 0 | AG17: 1 | AH17: 1 | AI17: 0 | AJ17: 0 | AK17: 0 | AL17: 0 | AM17: 0 | AN17: 0
A18: 7 | B18: 00:06:00 | C18: 0 | D18: 54 | E18: =IF(appliances!$D$46="YES",light_sim_data!B18,0) -> 0 | F18: 54 | H18: 0 | I18: 0 | J18: 0 | K18: 0 | L18: 1 | M18: 2 | N18: 2 | O18: 1 | P18: 9 | Q18: 0 | R18: 0 | S18: 0 | T18: 5 | U18: 0 | V18: 3 | W18: 3 | X18: 0 | Y18: 2 | Z18: 15 | AA18: 1 | AB18: 3 | AC18: 2 | AD18: 1 | AE18: 2 | AF18: 0 | AG18: 1 | AH18: 1 | AI18: 0 | AJ18: 0 | AK18: 0 | AL18: 0 | AM18: 0 | AN18: 0
A19: 8 | B19: 00:07:00 | C19: 0 | D19: 54 | E19: =IF(appliances!$D$46="YES",light_sim_data!B19,0) -> 0 | F19: 54 | H19: 0 | I19: 0 | J19: 0 | K19: 0 | L19: 1 | M19: 2 | N19: 2 | O19: 1 | P19: 9 | Q19: 0 | R19: 0 | S19: 0 | T19: 5 | U19: 0 | V19: 3 | W19: 3 | X19: 0 | Y19: 2 | Z19: 15 | AA19: 1 | AB19: 3 | AC19: 2 | AD19: 1 | AE19: 2 | AF19: 0 | AG19: 1 | AH19: 1 | AI19: 0 | AJ19: 0 | AK19: 0 | AL19: 0 | AM19: 0 | AN19: 0
A20: 9 | B20: 00:08:00 | C20: 0 | D20: 54 | E20: =IF(appliances!$D$46="YES",light_sim_data!B20,0) -> 0 | F20: 54 | H20: 0 | I20: 0 | J20: 0 | K20: 0 | L20: 1 | M20: 2 | N20: 2 | O20: 1 | P20: 9 | Q20: 0 | R20: 0 | S20: 0 | T20: 5 | U20: 0 | V20: 3 | W20: 3 | X20: 0 | Y20: 2 | Z20: 15 | AA20: 1 | AB20: 3 | AC20: 2 | AD20: 1 | AE20: 2 | AF20: 0 | AG20: 1 | AH20: 1 | AI20: 0 | AJ20: 0 | AK20: 0 | AL20: 0 | AM20: 0 | AN20: 0
A21: 10 | B21: 00:09:00 | C21: 0 | D21: 54 | E21: =IF(appliances!$D$46="YES",light_sim_data!B21,0) -> 0 | F21: 54 | H21: 0 | I21: 0 | J21: 0 | K21: 0 | L21: 1 | M21: 2 | N21: 2 | O21: 1 | P21: 9 | Q21: 0 | R21: 0 | S21: 0 | T21: 5 | U21: 0 | V21: 3 | W21: 3 | X21: 0 | Y21: 2 | Z21: 15 | AA21: 1 | AB21: 3 | AC21: 2 | AD21: 1 | AE21: 2 | AF21: 0 | AG21: 1 | AH21: 1 | AI21: 0 | AJ21: 0 | AK21: 0 | AL21: 0 | AM21: 0 | AN21: 0
A22: 11 | B22: 00:10:00 | C22: 0 | D22: 54 | E22: =IF(appliances!$D$46="YES",light_sim_data!B22,0) -> 0 | F22: 54 | H22: 0 | I22: 0 | J22: 0 | K22: 0 | L22: 1 | M22: 2 | N22: 2 | O22: 1 | P22: 9 | Q22: 0 | R22: 0 | S22: 0 | T22: 5 | U22: 0 | V22: 3 | W22: 3 | X22: 0 | Y22: 2 | Z22: 15 | AA22: 1 | AB22: 3 | AC22: 2 | AD22: 1 | AE22: 2 | AF22: 0 | AG22: 1 | AH22: 1 | AI22: 0 | AJ22: 0 | AK22: 0 | AL22: 0 | AM22: 0 | AN22: 0
A23: 12 | B23: 00:11:00 | C23: 0 | D23: 54 | E23: =IF(appliances!$D$46="YES",light_sim_data!B23,0) -> 0 | F23: 54 | H23: 0 | I23: 0 | J23: 0 | K23: 0 | L23: 1 | M23: 2 | N23: 2 | O23: 1 | P23: 9 | Q23: 0 | R23: 0 | S23: 0 | T23: 5 | U23: 0 | V23: 3 | W23: 3 | X23: 0 | Y23: 2 | Z23: 15 | AA23: 1 | AB23: 3 | AC23: 2 | AD23: 1 | AE23: 2 | AF23: 0 | AG23: 1 | AH23: 1 | AI23: 0 | AJ23: 0 | AK23: 0 | AL23: 0 | AM23: 0 | AN23: 0
A24: 13 | B24: 00:12:00 | C24: 0 | D24: 54 | E24: =IF(appliances!$D$46="YES",light_sim_data!B24,0) -> 0 | F24: 54 | H24: 0 | I24: 0 | J24: 0 | K24: 0 | L24: 1 | M24: 2 | N24: 2 | O24: 1 | P24: 9 | Q24: 0 | R24: 0 | S24: 0 | T24: 5 | U24: 0 | V24: 3 | W24: 3 | X24: 0 | Y24: 2 | Z24: 15 | AA24: 1 | AB24: 3 | AC24: 2 | AD24: 1 | AE24: 2 | AF24: 0 | AG24: 1 | AH24: 1 | AI24: 0 | AJ24: 0 | AK24: 0 | AL24: 0 | AM24: 0 | AN24: 0
A25: 14 | B25: 00:13:00 | C25: 0 | D25: 54 | E25: =IF(appliances!$D$46="YES",light_sim_data!B25,0) -> 0 | F25: 54 | H25: 0 | I25: 0 | J25: 0 | K25: 0 | L25: 1 | M25: 2 | N25: 2 | O25: 1 | P25: 9 | Q25: 0 | R25: 0 | S25: 0 | T25: 5 | U25: 0 | V25: 3 | W25: 3 | X25: 0 | Y25: 2 | Z25: 15 | AA25: 1 | AB25: 3 | AC25: 2 | AD25: 1 | AE25: 2 | AF25: 0 | AG25: 1 | AH25: 1 | AI25: 0 | AJ25: 0 | AK25: 0 | AL25: 0 | AM25: 0 | AN25: 0
A26: 15 | B26: 00:14:00 | C26: 0 | D26: 54 | E26: =IF(appliances!$D$46="YES",light_sim_data!B26,0) -> 0 | F26: 54 | H26: 0 | I26: 0 | J26: 0 | K26: 0 | L26: 1 | M26: 2 | N26: 2 | O26: 1 | P26: 9 | Q26: 0 | R26: 0 | S26: 0 | T26: 5 | U26: 0 | V26: 3 | W26: 3 | X26: 0 | Y26: 2 | Z26: 15 | AA26: 1 | AB26: 3 | AC26: 2 | AD26: 1 | AE26: 2 | AF26: 0 | AG26: 1 | AH26: 1 | AI26: 0 | AJ26: 0 | AK26: 0 | AL26: 0 | AM26: 0 | AN26: 0
A27: 16 | B27: 00:15:00 | C27: 0 | D27: 54 | E27: =IF(appliances!$D$46="YES",light_sim_data!B27,0) -> 0 | F27: 54 | H27: 0 | I27: 0 | J27: 0 | K27: 0 | L27: 1 | M27: 2 | N27: 2 | O27: 1 | P27: 9 | Q27: 0 | R27: 0 | S27: 0 | T27: 5 | U27: 0 | V27: 3 | W27: 3 | X27: 0 | Y27: 2 | Z27: 15 | AA27: 1 | AB27: 3 | AC27: 2 | AD27: 1 | AE27: 2 | AF27: 0 | AG27: 1 | AH27: 1 | AI27: 0 | AJ27: 0 | AK27: 0 | AL27: 0 | AM27: 0 | AN27: 0
A28: 17 | B28: 00:16:00 | C28: 0 | D28: 54 | E28: =IF(appliances!$D$46="YES",light_sim_data!B28,0) -> 0 | F28: 54 | H28: 0 | I28: 0 | J28: 0 | K28: 0 | L28: 1 | M28: 2 | N28: 2 | O28: 1 | P28: 9 | Q28: 0 | R28: 0 | S28: 0 | T28: 5 | U28: 0 | V28: 3 | W28: 3 | X28: 0 | Y28: 2 | Z28: 15 | AA28: 1 | AB28: 3 | AC28: 2 | AD28: 1 | AE28: 2 | AF28: 0 | AG28: 1 | AH28: 1 | AI28: 0 | AJ28: 0 | AK28: 0 | AL28: 0 | AM28: 0 | AN28: 0
A29: 18 | B29: 00:17:00 | C29: 0 | D29: 54 | E29: =IF(appliances!$D$46="YES",light_sim_data!B29,0) -> 0 | F29: 54 | H29: 0 | I29: 0 | J29: 0 | K29: 0 | L29: 1 | M29: 2 | N29: 2 | O29: 1 | P29: 9 | Q29: 0 | R29: 0 | S29: 0 | T29: 5 | U29: 0 | V29: 3 | W29: 3 | X29: 0 | Y29: 2 | Z29: 15 | AA29: 1 | AB29: 3 | AC29: 2 | AD29: 1 | AE29: 2 | AF29: 0 | AG29: 1 | AH29: 1 | AI29: 0 | AJ29: 0 | AK29: 0 | AL29: 0 | AM29: 0 | AN29: 0
A30: 19 | B30: 00:18:00 | C30: 0 | D30: 54 | E30: =IF(appliances!$D$46="YES",light_sim_data!B30,0) -> 0 | F30: 54 | H30: 0 | I30: 0 | J30: 0 | K30: 0 | L30: 1 | M30: 2 | N30: 2 | O30: 1 | P30: 9 | Q30: 0 | R30: 0 | S30: 0 | T30: 5 | U30: 0 | V30: 3 | W30: 3 | X30: 0 | Y30: 2 | Z30: 15 | AA30: 1 | AB30: 3 | AC30: 2 | AD30: 1 | AE30: 2 | AF30: 0 | AG30: 1 | AH30: 1 | AI30: 0 | AJ30: 0 | AK30: 0 | AL30: 0 | AM30: 0 | AN30: 0
A31: 20 | B31: 00:19:00 | C31: 0 | D31: 54 | E31: =IF(appliances!$D$46="YES",light_sim_data!B31,0) -> 0 | F31: 54 | H31: 0 | I31: 0 | J31: 0 | K31: 0 | L31: 1 | M31: 2 | N31: 2 | O31: 1 | P31: 9 | Q31: 0 | R31: 0 | S31: 0 | T31: 5 | U31: 0 | V31: 3 | W31: 3 | X31: 0 | Y31: 2 | Z31: 15 | AA31: 1 | AB31: 3 | AC31: 2 | AD31: 1 | AE31: 2 | AF31: 0 | AG31: 1 | AH31: 1 | AI31: 0 | AJ31: 0 | AK31: 0 | AL31: 0 | AM31: 0 | AN31: 0
A32: 21 | B32: 00:20:00 | C32: 0 | D32: 54 | E32: =IF(appliances!$D$46="YES",light_sim_data!B32,0) -> 0 | F32: 54 | H32: 0 | I32: 0 | J32: 0 | K32: 0 | L32: 1 | M32: 2 | N32: 2 | O32: 1 | P32: 9 | Q32: 0 | R32: 0 | S32: 0 | T32: 5 | U32: 0 | V32: 3 | W32: 3 | X32: 0 | Y32: 2 | Z32: 15 | AA32: 1 | AB32: 3 | AC32: 2 | AD32: 1 | AE32: 2 | AF32: 0 | AG32: 1 | AH32: 1 | AI32: 0 | AJ32: 0 | AK32: 0 | AL32: 0 | AM32: 0 | AN32: 0
A33: 22 | B33: 00:21:00 | C33: 0 | D33: 54 | E33: =IF(appliances!$D$46="YES",light_sim_data!B33,0) -> 0 | F33: 54 | H33: 0 | I33: 0 | J33: 0 | K33: 0 | L33: 1 | M33: 2 | N33: 2 | O33: 1 | P33: 9 | Q33: 0 | R33: 0 | S33: 0 | T33: 5 | U33: 0 | V33: 3 | W33: 3 | X33: 0 | Y33: 2 | Z33: 15 | AA33: 1 | AB33: 3 | AC33: 2 | AD33: 1 | AE33: 2 | AF33: 0 | AG33: 1 | AH33: 1 | AI33: 0 | AJ33: 0 | AK33: 0 | AL33: 0 | AM33: 0 | AN33: 0
A34: 23 | B34: 00:22:00 | C34: 0 | D34: 54 | E34: =IF(appliances!$D$46="YES",light_sim_data!B34,0) -> 0 | F34: 54 | H34: 0 | I34: 0 | J34: 0 | K34: 0 | L34: 1 | M34: 2 | N34: 2 | O34: 1 | P34: 9 | Q34: 0 | R34: 0 | S34: 0 | T34: 5 | U34: 0 | V34: 3 | W34: 3 | X34: 0 | Y34: 2 | Z34: 15 | AA34: 1 | AB34: 3 | AC34: 2 | AD34: 1 | AE34: 2 | AF34: 0 | AG34: 1 | AH34: 1 | AI34: 0 | AJ34: 0 | AK34: 0 | AL34: 0 | AM34: 0 | AN34: 0
A35: 24 | B35: 00:23:00 | C35: 0 | D35: 54 | E35: =IF(appliances!$D$46="YES",light_sim_data!B35,0) -> 0 | F35: 54 | H35: 0 | I35: 0 | J35: 0 | K35: 0 | L35: 1 | M35: 2 | N35: 2 | O35: 1 | P35: 9 | Q35: 0 | R35: 0 | S35: 0 | T35: 5 | U35: 0 | V35: 3 | W35: 3 | X35: 0 | Y35: 2 | Z35: 15 | AA35: 1 | AB35: 3 | AC35: 2 | AD35: 1 | AE35: 2 | AF35: 0 | AG35: 1 | AH35: 1 | AI35: 0 | AJ35: 0 | AK35: 0 | AL35: 0 | AM35: 0 | AN35: 0
A36: 25 | B36: 00:24:00 | C36: 0 | D36: 54 | E36: =IF(appliances!$D$46="YES",light_sim_data!B36,0) -> 0 | F36: 54 | H36: 0 | I36: 0 | J36: 0 | K36: 0 | L36: 1 | M36: 2 | N36: 2 | O36: 1 | P36: 9 | Q36: 0 | R36: 0 | S36: 0 | T36: 5 | U36: 0 | V36: 3 | W36: 3 | X36: 0 | Y36: 2 | Z36: 15 | AA36: 1 | AB36: 3 | AC36: 2 | AD36: 1 | AE36: 2 | AF36: 0 | AG36: 1 | AH36: 1 | AI36: 0 | AJ36: 0 | AK36: 0 | AL36: 0 | AM36: 0 | AN36: 0
A37: 26 | B37: 00:25:00 | C37: 0 | D37: 54 | E37: =IF(appliances!$D$46="YES",light_sim_data!B37,0) -> 0 | F37: 54 | H37: 0 | I37: 0 | J37: 0 | K37: 0 | L37: 1 | M37: 2 | N37: 2 | O37: 1 | P37: 9 | Q37: 0 | R37: 0 | S37: 0 | T37: 5 | U37: 0 | V37: 3 | W37: 3 | X37: 0 | Y37: 2 | Z37: 15 | AA37: 1 | AB37: 3 | AC37: 2 | AD37: 1 | AE37: 2 | AF37: 0 | AG37: 1 | AH37: 1 | AI37: 0 | AJ37: 0 | AK37: 0 | AL37: 0 | AM37: 0 | AN37: 0
A38: 27 | B38: 00:26:00 | C38: 0 | D38: 54 | E38: =IF(appliances!$D$46="YES",light_sim_data!B38,0) -> 0 | F38: 54 | H38: 0 | I38: 0 | J38: 0 | K38: 0 | L38: 1 | M38: 2 | N38: 2 | O38: 1 | P38: 9 | Q38: 0 | R38: 0 | S38: 0 | T38: 5 | U38: 0 | V38: 3 | W38: 3 | X38: 0 | Y38: 2 | Z38: 15 | AA38: 1 | AB38: 3 | AC38: 2 | AD38: 1 | AE38: 2 | AF38: 0 | AG38: 1 | AH38: 1 | AI38: 0 | AJ38: 0 | AK38: 0 | AL38: 0 | AM38: 0 | AN38: 0
A39: 28 | B39: 00:27:00 | C39: 0 | D39: 54 | E39: =IF(appliances!$D$46="YES",light_sim_data!B39,0) -> 0 | F39: 54 | H39: 0 | I39: 0 | J39: 0 | K39: 0 | L39: 1 | M39: 2 | N39: 2 | O39: 1 | P39: 9 | Q39: 0 | R39: 0 | S39: 0 | T39: 5 | U39: 0 | V39: 3 | W39: 3 | X39: 0 | Y39: 2 | Z39: 15 | AA39: 1 | AB39: 3 | AC39: 2 | AD39: 1 | AE39: 2 | AF39: 0 | AG39: 1 | AH39: 1 | AI39: 0 | AJ39: 0 | AK39: 0 | AL39: 0 | AM39: 0 | AN39: 0
A40: 29 | B40: 00:28:00 | C40: 0 | D40: 54 | E40: =IF(appliances!$D$46="YES",light_sim_data!B40,0) -> 0 | F40: 54 | H40: 0 | I40: 0 | J40: 0 | K40: 0 | L40: 1 | M40: 2 | N40: 2 | O40: 1 | P40: 9 | Q40: 0 | R40: 0 | S40: 0 | T40: 5 | U40: 0 | V40: 3 | W40: 3 | X40: 0 | Y40: 2 | Z40: 15 | AA40: 1 | AB40: 3 | AC40: 2 | AD40: 1 | AE40: 2 | AF40: 0 | AG40: 1 | AH40: 1 | AI40: 0 | AJ40: 0 | AK40: 0 | AL40: 0 | AM40: 0 | AN40: 0
A41: 30 | B41: 00:29:00 | C41: 0 | D41: 54 | E41: =IF(appliances!$D$46="YES",light_sim_data!B41,0) -> 0 | F41: 54 | H41: 0 | I41: 0 | J41: 0 | K41: 0 | L41: 1 | M41: 2 | N41: 2 | O41: 1 | P41: 9 | Q41: 0 | R41: 0 | S41: 0 | T41: 5 | U41: 0 | V41: 3 | W41: 3 | X41: 0 | Y41: 2 | Z41: 15 | AA41: 1 | AB41: 3 | AC41: 2 | AD41: 1 | AE41: 2 | AF41: 0 | AG41: 1 | AH41: 1 | AI41: 0 | AJ41: 0 | AK41: 0 | AL41: 0 | AM41: 0 | AN41: 0
A42: 31 | B42: 00:30:00 | C42: 0 | D42: 54 | E42: =IF(appliances!$D$46="YES",light_sim_data!B42,0) -> 0 | F42: 54 | H42: 0 | I42: 0 | J42: 0 | K42: 0 | L42: 1 | M42: 2 | N42: 2 | O42: 1 | P42: 9 | Q42: 0 | R42: 0 | S42: 0 | T42: 5 | U42: 0 | V42: 3 | W42: 3 | X42: 0 | Y42: 2 | Z42: 15 | AA42: 1 | AB42: 3 | AC42: 2 | AD42: 1 | AE42: 2 | AF42: 0 | AG42: 1 | AH42: 1 | AI42: 0 | AJ42: 0 | AK42: 0 | AL42: 0 | AM42: 0 | AN42: 0
A43: 32 | B43: 00:31:00 | C43: 0 | D43: 54 | E43: =IF(appliances!$D$46="YES",light_sim_data!B43,0) -> 0 | F43: 54 | H43: 0 | I43: 0 | J43: 0 | K43: 0 | L43: 1 | M43: 2 | N43: 2 | O43: 1 | P43: 9 | Q43: 0 | R43: 0 | S43: 0 | T43: 5 | U43: 0 | V43: 3 | W43: 3 | X43: 0 | Y43: 2 | Z43: 15 | AA43: 1 | AB43: 3 | AC43: 2 | AD43: 1 | AE43: 2 | AF43: 0 | AG43: 1 | AH43: 1 | AI43: 0 | AJ43: 0 | AK43: 0 | AL43: 0 | AM43: 0 | AN43: 0
A44: 33 | B44: 00:32:00 | C44: 0 | D44: 54 | E44: =IF(appliances!$D$46="YES",light_sim_data!B44,0) -> 0 | F44: 54 | H44: 0 | I44: 0 | J44: 0 | K44: 0 | L44: 1 | M44: 2 | N44: 2 | O44: 1 | P44: 9 | Q44: 0 | R44: 0 | S44: 0 | T44: 5 | U44: 0 | V44: 3 | W44: 3 | X44: 0 | Y44: 2 | Z44: 15 | AA44: 1 | AB44: 3 | AC44: 2 | AD44: 1 | AE44: 2 | AF44: 0 | AG44: 1 | AH44: 1 | AI44: 0 | AJ44: 0 | AK44: 0 | AL44: 0 | AM44: 0 | AN44: 0
A45: 34 | B45: 00:33:00 | C45: 0 | D45: 54 | E45: =IF(appliances!$D$46="YES",light_sim_data!B45,0) -> 0 | F45: 54 | H45: 0 | I45: 0 | J45: 0 | K45: 0 | L45: 1 | M45: 2 | N45: 2 | O45: 1 | P45: 9 | Q45: 0 | R45: 0 | S45: 0 | T45: 5 | U45: 0 | V45: 3 | W45: 3 | X45: 0 | Y45: 2 | Z45: 15 | AA45: 1 | AB45: 3 | AC45: 2 | AD45: 1 | AE45: 2 | AF45: 0 | AG45: 1 | AH45: 1 | AI45: 0 | AJ45: 0 | AK45: 0 | AL45: 0 | AM45: 0 | AN45: 0
A46: 35 | B46: 00:34:00 | C46: 0 | D46: 54 | E46: =IF(appliances!$D$46="YES",light_sim_data!B46,0) -> 0 | F46: 54 | H46: 0 | I46: 0 | J46: 0 | K46: 0 | L46: 1 | M46: 2 | N46: 2 | O46: 1 | P46: 9 | Q46: 0 | R46: 0 | S46: 0 | T46: 5 | U46: 0 | V46: 3 | W46: 3 | X46: 0 | Y46: 2 | Z46: 15 | AA46: 1 | AB46: 3 | AC46: 2 | AD46: 1 | AE46: 2 | AF46: 0 | AG46: 1 | AH46: 1 | AI46: 0 | AJ46: 0 | AK46: 0 | AL46: 0 | AM46: 0 | AN46: 0
A47: 36 | B47: 00:35:00 | C47: 0 | D47: 54 | E47: =IF(appliances!$D$46="YES",light_sim_data!B47,0) -> 0 | F47: 54 | H47: 0 | I47: 0 | J47: 0 | K47: 0 | L47: 1 | M47: 2 | N47: 2 | O47: 1 | P47: 9 | Q47: 0 | R47: 0 | S47: 0 | T47: 5 | U47: 0 | V47: 3 | W47: 3 | X47: 0 | Y47: 2 | Z47: 15 | AA47: 1 | AB47: 3 | AC47: 2 | AD47: 1 | AE47: 2 | AF47: 0 | AG47: 1 | AH47: 1 | AI47: 0 | AJ47: 0 | AK47: 0 | AL47: 0 | AM47: 0 | AN47: 0
A48: 37 | B48: 00:36:00 | C48: 0 | D48: 54 | E48: =IF(appliances!$D$46="YES",light_sim_data!B48,0) -> 0 | F48: 54 | H48: 0 | I48: 0 | J48: 0 | K48: 0 | L48: 1 | M48: 2 | N48: 2 | O48: 1 | P48: 9 | Q48: 0 | R48: 0 | S48: 0 | T48: 5 | U48: 0 | V48: 3 | W48: 3 | X48: 0 | Y48: 2 | Z48: 15 | AA48: 1 | AB48: 3 | AC48: 2 | AD48: 1 | AE48: 2 | AF48: 0 | AG48: 1 | AH48: 1 | AI48: 0 | AJ48: 0 | AK48: 0 | AL48: 0 | AM48: 0 | AN48: 0
A49: 38 | B49: 00:37:00 | C49: 0 | D49: 54 | E49: =IF(appliances!$D$46="YES",light_sim_data!B49,0) -> 0 | F49: 54 | H49: 0 | I49: 0 | J49: 0 | K49: 0 | L49: 1 | M49: 2 | N49: 2 | O49: 1 | P49: 9 | Q49: 0 | R49: 0 | S49: 0 | T49: 5 | U49: 0 | V49: 3 | W49: 3 | X49: 0 | Y49: 2 | Z49: 15 | AA49: 1 | AB49: 3 | AC49: 2 | AD49: 1 | AE49: 2 | AF49: 0 | AG49: 1 | AH49: 1 | AI49: 0 | AJ49: 0 | AK49: 0 | AL49: 0 | AM49: 0 | AN49: 0
A50: 39 | B50: 00:38:00 | C50: 0 | D50: 54 | E50: =IF(appliances!$D$46="YES",light_sim_data!B50,0) -> 0 | F50: 54 | H50: 0 | I50: 0 | J50: 0 | K50: 0 | L50: 1 | M50: 2 | N50: 2 | O50: 1 | P50: 9 | Q50: 0 | R50: 0 | S50: 0 | T50: 5 | U50: 0 | V50: 3 | W50: 3 | X50: 0 | Y50: 2 | Z50: 15 | AA50: 1 | AB50: 3 | AC50: 2 | AD50: 1 | AE50: 2 | AF50: 0 | AG50: 1 | AH50: 1 | AI50: 0 | AJ50: 0 | AK50: 0 | AL50: 0 | AM50: 0 | AN50: 0
A51: 40 | B51: 00:39:00 | C51: 0 | D51: 54 | E51: =IF(appliances!$D$46="YES",light_sim_data!B51,0) -> 0 | F51: 54 | H51: 0 | I51: 0 | J51: 0 | K51: 0 | L51: 1 | M51: 2 | N51: 2 | O51: 1 | P51: 9 | Q51: 0 | R51: 0 | S51: 0 | T51: 5 | U51: 0 | V51: 3 | W51: 3 | X51: 0 | Y51: 2 | Z51: 15 | AA51: 1 | AB51: 3 | AC51: 2 | AD51: 1 | AE51: 2 | AF51: 0 | AG51: 1 | AH51: 1 | AI51: 0 | AJ51: 0 | AK51: 0 | AL51: 0 | AM51: 0 | AN51: 0
A52: 41 | B52: 00:40:00 | C52: 0 | D52: 54 | E52: =IF(appliances!$D$46="YES",light_sim_data!B52,0) -> 0 | F52: 54 | H52: 0 | I52: 0 | J52: 0 | K52: 0 | L52: 1 | M52: 2 | N52: 2 | O52: 1 | P52: 9 | Q52: 0 | R52: 0 | S52: 0 | T52: 5 | U52: 0 | V52: 3 | W52: 3 | X52: 0 | Y52: 2 | Z52: 15 | AA52: 1 | AB52: 3 | AC52: 2 | AD52: 1 | AE52: 2 | AF52: 0 | AG52: 1 | AH52: 1 | AI52: 0 | AJ52: 0 | AK52: 0 | AL52: 0 | AM52: 0 | AN52: 0
A53: 42 | B53: 00:41:00 | C53: 0 | D53: 54 | E53: =IF(appliances!$D$46="YES",light_sim_data!B53,0) -> 0 | F53: 54 | H53: 0 | I53: 0 | J53: 0 | K53: 0 | L53: 1 | M53: 2 | N53: 2 | O53: 1 | P53: 9 | Q53: 0 | R53: 0 | S53: 0 | T53: 5 | U53: 0 | V53: 3 | W53: 3 | X53: 0 | Y53: 2 | Z53: 15 | AA53: 1 | AB53: 3 | AC53: 2 | AD53: 1 | AE53: 2 | AF53: 0 | AG53: 1 | AH53: 1 | AI53: 0 | AJ53: 0 | AK53: 0 | AL53: 0 | AM53: 0 | AN53: 0
A54: 43 | B54: 00:42:00 | C54: 0 | D54: 54 | E54: =IF(appliances!$D$46="YES",light_sim_data!B54,0) -> 0 | F54: 54 | H54: 0 | I54: 0 | J54: 0 | K54: 0 | L54: 1 | M54: 2 | N54: 2 | O54: 1 | P54: 9 | Q54: 0 | R54: 0 | S54: 0 | T54: 5 | U54: 0 | V54: 3 | W54: 3 | X54: 0 | Y54: 2 | Z54: 15 | AA54: 1 | AB54: 3 | AC54: 2 | AD54: 1 | AE54: 2 | AF54: 0 | AG54: 1 | AH54: 1 | AI54: 0 | AJ54: 0 | AK54: 0 | AL54: 0 | AM54: 0 | AN54: 0
A55: 44 | B55: 00:43:00 | C55: 0 | D55: 54 | E55: =IF(appliances!$D$46="YES",light_sim_data!B55,0) -> 0 | F55: 54 | H55: 0 | I55: 0 | J55: 0 | K55: 0 | L55: 1 | M55: 2 | N55: 2 | O55: 1 | P55: 9 | Q55: 0 | R55: 0 | S55: 0 | T55: 5 | U55: 0 | V55: 3 | W55: 3 | X55: 0 | Y55: 2 | Z55: 15 | AA55: 1 | AB55: 3 | AC55: 2 | AD55: 1 | AE55: 2 | AF55: 0 | AG55: 1 | AH55: 1 | AI55: 0 | AJ55: 0 | AK55: 0 | AL55: 0 | AM55: 0 | AN55: 0
A56: 45 | B56: 00:44:00 | C56: 0 | D56: 54 | E56: =IF(appliances!$D$46="YES",light_sim_data!B56,0) -> 0 | F56: 54 | H56: 0 | I56: 0 | J56: 0 | K56: 0 | L56: 1 | M56: 2 | N56: 2 | O56: 1 | P56: 9 | Q56: 0 | R56: 0 | S56: 0 | T56: 5 | U56: 0 | V56: 3 | W56: 3 | X56: 0 | Y56: 2 | Z56: 15 | AA56: 1 | AB56: 3 | AC56: 2 | AD56: 1 | AE56: 2 | AF56: 0 | AG56: 1 | AH56: 1 | AI56: 0 | AJ56: 0 | AK56: 0 | AL56: 0 | AM56: 0 | AN56: 0
A57: 46 | B57: 00:45:00 | C57: 0 | D57: 163 | E57: =IF(appliances!$D$46="YES",light_sim_data!B57,0) -> 0 | F57: 163 | H57: 0 | I57: 0 | J57: 109 | K57: 0 | L57: 1 | M57: 2 | N57: 2 | O57: 1 | P57: 9 | Q57: 0 | R57: 0 | S57: 0 | T57: 5 | U57: 0 | V57: 3 | W57: 3 | X57: 0 | Y57: 2 | Z57: 15 | AA57: 1 | AB57: 3 | AC57: 2 | AD57: 1 | AE57: 2 | AF57: 0 | AG57: 1 | AH57: 1 | AI57: 0 | AJ57: 0 | AK57: 0 | AL57: 0 | AM57: 0 | AN57: 0
A58: 47 | B58: 00:46:00 | C58: 0 | D58: 163 | E58: =IF(appliances!$D$46="YES",light_sim_data!B58,0) -> 0 | F58: 163 | H58: 0 | I58: 0 | J58: 109 | K58: 0 | L58: 1 | M58: 2 | N58: 2 | O58: 1 | P58: 9 | Q58: 0 | R58: 0 | S58: 0 | T58: 5 | U58: 0 | V58: 3 | W58: 3 | X58: 0 | Y58: 2 | Z58: 15 | AA58: 1 | AB58: 3 | AC58: 2 | AD58: 1 | AE58: 2 | AF58: 0 | AG58: 1 | AH58: 1 | AI58: 0 | AJ58: 0 | AK58: 0 | AL58: 0 | AM58: 0 | AN58: 0
A59: 48 | B59: 00:47:00 | C59: 0 | D59: 163 | E59: =IF(appliances!$D$46="YES",light_sim_data!B59,0) -> 0 | F59: 163 | H59: 0 | I59: 0 | J59: 109 | K59: 0 | L59: 1 | M59: 2 | N59: 2 | O59: 1 | P59: 9 | Q59: 0 | R59: 0 | S59: 0 | T59: 5 | U59: 0 | V59: 3 | W59: 3 | X59: 0 | Y59: 2 | Z59: 15 | AA59: 1 | AB59: 3 | AC59: 2 | AD59: 1 | AE59: 2 | AF59: 0 | AG59: 1 | AH59: 1 | AI59: 0 | AJ59: 0 | AK59: 0 | AL59: 0 | AM59: 0 | AN59: 0
A60: 49 | B60: 00:48:00 | C60: 0 | D60: 163 | E60: =IF(appliances!$D$46="YES",light_sim_data!B60,0) -> 0 | F60: 163 | H60: 0 | I60: 0 | J60: 109 | K60: 0 | L60: 1 | M60: 2 | N60: 2 | O60: 1 | P60: 9 | Q60: 0 | R60: 0 | S60: 0 | T60: 5 | U60: 0 | V60: 3 | W60: 3 | X60: 0 | Y60: 2 | Z60: 15 | AA60: 1 | AB60: 3 | AC60: 2 | AD60: 1 | AE60: 2 | AF60: 0 | AG60: 1 | AH60: 1 | AI60: 0 | AJ60: 0 | AK60: 0 | AL60: 0 | AM60: 0 | AN60: 0
A61: 50 | B61: 00:49:00 | C61: 0 | D61: 163 | E61: =IF(appliances!$D$46="YES",light_sim_data!B61,0) -> 0 | F61: 163 | H61: 0 | I61: 0 | J61: 109 | K61: 0 | L61: 1 | M61: 2 | N61: 2 | O61: 1 | P61: 9 | Q61: 0 | R61: 0 | S61: 0 | T61: 5 | U61: 0 | V61: 3 | W61: 3 | X61: 0 | Y61: 2 | Z61: 15 | AA61: 1 | AB61: 3 | AC61: 2 | AD61: 1 | AE61: 2 | AF61: 0 | AG61: 1 | AH61: 1 | AI61: 0 | AJ61: 0 | AK61: 0 | AL61: 0 | AM61: 0 | AN61: 0
A62: 51 | B62: 00:50:00 | C62: 0 | D62: 163 | E62: =IF(appliances!$D$46="YES",light_sim_data!B62,0) -> 0 | F62: 163 | H62: 0 | I62: 0 | J62: 109 | K62: 0 | L62: 1 | M62: 2 | N62: 2 | O62: 1 | P62: 9 | Q62: 0 | R62: 0 | S62: 0 | T62: 5 | U62: 0 | V62: 3 | W62: 3 | X62: 0 | Y62: 2 | Z62: 15 | AA62: 1 | AB62: 3 | AC62: 2 | AD62: 1 | AE62: 2 | AF62: 0 | AG62: 1 | AH62: 1 | AI62: 0 | AJ62: 0 | AK62: 0 | AL62: 0 | AM62: 0 | AN62: 0
A63: 52 | B63: 00:51:00 | C63: 0 | D63: 163 | E63: =IF(appliances!$D$46="YES",light_sim_data!B63,0) -> 0 | F63: 163 | H63: 0 | I63: 0 | J63: 109 | K63: 0 | L63: 1 | M63: 2 | N63: 2 | O63: 1 | P63: 9 | Q63: 0 | R63: 0 | S63: 0 | T63: 5 | U63: 0 | V63: 3 | W63: 3 | X63: 0 | Y63: 2 | Z63: 15 | AA63: 1 | AB63: 3 | AC63: 2 | AD63: 1 | AE63: 2 | AF63: 0 | AG63: 1 | AH63: 1 | AI63: 0 | AJ63: 0 | AK63: 0 | AL63: 0 | AM63: 0 | AN63: 0
A64: 53 | B64: 00:52:00 | C64: 0 | D64: 163 | E64: =IF(appliances!$D$46="YES",light_sim_data!B64,0) -> 0 | F64: 163 | H64: 0 | I64: 0 | J64: 109 | K64: 0 | L64: 1 | M64: 2 | N64: 2 | O64: 1 | P64: 9 | Q64: 0 | R64: 0 | S64: 0 | T64: 5 | U64: 0 | V64: 3 | W64: 3 | X64: 0 | Y64: 2 | Z64: 15 | AA64: 1 | AB64: 3 | AC64: 2 | AD64: 1 | AE64: 2 | AF64: 0 | AG64: 1 | AH64: 1 | AI64: 0 | AJ64: 0 | AK64: 0 | AL64: 0 | AM64: 0 | AN64: 0
A65: 54 | B65: 00:53:00 | C65: 0 | D65: 163 | E65: =IF(appliances!$D$46="YES",light_sim_data!B65,0) -> 0 | F65: 163 | H65: 0 | I65: 0 | J65: 109 | K65: 0 | L65: 1 | M65: 2 | N65: 2 | O65: 1 | P65: 9 | Q65: 0 | R65: 0 | S65: 0 | T65: 5 | U65: 0 | V65: 3 | W65: 3 | X65: 0 | Y65: 2 | Z65: 15 | AA65: 1 | AB65: 3 | AC65: 2 | AD65: 1 | AE65: 2 | AF65: 0 | AG65: 1 | AH65: 1 | AI65: 0 | AJ65: 0 | AK65: 0 | AL65: 0 | AM65: 0 | AN65: 0
A66: 55 | B66: 00:54:00 | C66: 0 | D66: 163 | E66: =IF(appliances!$D$46="YES",light_sim_data!B66,0) -> 0 | F66: 163 | H66: 0 | I66: 0 | J66: 109 | K66: 0 | L66: 1 | M66: 2 | N66: 2 | O66: 1 | P66: 9 | Q66: 0 | R66: 0 | S66: 0 | T66: 5 | U66: 0 | V66: 3 | W66: 3 | X66: 0 | Y66: 2 | Z66: 15 | AA66: 1 | AB66: 3 | AC66: 2 | AD66: 1 | AE66: 2 | AF66: 0 | AG66: 1 | AH66: 1 | AI66: 0 | AJ66: 0 | AK66: 0 | AL66: 0 | AM66: 0 | AN66: 0
A67: 56 | B67: 00:55:00 | C67: 0 | D67: 163 | E67: =IF(appliances!$D$46="YES",light_sim_data!B67,0) -> 0 | F67: 163 | H67: 0 | I67: 0 | J67: 109 | K67: 0 | L67: 1 | M67: 2 | N67: 2 | O67: 1 | P67: 9 | Q67: 0 | R67: 0 | S67: 0 | T67: 5 | U67: 0 | V67: 3 | W67: 3 | X67: 0 | Y67: 2 | Z67: 15 | AA67: 1 | AB67: 3 | AC67: 2 | AD67: 1 | AE67: 2 | AF67: 0 | AG67: 1 | AH67: 1 | AI67: 0 | AJ67: 0 | AK67: 0 | AL67: 0 | AM67: 0 | AN67: 0
A68: 57 | B68: 00:56:00 | C68: 0 | D68: 163 | E68: =IF(appliances!$D$46="YES",light_sim_data!B68,0) -> 0 | F68: 163 | H68: 0 | I68: 0 | J68: 109 | K68: 0 | L68: 1 | M68: 2 | N68: 2 | O68: 1 | P68: 9 | Q68: 0 | R68: 0 | S68: 0 | T68: 5 | U68: 0 | V68: 3 | W68: 3 | X68: 0 | Y68: 2 | Z68: 15 | AA68: 1 | AB68: 3 | AC68: 2 | AD68: 1 | AE68: 2 | AF68: 0 | AG68: 1 | AH68: 1 | AI68: 0 | AJ68: 0 | AK68: 0 | AL68: 0 | AM68: 0 | AN68: 0
A69: 58 | B69: 00:57:00 | C69: 0 | D69: 163 | E69: =IF(appliances!$D$46="YES",light_sim_data!B69,0) -> 0 | F69: 163 | H69: 0 | I69: 0 | J69: 109 | K69: 0 | L69: 1 | M69: 2 | N69: 2 | O69: 1 | P69: 9 | Q69: 0 | R69: 0 | S69: 0 | T69: 5 | U69: 0 | V69: 3 | W69: 3 | X69: 0 | Y69: 2 | Z69: 15 | AA69: 1 | AB69: 3 | AC69: 2 | AD69: 1 | AE69: 2 | AF69: 0 | AG69: 1 | AH69: 1 | AI69: 0 | AJ69: 0 | AK69: 0 | AL69: 0 | AM69: 0 | AN69: 0
A70: 59 | B70: 00:58:00 | C70: 0 | D70: 163 | E70: =IF(appliances!$D$46="YES",light_sim_data!B70,0) -> 0 | F70: 163 | H70: 0 | I70: 0 | J70: 109 | K70: 0 | L70: 1 | M70: 2 | N70: 2 | O70: 1 | P70: 9 | Q70: 0 | R70: 0 | S70: 0 | T70: 5 | U70: 0 | V70: 3 | W70: 3 | X70: 0 | Y70: 2 | Z70: 15 | AA70: 1 | AB70: 3 | AC70: 2 | AD70: 1 | AE70: 2 | AF70: 0 | AG70: 1 | AH70: 1 | AI70: 0 | AJ70: 0 | AK70: 0 | AL70: 0 | AM70: 0 | AN70: 0
A71: 60 | B71: 00:59:00 | C71: 0 | D71: 163 | E71: =IF(appliances!$D$46="YES",light_sim_data!B71,0) -> 0 | F71: 163 | H71: 0 | I71: 0 | J71: 109 | K71: 0 | L71: 1 | M71: 2 | N71: 2 | O71: 1 | P71: 9 | Q71: 0 | R71: 0 | S71: 0 | T71: 5 | U71: 0 | V71: 3 | W71: 3 | X71: 0 | Y71: 2 | Z71: 15 | AA71: 1 | AB71: 3 | AC71: 2 | AD71: 1 | AE71: 2 | AF71: 0 | AG71: 1 | AH71: 1 | AI71: 0 | AJ71: 0 | AK71: 0 | AL71: 0 | AM71: 0 | AN71: 0
A72: 61 | B72: 01:00:00 | C72: 0 | D72: 163 | E72: =IF(appliances!$D$46="YES",light_sim_data!B72,0) -> 0 | F72: 163 | H72: 0 | I72: 0 | J72: 109 | K72: 0 | L72: 1 | M72: 2 | N72: 2 | O72: 1 | P72: 9 | Q72: 0 | R72: 0 | S72: 0 | T72: 5 | U72: 0 | V72: 3 | W72: 3 | X72: 0 | Y72: 2 | Z72: 15 | AA72: 1 | AB72: 3 | AC72: 2 | AD72: 1 | AE72: 2 | AF72: 0 | AG72: 1 | AH72: 1 | AI72: 0 | AJ72: 0 | AK72: 0 | AL72: 0 | AM72: 0 | AN72: 0
A73: 62 | B73: 01:01:00 | C73: 0 | D73: 163 | E73: =IF(appliances!$D$46="YES",light_sim_data!B73,0) -> 0 | F73: 163 | H73: 0 | I73: 0 | J73: 109 | K73: 0 | L73: 1 | M73: 2 | N73: 2 | O73: 1 | P73: 9 | Q73: 0 | R73: 0 | S73: 0 | T73: 5 | U73: 0 | V73: 3 | W73: 3 | X73: 0 | Y73: 2 | Z73: 15 | AA73: 1 | AB73: 3 | AC73: 2 | AD73: 1 | AE73: 2 | AF73: 0 | AG73: 1 | AH73: 1 | AI73: 0 | AJ73: 0 | AK73: 0 | AL73: 0 | AM73: 0 | AN73: 0
A74: 63 | B74: 01:02:00 | C74: 0 | D74: 163 | E74: =IF(appliances!$D$46="YES",light_sim_data!B74,0) -> 0 | F74: 163 | H74: 0 | I74: 0 | J74: 109 | K74: 0 | L74: 1 | M74: 2 | N74: 2 | O74: 1 | P74: 9 | Q74: 0 | R74: 0 | S74: 0 | T74: 5 | U74: 0 | V74: 3 | W74: 3 | X74: 0 | Y74: 2 | Z74: 15 | AA74: 1 | AB74: 3 | AC74: 2 | AD74: 1 | AE74: 2 | AF74: 0 | AG74: 1 | AH74: 1 | AI74: 0 | AJ74: 0 | AK74: 0 | AL74: 0 | AM74: 0 | AN74: 0
A75: 64 | B75: 01:03:00 | C75: 0 | D75: 54 | E75: =IF(appliances!$D$46="YES",light_sim_data!B75,0) -> 0 | F75: 54 | H75: 0 | I75: 0 | J75: 0 | K75: 0 | L75: 1 | M75: 2 | N75: 2 | O75: 1 | P75: 9 | Q75: 0 | R75: 0 | S75: 0 | T75: 5 | U75: 0 | V75: 3 | W75: 3 | X75: 0 | Y75: 2 | Z75: 15 | AA75: 1 | AB75: 3 | AC75: 2 | AD75: 1 | AE75: 2 | AF75: 0 | AG75: 1 | AH75: 1 | AI75: 0 | AJ75: 0 | AK75: 0 | AL75: 0 | AM75: 0 | AN75: 0
A76: 65 | B76: 01:04:00 | C76: 0 | D76: 54 | E76: =IF(appliances!$D$46="YES",light_sim_data!B76,0) -> 0 | F76: 54 | H76: 0 | I76: 0 | J76: 0 | K76: 0 | L76: 1 | M76: 2 | N76: 2 | O76: 1 | P76: 9 | Q76: 0 | R76: 0 | S76: 0 | T76: 5 | U76: 0 | V76: 3 | W76: 3 | X76: 0 | Y76: 2 | Z76: 15 | AA76: 1 | AB76: 3 | AC76: 2 | AD76: 1 | AE76: 2 | AF76: 0 | AG76: 1 | AH76: 1 | AI76: 0 | AJ76: 0 | AK76: 0 | AL76: 0 | AM76: 0 | AN76: 0
A77: 66 | B77: 01:05:00 | C77: =INDIRECT("occ_sim_data!C"&(ROUNDDOWN((A77-1)/10,0)+11)) -> 0 | D77: =E77+F77 -> 54 | E77: =IF(appliances!$D$46="YES",light_sim_data!B77,0) -> 0 | F77: =SUM(H77:AN77) -> 54 | H77: 0 | I77: 0 | J77: 0 | K77: 0 | L77: 1 | M77: 2 | N77: 2 | O77: 1 | P77: 9 | Q77: 0 | R77: 0 | S77: 0 | T77: 5 | U77: 0 | V77: 3 | W77: 3 | X77: 0 | Y77: 2 | Z77: 15 | AA77: 1 | AB77: 3 | AC77: 2 | AD77: 1 | AE77: 2 | AF77: 0 | AG77: 1 | AH77: 1 | AI77: 0 | AJ77: 0 | AK77: 0 | AL77: 0 | AM77: 0 | AN77: 0
A78: 67 | B78: 01:06:00 | C78: 0 | D78: 54 | E78: =IF(appliances!$D$46="YES",light_sim_data!B78,0) -> 0 | F78: 54 | H78: 0 | I78: 0 | J78: 0 | K78: 0 | L78: 1 | M78: 2 | N78: 2 | O78: 1 | P78: 9 | Q78: 0 | R78: 0 | S78: 0 | T78: 5 | U78: 0 | V78: 3 | W78: 3 | X78: 0 | Y78: 2 | Z78: 15 | AA78: 1 | AB78: 3 | AC78: 2 | AD78: 1 | AE78: 2 | AF78: 0 | AG78: 1 | AH78: 1 | AI78: 0 | AJ78: 0 | AK78: 0 | AL78: 0 | AM78: 0 | AN78: 0
A79: 68 | B79: 01:07:00 | C79: 0 | D79: 54 | E79: =IF(appliances!$D$46="YES",light_sim_data!B79,0) -> 0 | F79: 54 | H79: 0 | I79: 0 | J79: 0 | K79: 0 | L79: 1 | M79: 2 | N79: 2 | O79: 1 | P79: 9 | Q79: 0 | R79: 0 | S79: 0 | T79: 5 | U79: 0 | V79: 3 | W79: 3 | X79: 0 | Y79: 2 | Z79: 15 | AA79: 1 | AB79: 3 | AC79: 2 | AD79: 1 | AE79: 2 | AF79: 0 | AG79: 1 | AH79: 1 | AI79: 0 | AJ79: 0 | AK79: 0 | AL79: 0 | AM79: 0 | AN79: 0
A80: 69 | B80: 01:08:00 | C80: 0 | D80: 54 | E80: =IF(appliances!$D$46="YES",light_sim_data!B80,0) -> 0 | F80: 54 | H80: 0 | I80: 0 | J80: 0 | K80: 0 | L80: 1 | M80: 2 | N80: 2 | O80: 1 | P80: 9 | Q80: 0 | R80: 0 | S80: 0 | T80: 5 | U80: 0 | V80: 3 | W80: 3 | X80: 0 | Y80: 2 | Z80: 15 | AA80: 1 | AB80: 3 | AC80: 2 | AD80: 1 | AE80: 2 | AF80: 0 | AG80: 1 | AH80: 1 | AI80: 0 | AJ80: 0 | AK80: 0 | AL80: 0 | AM80: 0 | AN80: 0
A81: 70 | B81: 01:09:00 | C81: 0 | D81: 232 | E81: =IF(appliances!$D$46="YES",light_sim_data!B81,0) -> 0 | F81: 232 | H81: 0 | I81: 178 | J81: 0 | K81: 0 | L81: 1 | M81: 2 | N81: 2 | O81: 1 | P81: 9 | Q81: 0 | R81: 0 | S81: 0 | T81: 5 | U81: 0 | V81: 3 | W81: 3 | X81: 0 | Y81: 2 | Z81: 15 | AA81: 1 | AB81: 3 | AC81: 2 | AD81: 1 | AE81: 2 | AF81: 0 | AG81: 1 | AH81: 1 | AI81: 0 | AJ81: 0 | AK81: 0 | AL81: 0 | AM81: 0 | AN81: 0
A82: 71 | B82: 01:10:00 | C82: 0 | D82: 232 | E82: =IF(appliances!$D$46="YES",light_sim_data!B82,0) -> 0 | F82: 232 | H82: 0 | I82: 178 | J82: 0 | K82: 0 | L82: 1 | M82: 2 | N82: 2 | O82: 1 | P82: 9 | Q82: 0 | R82: 0 | S82: 0 | T82: 5 | U82: 0 | V82: 3 | W82: 3 | X82: 0 | Y82: 2 | Z82: 15 | AA82: 1 | AB82: 3 | AC82: 2 | AD82: 1 | AE82: 2 | AF82: 0 | AG82: 1 | AH82: 1 | AI82: 0 | AJ82: 0 | AK82: 0 | AL82: 0 | AM82: 0 | AN82: 0
A83: 72 | B83: 01:11:00 | C83: 0 | D83: 232 | E83: =IF(appliances!$D$46="YES",light_sim_data!B83,0) -> 0 | F83: 232 | H83: 0 | I83: 178 | J83: 0 | K83: 0 | L83: 1 | M83: 2 | N83: 2 | O83: 1 | P83: 9 | Q83: 0 | R83: 0 | S83: 0 | T83: 5 | U83: 0 | V83: 3 | W83: 3 | X83: 0 | Y83: 2 | Z83: 15 | AA83: 1 | AB83: 3 | AC83: 2 | AD83: 1 | AE83: 2 | AF83: 0 | AG83: 1 | AH83: 1 | AI83: 0 | AJ83: 0 | AK83: 0 | AL83: 0 | AM83: 0 | AN83: 0
A84: 73 | B84: 01:12:00 | C84: 0 | D84: 232 | E84: =IF(appliances!$D$46="YES",light_sim_data!B84,0) -> 0 | F84: 232 | H84: 0 | I84: 178 | J84: 0 | K84: 0 | L84: 1 | M84: 2 | N84: 2 | O84: 1 | P84: 9 | Q84: 0 | R84: 0 | S84: 0 | T84: 5 | U84: 0 | V84: 3 | W84: 3 | X84: 0 | Y84: 2 | Z84: 15 | AA84: 1 | AB84: 3 | AC84: 2 | AD84: 1 | AE84: 2 | AF84: 0 | AG84: 1 | AH84: 1 | AI84: 0 | AJ84: 0 | AK84: 0 | AL84: 0 | AM84: 0 | AN84: 0
A85: 74 | B85: 01:13:00 | C85: 0 | D85: 368 | E85: =IF(appliances!$D$46="YES",light_sim_data!B85,0) -> 0 | F85: 368 | H85: 0 | I85: 178 | J85: 0 | K85: 136 | L85: 1 | M85: 2 | N85: 2 | O85: 1 | P85: 9 | Q85: 0 | R85: 0 | S85: 0 | T85: 5 | U85: 0 | V85: 3 | W85: 3 | X85: 0 | Y85: 2 | Z85: 15 | AA85: 1 | AB85: 3 | AC85: 2 | AD85: 1 | AE85: 2 | AF85: 0 | AG85: 1 | AH85: 1 | AI85: 0 | AJ85: 0 | AK85: 0 | AL85: 0 | AM85: 0 | AN85: 0
A86: 75 | B86: 01:14:00 | C86: 0 | D86: 368 | E86: =IF(appliances!$D$46="YES",light_sim_data!B86,0) -> 0 | F86: 368 | H86: 0 | I86: 178 | J86: 0 | K86: 136 | L86: 1 | M86: 2 | N86: 2 | O86: 1 | P86: 9 | Q86: 0 | R86: 0 | S86: 0 | T86: 5 | U86: 0 | V86: 3 | W86: 3 | X86: 0 | Y86: 2 | Z86: 15 | AA86: 1 | AB86: 3 | AC86: 2 | AD86: 1 | AE86: 2 | AF86: 0 | AG86: 1 | AH86: 1 | AI86: 0 | AJ86: 0 | AK86: 0 | AL86: 0 | AM86: 0 | AN86: 0
A87: 76 | B87: 01:15:00 | C87: 0 | D87: 368 | E87: =IF(appliances!$D$46="YES",light_sim_data!B87,0) -> 0 | F87: 368 | H87: 0 | I87: 178 | J87: 0 | K87: 136 | L87: 1 | M87: 2 | N87: 2 | O87: 1 | P87: 9 | Q87: 0 | R87: 0 | S87: 0 | T87: 5 | U87: 0 | V87: 3 | W87: 3 | X87: 0 | Y87: 2 | Z87: 15 | AA87: 1 | AB87: 3 | AC87: 2 | AD87: 1 | AE87: 2 | AF87: 0 | AG87: 1 | AH87: 1 | AI87: 0 | AJ87: 0 | AK87: 0 | AL87: 0 | AM87: 0 | AN87: 0
A88: 77 | B88: 01:16:00 | C88: 0 | D88: 368 | E88: =IF(appliances!$D$46="YES",light_sim_data!B88,0) -> 0 | F88: 368 | H88: 0 | I88: 178 | J88: 0 | K88: 136 | L88: 1 | M88: 2 | N88: 2 | O88: 1 | P88: 9 | Q88: 0 | R88: 0 | S88: 0 | T88: 5 | U88: 0 | V88: 3 | W88: 3 | X88: 0 | Y88: 2 | Z88: 15 | AA88: 1 | AB88: 3 | AC88: 2 | AD88: 1 | AE88: 2 | AF88: 0 | AG88: 1 | AH88: 1 | AI88: 0 | AJ88: 0 | AK88: 0 | AL88: 0 | AM88: 0 | AN88: 0
A89: 78 | B89: 01:17:00 | C89: 0 | D89: 368 | E89: =IF(appliances!$D$46="YES",light_sim_data!B89,0) -> 0 | F89: 368 | H89: 0 | I89: 178 | J89: 0 | K89: 136 | L89: 1 | M89: 2 | N89: 2 | O89: 1 | P89: 9 | Q89: 0 | R89: 0 | S89: 0 | T89: 5 | U89: 0 | V89: 3 | W89: 3 | X89: 0 | Y89: 2 | Z89: 15 | AA89: 1 | AB89: 3 | AC89: 2 | AD89: 1 | AE89: 2 | AF89: 0 | AG89: 1 | AH89: 1 | AI89: 0 | AJ89: 0 | AK89: 0 | AL89: 0 | AM89: 0 | AN89: 0
A90: 79 | B90: 01:18:00 | C90: 0 | D90: 368 | E90: =IF(appliances!$D$46="YES",light_sim_data!B90,0) -> 0 | F90: 368 | H90: 0 | I90: 178 | J90: 0 | K90: 136 | L90: 1 | M90: 2 | N90: 2 | O90: 1 | P90: 9 | Q90: 0 | R90: 0 | S90: 0 | T90: 5 | U90: 0 | V90: 3 | W90: 3 | X90: 0 | Y90: 2 | Z90: 15 | AA90: 1 | AB90: 3 | AC90: 2 | AD90: 1 | AE90: 2 | AF90: 0 | AG90: 1 | AH90: 1 | AI90: 0 | AJ90: 0 | AK90: 0 | AL90: 0 | AM90: 0 | AN90: 0
A91: 80 | B91: 01:19:00 | C91: 0 | D91: 368 | E91: =IF(appliances!$D$46="YES",light_sim_data!B91,0) -> 0 | F91: 368 | H91: 0 | I91: 178 | J91: 0 | K91: 136 | L91: 1 | M91: 2 | N91: 2 | O91: 1 | P91: 9 | Q91: 0 | R91: 0 | S91: 0 | T91: 5 | U91: 0 | V91: 3 | W91: 3 | X91: 0 | Y91: 2 | Z91: 15 | AA91: 1 | AB91: 3 | AC91: 2 | AD91: 1 | AE91: 2 | AF91: 0 | AG91: 1 | AH91: 1 | AI91: 0 | AJ91: 0 | AK91: 0 | AL91: 0 | AM91: 0 | AN91: 0
A92: 81 | B92: 01:20:00 | C92: 0 | D92: 368 | E92: =IF(appliances!$D$46="YES",light_sim_data!B92,0) -> 0 | F92: 368 | H92: 0 | I92: 178 | J92: 0 | K92: 136 | L92: 1 | M92: 2 | N92: 2 | O92: 1 | P92: 9 | Q92: 0 | R92: 0 | S92: 0 | T92: 5 | U92: 0 | V92: 3 | W92: 3 | X92: 0 | Y92: 2 | Z92: 15 | AA92: 1 | AB92: 3 | AC92: 2 | AD92: 1 | AE92: 2 | AF92: 0 | AG92: 1 | AH92: 1 | AI92: 0 | AJ92: 0 | AK92: 0 | AL92: 0 | AM92: 0 | AN92: 0
A93: 82 | B93: 01:21:00 | C93: 0 | D93: 368 | E93: =IF(appliances!$D$46="YES",light_sim_data!B93,0) -> 0 | F93: 368 | H93: 0 | I93: 178 | J93: 0 | K93: 136 | L93: 1 | M93: 2 | N93: 2 | O93: 1 | P93: 9 | Q93: 0 | R93: 0 | S93: 0 | T93: 5 | U93: 0 | V93: 3 | W93: 3 | X93: 0 | Y93: 2 | Z93: 15 | AA93: 1 | AB93: 3 | AC93: 2 | AD93: 1 | AE93: 2 | AF93: 0 | AG93: 1 | AH93: 1 | AI93: 0 | AJ93: 0 | AK93: 0 | AL93: 0 | AM93: 0 | AN93: 0
A94: 83 | B94: 01:22:00 | C94: 0 | D94: 368 | E94: =IF(appliances!$D$46="YES",light_sim_data!B94,0) -> 0 | F94: 368 | H94: 0 | I94: 178 | J94: 0 | K94: 136 | L94: 1 | M94: 2 | N94: 2 | O94: 1 | P94: 9 | Q94: 0 | R94: 0 | S94: 0 | T94: 5 | U94: 0 | V94: 3 | W94: 3 | X94: 0 | Y94: 2 | Z94: 15 | AA94: 1 | AB94: 3 | AC94: 2 | AD94: 1 | AE94: 2 | AF94: 0 | AG94: 1 | AH94: 1 | AI94: 0 | AJ94: 0 | AK94: 0 | AL94: 0 | AM94: 0 | AN94: 0
A95: 84 | B95: 01:23:00 | C95: 0 | D95: 368 | E95: =IF(appliances!$D$46="YES",light_sim_data!B95,0) -> 0 | F95: 368 | H95: 0 | I95: 178 | J95: 0 | K95: 136 | L95: 1 | M95: 2 | N95: 2 | O95: 1 | P95: 9 | Q95: 0 | R95: 0 | S95: 0 | T95: 5 | U95: 0 | V95: 3 | W95: 3 | X95: 0 | Y95: 2 | Z95: 15 | AA95: 1 | AB95: 3 | AC95: 2 | AD95: 1 | AE95: 2 | AF95: 0 | AG95: 1 | AH95: 1 | AI95: 0 | AJ95: 0 | AK95: 0 | AL95: 0 | AM95: 0 | AN95: 0
A96: 85 | B96: 01:24:00 | C96: 0 | D96: 368 | E96: =IF(appliances!$D$46="YES",light_sim_data!B96,0) -> 0 | F96: 368 | H96: 0 | I96: 178 | J96: 0 | K96: 136 | L96: 1 | M96: 2 | N96: 2 | O96: 1 | P96: 9 | Q96: 0 | R96: 0 | S96: 0 | T96: 5 | U96: 0 | V96: 3 | W96: 3 | X96: 0 | Y96: 2 | Z96: 15 | AA96: 1 | AB96: 3 | AC96: 2 | AD96: 1 | AE96: 2 | AF96: 0 | AG96: 1 | AH96: 1 | AI96: 0 | AJ96: 0 | AK96: 0 | AL96: 0 | AM96: 0 | AN96: 0
A97: 86 | B97: 01:25:00 | C97: 0 | D97: 368 | E97: =IF(appliances!$D$46="YES",light_sim_data!B97,0) -> 0 | F97: 368 | H97: 0 | I97: 178 | J97: 0 | K97: 136 | L97: 1 | M97: 2 | N97: 2 | O97: 1 | P97: 9 | Q97: 0 | R97: 0 | S97: 0 | T97: 5 | U97: 0 | V97: 3 | W97: 3 | X97: 0 | Y97: 2 | Z97: 15 | AA97: 1 | AB97: 3 | AC97: 2 | AD97: 1 | AE97: 2 | AF97: 0 | AG97: 1 | AH97: 1 | AI97: 0 | AJ97: 0 | AK97: 0 | AL97: 0 | AM97: 0 | AN97: 0
A98: 87 | B98: 01:26:00 | C98: 0 | D98: 368 | E98: =IF(appliances!$D$46="YES",light_sim_data!B98,0) -> 0 | F98: 368 | H98: 0 | I98: 178 | J98: 0 | K98: 136 | L98: 1 | M98: 2 | N98: 2 | O98: 1 | P98: 9 | Q98: 0 | R98: 0 | S98: 0 | T98: 5 | U98: 0 | V98: 3 | W98: 3 | X98: 0 | Y98: 2 | Z98: 15 | AA98: 1 | AB98: 3 | AC98: 2 | AD98: 1 | AE98: 2 | AF98: 0 | AG98: 1 | AH98: 1 | AI98: 0 | AJ98: 0 | AK98: 0 | AL98: 0 | AM98: 0 | AN98: 0
A99: 88 | B99: 01:27:00 | C99: 0 | D99: 368 | E99: =IF(appliances!$D$46="YES",light_sim_data!B99,0) -> 0 | F99: 368 | H99: 0 | I99: 178 | J99: 0 | K99: 136 | L99: 1 | M99: 2 | N99: 2 | O99: 1 | P99: 9 | Q99: 0 | R99: 0 | S99: 0 | T99: 5 | U99: 0 | V99: 3 | W99: 3 | X99: 0 | Y99: 2 | Z99: 15 | AA99: 1 | AB99: 3 | AC99: 2 | AD99: 1 | AE99: 2 | AF99: 0 | AG99: 1 | AH99: 1 | AI99: 0 | AJ99: 0 | AK99: 0 | AL99: 0 | AM99: 0 | AN99: 0
A100: 89 | B100: 01:28:00 | C100: 0 | D100: 368 | E100: =IF(appliances!$D$46="YES",light_sim_data!B100,0) -> 0 | F100: 368 | H100: 0 | I100: 178 | J100: 0 | K100: 136 | L100: 1 | M100: 2 | N100: 2 | O100: 1 | P100: 9 | Q100: 0 | R100: 0 | S100: 0 | T100: 5 | U100: 0 | V100: 3 | W100: 3 | X100: 0 | Y100: 2 | Z100: 15 | AA100: 1 | AB100: 3 | AC100: 2 | AD100: 1 | AE100: 2 | AF100: 0 | AG100: 1 | AH100: 1 | AI100: 0 | AJ100: 0 | AK100: 0 | AL100: 0 | AM100: 0 | AN100: 0
A101: 90 | B101: 01:29:00 | C101: 0 | D101: 368 | E101: =IF(appliances!$D$46="YES",light_sim_data!B101,0) -> 0 | F101: 368 | H101: 0 | I101: 178 | J101: 0 | K101: 136 | L101: 1 | M101: 2 | N101: 2 | O101: 1 | P101: 9 | Q101: 0 | R101: 0 | S101: 0 | T101: 5 | U101: 0 | V101: 3 | W101: 3 | X101: 0 | Y101: 2 | Z101: 15 | AA101: 1 | AB101: 3 | AC101: 2 | AD101: 1 | AE101: 2 | AF101: 0 | AG101: 1 | AH101: 1 | AI101: 0 | AJ101: 0 | AK101: 0 | AL101: 0 | AM101: 0 | AN101: 0
A102: 91 | B102: 01:30:00 | C102: 0 | D102: 368 | E102: =IF(appliances!$D$46="YES",light_sim_data!B102,0) -> 0 | F102: 368 | H102: 0 | I102: 178 | J102: 0 | K102: 136 | L102: 1 | M102: 2 | N102: 2 | O102: 1 | P102: 9 | Q102: 0 | R102: 0 | S102: 0 | T102: 5 | U102: 0 | V102: 3 | W102: 3 | X102: 0 | Y102: 2 | Z102: 15 | AA102: 1 | AB102: 3 | AC102: 2 | AD102: 1 | AE102: 2 | AF102: 0 | AG102: 1 | AH102: 1 | AI102: 0 | AJ102: 0 | AK102: 0 | AL102: 0 | AM102: 0 | AN102: 0
A103: 92 | B103: 01:31:00 | C103: 0 | D103: 190 | E103: =IF(appliances!$D$46="YES",light_sim_data!B103,0) -> 0 | F103: 190 | H103: 0 | I103: 0 | J103: 0 | K103: 136 | L103: 1 | M103: 2 | N103: 2 | O103: 1 | P103: 9 | Q103: 0 | R103: 0 | S103: 0 | T103: 5 | U103: 0 | V103: 3 | W103: 3 | X103: 0 | Y103: 2 | Z103: 15 | AA103: 1 | AB103: 3 | AC103: 2 | AD103: 1 | AE103: 2 | AF103: 0 | AG103: 1 | AH103: 1 | AI103: 0 | AJ103: 0 | AK103: 0 | AL103: 0 | AM103: 0 | AN103: 0
A104: 93 | B104: 01:32:00 | C104: 0 | D104: 190 | E104: =IF(appliances!$D$46="YES",light_sim_data!B104,0) -> 0 | F104: 190 | H104: 0 | I104: 0 | J104: 0 | K104: 136 | L104: 1 | M104: 2 | N104: 2 | O104: 1 | P104: 9 | Q104: 0 | R104: 0 | S104: 0 | T104: 5 | U104: 0 | V104: 3 | W104: 3 | X104: 0 | Y104: 2 | Z104: 15 | AA104: 1 | AB104: 3 | AC104: 2 | AD104: 1 | AE104: 2 | AF104: 0 | AG104: 1 | AH104: 1 | AI104: 0 | AJ104: 0 | AK104: 0 | AL104: 0 | AM104: 0 | AN104: 0
A105: 94 | B105: 01:33:00 | C105: 0 | D105: 54 | E105: =IF(appliances!$D$46="YES",light_sim_data!B105,0) -> 0 | F105: 54 | H105: 0 | I105: 0 | J105: 0 | K105: 0 | L105: 1 | M105: 2 | N105: 2 | O105: 1 | P105: 9 | Q105: 0 | R105: 0 | S105: 0 | T105: 5 | U105: 0 | V105: 3 | W105: 3 | X105: 0 | Y105: 2 | Z105: 15 | AA105: 1 | AB105: 3 | AC105: 2 | AD105: 1 | AE105: 2 | AF105: 0 | AG105: 1 | AH105: 1 | AI105: 0 | AJ105: 0 | AK105: 0 | AL105: 0 | AM105: 0 | AN105: 0
A106: 95 | B106: 01:34:00 | C106: 0 | D106: 54 | E106: =IF(appliances!$D$46="YES",light_sim_data!B106,0) -> 0 | F106: 54 | H106: 0 | I106: 0 | J106: 0 | K106: 0 | L106: 1 | M106: 2 | N106: 2 | O106: 1 | P106: 9 | Q106: 0 | R106: 0 | S106: 0 | T106: 5 | U106: 0 | V106: 3 | W106: 3 | X106: 0 | Y106: 2 | Z106: 15 | AA106: 1 | AB106: 3 | AC106: 2 | AD106: 1 | AE106: 2 | AF106: 0 | AG106: 1 | AH106: 1 | AI106: 0 | AJ106: 0 | AK106: 0 | AL106: 0 | AM106: 0 | AN106: 0
A107: 96 | B107: 01:35:00 | C107: 0 | D107: 54 | E107: =IF(appliances!$D$46="YES",light_sim_data!B107,0) -> 0 | F107: 54 | H107: 0 | I107: 0 | J107: 0 | K107: 0 | L107: 1 | M107: 2 | N107: 2 | O107: 1 | P107: 9 | Q107: 0 | R107: 0 | S107: 0 | T107: 5 | U107: 0 | V107: 3 | W107: 3 | X107: 0 | Y107: 2 | Z107: 15 | AA107: 1 | AB107: 3 | AC107: 2 | AD107: 1 | AE107: 2 | AF107: 0 | AG107: 1 | AH107: 1 | AI107: 0 | AJ107: 0 | AK107: 0 | AL107: 0 | AM107: 0 | AN107: 0
A108: 97 | B108: 01:36:00 | C108: 0 | D108: 54 | E108: =IF(appliances!$D$46="YES",light_sim_data!B108,0) -> 0 | F108: 54 | H108: 0 | I108: 0 | J108: 0 | K108: 0 | L108: 1 | M108: 2 | N108: 2 | O108: 1 | P108: 9 | Q108: 0 | R108: 0 | S108: 0 | T108: 5 | U108: 0 | V108: 3 | W108: 3 | X108: 0 | Y108: 2 | Z108: 15 | AA108: 1 | AB108: 3 | AC108: 2 | AD108: 1 | AE108: 2 | AF108: 0 | AG108: 1 | AH108: 1 | AI108: 0 | AJ108: 0 | AK108: 0 | AL108: 0 | AM108: 0 | AN108: 0
A109: 98 | B109: 01:37:00 | C109: 0 | D109: 54 | E109: =IF(appliances!$D$46="YES",light_sim_data!B109,0) -> 0 | F109: 54 | H109: 0 | I109: 0 | J109: 0 | K109: 0 | L109: 1 | M109: 2 | N109: 2 | O109: 1 | P109: 9 | Q109: 0 | R109: 0 | S109: 0 | T109: 5 | U109: 0 | V109: 3 | W109: 3 | X109: 0 | Y109: 2 | Z109: 15 | AA109: 1 | AB109: 3 | AC109: 2 | AD109: 1 | AE109: 2 | AF109: 0 | AG109: 1 | AH109: 1 | AI109: 0 | AJ109: 0 | AK109: 0 | AL109: 0 | AM109: 0 | AN109: 0
A110: 99 | B110: 01:38:00 | C110: 0 | D110: 54 | E110: =IF(appliances!$D$46="YES",light_sim_data!B110,0) -> 0 | F110: 54 | H110: 0 | I110: 0 | J110: 0 | K110: 0 | L110: 1 | M110: 2 | N110: 2 | O110: 1 | P110: 9 | Q110: 0 | R110: 0 | S110: 0 | T110: 5 | U110: 0 | V110: 3 | W110: 3 | X110: 0 | Y110: 2 | Z110: 15 | AA110: 1 | AB110: 3 | AC110: 2 | AD110: 1 | AE110: 2 | AF110: 0 | AG110: 1 | AH110: 1 | AI110: 0 | AJ110: 0 | AK110: 0 | AL110: 0 | AM110: 0 | AN110: 0
A111: 100 | B111: 01:39:00 | C111: 0 | D111: 54 | E111: =IF(appliances!$D$46="YES",light_sim_data!B111,0) -> 0 | F111: 54 | H111: 0 | I111: 0 | J111: 0 | K111: 0 | L111: 1 | M111: 2 | N111: 2 | O111: 1 | P111: 9 | Q111: 0 | R111: 0 | S111: 0 | T111: 5 | U111: 0 | V111: 3 | W111: 3 | X111: 0 | Y111: 2 | Z111: 15 | AA111: 1 | AB111: 3 | AC111: 2 | AD111: 1 | AE111: 2 | AF111: 0 | AG111: 1 | AH111: 1 | AI111: 0 | AJ111: 0 | AK111: 0 | AL111: 0 | AM111: 0 | AN111: 0
A112: 101 | B112: 01:40:00 | C112: 0 | D112: 54 | E112: =IF(appliances!$D$46="YES",light_sim_data!B112,0) -> 0 | F112: 54 | H112: 0 | I112: 0 | J112: 0 | K112: 0 | L112: 1 | M112: 2 | N112: 2 | O112: 1 | P112: 9 | Q112: 0 | R112: 0 | S112: 0 | T112: 5 | U112: 0 | V112: 3 | W112: 3 | X112: 0 | Y112: 2 | Z112: 15 | AA112: 1 | AB112: 3 | AC112: 2 | AD112: 1 | AE112: 2 | AF112: 0 | AG112: 1 | AH112: 1 | AI112: 0 | AJ112: 0 | AK112: 0 | AL112: 0 | AM112: 0 | AN112: 0
A113: 102 | B113: 01:41:00 | C113: 0 | D113: 54 | E113: =IF(appliances!$D$46="YES",light_sim_data!B113,0) -> 0 | F113: 54 | H113: 0 | I113: 0 | J113: 0 | K113: 0 | L113: 1 | M113: 2 | N113: 2 | O113: 1 | P113: 9 | Q113: 0 | R113: 0 | S113: 0 | T113: 5 | U113: 0 | V113: 3 | W113: 3 | X113: 0 | Y113: 2 | Z113: 15 | AA113: 1 | AB113: 3 | AC113: 2 | AD113: 1 | AE113: 2 | AF113: 0 | AG113: 1 | AH113: 1 | AI113: 0 | AJ113: 0 | AK113: 0 | AL113: 0 | AM113: 0 | AN113: 0
A114: 103 | B114: 01:42:00 | C114: 0 | D114: 54 | E114: =IF(appliances!$D$46="YES",light_sim_data!B114,0) -> 0 | F114: 54 | H114: 0 | I114: 0 | J114: 0 | K114: 0 | L114: 1 | M114: 2 | N114: 2 | O114: 1 | P114: 9 | Q114: 0 | R114: 0 | S114: 0 | T114: 5 | U114: 0 | V114: 3 | W114: 3 | X114: 0 | Y114: 2 | Z114: 15 | AA114: 1 | AB114: 3 | AC114: 2 | AD114: 1 | AE114: 2 | AF114: 0 | AG114: 1 | AH114: 1 | AI114: 0 | AJ114: 0 | AK114: 0 | AL114: 0 | AM114: 0 | AN114: 0
A115: 104 | B115: 01:43:00 | C115: 0 | D115: 54 | E115: =IF(appliances!$D$46="YES",light_sim_data!B115,0) -> 0 | F115: 54 | H115: 0 | I115: 0 | J115: 0 | K115: 0 | L115: 1 | M115: 2 | N115: 2 | O115: 1 | P115: 9 | Q115: 0 | R115: 0 | S115: 0 | T115: 5 | U115: 0 | V115: 3 | W115: 3 | X115: 0 | Y115: 2 | Z115: 15 | AA115: 1 | AB115: 3 | AC115: 2 | AD115: 1 | AE115: 2 | AF115: 0 | AG115: 1 | AH115: 1 | AI115: 0 | AJ115: 0 | AK115: 0 | AL115: 0 | AM115: 0 | AN115: 0
A116: 105 | B116: 01:44:00 | C116: 0 | D116: 54 | E116: =IF(appliances!$D$46="YES",light_sim_data!B116,0) -> 0 | F116: 54 | H116: 0 | I116: 0 | J116: 0 | K116: 0 | L116: 1 | M116: 2 | N116: 2 | O116: 1 | P116: 9 | Q116: 0 | R116: 0 | S116: 0 | T116: 5 | U116: 0 | V116: 3 | W116: 3 | X116: 0 | Y116: 2 | Z116: 15 | AA116: 1 | AB116: 3 | AC116: 2 | AD116: 1 | AE116: 2 | AF116: 0 | AG116: 1 | AH116: 1 | AI116: 0 | AJ116: 0 | AK116: 0 | AL116: 0 | AM116: 0 | AN116: 0
A117: 106 | B117: 01:45:00 | C117: 0 | D117: 54 | E117: =IF(appliances!$D$46="YES",light_sim_data!B117,0) -> 0 | F117: 54 | H117: 0 | I117: 0 | J117: 0 | K117: 0 | L117: 1 | M117: 2 | N117: 2 | O117: 1 | P117: 9 | Q117: 0 | R117: 0 | S117: 0 | T117: 5 | U117: 0 | V117: 3 | W117: 3 | X117: 0 | Y117: 2 | Z117: 15 | AA117: 1 | AB117: 3 | AC117: 2 | AD117: 1 | AE117: 2 | AF117: 0 | AG117: 1 | AH117: 1 | AI117: 0 | AJ117: 0 | AK117: 0 | AL117: 0 | AM117: 0 | AN117: 0
A118: 107 | B118: 01:46:00 | C118: 0 | D118: 54 | E118: =IF(appliances!$D$46="YES",light_sim_data!B118,0) -> 0 | F118: 54 | H118: 0 | I118: 0 | J118: 0 | K118: 0 | L118: 1 | M118: 2 | N118: 2 | O118: 1 | P118: 9 | Q118: 0 | R118: 0 | S118: 0 | T118: 5 | U118: 0 | V118: 3 | W118: 3 | X118: 0 | Y118: 2 | Z118: 15 | AA118: 1 | AB118: 3 | AC118: 2 | AD118: 1 | AE118: 2 | AF118: 0 | AG118: 1 | AH118: 1 | AI118: 0 | AJ118: 0 | AK118: 0 | AL118: 0 | AM118: 0 | AN118: 0
A119: 108 | B119: 01:47:00 | C119: 0 | D119: 54 | E119: =IF(appliances!$D$46="YES",light_sim_data!B119,0) -> 0 | F119: 54 | H119: 0 | I119: 0 | J119: 0 | K119: 0 | L119: 1 | M119: 2 | N119: 2 | O119: 1 | P119: 9 | Q119: 0 | R119: 0 | S119: 0 | T119: 5 | U119: 0 | V119: 3 | W119: 3 | X119: 0 | Y119: 2 | Z119: 15 | AA119: 1 | AB119: 3 | AC119: 2 | AD119: 1 | AE119: 2 | AF119: 0 | AG119: 1 | AH119: 1 | AI119: 0 | AJ119: 0 | AK119: 0 | AL119: 0 | AM119: 0 | AN119: 0
A120: 109 | B120: 01:48:00 | C120: 0 | D120: 163 | E120: =IF(appliances!$D$46="YES",light_sim_data!B120,0) -> 0 | F120: 163 | H120: 0 | I120: 0 | J120: 109 | K120: 0 | L120: 1 | M120: 2 | N120: 2 | O120: 1 | P120: 9 | Q120: 0 | R120: 0 | S120: 0 | T120: 5 | U120: 0 | V120: 3 | W120: 3 | X120: 0 | Y120: 2 | Z120: 15 | AA120: 1 | AB120: 3 | AC120: 2 | AD120: 1 | AE120: 2 | AF120: 0 | AG120: 1 | AH120: 1 | AI120: 0 | AJ120: 0 | AK120: 0 | AL120: 0 | AM120: 0 | AN120: 0
A121: 110 | B121: 01:49:00 | C121: 0 | D121: 163 | E121: =IF(appliances!$D$46="YES",light_sim_data!B121,0) -> 0 | F121: 163 | H121: 0 | I121: 0 | J121: 109 | K121: 0 | L121: 1 | M121: 2 | N121: 2 | O121: 1 | P121: 9 | Q121: 0 | R121: 0 | S121: 0 | T121: 5 | U121: 0 | V121: 3 | W121: 3 | X121: 0 | Y121: 2 | Z121: 15 | AA121: 1 | AB121: 3 | AC121: 2 | AD121: 1 | AE121: 2 | AF121: 0 | AG121: 1 | AH121: 1 | AI121: 0 | AJ121: 0 | AK121: 0 | AL121: 0 | AM121: 0 | AN121: 0
A122: 111 | B122: 01:50:00 | C122: 0 | D122: 163 | E122: =IF(appliances!$D$46="YES",light_sim_data!B122,0) -> 0 | F122: 163 | H122: 0 | I122: 0 | J122: 109 | K122: 0 | L122: 1 | M122: 2 | N122: 2 | O122: 1 | P122: 9 | Q122: 0 | R122: 0 | S122: 0 | T122: 5 | U122: 0 | V122: 3 | W122: 3 | X122: 0 | Y122: 2 | Z122: 15 | AA122: 1 | AB122: 3 | AC122: 2 | AD122: 1 | AE122: 2 | AF122: 0 | AG122: 1 | AH122: 1 | AI122: 0 | AJ122: 0 | AK122: 0 | AL122: 0 | AM122: 0 | AN122: 0
A123: 112 | B123: 01:51:00 | C123: 0 | D123: 163 | E123: =IF(appliances!$D$46="YES",light_sim_data!B123,0) -> 0 | F123: 163 | H123: 0 | I123: 0 | J123: 109 | K123: 0 | L123: 1 | M123: 2 | N123: 2 | O123: 1 | P123: 9 | Q123: 0 | R123: 0 | S123: 0 | T123: 5 | U123: 0 | V123: 3 | W123: 3 | X123: 0 | Y123: 2 | Z123: 15 | AA123: 1 | AB123: 3 | AC123: 2 | AD123: 1 | AE123: 2 | AF123: 0 | AG123: 1 | AH123: 1 | AI123: 0 | AJ123: 0 | AK123: 0 | AL123: 0 | AM123: 0 | AN123: 0
A124: 113 | B124: 01:52:00 | C124: 0 | D124: 163 | E124: =IF(appliances!$D$46="YES",light_sim_data!B124,0) -> 0 | F124: 163 | H124: 0 | I124: 0 | J124: 109 | K124: 0 | L124: 1 | M124: 2 | N124: 2 | O124: 1 | P124: 9 | Q124: 0 | R124: 0 | S124: 0 | T124: 5 | U124: 0 | V124: 3 | W124: 3 | X124: 0 | Y124: 2 | Z124: 15 | AA124: 1 | AB124: 3 | AC124: 2 | AD124: 1 | AE124: 2 | AF124: 0 | AG124: 1 | AH124: 1 | AI124: 0 | AJ124: 0 | AK124: 0 | AL124: 0 | AM124: 0 | AN124: 0
A125: 114 | B125: 01:53:00 | C125: 0 | D125: 163 | E125: =IF(appliances!$D$46="YES",light_sim_data!B125,0) -> 0 | F125: 163 | H125: 0 | I125: 0 | J125: 109 | K125: 0 | L125: 1 | M125: 2 | N125: 2 | O125: 1 | P125: 9 | Q125: 0 | R125: 0 | S125: 0 | T125: 5 | U125: 0 | V125: 3 | W125: 3 | X125: 0 | Y125: 2 | Z125: 15 | AA125: 1 | AB125: 3 | AC125: 2 | AD125: 1 | AE125: 2 | AF125: 0 | AG125: 1 | AH125: 1 | AI125: 0 | AJ125: 0 | AK125: 0 | AL125: 0 | AM125: 0 | AN125: 0
A126: 115 | B126: 01:54:00 | C126: 0 | D126: 163 | E126: =IF(appliances!$D$46="YES",light_sim_data!B126,0) -> 0 | F126: 163 | H126: 0 | I126: 0 | J126: 109 | K126: 0 | L126: 1 | M126: 2 | N126: 2 | O126: 1 | P126: 9 | Q126: 0 | R126: 0 | S126: 0 | T126: 5 | U126: 0 | V126: 3 | W126: 3 | X126: 0 | Y126: 2 | Z126: 15 | AA126: 1 | AB126: 3 | AC126: 2 | AD126: 1 | AE126: 2 | AF126: 0 | AG126: 1 | AH126: 1 | AI126: 0 | AJ126: 0 | AK126: 0 | AL126: 0 | AM126: 0 | AN126: 0
A127: 116 | B127: 01:55:00 | C127: 0 | D127: 163 | E127: =IF(appliances!$D$46="YES",light_sim_data!B127,0) -> 0 | F127: 163 | H127: 0 | I127: 0 | J127: 109 | K127: 0 | L127: 1 | M127: 2 | N127: 2 | O127: 1 | P127: 9 | Q127: 0 | R127: 0 | S127: 0 | T127: 5 | U127: 0 | V127: 3 | W127: 3 | X127: 0 | Y127: 2 | Z127: 15 | AA127: 1 | AB127: 3 | AC127: 2 | AD127: 1 | AE127: 2 | AF127: 0 | AG127: 1 | AH127: 1 | AI127: 0 | AJ127: 0 | AK127: 0 | AL127: 0 | AM127: 0 | AN127: 0
A128: 117 | B128: 01:56:00 | C128: 0 | D128: 163 | E128: =IF(appliances!$D$46="YES",light_sim_data!B128,0) -> 0 | F128: 163 | H128: 0 | I128: 0 | J128: 109 | K128: 0 | L128: 1 | M128: 2 | N128: 2 | O128: 1 | P128: 9 | Q128: 0 | R128: 0 | S128: 0 | T128: 5 | U128: 0 | V128: 3 | W128: 3 | X128: 0 | Y128: 2 | Z128: 15 | AA128: 1 | AB128: 3 | AC128: 2 | AD128: 1 | AE128: 2 | AF128: 0 | AG128: 1 | AH128: 1 | AI128: 0 | AJ128: 0 | AK128: 0 | AL128: 0 | AM128: 0 | AN128: 0
A129: 118 | B129: 01:57:00 | C129: 0 | D129: 163 | E129: =IF(appliances!$D$46="YES",light_sim_data!B129,0) -> 0 | F129: 163 | H129: 0 | I129: 0 | J129: 109 | K129: 0 | L129: 1 | M129: 2 | N129: 2 | O129: 1 | P129: 9 | Q129: 0 | R129: 0 | S129: 0 | T129: 5 | U129: 0 | V129: 3 | W129: 3 | X129: 0 | Y129: 2 | Z129: 15 | AA129: 1 | AB129: 3 | AC129: 2 | AD129: 1 | AE129: 2 | AF129: 0 | AG129: 1 | AH129: 1 | AI129: 0 | AJ129: 0 | AK129: 0 | AL129: 0 | AM129: 0 | AN129: 0
A130: 119 | B130: 01:58:00 | C130: 0 | D130: 163 | E130: =IF(appliances!$D$46="YES",light_sim_data!B130,0) -> 0 | F130: 163 | H130: 0 | I130: 0 | J130: 109 | K130: 0 | L130: 1 | M130: 2 | N130: 2 | O130: 1 | P130: 9 | Q130: 0 | R130: 0 | S130: 0 | T130: 5 | U130: 0 | V130: 3 | W130: 3 | X130: 0 | Y130: 2 | Z130: 15 | AA130: 1 | AB130: 3 | AC130: 2 | AD130: 1 | AE130: 2 | AF130: 0 | AG130: 1 | AH130: 1 | AI130: 0 | AJ130: 0 | AK130: 0 | AL130: 0 | AM130: 0 | AN130: 0
A131: 120 | B131: 01:59:00 | C131: 0 | D131: 163 | E131: =IF(appliances!$D$46="YES",light_sim_data!B131,0) -> 0 | F131: 163 | H131: 0 | I131: 0 | J131: 109 | K131: 0 | L131: 1 | M131: 2 | N131: 2 | O131: 1 | P131: 9 | Q131: 0 | R131: 0 | S131: 0 | T131: 5 | U131: 0 | V131: 3 | W131: 3 | X131: 0 | Y131: 2 | Z131: 15 | AA131: 1 | AB131: 3 | AC131: 2 | AD131: 1 | AE131: 2 | AF131: 0 | AG131: 1 | AH131: 1 | AI131: 0 | AJ131: 0 | AK131: 0 | AL131: 0 | AM131: 0 | AN131: 0
A132: 121 | B132: 02:00:00 | C132: 0 | D132: 163 | E132: =IF(appliances!$D$46="YES",light_sim_data!B132,0) -> 0 | F132: 163 | H132: 0 | I132: 0 | J132: 109 | K132: 0 | L132: 1 | M132: 2 | N132: 2 | O132: 1 | P132: 9 | Q132: 0 | R132: 0 | S132: 0 | T132: 5 | U132: 0 | V132: 3 | W132: 3 | X132: 0 | Y132: 2 | Z132: 15 | AA132: 1 | AB132: 3 | AC132: 2 | AD132: 1 | AE132: 2 | AF132: 0 | AG132: 1 | AH132: 1 | AI132: 0 | AJ132: 0 | AK132: 0 | AL132: 0 | AM132: 0 | AN132: 0
A133: 122 | B133: 02:01:00 | C133: 0 | D133: 163 | E133: =IF(appliances!$D$46="YES",light_sim_data!B133,0) -> 0 | F133: 163 | H133: 0 | I133: 0 | J133: 109 | K133: 0 | L133: 1 | M133: 2 | N133: 2 | O133: 1 | P133: 9 | Q133: 0 | R133: 0 | S133: 0 | T133: 5 | U133: 0 | V133: 3 | W133: 3 | X133: 0 | Y133: 2 | Z133: 15 | AA133: 1 | AB133: 3 | AC133: 2 | AD133: 1 | AE133: 2 | AF133: 0 | AG133: 1 | AH133: 1 | AI133: 0 | AJ133: 0 | AK133: 0 | AL133: 0 | AM133: 0 | AN133: 0
A134: 123 | B134: 02:02:00 | C134: 0 | D134: 163 | E134: =IF(appliances!$D$46="YES",light_sim_data!B134,0) -> 0 | F134: 163 | H134: 0 | I134: 0 | J134: 109 | K134: 0 | L134: 1 | M134: 2 | N134: 2 | O134: 1 | P134: 9 | Q134: 0 | R134: 0 | S134: 0 | T134: 5 | U134: 0 | V134: 3 | W134: 3 | X134: 0 | Y134: 2 | Z134: 15 | AA134: 1 | AB134: 3 | AC134: 2 | AD134: 1 | AE134: 2 | AF134: 0 | AG134: 1 | AH134: 1 | AI134: 0 | AJ134: 0 | AK134: 0 | AL134: 0 | AM134: 0 | AN134: 0
A135: 124 | B135: 02:03:00 | C135: 0 | D135: 163 | E135: =IF(appliances!$D$46="YES",light_sim_data!B135,0) -> 0 | F135: 163 | H135: 0 | I135: 0 | J135: 109 | K135: 0 | L135: 1 | M135: 2 | N135: 2 | O135: 1 | P135: 9 | Q135: 0 | R135: 0 | S135: 0 | T135: 5 | U135: 0 | V135: 3 | W135: 3 | X135: 0 | Y135: 2 | Z135: 15 | AA135: 1 | AB135: 3 | AC135: 2 | AD135: 1 | AE135: 2 | AF135: 0 | AG135: 1 | AH135: 1 | AI135: 0 | AJ135: 0 | AK135: 0 | AL135: 0 | AM135: 0 | AN135: 0
A136: 125 | B136: 02:04:00 | C136: 0 | D136: 163 | E136: =IF(appliances!$D$46="YES",light_sim_data!B136,0) -> 0 | F136: 163 | H136: 0 | I136: 0 | J136: 109 | K136: 0 | L136: 1 | M136: 2 | N136: 2 | O136: 1 | P136: 9 | Q136: 0 | R136: 0 | S136: 0 | T136: 5 | U136: 0 | V136: 3 | W136: 3 | X136: 0 | Y136: 2 | Z136: 15 | AA136: 1 | AB136: 3 | AC136: 2 | AD136: 1 | AE136: 2 | AF136: 0 | AG136: 1 | AH136: 1 | AI136: 0 | AJ136: 0 | AK136: 0 | AL136: 0 | AM136: 0 | AN136: 0
A137: 126 | B137: 02:05:00 | C137: 0 | D137: 163 | E137: =IF(appliances!$D$46="YES",light_sim_data!B137,0) -> 0 | F137: 163 | H137: 0 | I137: 0 | J137: 109 | K137: 0 | L137: 1 | M137: 2 | N137: 2 | O137: 1 | P137: 9 | Q137: 0 | R137: 0 | S137: 0 | T137: 5 | U137: 0 | V137: 3 | W137: 3 | X137: 0 | Y137: 2 | Z137: 15 | AA137: 1 | AB137: 3 | AC137: 2 | AD137: 1 | AE137: 2 | AF137: 0 | AG137: 1 | AH137: 1 | AI137: 0 | AJ137: 0 | AK137: 0 | AL137: 0 | AM137: 0 | AN137: 0
A138: 127 | B138: 02:06:00 | C138: 0 | D138: 54 | E138: =IF(appliances!$D$46="YES",light_sim_data!B138,0) -> 0 | F138: 54 | H138: 0 | I138: 0 | J138: 0 | K138: 0 | L138: 1 | M138: 2 | N138: 2 | O138: 1 | P138: 9 | Q138: 0 | R138: 0 | S138: 0 | T138: 5 | U138: 0 | V138: 3 | W138: 3 | X138: 0 | Y138: 2 | Z138: 15 | AA138: 1 | AB138: 3 | AC138: 2 | AD138: 1 | AE138: 2 | AF138: 0 | AG138: 1 | AH138: 1 | AI138: 0 | AJ138: 0 | AK138: 0 | AL138: 0 | AM138: 0 | AN138: 0
A139: 128 | B139: 02:07:00 | C139: 0 | D139: 54 | E139: =IF(appliances!$D$46="YES",light_sim_data!B139,0) -> 0 | F139: 54 | H139: 0 | I139: 0 | J139: 0 | K139: 0 | L139: 1 | M139: 2 | N139: 2 | O139: 1 | P139: 9 | Q139: 0 | R139: 0 | S139: 0 | T139: 5 | U139: 0 | V139: 3 | W139: 3 | X139: 0 | Y139: 2 | Z139: 15 | AA139: 1 | AB139: 3 | AC139: 2 | AD139: 1 | AE139: 2 | AF139: 0 | AG139: 1 | AH139: 1 | AI139: 0 | AJ139: 0 | AK139: 0 | AL139: 0 | AM139: 0 | AN139: 0
A140: 129 | B140: 02:08:00 | C140: 0 | D140: 54 | E140: =IF(appliances!$D$46="YES",light_sim_data!B140,0) -> 0 | F140: 54 | H140: 0 | I140: 0 | J140: 0 | K140: 0 | L140: 1 | M140: 2 | N140: 2 | O140: 1 | P140: 9 | Q140: 0 | R140: 0 | S140: 0 | T140: 5 | U140: 0 | V140: 3 | W140: 3 | X140: 0 | Y140: 2 | Z140: 15 | AA140: 1 | AB140: 3 | AC140: 2 | AD140: 1 | AE140: 2 | AF140: 0 | AG140: 1 | AH140: 1 | AI140: 0 | AJ140: 0 | AK140: 0 | AL140: 0 | AM140: 0 | AN140: 0
A141: 130 | B141: 02:09:00 | C141: =INDIRECT("occ_sim_data!C"&(ROUNDDOWN((A141-1)/10,0)+11)) -> 0 | D141: =E141+F141 -> 54 | E141: =IF(appliances!$D$46="YES",light_sim_data!B141,0) -> 0 | F141: =SUM(H141:AN141) -> 54 | H141: 0 | I141: 0 | J141: 0 | K141: 0 | L141: 1 | M141: 2 | N141: 2 | O141: 1 | P141: 9 | Q141: 0 | R141: 0 | S141: 0 | T141: 5 | U141: 0 | V141: 3 | W141: 3 | X141: 0 | Y141: 2 | Z141: 15 | AA141: 1 | AB141: 3 | AC141: 2 | AD141: 1 | AE141: 2 | AF141: 0 | AG141: 1 | AH141: 1 | AI141: 0 | AJ141: 0 | AK141: 0 | AL141: 0 | AM141: 0 | AN141: 0
A142: 131 | B142: 02:10:00 | C142: 0 | D142: 54 | E142: =IF(appliances!$D$46="YES",light_sim_data!B142,0) -> 0 | F142: 54 | H142: 0 | I142: 0 | J142: 0 | K142: 0 | L142: 1 | M142: 2 | N142: 2 | O142: 1 | P142: 9 | Q142: 0 | R142: 0 | S142: 0 | T142: 5 | U142: 0 | V142: 3 | W142: 3 | X142: 0 | Y142: 2 | Z142: 15 | AA142: 1 | AB142: 3 | AC142: 2 | AD142: 1 | AE142: 2 | AF142: 0 | AG142: 1 | AH142: 1 | AI142: 0 | AJ142: 0 | AK142: 0 | AL142: 0 | AM142: 0 | AN142: 0
A143: 132 | B143: 02:11:00 | C143: 0 | D143: 54 | E143: =IF(appliances!$D$46="YES",light_sim_data!B143,0) -> 0 | F143: 54 | H143: 0 | I143: 0 | J143: 0 | K143: 0 | L143: 1 | M143: 2 | N143: 2 | O143: 1 | P143: 9 | Q143: 0 | R143: 0 | S143: 0 | T143: 5 | U143: 0 | V143: 3 | W143: 3 | X143: 0 | Y143: 2 | Z143: 15 | AA143: 1 | AB143: 3 | AC143: 2 | AD143: 1 | AE143: 2 | AF143: 0 | AG143: 1 | AH143: 1 | AI143: 0 | AJ143: 0 | AK143: 0 | AL143: 0 | AM143: 0 | AN143: 0
A144: 133 | B144: 02:12:00 | C144: 0 | D144: 54 | E144: =IF(appliances!$D$46="YES",light_sim_data!B144,0) -> 0 | F144: 54 | H144: 0 | I144: 0 | J144: 0 | K144: 0 | L144: 1 | M144: 2 | N144: 2 | O144: 1 | P144: 9 | Q144: 0 | R144: 0 | S144: 0 | T144: 5 | U144: 0 | V144: 3 | W144: 3 | X144: 0 | Y144: 2 | Z144: 15 | AA144: 1 | AB144: 3 | AC144: 2 | AD144: 1 | AE144: 2 | AF144: 0 | AG144: 1 | AH144: 1 | AI144: 0 | AJ144: 0 | AK144: 0 | AL144: 0 | AM144: 0 | AN144: 0
A145: 134 | B145: 02:13:00 | C145: 0 | D145: 54 | E145: =IF(appliances!$D$46="YES",light_sim_data!B145,0) -> 0 | F145: 54 | H145: 0 | I145: 0 | J145: 0 | K145: 0 | L145: 1 | M145: 2 | N145: 2 | O145: 1 | P145: 9 | Q145: 0 | R145: 0 | S145: 0 | T145: 5 | U145: 0 | V145: 3 | W145: 3 | X145: 0 | Y145: 2 | Z145: 15 | AA145: 1 | AB145: 3 | AC145: 2 | AD145: 1 | AE145: 2 | AF145: 0 | AG145: 1 | AH145: 1 | AI145: 0 | AJ145: 0 | AK145: 0 | AL145: 0 | AM145: 0 | AN145: 0
A146: 135 | B146: 02:14:00 | C146: 0 | D146: 54 | E146: =IF(appliances!$D$46="YES",light_sim_data!B146,0) -> 0 | F146: 54 | H146: 0 | I146: 0 | J146: 0 | K146: 0 | L146: 1 | M146: 2 | N146: 2 | O146: 1 | P146: 9 | Q146: 0 | R146: 0 | S146: 0 | T146: 5 | U146: 0 | V146: 3 | W146: 3 | X146: 0 | Y146: 2 | Z146: 15 | AA146: 1 | AB146: 3 | AC146: 2 | AD146: 1 | AE146: 2 | AF146: 0 | AG146: 1 | AH146: 1 | AI146: 0 | AJ146: 0 | AK146: 0 | AL146: 0 | AM146: 0 | AN146: 0
A147: 136 | B147: 02:15:00 | C147: 0 | D147: 54 | E147: =IF(appliances!$D$46="YES",light_sim_data!B147,0) -> 0 | F147: 54 | H147: 0 | I147: 0 | J147: 0 | K147: 0 | L147: 1 | M147: 2 | N147: 2 | O147: 1 | P147: 9 | Q147: 0 | R147: 0 | S147: 0 | T147: 5 | U147: 0 | V147: 3 | W147: 3 | X147: 0 | Y147: 2 | Z147: 15 | AA147: 1 | AB147: 3 | AC147: 2 | AD147: 1 | AE147: 2 | AF147: 0 | AG147: 1 | AH147: 1 | AI147: 0 | AJ147: 0 | AK147: 0 | AL147: 0 | AM147: 0 | AN147: 0
A148: 137 | B148: 02:16:00 | C148: 0 | D148: 54 | E148: =IF(appliances!$D$46="YES",light_sim_data!B148,0) -> 0 | F148: 54 | H148: 0 | I148: 0 | J148: 0 | K148: 0 | L148: 1 | M148: 2 | N148: 2 | O148: 1 | P148: 9 | Q148: 0 | R148: 0 | S148: 0 | T148: 5 | U148: 0 | V148: 3 | W148: 3 | X148: 0 | Y148: 2 | Z148: 15 | AA148: 1 | AB148: 3 | AC148: 2 | AD148: 1 | AE148: 2 | AF148: 0 | AG148: 1 | AH148: 1 | AI148: 0 | AJ148: 0 | AK148: 0 | AL148: 0 | AM148: 0 | AN148: 0
A149: 138 | B149: 02:17:00 | C149: 0 | D149: 54 | E149: =IF(appliances!$D$46="YES",light_sim_data!B149,0) -> 0 | F149: 54 | H149: 0 | I149: 0 | J149: 0 | K149: 0 | L149: 1 | M149: 2 | N149: 2 | O149: 1 | P149: 9 | Q149: 0 | R149: 0 | S149: 0 | T149: 5 | U149: 0 | V149: 3 | W149: 3 | X149: 0 | Y149: 2 | Z149: 15 | AA149: 1 | AB149: 3 | AC149: 2 | AD149: 1 | AE149: 2 | AF149: 0 | AG149: 1 | AH149: 1 | AI149: 0 | AJ149: 0 | AK149: 0 | AL149: 0 | AM149: 0 | AN149: 0
A150: 139 | B150: 02:18:00 | C150: 0 | D150: 54 | E150: =IF(appliances!$D$46="YES",light_sim_data!B150,0) -> 0 | F150: 54 | H150: 0 | I150: 0 | J150: 0 | K150: 0 | L150: 1 | M150: 2 | N150: 2 | O150: 1 | P150: 9 | Q150: 0 | R150: 0 | S150: 0 | T150: 5 | U150: 0 | V150: 3 | W150: 3 | X150: 0 | Y150: 2 | Z150: 15 | AA150: 1 | AB150: 3 | AC150: 2 | AD150: 1 | AE150: 2 | AF150: 0 | AG150: 1 | AH150: 1 | AI150: 0 | AJ150: 0 | AK150: 0 | AL150: 0 | AM150: 0 | AN150: 0
A151: 140 | B151: 02:19:00 | C151: 0 | D151: 54 | E151: =IF(appliances!$D$46="YES",light_sim_data!B151,0) -> 0 | F151: 54 | H151: 0 | I151: 0 | J151: 0 | K151: 0 | L151: 1 | M151: 2 | N151: 2 | O151: 1 | P151: 9 | Q151: 0 | R151: 0 | S151: 0 | T151: 5 | U151: 0 | V151: 3 | W151: 3 | X151: 0 | Y151: 2 | Z151: 15 | AA151: 1 | AB151: 3 | AC151: 2 | AD151: 1 | AE151: 2 | AF151: 0 | AG151: 1 | AH151: 1 | AI151: 0 | AJ151: 0 | AK151: 0 | AL151: 0 | AM151: 0 | AN151: 0
A152: 141 | B152: 02:20:00 | C152: 0 | D152: 54 | E152: =IF(appliances!$D$46="YES",light_sim_data!B152,0) -> 0 | F152: 54 | H152: 0 | I152: 0 | J152: 0 | K152: 0 | L152: 1 | M152: 2 | N152: 2 | O152: 1 | P152: 9 | Q152: 0 | R152: 0 | S152: 0 | T152: 5 | U152: 0 | V152: 3 | W152: 3 | X152: 0 | Y152: 2 | Z152: 15 | AA152: 1 | AB152: 3 | AC152: 2 | AD152: 1 | AE152: 2 | AF152: 0 | AG152: 1 | AH152: 1 | AI152: 0 | AJ152: 0 | AK152: 0 | AL152: 0 | AM152: 0 | AN152: 0
A153: 142 | B153: 02:21:00 | C153: 0 | D153: 54 | E153: =IF(appliances!$D$46="YES",light_sim_data!B153,0) -> 0 | F153: 54 | H153: 0 | I153: 0 | J153: 0 | K153: 0 | L153: 1 | M153: 2 | N153: 2 | O153: 1 | P153: 9 | Q153: 0 | R153: 0 | S153: 0 | T153: 5 | U153: 0 | V153: 3 | W153: 3 | X153: 0 | Y153: 2 | Z153: 15 | AA153: 1 | AB153: 3 | AC153: 2 | AD153: 1 | AE153: 2 | AF153: 0 | AG153: 1 | AH153: 1 | AI153: 0 | AJ153: 0 | AK153: 0 | AL153: 0 | AM153: 0 | AN153: 0
A154: 143 | B154: 02:22:00 | C154: 0 | D154: 54 | E154: =IF(appliances!$D$46="YES",light_sim_data!B154,0) -> 0 | F154: 54 | H154: 0 | I154: 0 | J154: 0 | K154: 0 | L154: 1 | M154: 2 | N154: 2 | O154: 1 | P154: 9 | Q154: 0 | R154: 0 | S154: 0 | T154: 5 | U154: 0 | V154: 3 | W154: 3 | X154: 0 | Y154: 2 | Z154: 15 | AA154: 1 | AB154: 3 | AC154: 2 | AD154: 1 | AE154: 2 | AF154: 0 | AG154: 1 | AH154: 1 | AI154: 0 | AJ154: 0 | AK154: 0 | AL154: 0 | AM154: 0 | AN154: 0
A155: 144 | B155: 02:23:00 | C155: 0 | D155: 54 | E155: =IF(appliances!$D$46="YES",light_sim_data!B155,0) -> 0 | F155: 54 | H155: 0 | I155: 0 | J155: 0 | K155: 0 | L155: 1 | M155: 2 | N155: 2 | O155: 1 | P155: 9 | Q155: 0 | R155: 0 | S155: 0 | T155: 5 | U155: 0 | V155: 3 | W155: 3 | X155: 0 | Y155: 2 | Z155: 15 | AA155: 1 | AB155: 3 | AC155: 2 | AD155: 1 | AE155: 2 | AF155: 0 | AG155: 1 | AH155: 1 | AI155: 0 | AJ155: 0 | AK155: 0 | AL155: 0 | AM155: 0 | AN155: 0
A156: 145 | B156: 02:24:00 | C156: 0 | D156: 54 | E156: =IF(appliances!$D$46="YES",light_sim_data!B156,0) -> 0 | F156: 54 | H156: 0 | I156: 0 | J156: 0 | K156: 0 | L156: 1 | M156: 2 | N156: 2 | O156: 1 | P156: 9 | Q156: 0 | R156: 0 | S156: 0 | T156: 5 | U156: 0 | V156: 3 | W156: 3 | X156: 0 | Y156: 2 | Z156: 15 | AA156: 1 | AB156: 3 | AC156: 2 | AD156: 1 | AE156: 2 | AF156: 0 | AG156: 1 | AH156: 1 | AI156: 0 | AJ156: 0 | AK156: 0 | AL156: 0 | AM156: 0 | AN156: 0
A157: 146 | B157: 02:25:00 | C157: 0 | D157: 54 | E157: =IF(appliances!$D$46="YES",light_sim_data!B157,0) -> 0 | F157: 54 | H157: 0 | I157: 0 | J157: 0 | K157: 0 | L157: 1 | M157: 2 | N157: 2 | O157: 1 | P157: 9 | Q157: 0 | R157: 0 | S157: 0 | T157: 5 | U157: 0 | V157: 3 | W157: 3 | X157: 0 | Y157: 2 | Z157: 15 | AA157: 1 | AB157: 3 | AC157: 2 | AD157: 1 | AE157: 2 | AF157: 0 | AG157: 1 | AH157: 1 | AI157: 0 | AJ157: 0 | AK157: 0 | AL157: 0 | AM157: 0 | AN157: 0
A158: 147 | B158: 02:26:00 | C158: 0 | D158: 54 | E158: =IF(appliances!$D$46="YES",light_sim_data!B158,0) -> 0 | F158: 54 | H158: 0 | I158: 0 | J158: 0 | K158: 0 | L158: 1 | M158: 2 | N158: 2 | O158: 1 | P158: 9 | Q158: 0 | R158: 0 | S158: 0 | T158: 5 | U158: 0 | V158: 3 | W158: 3 | X158: 0 | Y158: 2 | Z158: 15 | AA158: 1 | AB158: 3 | AC158: 2 | AD158: 1 | AE158: 2 | AF158: 0 | AG158: 1 | AH158: 1 | AI158: 0 | AJ158: 0 | AK158: 0 | AL158: 0 | AM158: 0 | AN158: 0
A159: 148 | B159: 02:27:00 | C159: 0 | D159: 54 | E159: =IF(appliances!$D$46="YES",light_sim_data!B159,0) -> 0 | F159: 54 | H159: 0 | I159: 0 | J159: 0 | K159: 0 | L159: 1 | M159: 2 | N159: 2 | O159: 1 | P159: 9 | Q159: 0 | R159: 0 | S159: 0 | T159: 5 | U159: 0 | V159: 3 | W159: 3 | X159: 0 | Y159: 2 | Z159: 15 | AA159: 1 | AB159: 3 | AC159: 2 | AD159: 1 | AE159: 2 | AF159: 0 | AG159: 1 | AH159: 1 | AI159: 0 | AJ159: 0 | AK159: 0 | AL159: 0 | AM159: 0 | AN159: 0
